Workbook

Sheet Menu
Z1: 2
Z4: 2
A6: South Extension District - 12
D8: Budgets
D11: Field Crops
D13: =+CornConventionalTill!A3 -> Corn, Conventional Tillage, Furrow Irrigated, Rio Grande Valley
D14: =CornReducedTill!A3 -> Corn, Reduced Tillage, Furrow Irrigated, Rio Grande Valley
D15: =CottonConventionalTill!A3 -> Cotton, Conventional Tillage, Furrow Irrigated, Rio Grande Valley
D16: =CottonReducedTill!A3 -> Cotton, Reduced Tillage, GMO, Furrow Irrigated, Rio Grande Valley
D17: =CottonDryland!A3 -> Cotton, Conventional Tillage, Dryland, Rio Grande Valley
B18: Comparative Returns | D18: =SorghumConventionalTill!A3 -> Grain Sorghum, Conventional Tillage, Furrow Irrigated, Rio Grande Valley
D19: =SorghumReducedTill!A3 -> Grain Sorghum, Reduced Tillage, Furrow Irrigated, Rio Grande Valley
D20: =SorghumDryland!A3 -> Grain Sorghum, Conventional Tillage, Dryland, Rio Grande Valley
D21: =SugarCanePlant!A3 -> Sugar Cane, Planted, Furrow Irrigated, Rio Grande Valley
D22: =SugarCaneRatoon!A3 -> Sugar Cane, Ratoon, Furrow Irrigated, Rio Grande Valley
D23: =HayProduction!A3 -> Hay Production, Furrow Irrigated, Rio Grande Valley
D24: =HayEstablishment!A3 -> Hay Establishment, Furrow Irrigated, Rio Grande Valley
D26: Horticultural Crops
D28: =Cabbage!A3 -> Cabbage, Fresh Market, Furrow Irrigated, Rio Grande Valley
D29: =Cantaloupe!A3 -> Cantaloupe, Plastic Mulch, Drip Irrigated, Rio Grande Valley
D30: =HoneyDew!A3 -> Honeydew, Plastic Mulch, Drip Irrigated, Rio Grande Valley
D31: =Onion!A3 -> Onion, Hybrid Yellow Varieties, Furrow Irrigated, Rio Grande Valley
D32: =Watermelon!A3 -> Watermelon, Seedless, Plastic Mulch, Drip Irrigated, Rio Grande Valley
D33: =WatermelonDryland!A3 -> Watermelon, Open Pollinated Varieties, Dryland, Rio Grande Valley
D35: Citrus Crops
D37: =GrapefruitYear1!A3 -> Grapefruit, Year 1, Orchard Establishment, Flood Irrigated, Rio Grande Valley
D38: =GrapefruitYear2!A3 -> Grapefruit, Year 2, Orchard Establishment, Flood Irrigated, Rio Grande Valley
D39: =GrapefruitYear3!A3 -> Grapefruit, Year 3, Orchard Establishment, Flood Irrigated, Rio Grande Valley
D40: =GrapefruitYear4!A3 -> Grapefruit, Year 4, Orchard Establishment, Flood Irrigated, Rio Grande Valley
D41: =GrapefruitYear5!A3 -> Grapefruit, Year 5, Orchard Establishment, Flood Irrigated, Rio Grande Valley
D42: =GrapefruitYear6!A3 -> Grapefruit, Year 6, Orchard Establishment, Flood Irrigated, Rio Grande Valley
D43: =GrapefruitYear7!A3 -> Grapefruit, Year 7, Orchard Establishment, Flood Irrigated, Rio Grande Valley
D44: =GrapefruitYear8!A3 -> Grapefruit, Year 8, Orchard Establishment, Flood Irrigated, Rio Grande Valley
D45: =OrangesNavel!A3 -> Oranges, Early Orange, Mature Orchard, Flood Irrigated, Rio Grande Valley
D46: =OrangesValencias!A3 -> Oranges, Valencias, Mature Orchard, Flood Irrigated, Rio Grande Valley
D48: Other Budgets
D50: ='Livestock Budget'!A3 -> Livestock Enterprise
D51: ='Crop Budget'!A3 -> Crop Enterprise
A66: Developed by Samuel Zapata, Assistant Professor and Extension Economist, Texas A&M AgriLife Extension, 956-968-5581.

Sheet GrapefruitYear1
A1: Projections for Planning Purposes Only -- Not to be Used without Updating
A2: 2020 Estimated Costs and Returns per Acre
A3: Grapefruit, Year 1, Orchard Establishment, Flood Irrigated, Rio Grande Valley
A4: Enter your name for this budget in the cell above.
A5: Enter Your Values in the cells highlighed in MAROON.
E6: Your Acres | R6: Your
C7: Crop Acres | D7: 100 | L7: Your | Q7: Enterprise | R7: Enterprise
E8: Your | H8: Your | I8: Cash | J8: Your | K8: Landlord | L8: Landlord | N8: Your | P8: Your | Q8: Total | R8: Total
A9: REVENUE | D9: Quantity | E9: Quantity | F9: Units | G9: $/Unit | H9: $/Unit | I9: Total | J9: Total | K9: Share | L9: Share | M9: Landlord | N9: Landlord | O9: Tenant | P9: Tenant | Q9: (100 acres) | R9: ="(" & E7 & " acres)" -> ( acres)
B10: Grapefruit (Rio Red) | D10: 0 | G10: 0 | I10: 0 | J10: =E10*H10 -> 0 | K10: 0 | M10: 0 | N10: =J10*L10 -> 0 | O10: 0 | P10: =+J10-N10 -> 0 | Q10: 0 | R10: =+J10*E$7 -> 0
D11: 0 | G11: 0 | I11: 0 | J11: 0 | K11: 0 | M11: 0 | N11: 0 | O11: 0 | P11: =+J11-N11 -> 0 | Q11: 0 | R11: 0
D12: 0 | G12: 0 | I12: 0 | J12: 0 | K12: 0 | M12: 0 | N12: 0 | O12: 0 | P12: 0 | Q12: 0 | R12: 0
A13: Total Revenue | I13: 0 | J13: =SUM(J10:J12) -> 0 | M13: 0 | N13: =SUM(N10:N12) -> 0 | O13: 0 | P13: =SUM(P10:P12) -> 0 | Q13: 0 | R13: =SUM(R10:R12) -> 0
Q14: Enterprise | R14: Enterprise
A15: VARIABLE COSTS | D15: Quantity | E15: Quantity | F15: Units | G15: $/Unit | H15: $/Unit | I15: Total | J15: Total | K15: Share | L15: Share | M15: Landlord | N15: Landlord | O15: Tenant | P15: Tenant | Q15: Total | R15: Total
A16: Production Costs
B17: Seed
C18: Young Citrus Trees | D18: 150 | F18: Tree | G18: 10 | I18: 1500 | J18: =E18*H18 -> 0 | K18: 0 | M18: 0 | N18: =J18*L18 -> 0 | O18: 1500 | P18: =+J18-N18 -> 0 | Q18: 150000 | R18: =+J18*E$7 -> 0
C19: Layout and Plant | D19: 150 | F19: Tree | G19: 5 | I19: 750 | J19: 0 | K19: 0 | M19: 0 | N19: 0 | O19: 750 | P19: 0 | Q19: 75000 | R19: 0
C20: Tree Wrap/Unwrap | D20: 150 | F20: Tree | G20: 2 | I20: 300 | J20: 0 | K20: 0 | M20: 0 | N20: 0 | O20: 300 | P20: 0 | Q20: 30000 | R20: 0
B21: Fertilizer
C22: Urea (46%) | D22: 0.62 | F22: CTW | G22: 21.8 | I22: 13.516 | J22: 0 | K22: 0 | M22: 0 | N22: 0 | O22: 13.516 | P22: 0 | Q22: 1351.6 | R22: 0
C23: Foliar Zn | D23: 0.67 | F23: Pound | G23: 0.8 | I23: 0.536 | J23: 0 | K23: 0 | M23: 0 | N23: 0 | O23: 0.536 | P23: 0 | Q23: 53.6 | R23: 0
C24: Foliar 18-8-5 | D24: 1.32 | F24: Gallon | G24: 15.5 | I24: 20.46 | J24: 0 | K24: 0 | M24: 0 | N24: 0 | O24: 20.46 | P24: 0 | Q24: 2046 | R24: 0
B25: Custom
C26: Land Prep. Remove Old Orchad | D26: 1 | F26: Acre | G26: 378 | I26: 378 | J26: 0 | K26: 0 | M26: 0 | N26: 0 | O26: 378 | P26: 0 | Q26: 37800 | R26: 0
C27: Citrus Land Prep: Ripping | D27: 1 | F27: Acre | G27: 300 | I27: 300 | J27: 0 | K27: 0 | M27: 0 | N27: 0 | O27: 300 | P27: 0 | Q27: 30000 | R27: 0
C28: Citrus Land Prep: Disk | D28: 1 | F28: Acre | G28: 75 | I28: 75 | J28: 0 | K28: 0 | M28: 0 | N28: 0 | O28: 75 | P28: 0 | Q28: 7500 | R28: 0
C29: Citrus Land Prep: Level | D29: 1 | F29: Acre | G29: 86 | I29: 86 | J29: 0 | K29: 0 | M29: 0 | N29: 0 | O29: 86 | P29: 0 | Q29: 8600 | R29: 0
C30: Sucker (Yr 1-3 Year) | D30: 1 | F30: Acre | G30: 45 | I30: 45 | J30: 0 | K30: 0 | M30: 0 | N30: 0 | O30: 45 | P30: 0 | Q30: 4500 | R30: 0
C31: Foliar Application | D31: 2 | F31: Acre | G31: 42 | I31: 84 | J31: 0 | K31: 0 | M31: 0 | N31: 0 | O31: 84 | P31: 0 | Q31: 8400 | R31: 0
B32: Herbicide
C33: Simazine 4L | D33: 1.25 | F33: Gallon | G33: 21.4608 | I33: 26.826 | J33: 0 | K33: 0 | M33: 0 | N33: 0 | O33: 26.826 | P33: 0 | Q33: 2682.6 | R33: 0
C34: Krovar I 80 DF | D34: 3 | F34: Pound | G34: 15.65376 | I34: 46.96128 | J34: 0 | K34: 0 | M34: 0 | N34: 0 | O34: 46.96128 | P34: 0 | Q34: 4696.128 | R34: 0
C35: Roundup/Glyphosate | D35: 3.4 | F35: Gallon | G35: 20 | I35: 68 | J35: 0 | K35: 0 | M35: 0 | N35: 0 | O35: 68 | P35: 0 | Q35: 6800 | R35: 0
B36: Insecticide
C37: Sivanto | D37: 10 | F37: Ounce | G37: 2.3 | I37: 23 | J37: 0 | K37: 0 | M37: 0 | N37: 0 | O37: 23 | P37: 0 | Q37: 2300 | R37: 0
C38: Danitol | D38: 16 | F38: Ounce | G38: 1.58 | I38: 25.28 | J38: 0 | K38: 0 | M38: 0 | N38: 0 | O38: 25.28 | P38: 0 | Q38: 2528 | R38: 0
B39: Miscellaneous
C40: Citrus Assessment | D40: 1 | F40: Acre | G40: 45 | I40: 45 | J40: 0 | K40: 0 | M40: 0 | N40: 0 | O40: 45 | P40: 0 | Q40: 4500 | R40: 0
C41: Insurance, Grapefruit | D41: 1 | F41: Acre | G41: 30 | I41: 30 | J41: 0 | K41: 0 | M41: 0 | N41: 0 | O41: 30 | P41: 0 | Q41: 3000 | R41: 0
B42: Other Labor
C43: Unallocated Labor | D43: 1 | F43: Hour | G43: 12 | I43: 12 | J43: 0 | K43: 0 | M43: 0 | N43: 0 | O43: 12 | P43: 0 | Q43: 1200 | R43: 0
C44: Costum Soil Fert. Citrus | D44: 6 | F44: Hour | G44: 12 | I44: 72 | J44: 0 | K44: 0 | M44: 0 | N44: 0 | O44: 72 | P44: 0 | Q44: 7200 | R44: 0
B45: Other Chemicals
C46: Surfactant - Citrus | D46: 8.28 | F46: Pint | G46: 8 | I46: 66.24 | J46: 0 | K46: 0 | M46: 0 | N46: 0 | O46: 66.24 | P46: 0 | Q46: 6624 | R46: 0
D47: 0 | G47: 0 | I47: 0 | J47: 0 | K47: 0 | M47: 0 | N47: 0 | O47: 0 | P47: 0 | Q47: 0 | R47: 0
D48: 0 | G48: 0 | I48: 0 | J48: 0 | K48: 0 | M48: 0 | N48: 0 | O48: 0 | P48: 0 | Q48: 0 | R48: 0
D49: 0 | G49: 0 | I49: 0 | J49: =E49*H49 -> 0 | K49: 0 | M49: 0 | N49: =J49*L49 -> 0 | O49: 0 | P49: =+J49-N49 -> 0 | Q49: 0 | R49: =+J49*E$7 -> 0
B50: Irrigation
C51: Water Cost | D51: 1.56 | F51: Acre/Foot | G51: 20 | I51: 31.2 | J51: =E51*H51 -> 0 | K51: 0 | M51: 0 | N51: =J51*L51 -> 0 | O51: 31.2 | P51: =+J51-N51 -> 0 | Q51: 3120 | R51: =+J51*E$7 -> 0
C52: Irrigation Labor | D52: 13 | F52: Hour | G52: 12 | I52: 156 | J52: 0 | K52: 0 | M52: 0 | N52: 0 | O52: 156 | P52: 0 | Q52: 15600 | R52: 0
B53: Machinery Labor
C54: Tractors/Self-Propelled | D54: 0.8 | F54: Hour | G54: 12 | I54: 9.6 | J54: =E54*H54 -> 0 | K54: 0 | M54: 0 | N54: =J54*L54 -> 0 | O54: 9.6 | P54: =+J54-N54 -> 0 | Q54: 960 | R54: =+J54*E$7 -> 0
C55: Other Labor | D55: 0.4 | F55: Hour | G55: 12 | I55: 4.8 | J55: =E55*H55 -> 0 | K55: 0 | M55: 0 | N55: =J55*L55 -> 0 | O55: 4.8 | P55: =+J55-N55 -> 0 | Q55: 480 | R55: =+J55*E$7 -> 0
B57: Diesel Fuel
C58: Pickup/General Use Equipment | D58: 1 | F58: Acre | G58: 0 | I58: 0 | J58: =E58*H58 -> 0 | K58: 0 | M58: 0 | N58: =J58*L58 -> 0 | O58: 0 | P58: =+J58-N58 -> 0 | Q58: 0 | R58: =+J58*E$7 -> 0
C59: Tractors/Self-Propelled | D59: 3.66 | F59: Gallon | G59: 2.3 | I59: 8.418 | J59: =E59*H59 -> 0 | K59: 0 | M59: 0 | N59: =J59*L59 -> 0 | O59: 8.418 | P59: =+J59-N59 -> 0 | Q59: 841.8 | R59: =+J59*E$7 -> 0
B61: Gasoline
C62: Pickup/General Use Equipment | D62: 1 | F62: Acre | G62: 0 | I62: 0 | J62: =E62*H62 -> 0 | K62: 0 | M62: 0 | N62: =J62*L62 -> 0 | O62: 0 | P62: =+J62-N62 -> 0 | Q62: 0 | R62: =+J62*E$7 -> 0
C63: Tractors/Self-Propelled | D63: 0 | F63: Gallon | G63: 2.2 | I63: 0 | J63: =E63*H63 -> 0 | K63: 0 | M63: 0 | N63: =J63*L63 -> 0 | O63: 0 | P63: =+J63-N63 -> 0 | Q63: 0 | R63: =+J63*E$7 -> 0
B65: Repairs & Maintenance
C66: Pickup/General Use Equipment | D66: 1 | F66: Acre | G66: 0 | I66: 0 | J66: =E66*H66 -> 0 | K66: 0 | M66: 0 | N66: =J66*L66 -> 0 | O66: 0 | P66: =+J66-N66 -> 0 | Q66: 0 | R66: =+J66*E$7 -> 0
C67: Irrigation Equipment | D67: 1 | F67: Acre | G67: 0 | I67: 0 | J67: 0 | K67: 0 | M67: 0 | N67: 0 | O67: 0 | P67: 0 | Q67: 0 | R67: 0
C68: Tractors/Self-Propelled | D68: 1 | F68: Acre | G68: 8.428795717 | I68: 8.428795717 | J68: 0 | K68: 0 | M68: 0 | N68: 0 | O68: 8.428795717 | P68: 0 | Q68: 842.8795717 | R68: 0
C69: Implements | D69: 1 | F69: Acre | G69: 2.858799603 | I69: 2.858799603 | J69: 0 | K69: 0 | M69: 0 | N69: 0 | O69: 2.858799603 | P69: 0 | Q69: 285.8799603 | R69: 0
I70: 0 | J70: 0 | K70: 0 | M70: 0 | N70: 0 | O70: 0 | P70: 0 | Q70: 0 | R70: 0
I71: 0 | J71: 0 | K71: 0 | M71: 0 | N71: 0 | O71: 0 | P71: 0 | Q71: 0 | R71: 0
B72: Interest on Credit Line | G72: 0.05 | I72: 177.8366391 | J72: =+SUM(J17:J71)/2*H72 -> 0 | M72: 0 | N72: =+SUM(N17:N71)/2*L72 -> 0 | O72: 177.8366391 | P72: =+SUM(P17:P71)/2*L72 -> 0 | Q72: 17783.66391 | R72: =+J72*E$7 -> 0
A73: Total Variable Costs | I73: 4366.961514 | J73: =SUM(J18:J72) -> 0 | M73: 0 | N73: =SUM(N18:N72) -> 0 | O73: 4366.961514 | P73: =SUM(P18:P72) -> 0 | Q73: 436696.1514 | R73: =SUM(R18:R72) -> 0
A74: Planned Returns Above Variable Costs: | I74: -4366.961514 | J74: =+J13-J73 -> 0 | M74: 0 | N74: =+N13-N73 -> 0 | O74: -4366.961514 | P74: =+P13-P73 -> 0 | Q74: -436696.1514 | R74: =+R13-R73 -> 0
B75: Breakeven Price to Cover Variable Costs | G75: n/a | H75: =IF(E10=0,"n/a",(YVarExp-(YTotExp+YTotRet-J10))/E10) -> n/a
Q76: Enterprise | R76: Enterprise
A77: FIXED COSTS | D77: Quantity | E77: Quantity | F77: Units | G77: $/Unit | H77: $/Unit | I77: Total | J77: Total | K77: Share | L77: Share | M77: Landlord | N77: Landlord | O77: Tenant | P77: Tenant | Q77: Total | R77: Total
B78: Machinery Depreciation
C79: Tractors/Self-Propelled | D79: 1 | F79: Acre | G79: 8.709755574 | I79: 8.709755574 | J79: =E79*H79 -> 0 | K79: 0 | M79: 0 | N79: =J79*L79 -> 0 | O79: 8.709755574 | P79: =+J79-N79 -> 0 | Q79: 870.9755574 | R79: =+J79*E$7 -> 0
C80: Implements | D80: 1 | F80: Acre | G80: 3.055939539 | I80: 3.055939539 | J80: 0 | K80: 0 | M80: 0 | N80: =J80*L80 -> 0 | O80: 3.055939539 | P80: 0 | Q80: 305.5939539 | R80: 0
B81: Equipment Investment
C82: Tractors/Self-Propelled | D82: 67.85180552 | F82: Dollars | G82: 0.07 | I82: 4.749626387 | J82: =E82*H82 -> 0 | K82: 0 | M82: 0 | N82: =J82*L82 -> 0 | O82: 4.749626387 | P82: =+J82-N82 -> 0 | Q82: 474.9626387 | R82: =+J82*E$7 -> 0
C83: Implements | D83: 13.07263025 | F83: Dollars | G83: 0.07 | I83: 0.9150841174 | J83: 0 | K83: 0 | M83: 0 | N83: =J83*L83 -> 0 | O83: 0.9150841174 | P83: 0 | Q83: 91.50841174 | R83: 0
B84: Salaried Labor | D84: 1 | F84: Acre | G84: 0 | I84: 0 | J84: 0 | K84: 0 | M84: 0 | N84: =J84*L84 -> 0 | O84: 0 | P84: =+J84-N84 -> 0 | Q84: 0 | R84: =+J84*E$7 -> 0
B85: Management Fee, Owner/Operator Labor | D85: 1 | F85: Acre | G85: 0 | I85: 0 | J85: 0 | K85: 0 | M85: 0 | N85: 0 | O85: 0 | P85: 0 | Q85: 0 | R85: 0
B86: Allocated Establishment Cost | D86: 1 | F86: Acre | G86: 0 | I86: 0 | J86: 0 | K86: 0 | M86: 0 | N86: 0 | O86: 0 | P86: 0 | Q86: 0 | R86: 0
B87: Land Cost, Orchard | D87: 1 | F87: Acre | G87: 100 | I87: 100 | J87: 0 | K87: 0 | M87: 0 | N87: 0 | O87: 100 | P87: 0 | Q87: 10000 | R87: 0
B88: Property Taxes | D88: 1 | F88: Acre | G88: 0 | I88: 0 | J88: 0 | K88: 0 | M88: 0 | N88: 0 | O88: 0 | P88: 0 | Q88: 0 | R88: 0
B89: Whole Farm Insurance | D89: 1 | F89: Acre | G89: 0 | I89: 0 | J89: 0 | K89: 0 | M89: 0 | N89: 0 | O89: 0 | P89: 0 | Q89: 0 | R89: 0
D90: 1 | G90: 0 | I90: 0 | J90: 0 | K90: 0 | M90: 0 | N90: 0 | O90: 0 | P90: 0 | Q90: 0 | R90: 0
D91: 1 | G91: 0 | I91: 0 | J91: =E91*H91 -> 0 | K91: 0 | M91: 0 | N91: 0 | O91: 0 | P91: 0 | Q91: 0 | R91: 0
A92: Total Fixed Costs | I92: 117.4304056 | J92: =+SUM(J79:J91) -> 0 | M92: 0 | N92: =+SUM(N79:N91) -> 0 | O92: 117.4304056 | P92: =+SUM(P79:P91) -> 0 | Q92: 11743.04056 | R92: =+SUM(R79:R91) -> 0
A93: Total Specified Costs | I93: 4484.39192 | J93: =+J73+J92 -> 0 | M93: 0 | N93: =+N73+N92 -> 0 | O93: 4484.39192 | P93: =+P73+P92 -> 0 | Q93: 448439.192 | R93: =+R73+R92 -> 0
A95: Returns Above Specified Costs | I95: -4484.39192 | J95: =+J13-J93 -> 0 | M95: 0 | N95: =+N13-N93 -> 0 | O95: -4484.39192 | P95: =+P13-P93 -> 0 | Q95: -448439.192 | R95: =+R13-R93 -> 0
A97: Breakeven Price to Cover Total Costs | G97: n/a | H97: =IF(E10=0,"n/a",(YTotExp-(YTotExp+YTotRet-J10))/E10) -> n/a
D99: Example Breakeven Prices
B100: Example | C100: Example | D100: To Cover | G100: To Cover
B101: Yield | C101: Yield | D101: Variable | G101: Total
B102: Percent | D102: Costs | G102: Costs
B103: 0.75 | C103: 0 | D103: 0 | G103: 0
B104: 0.9 | C104: 0 | D104: 0 | G104: 0
B105: 1 | C105: 0 | D105: 0 | G105: 0
B106: 1.1 | C106: 0 | D106: 0 | G106: 0
B107: 1.25 | C107: 0 | D107: 0 | G107: 0
D109: Your Breakeven Prices
B110: Your | C110: Your | E110: To Cover | H110: To Cover
B111: Yield | C111: Yield | E111: Variable | H111: Total
B112: Percent | E112: Costs | H112: Costs
B113: 0.75 | C113: =E10*YPER1 -> 0 | E113: =IF($E$10=0,0,(YVarExp-(YTotExp+YTotRet-J10))/($E$10*YPER1)) -> 0 | H113: =IF($E$10=0,0,(YTotExp-(YTotExp+YTotRet-J10))/($E$10*YPER1)) -> 0
B114: 0.9 | C114: =E10*YPER2 -> 0 | E114: =IF($E$10=0,0,(YVarExp-(YTotExp+YTotRet-J10))/($E$10*YPER2)) -> 0 | H114: =IF($E$10=0,0,(YTotExp-(YTotExp+YTotRet-J10))/($E$10*YPER2)) -> 0
B115: 1 | C115: =+E10 -> 0 | E115: =IF($E$10=0,0,(YVarExp-(YTotExp+YTotRet-J10))/($E$10*YPER3)) -> 0 | H115: =IF($E$10=0,0,(YTotExp-(YTotExp+YTotRet-J10))/($E$10*YPER3)) -> 0
B116: 1.1 | C116: =E10*YPER4 -> 0 | E116: =IF($E$10=0,0,(YVarExp-(YTotExp+YTotRet-J10))/($E$10*YPER4)) -> 0 | H116: =IF($E$10=0,0,(YTotExp-(YTotExp+YTotRet-J10))/($E$10*YPER4)) -> 0
B117: 1.25 | C117: =E10*YPER5 -> 0 | E117: =IF($E$10=0,0,(YVarExp-(YTotExp+YTotRet-J10))/($E$10*YPER5)) -> 0 | H117: =IF($E$10=0,0,(YTotExp-(YTotExp+YTotRet-J10))/($E$10*YPER5)) -> 0
A119: Developed by Samuel Zapata, Assistant Professor and Extension Economist, Texas A&M AgriLife Extension, 956-968-5581.
A121: Information presented is prepared solely as a general guide and not intended to recognize or predict the costs and returns from any one operation. Brand names are mentioned only as examples and imply no endorsement.

Sheet GrapefruitYear2
A1: Projections for Planning Purposes Only -- Not to be Used without Updating
A2: 2020 Estimated Costs and Returns per Acre
A3: Grapefruit, Year 2, Orchard Establishment, Flood Irrigated, Rio Grande Valley
A4: Enter your name for this budget in the cell above.
A5: Enter Your Values in the cells highlighed in MAROON.
E6: Your Acres | R6: Your
C7: Crop Acres | D7: 100 | L7: Your | Q7: Enterprise | R7: Enterprise
E8: Your | H8: Your | I8: Cash | J8: Your | K8: Landlord | L8: Landlord | N8: Your | P8: Your | Q8: Total | R8: Total
A9: REVENUE | D9: Quantity | E9: Quantity | F9: Units | G9: $/Unit | H9: $/Unit | I9: Total | J9: Total | K9: Share | L9: Share | M9: Landlord | N9: Landlord | O9: Tenant | P9: Tenant | Q9: (100 acres) | R9: ="(" & E7 & " acres)" -> ( acres)
B10: 0 | D10: 0 | G10: 0 | I10: 0 | J10: =E10*H10 -> 0 | K10: 0 | M10: 0 | N10: =J10*L10 -> 0 | O10: 0 | P10: =+J10-N10 -> 0 | Q10: 0 | R10: =+J10*E$7 -> 0
D11: 0 | G11: 0 | I11: 0 | J11: 0 | K11: 0 | M11: 0 | N11: 0 | O11: 0 | P11: =+J11-N11 -> 0 | Q11: 0 | R11: 0
D12: 0 | G12: 0 | I12: 0 | J12: 0 | K12: 0 | M12: 0 | N12: 0 | O12: 0 | P12: 0 | Q12: 0 | R12: 0
A13: Total Revenue | I13: 0 | J13: =SUM(J10:J12) -> 0 | M13: 0 | N13: =SUM(N10:N12) -> 0 | O13: 0 | P13: =SUM(P10:P12) -> 0 | Q13: 0 | R13: =SUM(R10:R12) -> 0
Q14: Enterprise | R14: Enterprise
A15: VARIABLE COSTS | D15: Quantity | E15: Quantity | F15: Units | G15: $/Unit | H15: $/Unit | I15: Total | J15: Total | K15: Share | L15: Share | M15: Landlord | N15: Landlord | O15: Tenant | P15: Tenant | Q15: Total | R15: Total
A16: Production Costs
B17: Herbicide
C18: Simazine 4L | D18: 1.25 | F18: Gallon | G18: 21.4608 | I18: 26.826 | J18: =E18*H18 -> 0 | K18: 0 | M18: 0 | N18: =J18*L18 -> 0 | O18: 26.826 | P18: =+J18-N18 -> 0 | Q18: 2682.6 | R18: =+J18*E$7 -> 0
C19: Krovar I 80 DF | D19: 3 | F19: Pound | G19: 15.65376 | I19: 46.96128 | J19: 0 | K19: 0 | M19: 0 | N19: 0 | O19: 46.96128 | P19: 0 | Q19: 4696.128 | R19: 0
C20: Roundup/Glyphosate | D20: 3.4 | F20: Gallon | G20: 20 | I20: 68 | J20: 0 | K20: 0 | M20: 0 | N20: 0 | O20: 68 | P20: 0 | Q20: 6800 | R20: 0
B21: Fertilizer
C22: Urea (46%) | D22: 1.25 | F22: CTW | G22: 21.8 | I22: 27.25 | J22: 0 | K22: 0 | M22: 0 | N22: 0 | O22: 27.25 | P22: 0 | Q22: 2725 | R22: 0
C23: Foliar Zn | D23: 0.67 | F23: Pound | G23: 0.8 | I23: 0.536 | J23: 0 | K23: 0 | M23: 0 | N23: 0 | O23: 0.536 | P23: 0 | Q23: 53.6 | R23: 0
C24: Foliar 18-8-5 | D24: 1.32 | F24: Gallon | G24: 15.5 | I24: 20.46 | J24: 0 | K24: 0 | M24: 0 | N24: 0 | O24: 20.46 | P24: 0 | Q24: 2046 | R24: 0
B25: Custom
C26: Foliar Application | D26: 2 | F26: Acre | G26: 42 | I26: 84 | J26: 0 | K26: 0 | M26: 0 | N26: 0 | O26: 84 | P26: 0 | Q26: 8400 | R26: 0
C27: Sucker (Yr 1-3 Year) | D27: 1 | F27: Acre | G27: 45 | I27: 45 | J27: 0 | K27: 0 | M27: 0 | N27: 0 | O27: 45 | P27: 0 | Q27: 4500 | R27: 0
B28: Miscellaneous
C29: Insurance, Grapefruit | D29: 1 | F29: Acre | G29: 30 | I29: 30 | J29: 0 | K29: 0 | M29: 0 | N29: 0 | O29: 30 | P29: 0 | Q29: 3000 | R29: 0
C30: Citrus Assessment | D30: 1 | F30: Acre | G30: 45 | I30: 45 | J30: 0 | K30: 0 | M30: 0 | N30: 0 | O30: 45 | P30: 0 | Q30: 4500 | R30: 0
B31: Insecticide
C32: Sivanto | D32: 10 | F32: Ounce | G32: 2.3 | I32: 23 | J32: 0 | K32: 0 | M32: 0 | N32: 0 | O32: 23 | P32: 0 | Q32: 2300 | R32: 0
C33: Danitol | D33: 16 | F33: Ounce | G33: 1.58 | I33: 25.28 | J33: 0 | K33: 0 | M33: 0 | N33: 0 | O33: 25.28 | P33: 0 | Q33: 2528 | R33: 0
B34: Other Chemicals
C35: Surfactant - Citrus | D35: 8.28 | F35: Pint | G35: 8 | I35: 66.24 | J35: 0 | K35: 0 | M35: 0 | N35: 0 | O35: 66.24 | P35: 0 | Q35: 6624 | R35: 0
B36: Other Labor
C37: Unallocated Labor | D37: 1 | F37: Hour | G37: 12 | I37: 12 | J37: 0 | K37: 0 | M37: 0 | N37: 0 | O37: 12 | P37: 0 | Q37: 1200 | R37: 0
C38: Costum Soil Fert. Citrus | D38: 6 | F38: Hour | G38: 12 | I38: 72 | J38: 0 | K38: 0 | M38: 0 | N38: 0 | O38: 72 | P38: 0 | Q38: 7200 | R38: 0
B39: Seed
C40: Young Citrus Trees | D40: 3 | F40: Tree | G40: 10 | I40: 30 | J40: 0 | K40: 0 | M40: 0 | N40: 0 | O40: 30 | P40: 0 | Q40: 3000 | R40: 0
C41: Layout and Plant | D41: 3 | F41: Tree | G41: 5 | I41: 15 | J41: 0 | K41: 0 | M41: 0 | N41: 0 | O41: 15 | P41: 0 | Q41: 1500 | R41: 0
C42: Tree Wrap/Unwrap | D42: 3 | F42: Tree | G42: 2 | I42: 6 | J42: 0 | K42: 0 | M42: 0 | N42: 0 | O42: 6 | P42: 0 | Q42: 600 | R42: 0
D43: 0 | G43: 0 | I43: 0 | J43: 0 | K43: 0 | M43: 0 | N43: 0 | O43: 0 | P43: 0 | Q43: 0 | R43: 0
D44: 0 | G44: 0 | I44: 0 | J44: 0 | K44: 0 | M44: 0 | N44: 0 | O44: 0 | P44: 0 | Q44: 0 | R44: 0
D45: 0 | G45: 0 | I45: 0 | J45: =E45*H45 -> 0 | K45: 0 | M45: 0 | N45: =J45*L45 -> 0 | O45: 0 | P45: =+J45-N45 -> 0 | Q45: 0 | R45: =+J45*E$7 -> 0
B46: Irrigation
C47: Water Cost | D47: 4 | F47: Acre/Foot | G47: 20 | I47: 80 | J47: =E47*H47 -> 0 | K47: 0 | M47: 0 | N47: =J47*L47 -> 0 | O47: 80 | P47: =+J47-N47 -> 0 | Q47: 8000 | R47: =+J47*E$7 -> 0
C48: Irrigation Labor | D48: 14 | F48: Hour | G48: 12 | I48: 168 | J48: 0 | K48: 0 | M48: 0 | N48: 0 | O48: 168 | P48: 0 | Q48: 16800 | R48: 0
B49: Machinery Labor
C50: Tractors/Self-Propelled | D50: 0.36 | F50: Hour | G50: 12 | I50: 4.32 | J50: =E50*H50 -> 0 | K50: 0 | M50: 0 | N50: =J50*L50 -> 0 | O50: 4.32 | P50: =+J50-N50 -> 0 | Q50: 432 | R50: =+J50*E$7 -> 0
C51: Other Labor | D51: 0.18 | F51: Hour | G51: 12 | I51: 2.16 | J51: =E51*H51 -> 0 | K51: 0 | M51: 0 | N51: =J51*L51 -> 0 | O51: 2.16 | P51: =+J51-N51 -> 0 | Q51: 216 | R51: =+J51*E$7 -> 0
B53: Diesel Fuel
C54: Pickup/General Use Equipment | D54: 1 | F54: Acre | G54: 0 | I54: 0 | J54: =E54*H54 -> 0 | K54: 0 | M54: 0 | N54: =J54*L54 -> 0 | O54: 0 | P54: =+J54-N54 -> 0 | Q54: 0 | R54: =+J54*E$7 -> 0
C55: Tractors/Self-Propelled | D55: 3.66 | F55: Gallon | G55: 2.3 | I55: 8.418 | J55: =E55*H55 -> 0 | K55: 0 | M55: 0 | N55: =J55*L55 -> 0 | O55: 8.418 | P55: =+J55-N55 -> 0 | Q55: 841.8 | R55: =+J55*E$7 -> 0
B57: Gasoline
C58: Pickup/General Use Equipment | D58: 1 | F58: Acre | G58: 0 | I58: 0 | J58: =E58*H58 -> 0 | K58: 0 | M58: 0 | N58: =J58*L58 -> 0 | O58: 0 | P58: =+J58-N58 -> 0 | Q58: 0 | R58: =+J58*E$7 -> 0
C59: Tractors/Self-Propelled | D59: 0 | F59: Gallon | G59: 2.2 | I59: 0 | J59: =E59*H59 -> 0 | K59: 0 | M59: 0 | N59: =J59*L59 -> 0 | O59: 0 | P59: =+J59-N59 -> 0 | Q59: 0 | R59: =+J59*E$7 -> 0
B61: Repairs & Maintenance
C62: Pickup/General Use Equipment | D62: 1 | F62: Acre | G62: 0 | I62: 0 | J62: =E62*H62 -> 0 | K62: 0 | M62: 0 | N62: =J62*L62 -> 0 | O62: 0 | P62: =+J62-N62 -> 0 | Q62: 0 | R62: =+J62*E$7 -> 0
C63: Irrigation Equipment | D63: 1 | F63: Acre | G63: 0 | I63: 0 | J63: 0 | K63: 0 | M63: 0 | N63: 0 | O63: 0 | P63: 0 | Q63: 0 | R63: 0
C64: Tractors/Self-Propelled | D64: 1 | F64: Acre | G64: 8.428795717 | I64: 8.428795717 | J64: 0 | K64: 0 | M64: 0 | N64: 0 | O64: 8.428795717 | P64: 0 | Q64: 842.8795717 | R64: 0
C65: Implements | D65: 1 | F65: Acre | G65: 2.858799603 | I65: 2.858799603 | J65: 0 | K65: 0 | M65: 0 | N65: 0 | O65: 2.858799603 | P65: 0 | Q65: 285.8799603 | R65: 0
I66: 0 | J66: 0 | K66: 0 | M66: 0 | N66: 0 | O66: 0 | P66: 0 | Q66: 0 | R66: 0
I67: 0 | J67: 0 | K67: 0 | M67: 0 | N67: 0 | O67: 0 | P67: 0 | Q67: 0 | R67: 0
B68: Interest on Credit Line | G68: 0.05 | I68: 27.36443784 | J68: =+SUM(J17:J67)/2*H68 -> 0 | M68: 0 | N68: =+SUM(N17:N67)/2*L68 -> 0 | O68: 27.36443784 | P68: =+SUM(P17:P67)/2*L68 -> 0 | Q68: 2736.443784 | R68: =+J68*E$7 -> 0
A69: Total Variable Costs | I69: 945.1033132 | J69: =SUM(J18:J68) -> 0 | M69: 0 | N69: =SUM(N18:N68) -> 0 | O69: 945.1033132 | P69: =SUM(P18:P68) -> 0 | Q69: 94510.33132 | R69: =SUM(R18:R68) -> 0
A70: Planned Returns Above Variable Costs: | I70: -945.1033132 | J70: =+J13-J69 -> 0 | M70: 0 | N70: =+N13-N69 -> 0 | O70: -945.1033132 | P70: =+P13-P69 -> 0 | Q70: -94510.33132 | R70: =+R13-R69 -> 0
B71: Breakeven Price to Cover Variable Costs | G71: n/a | H71: =IF(E10=0,"n/a",(YVarExp-(YTotExp+YTotRet-J10))/E10) -> n/a
Q72: Enterprise | R72: Enterprise
A73: FIXED COSTS | D73: Quantity | E73: Quantity | F73: Units | G73: $/Unit | H73: $/Unit | I73: Total | J73: Total | K73: Share | L73: Share | M73: Landlord | N73: Landlord | O73: Tenant | P73: Tenant | Q73: Total | R73: Total
B74: Machinery Depreciation
C75: Tractors/Self-Propelled | D75: 1 | F75: Acre | G75: 8.709755574 | I75: 8.709755574 | J75: =E75*H75 -> 0 | K75: 0 | M75: 0 | N75: =J75*L75 -> 0 | O75: 8.709755574 | P75: =+J75-N75 -> 0 | Q75: 870.9755574 | R75: =+J75*E$7 -> 0
C76: Implements | D76: 1 | F76: Acre | G76: 3.055939539 | I76: 3.055939539 | J76: 0 | K76: 0 | M76: 0 | N76: =J76*L76 -> 0 | O76: 3.055939539 | P76: 0 | Q76: 305.5939539 | R76: 0
B77: Equipment Investment
C78: Tractors/Self-Propelled | D78: 67.85180552 | F78: Dollars | G78: 0.07 | I78: 4.749626387 | J78: =E78*H78 -> 0 | K78: 0 | M78: 0 | N78: =J78*L78 -> 0 | O78: 4.749626387 | P78: =+J78-N78 -> 0 | Q78: 474.9626387 | R78: =+J78*E$7 -> 0
C79: Implements | D79: 13.07263025 | F79: Dollars | G79: 0.07 | I79: 0.9150841174 | J79: 0 | K79: 0 | M79: 0 | N79: =J79*L79 -> 0 | O79: 0.9150841174 | P79: 0 | Q79: 91.50841174 | R79: 0
B80: Salaried Labor | D80: 1 | F80: Acre | G80: 0 | I80: 0 | J80: 0 | K80: 0 | M80: 0 | N80: =J80*L80 -> 0 | O80: 0 | P80: =+J80-N80 -> 0 | Q80: 0 | R80: =+J80*E$7 -> 0
B81: Management Fee, Owner/Operator Labor | D81: 1 | F81: Acre | G81: 0 | I81: 0 | J81: 0 | K81: 0 | M81: 0 | N81: 0 | O81: 0 | P81: 0 | Q81: 0 | R81: 0
B82: Allocated Establishment Cost | D82: 1 | F82: Acre | G82: 0 | I82: 0 | J82: 0 | K82: 0 | M82: 0 | N82: 0 | O82: 0 | P82: 0 | Q82: 0 | R82: 0
B83: Land Cost, Orchard | D83: 1 | F83: Acre | G83: 100 | I83: 100 | J83: 0 | K83: 0 | M83: 0 | N83: 0 | O83: 100 | P83: 0 | Q83: 10000 | R83: 0
B84: Property Taxes | D84: 1 | F84: Acre | G84: 0 | I84: 0 | J84: 0 | K84: 0 | M84: 0 | N84: 0 | O84: 0 | P84: 0 | Q84: 0 | R84: 0
B85: Whole Farm Insurance | D85: 1 | F85: Acre | G85: 0 | I85: 0 | J85: 0 | K85: 0 | M85: 0 | N85: 0 | O85: 0 | P85: 0 | Q85: 0 | R85: 0
D86: 1 | G86: 0 | I86: 0 | J86: 0 | K86: 0 | M86: 0 | N86: 0 | O86: 0 | P86: 0 | Q86: 0 | R86: 0
D87: 1 | G87: 0 | I87: 0 | J87: =E87*H87 -> 0 | K87: 0 | M87: 0 | N87: 0 | O87: 0 | P87: 0 | Q87: 0 | R87: 0
A88: Total Fixed Costs | I88: 117.4304056 | J88: =+SUM(J75:J87) -> 0 | M88: 0 | N88: =+SUM(N75:N87) -> 0 | O88: 117.4304056 | P88: =+SUM(P75:P87) -> 0 | Q88: 11743.04056 | R88: =+SUM(R75:R87) -> 0
A89: Total Specified Costs | I89: 1062.533719 | J89: =+J69+J88 -> 0 | M89: 0 | N89: =+N69+N88 -> 0 | O89: 1062.533719 | P89: =+P69+P88 -> 0 | Q89: 106253.3719 | R89: =+R69+R88 -> 0
A91: Returns Above Specified Costs | I91: -1062.533719 | J91: =+J13-J89 -> 0 | M91: 0 | N91: =+N13-N89 -> 0 | O91: -1062.533719 | P91: =+P13-P89 -> 0 | Q91: -106253.3719 | R91: =+R13-R89 -> 0
A93: Breakeven Price to Cover Total Costs | G93: n/a | H93: =IF(E10=0,"n/a",(YTotExp-(YTotExp+YTotRet-J10))/E10) -> n/a
D95: Example Breakeven Prices
B96: Example | C96: Example | D96: To Cover | G96: To Cover
B97: Yield | C97: Yield | D97: Variable | G97: Total
B98: Percent | D98: Costs | G98: Costs
B99: 0.75 | C99: 0 | D99: 0 | G99: 0
B100: 0.9 | C100: 0 | D100: 0 | G100: 0
B101: 1 | C101: 0 | D101: 0 | G101: 0
B102: 1.1 | C102: 0 | D102: 0 | G102: 0
B103: 1.25 | C103: 0 | D103: 0 | G103: 0
D105: Your Breakeven Prices
B106: Your | C106: Your | E106: To Cover | H106: To Cover
B107: Yield | C107: Yield | E107: Variable | H107: Total
B108: Percent | E108: Costs | H108: Costs
B109: 0.75 | C109: =E10*YPER1 -> 0 | E109: =IF($E$10=0,0,(YVarExp-(YTotExp+YTotRet-J10))/($E$10*YPER1)) -> 0 | H109: =IF($E$10=0,0,(YTotExp-(YTotExp+YTotRet-J10))/($E$10*YPER1)) -> 0
B110: 0.9 | C110: =E10*YPER2 -> 0 | E110: =IF($E$10=0,0,(YVarExp-(YTotExp+YTotRet-J10))/($E$10*YPER2)) -> 0 | H110: =IF($E$10=0,0,(YTotExp-(YTotExp+YTotRet-J10))/($E$10*YPER2)) -> 0
B111: 1 | C111: =+E10 -> 0 | E111: =IF($E$10=0,0,(YVarExp-(YTotExp+YTotRet-J10))/($E$10*YPER3)) -> 0 | H111: =IF($E$10=0,0,(YTotExp-(YTotExp+YTotRet-J10))/($E$10*YPER3)) -> 0
B112: 1.1 | C112: =E10*YPER4 -> 0 | E112: =IF($E$10=0,0,(YVarExp-(YTotExp+YTotRet-J10))/($E$10*YPER4)) -> 0 | H112: =IF($E$10=0,0,(YTotExp-(YTotExp+YTotRet-J10))/($E$10*YPER4)) -> 0
B113: 1.25 | C113: =E10*YPER5 -> 0 | E113: =IF($E$10=0,0,(YVarExp-(YTotExp+YTotRet-J10))/($E$10*YPER5)) -> 0 | H113: =IF($E$10=0,0,(YTotExp-(YTotExp+YTotRet-J10))/($E$10*YPER5)) -> 0
A115: Developed by Samuel Zapata, Assistant Professor and Extension Economist, Texas A&M AgriLife Extension, 956-968-5581.
A117: Information presented is prepared solely as a general guide and not intended to recognize or predict the costs and returns from any one operation. Brand names are mentioned only as examples and imply no endorsement.

Sheet GrapefruitYear3
A1: Projections for Planning Purposes Only -- Not to be Used without Updating
A2: 2020 Estimated Costs and Returns per Acre
A3: Grapefruit, Year 3, Orchard Establishment, Flood Irrigated, Rio Grande Valley
A4: Enter your name for this budget in the cell above.
A5: Enter Your Values in the cells highlighed in MAROON.
E6: Your Acres | R6: Your
C7: Crop Acres | D7: 100 | L7: Your | Q7: Enterprise | R7: Enterprise
E8: Your | H8: Your | I8: Cash | J8: Your | K8: Landlord | L8: Landlord | N8: Your | P8: Your | Q8: Total | R8: Total
A9: REVENUE | D9: Quantity | E9: Quantity | F9: Units | G9: $/Unit | H9: $/Unit | I9: Total | J9: Total | K9: Share | L9: Share | M9: Landlord | N9: Landlord | O9: Tenant | P9: Tenant | Q9: (100 acres) | R9: ="(" & E7 & " acres)" -> ( acres)
B10: Grapefruit (Rio Red) | D10: 3 | F10: Ton | G10: 230 | I10: 690 | J10: =E10*H10 -> 0 | K10: 0 | M10: 0 | N10: =J10*L10 -> 0 | O10: 690 | P10: =+J10-N10 -> 0 | Q10: 69000 | R10: =+J10*E$7 -> 0
D11: 0 | G11: 0 | I11: 0 | J11: 0 | K11: 0 | M11: 0 | N11: 0 | O11: 0 | P11: =+J11-N11 -> 0 | Q11: 0 | R11: 0
D12: 0 | G12: 0 | I12: 0 | J12: 0 | K12: 0 | M12: 0 | N12: 0 | O12: 0 | P12: 0 | Q12: 0 | R12: 0
A13: Total Revenue | I13: 690 | J13: =SUM(J10:J12) -> 0 | M13: 0 | N13: =SUM(N10:N12) -> 0 | O13: 690 | P13: =SUM(P10:P12) -> 0 | Q13: 69000 | R13: =SUM(R10:R12) -> 0
Q14: Enterprise | R14: Enterprise
A15: VARIABLE COSTS | D15: Quantity | E15: Quantity | F15: Units | G15: $/Unit | H15: $/Unit | I15: Total | J15: Total | K15: Share | L15: Share | M15: Landlord | N15: Landlord | O15: Tenant | P15: Tenant | Q15: Total | R15: Total
A16: Production Costs
B17: Herbicide
C18: Simazine 4L | D18: 1.25 | F18: Gallon | G18: 21.4608 | I18: 26.826 | J18: =E18*H18 -> 0 | K18: 0 | M18: 0 | N18: =J18*L18 -> 0 | O18: 26.826 | P18: =+J18-N18 -> 0 | Q18: 2682.6 | R18: =+J18*E$7 -> 0
C19: Krovar I 80 DF | D19: 3 | F19: Pound | G19: 15.65376 | I19: 46.96128 | J19: 0 | K19: 0 | M19: 0 | N19: 0 | O19: 46.96128 | P19: 0 | Q19: 4696.128 | R19: 0
C20: Roundup/Glyphosate | D20: 3.4 | F20: Gallon | G20: 20 | I20: 68 | J20: 0 | K20: 0 | M20: 0 | N20: 0 | O20: 68 | P20: 0 | Q20: 6800 | R20: 0
B21: Fertilizer
C22: Urea (46%) | D22: 2.5 | F22: CTW | G22: 21.8 | I22: 54.5 | J22: 0 | K22: 0 | M22: 0 | N22: 0 | O22: 54.5 | P22: 0 | Q22: 5450 | R22: 0
C23: Foliar N (Urea) | D23: 5 | F23: Pound | G23: 0.61 | I23: 3.05 | J23: 0 | K23: 0 | M23: 0 | N23: 0 | O23: 3.05 | P23: 0 | Q23: 305 | R23: 0
C24: Foliar 3-18-18 | D24: 1 | F24: Gallon | G24: 22 | I24: 22 | J24: 0 | K24: 0 | M24: 0 | N24: 0 | O24: 22 | P24: 0 | Q24: 2200 | R24: 0
C25: Foliar Zn | D25: 2 | F25: Pound | G25: 0.8 | I25: 1.6 | J25: 0 | K25: 0 | M25: 0 | N25: 0 | O25: 1.6 | P25: 0 | Q25: 160 | R25: 0
C26: Foliar 18-8-5 | D26: 2 | F26: Gallon | G26: 15.5 | I26: 31 | J26: 0 | K26: 0 | M26: 0 | N26: 0 | O26: 31 | P26: 0 | Q26: 3100 | R26: 0
B27: Custom
C28: Foliar Application | D28: 7 | F28: Acre | G28: 42 | I28: 294 | J28: 0 | K28: 0 | M28: 0 | N28: 0 | O28: 294 | P28: 0 | Q28: 29400 | R28: 0
C29: Sucker (Yr 1-3 Year) | D29: 1 | F29: Acre | G29: 45 | I29: 45 | J29: 0 | K29: 0 | M29: 0 | N29: 0 | O29: 45 | P29: 0 | Q29: 4500 | R29: 0
B30: Miscellaneous
C31: Citrus Assessment | D31: 1 | F31: Acre | G31: 45 | I31: 45 | J31: 0 | K31: 0 | M31: 0 | N31: 0 | O31: 45 | P31: 0 | Q31: 4500 | R31: 0
C32: Insurance, Grapefruit | D32: 1 | F32: Acre | G32: 30 | I32: 30 | J32: 0 | K32: 0 | M32: 0 | N32: 0 | O32: 30 | P32: 0 | Q32: 3000 | R32: 0
B33: Insecticide
C34: Admire Pro | D34: 0.44 | F34: Pint | G34: 27.7368 | I34: 12.204192 | J34: 0 | K34: 0 | M34: 0 | N34: 0 | O34: 12.204192 | P34: 0 | Q34: 1220.4192 | R34: 0
C35: Vendex | D35: 8 | F35: Pound | G35: 17.89 | I35: 143.12 | J35: 0 | K35: 0 | M35: 0 | N35: 0 | O35: 143.12 | P35: 0 | Q35: 14312 | R35: 0
C36: Agri-Mek SC | D36: 0.32 | F36: Gallon | G36: 499.9072 | I36: 159.970304 | J36: 0 | K36: 0 | M36: 0 | N36: 0 | O36: 159.970304 | P36: 0 | Q36: 15997.0304 | R36: 0
C37: Movento | D37: 30 | F37: Ounce | G37: 7.25 | I37: 217.5 | J37: 0 | K37: 0 | M37: 0 | N37: 0 | O37: 217.5 | P37: 0 | Q37: 21750 | R37: 0
C38: Micromite | D38: 18.85 | F38: Ounce | G38: 3.88 | I38: 73.138 | J38: 0 | K38: 0 | M38: 0 | N38: 0 | O38: 73.138 | P38: 0 | Q38: 7313.8 | R38: 0
C39: Actara | D39: 11 | F39: Ounce | G39: 2.35 | I39: 25.85 | J39: 0 | K39: 0 | M39: 0 | N39: 0 | O39: 25.85 | P39: 0 | Q39: 2585 | R39: 0
C40: Sivanto | D40: 10 | F40: Ounce | G40: 2.3 | I40: 23 | J40: 0 | K40: 0 | M40: 0 | N40: 0 | O40: 23 | P40: 0 | Q40: 2300 | R40: 0
C41: Esteem | D41: 10 | F41: Ounce | G41: 13 | I41: 130 | J41: 0 | K41: 0 | M41: 0 | N41: 0 | O41: 130 | P41: 0 | Q41: 13000 | R41: 0
C42: Danitol | D42: 16 | F42: Ounce | G42: 1.58 | I42: 25.28 | J42: 0 | K42: 0 | M42: 0 | N42: 0 | O42: 25.28 | P42: 0 | Q42: 2528 | R42: 0
B43: Other Chemicals
C44: Surfactant - Citrus | D44: 7.41 | F44: Pint | G44: 8 | I44: 59.28 | J44: 0 | K44: 0 | M44: 0 | N44: 0 | O44: 59.28 | P44: 0 | Q44: 5928 | R44: 0
B45: Other Labor
C46: Unallocated Labor | D46: 1 | F46: Hour | G46: 12 | I46: 12 | J46: 0 | K46: 0 | M46: 0 | N46: 0 | O46: 12 | P46: 0 | Q46: 1200 | R46: 0
C47: Costum Soil Fert. Citrus | D47: 6 | F47: Hour | G47: 12 | I47: 72 | J47: 0 | K47: 0 | M47: 0 | N47: 0 | O47: 72 | P47: 0 | Q47: 7200 | R47: 0
B48: Seed
C49: Young Citrus Trees | D49: 3 | F49: Tree | G49: 10 | I49: 30 | J49: 0 | K49: 0 | M49: 0 | N49: 0 | O49: 30 | P49: 0 | Q49: 3000 | R49: 0
C50: Layout and Plant | D50: 3 | F50: Tree | G50: 5 | I50: 15 | J50: 0 | K50: 0 | M50: 0 | N50: 0 | O50: 15 | P50: 0 | Q50: 1500 | R50: 0
C51: Tree Wrap/Unwrap | D51: 3 | F51: Tree | G51: 2 | I51: 6 | J51: 0 | K51: 0 | M51: 0 | N51: 0 | O51: 6 | P51: 0 | Q51: 600 | R51: 0
C52: Removal Citrus | D52: 3 | F52: Tree | G52: 25 | I52: 75 | J52: 0 | K52: 0 | M52: 0 | N52: 0 | O52: 75 | P52: 0 | Q52: 7500 | R52: 0
C53: Treatment Removed citrus | D53: 3 | F53: Tree | G53: 5 | I53: 15 | J53: 0 | K53: 0 | M53: 0 | N53: 0 | O53: 15 | P53: 0 | Q53: 1500 | R53: 0
B54: Fungicides
C55: Quadris Top | D55: 10 | F55: Ounce | G55: 1.5 | I55: 15 | J55: 0 | K55: 0 | M55: 0 | N55: 0 | O55: 15 | P55: 0 | Q55: 1500 | R55: 0
C56: GEM | D56: 3.8 | F56: Ounce | G56: 4.88 | I56: 18.544 | J56: 0 | K56: 0 | M56: 0 | N56: 0 | O56: 18.544 | P56: 0 | Q56: 1854.4 | R56: 0
C57: Headline | D57: 24 | F57: Ounce | G57: 2.66 | I57: 63.84 | J57: 0 | K57: 0 | M57: 0 | N57: 0 | O57: 63.84 | P57: 0 | Q57: 6384 | R57: 0
D58: 16 | G58: 4.88 | I58: 78.08 | J58: 0 | K58: 0 | M58: 0 | N58: 0 | O58: 78.08 | P58: 0 | Q58: 7808 | R58: 0
D59: 0 | G59: 0 | I59: 0 | J59: 0 | K59: 0 | M59: 0 | N59: 0 | O59: 0 | P59: 0 | Q59: 0 | R59: 0
D60: 0 | G60: 0 | I60: 0 | J60: =E60*H60 -> 0 | K60: 0 | M60: 0 | N60: =J60*L60 -> 0 | O60: 0 | P60: =+J60-N60 -> 0 | Q60: 0 | R60: =+J60*E$7 -> 0
B61: Irrigation
C62: Water Cost | D62: 4 | F62: Acre/Foot | G62: 20 | I62: 80 | J62: =E62*H62 -> 0 | K62: 0 | M62: 0 | N62: =J62*L62 -> 0 | O62: 80 | P62: =+J62-N62 -> 0 | Q62: 8000 | R62: =+J62*E$7 -> 0
C63: Irrigation Labor | D63: 14 | F63: Hour | G63: 12 | I63: 168 | J63: 0 | K63: 0 | M63: 0 | N63: 0 | O63: 168 | P63: 0 | Q63: 16800 | R63: 0
B64: Machinery Labor
C65: Tractors/Self-Propelled | D65: 0.8 | F65: Hour | G65: 12 | I65: 9.6 | J65: =E65*H65 -> 0 | K65: 0 | M65: 0 | N65: =J65*L65 -> 0 | O65: 9.6 | P65: =+J65-N65 -> 0 | Q65: 960 | R65: =+J65*E$7 -> 0
C66: Other Labor | D66: 0.4 | F66: Hour | G66: 12 | I66: 4.8 | J66: =E66*H66 -> 0 | K66: 0 | M66: 0 | N66: =J66*L66 -> 0 | O66: 4.8 | P66: =+J66-N66 -> 0 | Q66: 480 | R66: =+J66*E$7 -> 0
B68: Diesel Fuel
C69: Pickup/General Use Equipment | D69: 1 | F69: Acre | G69: 0 | I69: 0 | J69: =E69*H69 -> 0 | K69: 0 | M69: 0 | N69: =J69*L69 -> 0 | O69: 0 | P69: =+J69-N69 -> 0 | Q69: 0 | R69: =+J69*E$7 -> 0
C70: Tractors/Self-Propelled | D70: 3.66 | F70: Gallon | G70: 2.3 | I70: 8.418 | J70: =E70*H70 -> 0 | K70: 0 | M70: 0 | N70: =J70*L70 -> 0 | O70: 8.418 | P70: =+J70-N70 -> 0 | Q70: 841.8 | R70: =+J70*E$7 -> 0
B72: Gasoline
C73: Pickup/General Use Equipment | D73: 1 | F73: Acre | G73: 0 | I73: 0 | J73: =E73*H73 -> 0 | K73: 0 | M73: 0 | N73: =J73*L73 -> 0 | O73: 0 | P73: =+J73-N73 -> 0 | Q73: 0 | R73: =+J73*E$7 -> 0
C74: Tractors/Self-Propelled | D74: 0 | F74: Gallon | G74: 2.2 | I74: 0 | J74: =E74*H74 -> 0 | K74: 0 | M74: 0 | N74: =J74*L74 -> 0 | O74: 0 | P74: =+J74-N74 -> 0 | Q74: 0 | R74: =+J74*E$7 -> 0
B76: Repairs & Maintenance
C77: Pickup/General Use Equipment | D77: 1 | F77: Acre | G77: 0 | I77: 0 | J77: =E77*H77 -> 0 | K77: 0 | M77: 0 | N77: =J77*L77 -> 0 | O77: 0 | P77: =+J77-N77 -> 0 | Q77: 0 | R77: =+J77*E$7 -> 0
C78: Irrigation Equipment | D78: 1 | F78: Acre | G78: 0 | I78: 0 | J78: 0 | K78: 0 | M78: 0 | N78: 0 | O78: 0 | P78: 0 | Q78: 0 | R78: 0
C79: Tractors/Self-Propelled | D79: 1 | F79: Acre | G79: 8.428795717 | I79: 8.428795717 | J79: 0 | K79: 0 | M79: 0 | N79: 0 | O79: 8.428795717 | P79: 0 | Q79: 842.8795717 | R79: 0
C80: Implements | D80: 1 | F80: Acre | G80: 2.858799603 | I80: 2.858799603 | J80: 0 | K80: 0 | M80: 0 | N80: 0 | O80: 2.858799603 | P80: 0 | Q80: 285.8799603 | R80: 0
I81: 0 | J81: 0 | K81: 0 | M81: 0 | N81: 0 | O81: 0 | P81: 0 | Q81: 0 | R81: 0
I82: 0 | J82: 0 | K82: 0 | M82: 0 | N82: 0 | O82: 0 | P82: 0 | Q82: 0 | R82: 0
B83: Interest on Credit Line | G83: 0.05 | I83: 57.35605354 | J83: =+SUM(J17:J82)/2*H83 -> 0 | M83: 0 | N83: =+SUM(N17:N82)/2*L83 -> 0 | O83: 57.35605354 | P83: =+SUM(P17:P82)/2*L83 -> 0 | Q83: 5735.605354 | R83: =+J83*E$7 -> 0
A84: Total Variable Costs | I84: 2277.205425 | J84: =SUM(J18:J83) -> 0 | M84: 0 | N84: =SUM(N18:N83) -> 0 | O84: 2277.205425 | P84: =SUM(P18:P83) -> 0 | Q84: 227720.5425 | R84: =SUM(R18:R83) -> 0
A85: Planned Returns Above Variable Costs: | I85: -1587.205425 | J85: =+J13-J84 -> 0 | M85: 0 | N85: =+N13-N84 -> 0 | O85: -1587.205425 | P85: =+P13-P84 -> 0 | Q85: -158720.5425 | R85: =+R13-R84 -> 0
B86: Breakeven Price to Cover Variable Costs | G86: 759.068475 | H86: =IF(E10=0,"n/a",(YVarExp-(YTotExp+YTotRet-J10))/E10) -> n/a | I86: Ton
Q87: Enterprise | R87: Enterprise
A88: FIXED COSTS | D88: Quantity | E88: Quantity | F88: Units | G88: $/Unit | H88: $/Unit | I88: Total | J88: Total | K88: Share | L88: Share | M88: Landlord | N88: Landlord | O88: Tenant | P88: Tenant | Q88: Total | R88: Total
B89: Machinery Depreciation
C90: Tractors/Self-Propelled | D90: 1 | F90: Acre | G90: 8.709755574 | I90: 8.709755574 | J90: =E90*H90 -> 0 | K90: 0 | M90: 0 | N90: =J90*L90 -> 0 | O90: 8.709755574 | P90: =+J90-N90 -> 0 | Q90: 870.9755574 | R90: =+J90*E$7 -> 0
C91: Implements | D91: 1 | F91: Acre | G91: 3.055939539 | I91: 3.055939539 | J91: 0 | K91: 0 | M91: 0 | N91: =J91*L91 -> 0 | O91: 3.055939539 | P91: 0 | Q91: 305.5939539 | R91: 0
B92: Equipment Investment
C93: Tractors/Self-Propelled | D93: 67.85180552 | F93: Dollars | G93: 0.07 | I93: 4.749626387 | J93: =E93*H93 -> 0 | K93: 0 | M93: 0 | N93: =J93*L93 -> 0 | O93: 4.749626387 | P93: =+J93-N93 -> 0 | Q93: 474.9626387 | R93: =+J93*E$7 -> 0
C94: Implements | D94: 13.07263025 | F94: Dollars | G94: 0.07 | I94: 0.9150841174 | J94: 0 | K94: 0 | M94: 0 | N94: =J94*L94 -> 0 | O94: 0.9150841174 | P94: 0 | Q94: 91.50841174 | R94: 0
B95: Salaried Labor | D95: 1 | F95: Acre | G95: 0 | I95: 0 | J95: 0 | K95: 0 | M95: 0 | N95: =J95*L95 -> 0 | O95: 0 | P95: =+J95-N95 -> 0 | Q95: 0 | R95: =+J95*E$7 -> 0
B96: Management Fee, Owner/Operator Labor | D96: 1 | F96: Acre | G96: 0 | I96: 0 | J96: 0 | K96: 0 | M96: 0 | N96: 0 | O96: 0 | P96: 0 | Q96: 0 | R96: 0
B97: Allocated Establishment Cost | D97: 1 | F97: Acre | G97: 120.6554496 | I97: 120.6554496 | J97: 0 | K97: 0 | M97: 0 | N97: 0 | O97: 120.6554496 | P97: 0 | Q97: 12065.54496 | R97: 0
B98: Land Cost, Orchard | D98: 1 | F98: Acre | G98: 100 | I98: 100 | J98: 0 | K98: 0 | M98: 0 | N98: 0 | O98: 100 | P98: 0 | Q98: 10000 | R98: 0
B99: Property Taxes | D99: 1 | F99: Acre | G99: 0 | I99: 0 | J99: 0 | K99: 0 | M99: 0 | N99: 0 | O99: 0 | P99: 0 | Q99: 0 | R99: 0
B100: Whole Farm Insurance | D100: 1 | F100: Acre | G100: 0 | I100: 0 | J100: 0 | K100: 0 | M100: 0 | N100: 0 | O100: 0 | P100: 0 | Q100: 0 | R100: 0
D101: 1 | G101: 0 | I101: 0 | J101: 0 | K101: 0 | M101: 0 | N101: 0 | O101: 0 | P101: 0 | Q101: 0 | R101: 0
D102: 1 | G102: 0 | I102: 0 | J102: =E102*H102 -> 0 | K102: 0 | M102: 0 | N102: 0 | O102: 0 | P102: 0 | Q102: 0 | R102: 0
A103: Total Fixed Costs | I103: 238.0858552 | J103: =+SUM(J90:J102) -> 0 | M103: 0 | N103: =+SUM(N90:N102) -> 0 | O103: 238.0858552 | P103: =+SUM(P90:P102) -> 0 | Q103: 23808.58552 | R103: =+SUM(R90:R102) -> 0
A104: Total Specified Costs | I104: 2515.29128 | J104: =+J84+J103 -> 0 | M104: 0 | N104: =+N84+N103 -> 0 | O104: 2515.29128 | P104: =+P84+P103 -> 0 | Q104: 251529.128 | R104: =+R84+R103 -> 0
A106: Returns Above Specified Costs | I106: -1825.29128 | J106: =+J13-J104 -> 0 | M106: 0 | N106: =+N13-N104 -> 0 | O106: -1825.29128 | P106: =+P13-P104 -> 0 | Q106: -182529.128 | R106: =+R13-R104 -> 0
A108: Breakeven Price to Cover Total Costs | G108: 838.4304267 | H108: =IF(E10=0,"n/a",(YTotExp-(YTotExp+YTotRet-J10))/E10) -> n/a | I108: Ton
D110: Example Breakeven Prices
B111: Example | C111: Example | D111: To Cover | G111: To Cover
B112: Yield | C112: Yield | D112: Variable | G112: Total
B113: Percent | C113: Ton | D113: Costs | G113: Costs
B114: 0.75 | C114: 2.25 | D114: 1012.0913 | G114: 1117.907236
B115: 0.9 | C115: 2.7 | D115: 843.4094166 | G115: 931.589363
B116: 1 | C116: 3 | D116: 759.068475 | G116: 838.4304267
B117: 1.1 | C117: 3.3 | D117: 690.06225 | G117: 762.2094788
B118: 1.25 | C118: 3.75 | D118: 607.25478 | G118: 670.7443414
D120: Your Breakeven Prices
B121: Your | C121: Your | E121: To Cover | H121: To Cover
B122: Yield | C122: Yield | E122: Variable | H122: Total
B123: Percent | C123: Ton | E123: Costs | H123: Costs
B124: 0.75 | C124: =E10*YPER1 -> 0 | E124: =IF($E$10=0,0,(YVarExp-(YTotExp+YTotRet-J10))/($E$10*YPER1)) -> 0 | H124: =IF($E$10=0,0,(YTotExp-(YTotExp+YTotRet-J10))/($E$10*YPER1)) -> 0
B125: 0.9 | C125: =E10*YPER2 -> 0 | E125: =IF($E$10=0,0,(YVarExp-(YTotExp+YTotRet-J10))/($E$10*YPER2)) -> 0 | H125: =IF($E$10=0,0,(YTotExp-(YTotExp+YTotRet-J10))/($E$10*YPER2)) -> 0
B126: 1 | C126: =+E10 -> 0 | E126: =IF($E$10=0,0,(YVarExp-(YTotExp+YTotRet-J10))/($E$10*YPER3)) -> 0 | H126: =IF($E$10=0,0,(YTotExp-(YTotExp+YTotRet-J10))/($E$10*YPER3)) -> 0
B127: 1.1 | C127: =E10*YPER4 -> 0 | E127: =IF($E$10=0,0,(YVarExp-(YTotExp+YTotRet-J10))/($E$10*YPER4)) -> 0 | H127: =IF($E$10=0,0,(YTotExp-(YTotExp+YTotRet-J10))/($E$10*YPER4)) -> 0
B128: 1.25 | C128: =E10*YPER5 -> 0 | E128: =IF($E$10=0,0,(YVarExp-(YTotExp+YTotRet-J10))/($E$10*YPER5)) -> 0 | H128: =IF($E$10=0,0,(YTotExp-(YTotExp+YTotRet-J10))/($E$10*YPER5)) -> 0
A130: Developed by Samuel Zapata, Assistant Professor and Extension Economist, Texas A&M AgriLife Extension, 956-968-5581.
A132: Information presented is prepared solely as a general guide and not intended to recognize or predict the costs and returns from any one operation. Brand names are mentioned only as examples and imply no endorsement.

Sheet GrapefruitYear4
A1: Projections for Planning Purposes Only -- Not to be Used without Updating
A2: 2020 Estimated Costs and Returns per Acre
A3: Grapefruit, Year 4, Orchard Establishment, Flood Irrigated, Rio Grande Valley
A4: Enter your name for this budget in the cell above.
A5: Enter Your Values in the cells highlighed in MAROON.
E6: Your Acres | R6: Your
C7: Crop Acres | D7: 100 | L7: Your | Q7: Enterprise | R7: Enterprise
E8: Your | H8: Your | I8: Cash | J8: Your | K8: Landlord | L8: Landlord | N8: Your | P8: Your | Q8: Total | R8: Total
A9: REVENUE | D9: Quantity | E9: Quantity | F9: Units | G9: $/Unit | H9: $/Unit | I9: Total | J9: Total | K9: Share | L9: Share | M9: Landlord | N9: Landlord | O9: Tenant | P9: Tenant | Q9: (100 acres) | R9: ="(" & E7 & " acres)" -> ( acres)
B10: Grapefruit (Rio Red) | D10: 6 | F10: Ton | G10: 230 | I10: 1380 | J10: =E10*H10 -> 0 | K10: 0 | M10: 0 | N10: =J10*L10 -> 0 | O10: 1380 | P10: =+J10-N10 -> 0 | Q10: 138000 | R10: =+J10*E$7 -> 0
D11: 0 | G11: 0 | I11: 0 | J11: 0 | K11: 0 | M11: 0 | N11: 0 | O11: 0 | P11: =+J11-N11 -> 0 | Q11: 0 | R11: 0
D12: 0 | G12: 0 | I12: 0 | J12: 0 | K12: 0 | M12: 0 | N12: 0 | O12: 0 | P12: 0 | Q12: 0 | R12: 0
A13: Total Revenue | I13: 1380 | J13: =SUM(J10:J12) -> 0 | M13: 0 | N13: =SUM(N10:N12) -> 0 | O13: 1380 | P13: =SUM(P10:P12) -> 0 | Q13: 138000 | R13: =SUM(R10:R12) -> 0
Q14: Enterprise | R14: Enterprise
A15: VARIABLE COSTS | D15: Quantity | E15: Quantity | F15: Units | G15: $/Unit | H15: $/Unit | I15: Total | J15: Total | K15: Share | L15: Share | M15: Landlord | N15: Landlord | O15: Tenant | P15: Tenant | Q15: Total | R15: Total
A16: Production Costs
B17: Seed
C18: Young Citrus Trees | D18: 3 | F18: Tree | G18: 10 | I18: 30 | J18: =E18*H18 -> 0 | K18: 0 | M18: 0 | N18: =J18*L18 -> 0 | O18: 30 | P18: =+J18-N18 -> 0 | Q18: 3000 | R18: =+J18*E$7 -> 0
C19: Layout and Plant | D19: 3 | F19: Tree | G19: 5 | I19: 15 | J19: 0 | K19: 0 | M19: 0 | N19: 0 | O19: 15 | P19: 0 | Q19: 1500 | R19: 0
C20: Removal Citrus | D20: 3 | F20: Tree | G20: 25 | I20: 75 | J20: 0 | K20: 0 | M20: 0 | N20: 0 | O20: 75 | P20: 0 | Q20: 7500 | R20: 0
C21: Treatment Removed citrus | D21: 3 | F21: Tree | G21: 5 | I21: 15 | J21: 0 | K21: 0 | M21: 0 | N21: 0 | O21: 15 | P21: 0 | Q21: 1500 | R21: 0
C22: Tree Wrap/Unwrap | D22: 3 | F22: Tree | G22: 2 | I22: 6 | J22: 0 | K22: 0 | M22: 0 | N22: 0 | O22: 6 | P22: 0 | Q22: 600 | R22: 0
B23: Herbicide
C24: Simazine 4L | D24: 1.25 | F24: Gallon | G24: 21.4608 | I24: 26.826 | J24: 0 | K24: 0 | M24: 0 | N24: 0 | O24: 26.826 | P24: 0 | Q24: 2682.6 | R24: 0
C25: Roundup/Glyphosate | D25: 3.4 | F25: Gallon | G25: 20 | I25: 68 | J25: 0 | K25: 0 | M25: 0 | N25: 0 | O25: 68 | P25: 0 | Q25: 6800 | R25: 0
C26: Krovar I 80 DF | D26: 3 | F26: Pound | G26: 15.65376 | I26: 46.96128 | J26: 0 | K26: 0 | M26: 0 | N26: 0 | O26: 46.96128 | P26: 0 | Q26: 4696.128 | R26: 0
B27: Fertilizer
C28: Urea (46%) | D28: 2.5 | F28: CTW | G28: 21.8 | I28: 54.5 | J28: 0 | K28: 0 | M28: 0 | N28: 0 | O28: 54.5 | P28: 0 | Q28: 5450 | R28: 0
C29: Foliar N (Urea) | D29: 5 | F29: Pound | G29: 0.61 | I29: 3.05 | J29: 0 | K29: 0 | M29: 0 | N29: 0 | O29: 3.05 | P29: 0 | Q29: 305 | R29: 0
C30: Foliar 3-18-18 | D30: 1 | F30: Gallon | G30: 22 | I30: 22 | J30: 0 | K30: 0 | M30: 0 | N30: 0 | O30: 22 | P30: 0 | Q30: 2200 | R30: 0
C31: Foliar Zn | D31: 2 | F31: Pound | G31: 0.8 | I31: 1.6 | J31: 0 | K31: 0 | M31: 0 | N31: 0 | O31: 1.6 | P31: 0 | Q31: 160 | R31: 0
C32: Foliar 18-8-5 | D32: 2 | F32: Gallon | G32: 15.5 | I32: 31 | J32: 0 | K32: 0 | M32: 0 | N32: 0 | O32: 31 | P32: 0 | Q32: 3100 | R32: 0
B33: Other Labor
C34: Costum Soil Fert. Citrus | D34: 6 | F34: Hour | G34: 12 | I34: 72 | J34: 0 | K34: 0 | M34: 0 | N34: 0 | O34: 72 | P34: 0 | Q34: 7200 | R34: 0
C35: Unallocated Labor | D35: 1 | F35: Hour | G35: 12 | I35: 12 | J35: 0 | K35: 0 | M35: 0 | N35: 0 | O35: 12 | P35: 0 | Q35: 1200 | R35: 0
B36: Insecticide
C37: Movento | D37: 30 | F37: Ounce | G37: 7.25 | I37: 217.5 | J37: 0 | K37: 0 | M37: 0 | N37: 0 | O37: 217.5 | P37: 0 | Q37: 21750 | R37: 0
C38: Micromite | D38: 18.8 | F38: Ounce | G38: 3.88 | I38: 72.944 | J38: 0 | K38: 0 | M38: 0 | N38: 0 | O38: 72.944 | P38: 0 | Q38: 7294.4 | R38: 0
C39: Vendex | D39: 8 | F39: Pound | G39: 17.89 | I39: 143.12 | J39: 0 | K39: 0 | M39: 0 | N39: 0 | O39: 143.12 | P39: 0 | Q39: 14312 | R39: 0
C40: Agri-Mek SC | D40: 0.32 | F40: Gallon | G40: 499.9072 | I40: 159.970304 | J40: 0 | K40: 0 | M40: 0 | N40: 0 | O40: 159.970304 | P40: 0 | Q40: 15997.0304 | R40: 0
C41: Actara | D41: 11 | F41: Ounce | G41: 2.35 | I41: 25.85 | J41: 0 | K41: 0 | M41: 0 | N41: 0 | O41: 25.85 | P41: 0 | Q41: 2585 | R41: 0
C42: Sivanto | D42: 10 | F42: Ounce | G42: 2.3 | I42: 23 | J42: 0 | K42: 0 | M42: 0 | N42: 0 | O42: 23 | P42: 0 | Q42: 2300 | R42: 0
C43: Esteem | D43: 10 | F43: Ounce | G43: 13 | I43: 130 | J43: 0 | K43: 0 | M43: 0 | N43: 0 | O43: 130 | P43: 0 | Q43: 13000 | R43: 0
C44: Danitol | D44: 16 | F44: Ounce | G44: 1.58 | I44: 25.28 | J44: 0 | K44: 0 | M44: 0 | N44: 0 | O44: 25.28 | P44: 0 | Q44: 2528 | R44: 0
C45: Admire Pro | D45: 0.44 | F45: Pint | G45: 27.7368 | I45: 12.204192 | J45: 0 | K45: 0 | M45: 0 | N45: 0 | O45: 12.204192 | P45: 0 | Q45: 1220.4192 | R45: 0
B46: Custom
C47: Foliar Application | D47: 7 | F47: Acre | G47: 42 | I47: 294 | J47: 0 | K47: 0 | M47: 0 | N47: 0 | O47: 294 | P47: 0 | Q47: 29400 | R47: 0
C48: Prune (Yr 3-6 Year) | D48: 1 | F48: Acre | G48: 56 | I48: 56 | J48: 0 | K48: 0 | M48: 0 | N48: 0 | O48: 56 | P48: 0 | Q48: 5600 | R48: 0
B49: Miscellaneous
C50: Citrus Assessment | D50: 1 | F50: Acre | G50: 45 | I50: 45 | J50: 0 | K50: 0 | M50: 0 | N50: 0 | O50: 45 | P50: 0 | Q50: 4500 | R50: 0
C51: Insurance, Grapefruit | D51: 1 | F51: Acre | G51: 30 | I51: 30 | J51: 0 | K51: 0 | M51: 0 | N51: 0 | O51: 30 | P51: 0 | Q51: 3000 | R51: 0
B52: Other Chemicals
C53: Surfactant - Citrus | D53: 7.98 | F53: Pint | G53: 8 | I53: 63.84 | J53: 0 | K53: 0 | M53: 0 | N53: 0 | O53: 63.84 | P53: 0 | Q53: 6384 | R53: 0
B54: Fungicides
C55: Quadris Top | D55: 10 | F55: Ounce | G55: 1.5 | I55: 15 | J55: 0 | K55: 0 | M55: 0 | N55: 0 | O55: 15 | P55: 0 | Q55: 1500 | R55: 0
C56: GEM | D56: 3.8 | F56: Ounce | G56: 4.88 | I56: 18.544 | J56: 0 | K56: 0 | M56: 0 | N56: 0 | O56: 18.544 | P56: 0 | Q56: 1854.4 | R56: 0
C57: Headline | D57: 24 | F57: Ounce | G57: 2.66 | I57: 63.84 | J57: 0 | K57: 0 | M57: 0 | N57: 0 | O57: 63.84 | P57: 0 | Q57: 6384 | R57: 0
D58: 16 | G58: 4.88 | I58: 78.08 | J58: 0 | K58: 0 | M58: 0 | N58: 0 | O58: 78.08 | P58: 0 | Q58: 7808 | R58: 0
D59: 0 | G59: 0 | I59: 0 | J59: 0 | K59: 0 | M59: 0 | N59: 0 | O59: 0 | P59: 0 | Q59: 0 | R59: 0
D60: 0 | G60: 0 | I60: 0 | J60: =E60*H60 -> 0 | K60: 0 | M60: 0 | N60: =J60*L60 -> 0 | O60: 0 | P60: =+J60-N60 -> 0 | Q60: 0 | R60: =+J60*E$7 -> 0
B61: Irrigation
C62: Water Cost | D62: 4 | F62: Acre/Foot | G62: 20 | I62: 80 | J62: =E62*H62 -> 0 | K62: 0 | M62: 0 | N62: =J62*L62 -> 0 | O62: 80 | P62: =+J62-N62 -> 0 | Q62: 8000 | R62: =+J62*E$7 -> 0
C63: Irrigation Labor | D63: 14 | F63: Hour | G63: 12 | I63: 168 | J63: 0 | K63: 0 | M63: 0 | N63: 0 | O63: 168 | P63: 0 | Q63: 16800 | R63: 0
B64: Machinery Labor
C65: Tractors/Self-Propelled | D65: 0.8 | F65: Hour | G65: 12 | I65: 9.6 | J65: =E65*H65 -> 0 | K65: 0 | M65: 0 | N65: =J65*L65 -> 0 | O65: 9.6 | P65: =+J65-N65 -> 0 | Q65: 960 | R65: =+J65*E$7 -> 0
C66: Other Labor | D66: 0.4 | F66: Hour | G66: 12 | I66: 4.8 | J66: =E66*H66 -> 0 | K66: 0 | M66: 0 | N66: =J66*L66 -> 0 | O66: 4.8 | P66: =+J66-N66 -> 0 | Q66: 480 | R66: =+J66*E$7 -> 0
B68: Diesel Fuel
C69: Pickup/General Use Equipment | D69: 1 | F69: Acre | G69: 0 | I69: 0 | J69: =E69*H69 -> 0 | K69: 0 | M69: 0 | N69: =J69*L69 -> 0 | O69: 0 | P69: =+J69-N69 -> 0 | Q69: 0 | R69: =+J69*E$7 -> 0
C70: Tractors/Self-Propelled | D70: 3.66 | F70: Gallon | G70: 2.3 | I70: 8.418 | J70: =E70*H70 -> 0 | K70: 0 | M70: 0 | N70: =J70*L70 -> 0 | O70: 8.418 | P70: =+J70-N70 -> 0 | Q70: 841.8 | R70: =+J70*E$7 -> 0
B72: Gasoline
C73: Pickup/General Use Equipment | D73: 1 | F73: Acre | G73: 0 | I73: 0 | J73: =E73*H73 -> 0 | K73: 0 | M73: 0 | N73: =J73*L73 -> 0 | O73: 0 | P73: =+J73-N73 -> 0 | Q73: 0 | R73: =+J73*E$7 -> 0
C74: Tractors/Self-Propelled | D74: 0 | F74: Gallon | G74: 2.2 | I74: 0 | J74: =E74*H74 -> 0 | K74: 0 | M74: 0 | N74: =J74*L74 -> 0 | O74: 0 | P74: =+J74-N74 -> 0 | Q74: 0 | R74: =+J74*E$7 -> 0
B76: Repairs & Maintenance
C77: Pickup/General Use Equipment | D77: 1 | F77: Acre | G77: 0 | I77: 0 | J77: =E77*H77 -> 0 | K77: 0 | M77: 0 | N77: =J77*L77 -> 0 | O77: 0 | P77: =+J77-N77 -> 0 | Q77: 0 | R77: =+J77*E$7 -> 0
C78: Irrigation Equipment | D78: 1 | F78: Acre | G78: 0 | I78: 0 | J78: 0 | K78: 0 | M78: 0 | N78: 0 | O78: 0 | P78: 0 | Q78: 0 | R78: 0
C79: Tractors/Self-Propelled | D79: 1 | F79: Acre | G79: 8.428795717 | I79: 8.428795717 | J79: 0 | K79: 0 | M79: 0 | N79: 0 | O79: 8.428795717 | P79: 0 | Q79: 842.8795717 | R79: 0
C80: Implements | D80: 1 | F80: Acre | G80: 2.858799603 | I80: 2.858799603 | J80: 0 | K80: 0 | M80: 0 | N80: 0 | O80: 2.858799603 | P80: 0 | Q80: 285.8799603 | R80: 0
I81: 0 | J81: 0 | K81: 0 | M81: 0 | N81: 0 | O81: 0 | P81: 0 | Q81: 0 | R81: 0
I82: 0 | J82: 0 | K82: 0 | M82: 0 | N82: 0 | O82: 0 | P82: 0 | Q82: 0 | R82: 0
B83: Interest on Credit Line | G83: 0.05 | I83: 57.70118532 | J83: =+SUM(J17:J82)/2*H83 -> 0 | M83: 0 | N83: =+SUM(N17:N82)/2*L83 -> 0 | O83: 57.70118532 | P83: =+SUM(P17:P82)/2*L83 -> 0 | Q83: 5770.118532 | R83: =+J83*E$7 -> 0
A84: Total Variable Costs | I84: 2292.916557 | J84: =SUM(J18:J83) -> 0 | M84: 0 | N84: =SUM(N18:N83) -> 0 | O84: 2292.916557 | P84: =SUM(P18:P83) -> 0 | Q84: 229291.6557 | R84: =SUM(R18:R83) -> 0
A85: Planned Returns Above Variable Costs: | I85: -912.9165566 | J85: =+J13-J84 -> 0 | M85: 0 | N85: =+N13-N84 -> 0 | O85: -912.9165566 | P85: =+P13-P84 -> 0 | Q85: -91291.65566 | R85: =+R13-R84 -> 0
B86: Breakeven Price to Cover Variable Costs | G86: 382.1527594 | H86: =IF(E10=0,"n/a",(YVarExp-(YTotExp+YTotRet-J10))/E10) -> n/a | I86: Ton
Q87: Enterprise | R87: Enterprise
A88: FIXED COSTS | D88: Quantity | E88: Quantity | F88: Units | G88: $/Unit | H88: $/Unit | I88: Total | J88: Total | K88: Share | L88: Share | M88: Landlord | N88: Landlord | O88: Tenant | P88: Tenant | Q88: Total | R88: Total
B89: Machinery Depreciation
C90: Tractors/Self-Propelled | D90: 1 | F90: Acre | G90: 8.709755574 | I90: 8.709755574 | J90: =E90*H90 -> 0 | K90: 0 | M90: 0 | N90: =J90*L90 -> 0 | O90: 8.709755574 | P90: =+J90-N90 -> 0 | Q90: 870.9755574 | R90: =+J90*E$7 -> 0
C91: Implements | D91: 1 | F91: Acre | G91: 3.055939539 | I91: 3.055939539 | J91: 0 | K91: 0 | M91: 0 | N91: =J91*L91 -> 0 | O91: 3.055939539 | P91: 0 | Q91: 305.5939539 | R91: 0
B92: Equipment Investment
C93: Tractors/Self-Propelled | D93: 67.85180552 | F93: Dollars | G93: 0.07 | I93: 4.749626387 | J93: =E93*H93 -> 0 | K93: 0 | M93: 0 | N93: =J93*L93 -> 0 | O93: 4.749626387 | P93: =+J93-N93 -> 0 | Q93: 474.9626387 | R93: =+J93*E$7 -> 0
C94: Implements | D94: 13.07263025 | F94: Dollars | G94: 0.07 | I94: 0.9150841174 | J94: 0 | K94: 0 | M94: 0 | N94: =J94*L94 -> 0 | O94: 0.9150841174 | P94: 0 | Q94: 91.50841174 | R94: 0
B95: Salaried Labor | D95: 1 | F95: Acre | G95: 0 | I95: 0 | J95: 0 | K95: 0 | M95: 0 | N95: =J95*L95 -> 0 | O95: 0 | P95: =+J95-N95 -> 0 | Q95: 0 | R95: =+J95*E$7 -> 0
B96: Management Fee, Owner/Operator Labor | D96: 1 | F96: Acre | G96: 0 | I96: 0 | J96: 0 | K96: 0 | M96: 0 | N96: 0 | O96: 0 | P96: 0 | Q96: 0 | R96: 0
B97: Allocated Establishment Cost | D97: 1 | F97: Acre | G97: 120.6554496 | I97: 120.6554496 | J97: 0 | K97: 0 | M97: 0 | N97: 0 | O97: 120.6554496 | P97: 0 | Q97: 12065.54496 | R97: 0
B98: Land Cost, Orchard | D98: 1 | F98: Acre | G98: 100 | I98: 100 | J98: 0 | K98: 0 | M98: 0 | N98: 0 | O98: 100 | P98: 0 | Q98: 10000 | R98: 0
B99: Property Taxes | D99: 1 | F99: Acre | G99: 0 | I99: 0 | J99: 0 | K99: 0 | M99: 0 | N99: 0 | O99: 0 | P99: 0 | Q99: 0 | R99: 0
B100: Whole Farm Insurance | D100: 1 | F100: Acre | G100: 0 | I100: 0 | J100: 0 | K100: 0 | M100: 0 | N100: 0 | O100: 0 | P100: 0 | Q100: 0 | R100: 0
D101: 1 | G101: 0 | I101: 0 | J101: 0 | K101: 0 | M101: 0 | N101: 0 | O101: 0 | P101: 0 | Q101: 0 | R101: 0
D102: 1 | G102: 0 | I102: 0 | J102: =E102*H102 -> 0 | K102: 0 | M102: 0 | N102: 0 | O102: 0 | P102: 0 | Q102: 0 | R102: 0
A103: Total Fixed Costs | I103: 238.0858552 | J103: =+SUM(J90:J102) -> 0 | M103: 0 | N103: =+SUM(N90:N102) -> 0 | O103: 238.0858552 | P103: =+SUM(P90:P102) -> 0 | Q103: 23808.58552 | R103: =+SUM(R90:R102) -> 0
A104: Total Specified Costs | I104: 2531.002412 | J104: =+J84+J103 -> 0 | M104: 0 | N104: =+N84+N103 -> 0 | O104: 2531.002412 | P104: =+P84+P103 -> 0 | Q104: 253100.2412 | R104: =+R84+R103 -> 0
A106: Returns Above Specified Costs | I106: -1151.002412 | J106: =+J13-J104 -> 0 | M106: 0 | N106: =+N13-N104 -> 0 | O106: -1151.002412 | P106: =+P13-P104 -> 0 | Q106: -115100.2412 | R106: =+R13-R104 -> 0
A108: Breakeven Price to Cover Total Costs | G108: 421.8337353 | H108: =IF(E10=0,"n/a",(YTotExp-(YTotExp+YTotRet-J10))/E10) -> n/a | I108: Ton
D110: Example Breakeven Prices
B111: Example | C111: Example | D111: To Cover | G111: To Cover
B112: Yield | C112: Yield | D112: Variable | G112: Total
B113: Percent | C113: Ton | D113: Costs | G113: Costs
B114: 0.75 | C114: 4.5 | D114: 509.5370126 | G114: 562.4449804
B115: 0.9 | C115: 5.4 | D115: 424.6141772 | G115: 468.7041503
B116: 1 | C116: 6 | D116: 382.1527594 | G116: 421.8337353
B117: 1.1 | C117: 6.6 | D117: 347.4115995 | G117: 383.4852139
B118: 1.25 | C118: 7.5 | D118: 305.7222076 | G118: 337.4669883
D120: Your Breakeven Prices
B121: Your | C121: Your | E121: To Cover | H121: To Cover
B122: Yield | C122: Yield | E122: Variable | H122: Total
B123: Percent | C123: Ton | E123: Costs | H123: Costs
B124: 0.75 | C124: =E10*YPER1 -> 0 | E124: =IF($E$10=0,0,(YVarExp-(YTotExp+YTotRet-J10))/($E$10*YPER1)) -> 0 | H124: =IF($E$10=0,0,(YTotExp-(YTotExp+YTotRet-J10))/($E$10*YPER1)) -> 0
B125: 0.9 | C125: =E10*YPER2 -> 0 | E125: =IF($E$10=0,0,(YVarExp-(YTotExp+YTotRet-J10))/($E$10*YPER2)) -> 0 | H125: =IF($E$10=0,0,(YTotExp-(YTotExp+YTotRet-J10))/($E$10*YPER2)) -> 0
B126: 1 | C126: =+E10 -> 0 | E126: =IF($E$10=0,0,(YVarExp-(YTotExp+YTotRet-J10))/($E$10*YPER3)) -> 0 | H126: =IF($E$10=0,0,(YTotExp-(YTotExp+YTotRet-J10))/($E$10*YPER3)) -> 0
B127: 1.1 | C127: =E10*YPER4 -> 0 | E127: =IF($E$10=0,0,(YVarExp-(YTotExp+YTotRet-J10))/($E$10*YPER4)) -> 0 | H127: =IF($E$10=0,0,(YTotExp-(YTotExp+YTotRet-J10))/($E$10*YPER4)) -> 0
B128: 1.25 | C128: =E10*YPER5 -> 0 | E128: =IF($E$10=0,0,(YVarExp-(YTotExp+YTotRet-J10))/($E$10*YPER5)) -> 0 | H128: =IF($E$10=0,0,(YTotExp-(YTotExp+YTotRet-J10))/($E$10*YPER5)) -> 0
A130: Developed by Samuel Zapata, Assistant Professor and Extension Economist, Texas A&M AgriLife Extension, 956-968-5581.
A132: Information presented is prepared solely as a general guide and not intended to recognize or predict the costs and returns from any one operation. Brand names are mentioned only as examples and imply no endorsement.

Sheet GrapefruitYear5
A1: Projections for Planning Purposes Only -- Not to be Used without Updating
A2: 2020 Estimated Costs and Returns per Acre
A3: Grapefruit, Year 5, Orchard Establishment, Flood Irrigated, Rio Grande Valley
A4: Enter your name for this budget in the cell above.
A5: Enter Your Values in the cells highlighed in MAROON.
E6: Your Acres | R6: Your
C7: Crop Acres | D7: 100 | L7: Your | Q7: Enterprise | R7: Enterprise
E8: Your | H8: Your | I8: Cash | J8: Your | K8: Landlord | L8: Landlord | N8: Your | P8: Your | Q8: Total | R8: Total
A9: REVENUE | D9: Quantity | E9: Quantity | F9: Units | G9: $/Unit | H9: $/Unit | I9: Total | J9: Total | K9: Share | L9: Share | M9: Landlord | N9: Landlord | O9: Tenant | P9: Tenant | Q9: (100 acres) | R9: ="(" & E7 & " acres)" -> ( acres)
B10: Grapefruit (Rio Red) | D10: 9 | F10: Ton | G10: 230 | I10: 2070 | J10: =E10*H10 -> 0 | K10: 0 | M10: 0 | N10: =J10*L10 -> 0 | O10: 2070 | P10: =+J10-N10 -> 0 | Q10: 207000 | R10: =+J10*E$7 -> 0
D11: 0 | G11: 0 | I11: 0 | J11: 0 | K11: 0 | M11: 0 | N11: 0 | O11: 0 | P11: =+J11-N11 -> 0 | Q11: 0 | R11: 0
D12: 0 | G12: 0 | I12: 0 | J12: 0 | K12: 0 | M12: 0 | N12: 0 | O12: 0 | P12: 0 | Q12: 0 | R12: 0
A13: Total Revenue | I13: 2070 | J13: =SUM(J10:J12) -> 0 | M13: 0 | N13: =SUM(N10:N12) -> 0 | O13: 2070 | P13: =SUM(P10:P12) -> 0 | Q13: 207000 | R13: =SUM(R10:R12) -> 0
Q14: Enterprise | R14: Enterprise
A15: VARIABLE COSTS | D15: Quantity | E15: Quantity | F15: Units | G15: $/Unit | H15: $/Unit | I15: Total | J15: Total | K15: Share | L15: Share | M15: Landlord | N15: Landlord | O15: Tenant | P15: Tenant | Q15: Total | R15: Total
A16: Production Costs
B17: Fertilizer
C18: Urea (46%) | D18: 2.5 | F18: CTW | G18: 21.8 | I18: 54.5 | J18: =E18*H18 -> 0 | K18: 0 | M18: 0 | N18: =J18*L18 -> 0 | O18: 54.5 | P18: =+J18-N18 -> 0 | Q18: 5450 | R18: =+J18*E$7 -> 0
C19: Foliar N (Urea) | D19: 5 | F19: Pound | G19: 0.61 | I19: 3.05 | J19: 0 | K19: 0 | M19: 0 | N19: 0 | O19: 3.05 | P19: 0 | Q19: 305 | R19: 0
C20: Foliar 3-18-18 | D20: 1 | F20: Gallon | G20: 22 | I20: 22 | J20: 0 | K20: 0 | M20: 0 | N20: 0 | O20: 22 | P20: 0 | Q20: 2200 | R20: 0
C21: Foliar Zn | D21: 2 | F21: Pound | G21: 0.8 | I21: 1.6 | J21: 0 | K21: 0 | M21: 0 | N21: 0 | O21: 1.6 | P21: 0 | Q21: 160 | R21: 0
C22: Foliar 18-8-5 | D22: 2 | F22: Gallon | G22: 15.5 | I22: 31 | J22: 0 | K22: 0 | M22: 0 | N22: 0 | O22: 31 | P22: 0 | Q22: 3100 | R22: 0
B23: Custom
C24: Foliar Application | D24: 7 | F24: Acre | G24: 42 | I24: 294 | J24: 0 | K24: 0 | M24: 0 | N24: 0 | O24: 294 | P24: 0 | Q24: 29400 | R24: 0
C25: Prune (Yr 3-6 Year) | D25: 1 | F25: Acre | G25: 56 | I25: 56 | J25: 0 | K25: 0 | M25: 0 | N25: 0 | O25: 56 | P25: 0 | Q25: 5600 | R25: 0
B26: Miscellaneous
C27: Citrus Assessment | D27: 1 | F27: Acre | G27: 45 | I27: 45 | J27: 0 | K27: 0 | M27: 0 | N27: 0 | O27: 45 | P27: 0 | Q27: 4500 | R27: 0
C28: Insurance, Grapefruit | D28: 1 | F28: Acre | G28: 30 | I28: 30 | J28: 0 | K28: 0 | M28: 0 | N28: 0 | O28: 30 | P28: 0 | Q28: 3000 | R28: 0
B29: Herbicide
C30: Simazine 4L | D30: 1.25 | F30: Gallon | G30: 21.4608 | I30: 26.826 | J30: 0 | K30: 0 | M30: 0 | N30: 0 | O30: 26.826 | P30: 0 | Q30: 2682.6 | R30: 0
C31: Krovar I 80 DF | D31: 3 | F31: Pound | G31: 15.65376 | I31: 46.96128 | J31: 0 | K31: 0 | M31: 0 | N31: 0 | O31: 46.96128 | P31: 0 | Q31: 4696.128 | R31: 0
C32: Roundup/Glyphosate | D32: 3.4 | F32: Gallon | G32: 20 | I32: 68 | J32: 0 | K32: 0 | M32: 0 | N32: 0 | O32: 68 | P32: 0 | Q32: 6800 | R32: 0
B33: Insecticide
C34: Admire Pro | D34: 0.44 | F34: Pint | G34: 27.7368 | I34: 12.204192 | J34: 0 | K34: 0 | M34: 0 | N34: 0 | O34: 12.204192 | P34: 0 | Q34: 1220.4192 | R34: 0
C35: Vendex | D35: 8 | F35: Pound | G35: 17.89 | I35: 143.12 | J35: 0 | K35: 0 | M35: 0 | N35: 0 | O35: 143.12 | P35: 0 | Q35: 14312 | R35: 0
C36: Agri-Mek SC | D36: 0.32 | F36: Gallon | G36: 499.9072 | I36: 159.970304 | J36: 0 | K36: 0 | M36: 0 | N36: 0 | O36: 159.970304 | P36: 0 | Q36: 15997.0304 | R36: 0
C37: Movento | D37: 30 | F37: Ounce | G37: 7.25 | I37: 217.5 | J37: 0 | K37: 0 | M37: 0 | N37: 0 | O37: 217.5 | P37: 0 | Q37: 21750 | R37: 0
C38: Micromite | D38: 18.8 | F38: Ounce | G38: 3.88 | I38: 72.944 | J38: 0 | K38: 0 | M38: 0 | N38: 0 | O38: 72.944 | P38: 0 | Q38: 7294.4 | R38: 0
C39: Actara | D39: 11 | F39: Ounce | G39: 2.35 | I39: 25.85 | J39: 0 | K39: 0 | M39: 0 | N39: 0 | O39: 25.85 | P39: 0 | Q39: 2585 | R39: 0
C40: Sivanto | D40: 10 | F40: Ounce | G40: 2.3 | I40: 23 | J40: 0 | K40: 0 | M40: 0 | N40: 0 | O40: 23 | P40: 0 | Q40: 2300 | R40: 0
C41: Esteem | D41: 10 | F41: Ounce | G41: 13 | I41: 130 | J41: 0 | K41: 0 | M41: 0 | N41: 0 | O41: 130 | P41: 0 | Q41: 13000 | R41: 0
C42: Danitol | D42: 16 | F42: Ounce | G42: 1.58 | I42: 25.28 | J42: 0 | K42: 0 | M42: 0 | N42: 0 | O42: 25.28 | P42: 0 | Q42: 2528 | R42: 0
B43: Other Chemicals
C44: Surfactant - Citrus | D44: 7.98 | F44: Pint | G44: 8 | I44: 63.84 | J44: 0 | K44: 0 | M44: 0 | N44: 0 | O44: 63.84 | P44: 0 | Q44: 6384 | R44: 0
B45: Other Labor
C46: Unallocated Labor | D46: 1 | F46: Hour | G46: 12 | I46: 12 | J46: 0 | K46: 0 | M46: 0 | N46: 0 | O46: 12 | P46: 0 | Q46: 1200 | R46: 0
C47: Costum Soil Fert. Citrus | D47: 6 | F47: Hour | G47: 12 | I47: 72 | J47: 0 | K47: 0 | M47: 0 | N47: 0 | O47: 72 | P47: 0 | Q47: 7200 | R47: 0
B48: Seed
C49: Young Citrus Trees | D49: 3 | F49: Tree | G49: 10 | I49: 30 | J49: 0 | K49: 0 | M49: 0 | N49: 0 | O49: 30 | P49: 0 | Q49: 3000 | R49: 0
C50: Layout and Plant | D50: 3 | F50: Tree | G50: 5 | I50: 15 | J50: 0 | K50: 0 | M50: 0 | N50: 0 | O50: 15 | P50: 0 | Q50: 1500 | R50: 0
C51: Removal Citrus | D51: 3 | F51: Tree | G51: 25 | I51: 75 | J51: 0 | K51: 0 | M51: 0 | N51: 0 | O51: 75 | P51: 0 | Q51: 7500 | R51: 0
C52: Treatment Removed citrus | D52: 3 | F52: Tree | G52: 5 | I52: 15 | J52: 0 | K52: 0 | M52: 0 | N52: 0 | O52: 15 | P52: 0 | Q52: 1500 | R52: 0
C53: Tree Wrap/Unwrap | D53: 3 | F53: Tree | G53: 2 | I53: 6 | J53: 0 | K53: 0 | M53: 0 | N53: 0 | O53: 6 | P53: 0 | Q53: 600 | R53: 0
B54: Fungicides
C55: Quadris Top | D55: 10 | F55: Ounce | G55: 1.5 | I55: 15 | J55: 0 | K55: 0 | M55: 0 | N55: 0 | O55: 15 | P55: 0 | Q55: 1500 | R55: 0
C56: GEM | D56: 3.8 | F56: Ounce | G56: 4.88 | I56: 18.544 | J56: 0 | K56: 0 | M56: 0 | N56: 0 | O56: 18.544 | P56: 0 | Q56: 1854.4 | R56: 0
C57: Headline | D57: 24 | F57: Ounce | G57: 2.66 | I57: 63.84 | J57: 0 | K57: 0 | M57: 0 | N57: 0 | O57: 63.84 | P57: 0 | Q57: 6384 | R57: 0
D58: 16 | G58: 4.88 | I58: 78.08 | J58: 0 | K58: 0 | M58: 0 | N58: 0 | O58: 78.08 | P58: 0 | Q58: 7808 | R58: 0
D59: 0 | G59: 0 | I59: 0 | J59: 0 | K59: 0 | M59: 0 | N59: 0 | O59: 0 | P59: 0 | Q59: 0 | R59: 0
D60: 0 | G60: 0 | I60: 0 | J60: =E60*H60 -> 0 | K60: 0 | M60: 0 | N60: =J60*L60 -> 0 | O60: 0 | P60: =+J60-N60 -> 0 | Q60: 0 | R60: =+J60*E$7 -> 0
B61: Irrigation
C62: Water Cost | D62: 4 | F62: Acre/Foot | G62: 20 | I62: 80 | J62: =E62*H62 -> 0 | K62: 0 | M62: 0 | N62: =J62*L62 -> 0 | O62: 80 | P62: =+J62-N62 -> 0 | Q62: 8000 | R62: =+J62*E$7 -> 0
C63: Irrigation Labor | D63: 14 | F63: Hour | G63: 12 | I63: 168 | J63: 0 | K63: 0 | M63: 0 | N63: 0 | O63: 168 | P63: 0 | Q63: 16800 | R63: 0
B64: Machinery Labor
C65: Tractors/Self-Propelled | D65: 0.8 | F65: Hour | G65: 12 | I65: 9.6 | J65: =E65*H65 -> 0 | K65: 0 | M65: 0 | N65: =J65*L65 -> 0 | O65: 9.6 | P65: =+J65-N65 -> 0 | Q65: 960 | R65: =+J65*E$7 -> 0
C66: Other Labor | D66: 0.4 | F66: Hour | G66: 12 | I66: 4.8 | J66: =E66*H66 -> 0 | K66: 0 | M66: 0 | N66: =J66*L66 -> 0 | O66: 4.8 | P66: =+J66-N66 -> 0 | Q66: 480 | R66: =+J66*E$7 -> 0
B68: Diesel Fuel
C69: Pickup/General Use Equipment | D69: 1 | F69: Acre | G69: 0 | I69: 0 | J69: =E69*H69 -> 0 | K69: 0 | M69: 0 | N69: =J69*L69 -> 0 | O69: 0 | P69: =+J69-N69 -> 0 | Q69: 0 | R69: =+J69*E$7 -> 0
C70: Tractors/Self-Propelled | D70: 3.66 | F70: Gallon | G70: 2.3 | I70: 8.418 | J70: =E70*H70 -> 0 | K70: 0 | M70: 0 | N70: =J70*L70 -> 0 | O70: 8.418 | P70: =+J70-N70 -> 0 | Q70: 841.8 | R70: =+J70*E$7 -> 0
B72: Gasoline
C73: Pickup/General Use Equipment | D73: 1 | F73: Acre | G73: 0 | I73: 0 | J73: =E73*H73 -> 0 | K73: 0 | M73: 0 | N73: =J73*L73 -> 0 | O73: 0 | P73: =+J73-N73 -> 0 | Q73: 0 | R73: =+J73*E$7 -> 0
C74: Tractors/Self-Propelled | D74: 0 | F74: Gallon | G74: 2.2 | I74: 0 | J74: =E74*H74 -> 0 | K74: 0 | M74: 0 | N74: =J74*L74 -> 0 | O74: 0 | P74: =+J74-N74 -> 0 | Q74: 0 | R74: =+J74*E$7 -> 0
B76: Repairs & Maintenance
C77: Pickup/General Use Equipment | D77: 1 | F77: Acre | G77: 0 | I77: 0 | J77: =E77*H77 -> 0 | K77: 0 | M77: 0 | N77: =J77*L77 -> 0 | O77: 0 | P77: =+J77-N77 -> 0 | Q77: 0 | R77: =+J77*E$7 -> 0
C78: Irrigation Equipment | D78: 1 | F78: Acre | G78: 0 | I78: 0 | J78: 0 | K78: 0 | M78: 0 | N78: 0 | O78: 0 | P78: 0 | Q78: 0 | R78: 0
C79: Tractors/Self-Propelled | D79: 1 | F79: Acre | G79: 8.428795717 | I79: 8.428795717 | J79: 0 | K79: 0 | M79: 0 | N79: 0 | O79: 8.428795717 | P79: 0 | Q79: 842.8795717 | R79: 0
C80: Implements | D80: 1 | F80: Acre | G80: 2.858799603 | I80: 2.858799603 | J80: 0 | K80: 0 | M80: 0 | N80: 0 | O80: 2.858799603 | P80: 0 | Q80: 285.8799603 | R80: 0
I81: 0 | J81: 0 | K81: 0 | M81: 0 | N81: 0 | O81: 0 | P81: 0 | Q81: 0 | R81: 0
I82: 0 | J82: 0 | K82: 0 | M82: 0 | N82: 0 | O82: 0 | P82: 0 | Q82: 0 | R82: 0
B83: Interest on Credit Line | G83: 0.05 | I83: 57.70118532 | J83: =+SUM(J17:J82)/2*H83 -> 0 | M83: 0 | N83: =+SUM(N17:N82)/2*L83 -> 0 | O83: 57.70118532 | P83: =+SUM(P17:P82)/2*L83 -> 0 | Q83: 5770.118532 | R83: =+J83*E$7 -> 0
A84: Total Variable Costs | I84: 2292.916557 | J84: =SUM(J18:J83) -> 0 | M84: 0 | N84: =SUM(N18:N83) -> 0 | O84: 2292.916557 | P84: =SUM(P18:P83) -> 0 | Q84: 229291.6557 | R84: =SUM(R18:R83) -> 0
A85: Planned Returns Above Variable Costs: | I85: -222.9165566 | J85: =+J13-J84 -> 0 | M85: 0 | N85: =+N13-N84 -> 0 | O85: -222.9165566 | P85: =+P13-P84 -> 0 | Q85: -22291.65566 | R85: =+R13-R84 -> 0
B86: Breakeven Price to Cover Variable Costs | G86: 254.7685063 | H86: =IF(E10=0,"n/a",(YVarExp-(YTotExp+YTotRet-J10))/E10) -> n/a | I86: Ton
Q87: Enterprise | R87: Enterprise
A88: FIXED COSTS | D88: Quantity | E88: Quantity | F88: Units | G88: $/Unit | H88: $/Unit | I88: Total | J88: Total | K88: Share | L88: Share | M88: Landlord | N88: Landlord | O88: Tenant | P88: Tenant | Q88: Total | R88: Total
B89: Machinery Depreciation
C90: Tractors/Self-Propelled | D90: 1 | F90: Acre | G90: 8.709755574 | I90: 8.709755574 | J90: =E90*H90 -> 0 | K90: 0 | M90: 0 | N90: =J90*L90 -> 0 | O90: 8.709755574 | P90: =+J90-N90 -> 0 | Q90: 870.9755574 | R90: =+J90*E$7 -> 0
C91: Implements | D91: 1 | F91: Acre | G91: 3.055939539 | I91: 3.055939539 | J91: 0 | K91: 0 | M91: 0 | N91: =J91*L91 -> 0 | O91: 3.055939539 | P91: 0 | Q91: 305.5939539 | R91: 0
B92: Equipment Investment
C93: Tractors/Self-Propelled | D93: 67.85180552 | F93: Dollars | G93: 0.07 | I93: 4.749626387 | J93: =E93*H93 -> 0 | K93: 0 | M93: 0 | N93: =J93*L93 -> 0 | O93: 4.749626387 | P93: =+J93-N93 -> 0 | Q93: 474.9626387 | R93: =+J93*E$7 -> 0
C94: Implements | D94: 13.07263025 | F94: Dollars | G94: 0.07 | I94: 0.9150841174 | J94: 0 | K94: 0 | M94: 0 | N94: =J94*L94 -> 0 | O94: 0.9150841174 | P94: 0 | Q94: 91.50841174 | R94: 0
B95: Salaried Labor | D95: 1 | F95: Acre | G95: 0 | I95: 0 | J95: 0 | K95: 0 | M95: 0 | N95: =J95*L95 -> 0 | O95: 0 | P95: =+J95-N95 -> 0 | Q95: 0 | R95: =+J95*E$7 -> 0
B96: Management Fee, Owner/Operator Labor | D96: 1 | F96: Acre | G96: 0 | I96: 0 | J96: 0 | K96: 0 | M96: 0 | N96: 0 | O96: 0 | P96: 0 | Q96: 0 | R96: 0
B97: Allocated Establishment Cost | D97: 1 | F97: Acre | G97: 120.6554496 | I97: 120.6554496 | J97: 0 | K97: 0 | M97: 0 | N97: 0 | O97: 120.6554496 | P97: 0 | Q97: 12065.54496 | R97: 0
B98: Land Cost, Orchard | D98: 1 | F98: Acre | G98: 100 | I98: 100 | J98: 0 | K98: 0 | M98: 0 | N98: 0 | O98: 100 | P98: 0 | Q98: 10000 | R98: 0
B99: Property Taxes | D99: 1 | F99: Acre | G99: 0 | I99: 0 | J99: 0 | K99: 0 | M99: 0 | N99: 0 | O99: 0 | P99: 0 | Q99: 0 | R99: 0
B100: Whole Farm Insurance | D100: 1 | F100: Acre | G100: 0 | I100: 0 | J100: 0 | K100: 0 | M100: 0 | N100: 0 | O100: 0 | P100: 0 | Q100: 0 | R100: 0
D101: 1 | G101: 0 | I101: 0 | J101: 0 | K101: 0 | M101: 0 | N101: 0 | O101: 0 | P101: 0 | Q101: 0 | R101: 0
D102: 1 | G102: 0 | I102: 0 | J102: =E102*H102 -> 0 | K102: 0 | M102: 0 | N102: 0 | O102: 0 | P102: 0 | Q102: 0 | R102: 0
A103: Total Fixed Costs | I103: 238.0858552 | J103: =+SUM(J90:J102) -> 0 | M103: 0 | N103: =+SUM(N90:N102) -> 0 | O103: 238.0858552 | P103: =+SUM(P90:P102) -> 0 | Q103: 23808.58552 | R103: =+SUM(R90:R102) -> 0
A104: Total Specified Costs | I104: 2531.002412 | J104: =+J84+J103 -> 0 | M104: 0 | N104: =+N84+N103 -> 0 | O104: 2531.002412 | P104: =+P84+P103 -> 0 | Q104: 253100.2412 | R104: =+R84+R103 -> 0
A106: Returns Above Specified Costs | I106: -461.0024119 | J106: =+J13-J104 -> 0 | M106: 0 | N106: =+N13-N104 -> 0 | O106: -461.0024119 | P106: =+P13-P104 -> 0 | Q106: -46100.24119 | R106: =+R13-R104 -> 0
A108: Breakeven Price to Cover Total Costs | G108: 281.2224902 | H108: =IF(E10=0,"n/a",(YTotExp-(YTotExp+YTotRet-J10))/E10) -> n/a | I108: Ton
D110: Example Breakeven Prices
B111: Example | C111: Example | D111: To Cover | G111: To Cover
B112: Yield | C112: Yield | D112: Variable | G112: Total
B113: Percent | C113: Ton | D113: Costs | G113: Costs
B114: 0.75 | C114: 6.75 | D114: 339.6913417 | G114: 374.9633203
B115: 0.9 | C115: 8.1 | D115: 283.0761181 | G115: 312.4694336
B116: 1 | C116: 9 | D116: 254.7685063 | G116: 281.2224902
B117: 1.1 | C117: 9.9 | D117: 231.607733 | G117: 255.6568093
B118: 1.25 | C118: 11.25 | D118: 203.814805 | G118: 224.9779922
D120: Your Breakeven Prices
B121: Your | C121: Your | E121: To Cover | H121: To Cover
B122: Yield | C122: Yield | E122: Variable | H122: Total
B123: Percent | C123: Ton | E123: Costs | H123: Costs
B124: 0.75 | C124: =E10*YPER1 -> 0 | E124: =IF($E$10=0,0,(YVarExp-(YTotExp+YTotRet-J10))/($E$10*YPER1)) -> 0 | H124: =IF($E$10=0,0,(YTotExp-(YTotExp+YTotRet-J10))/($E$10*YPER1)) -> 0
B125: 0.9 | C125: =E10*YPER2 -> 0 | E125: =IF($E$10=0,0,(YVarExp-(YTotExp+YTotRet-J10))/($E$10*YPER2)) -> 0 | H125: =IF($E$10=0,0,(YTotExp-(YTotExp+YTotRet-J10))/($E$10*YPER2)) -> 0
B126: 1 | C126: =+E10 -> 0 | E126: =IF($E$10=0,0,(YVarExp-(YTotExp+YTotRet-J10))/($E$10*YPER3)) -> 0 | H126: =IF($E$10=0,0,(YTotExp-(YTotExp+YTotRet-J10))/($E$10*YPER3)) -> 0
B127: 1.1 | C127: =E10*YPER4 -> 0 | E127: =IF($E$10=0,0,(YVarExp-(YTotExp+YTotRet-J10))/($E$10*YPER4)) -> 0 | H127: =IF($E$10=0,0,(YTotExp-(YTotExp+YTotRet-J10))/($E$10*YPER4)) -> 0
B128: 1.25 | C128: =E10*YPER5 -> 0 | E128: =IF($E$10=0,0,(YVarExp-(YTotExp+YTotRet-J10))/($E$10*YPER5)) -> 0 | H128: =IF($E$10=0,0,(YTotExp-(YTotExp+YTotRet-J10))/($E$10*YPER5)) -> 0
A130: Developed by Samuel Zapata, Assistant Professor and Extension Economist, Texas A&M AgriLife Extension, 956-968-5581.
A132: Information presented is prepared solely as a general guide and not intended to recognize or predict the costs and returns from any one operation. Brand names are mentioned only as examples and imply no endorsement.

Sheet GrapefruitYear6
A1: Projections for Planning Purposes Only -- Not to be Used without Updating
A2: 2020 Estimated Costs and Returns per Acre
A3: Grapefruit, Year 6, Orchard Establishment, Flood Irrigated, Rio Grande Valley
A4: Enter your name for this budget in the cell above.
A5: Enter Your Values in the cells highlighed in MAROON.
E6: Your Acres | R6: Your
C7: Crop Acres | D7: 100 | L7: Your | Q7: Enterprise | R7: Enterprise
E8: Your | H8: Your | I8: Cash | J8: Your | K8: Landlord | L8: Landlord | N8: Your | P8: Your | Q8: Total | R8: Total
A9: REVENUE | D9: Quantity | E9: Quantity | F9: Units | G9: $/Unit | H9: $/Unit | I9: Total | J9: Total | K9: Share | L9: Share | M9: Landlord | N9: Landlord | O9: Tenant | P9: Tenant | Q9: (100 acres) | R9: ="(" & E7 & " acres)" -> ( acres)
B10: Grapefruit (Rio Red) | D10: 14 | F10: Ton | G10: 230 | I10: 3220 | J10: =E10*H10 -> 0 | K10: 0 | M10: 0 | N10: =J10*L10 -> 0 | O10: 3220 | P10: =+J10-N10 -> 0 | Q10: 322000 | R10: =+J10*E$7 -> 0
D11: 0 | G11: 0 | I11: 0 | J11: 0 | K11: 0 | M11: 0 | N11: 0 | O11: 0 | P11: =+J11-N11 -> 0 | Q11: 0 | R11: 0
D12: 0 | G12: 0 | I12: 0 | J12: 0 | K12: 0 | M12: 0 | N12: 0 | O12: 0 | P12: 0 | Q12: 0 | R12: 0
A13: Total Revenue | I13: 3220 | J13: =SUM(J10:J12) -> 0 | M13: 0 | N13: =SUM(N10:N12) -> 0 | O13: 3220 | P13: =SUM(P10:P12) -> 0 | Q13: 322000 | R13: =SUM(R10:R12) -> 0
Q14: Enterprise | R14: Enterprise
A15: VARIABLE COSTS | D15: Quantity | E15: Quantity | F15: Units | G15: $/Unit | H15: $/Unit | I15: Total | J15: Total | K15: Share | L15: Share | M15: Landlord | N15: Landlord | O15: Tenant | P15: Tenant | Q15: Total | R15: Total
A16: Production Costs
B17: Fertilizer
C18: Urea (46%) | D18: 2.5 | F18: CTW | G18: 21.8 | I18: 54.5 | J18: =E18*H18 -> 0 | K18: 0 | M18: 0 | N18: =J18*L18 -> 0 | O18: 54.5 | P18: =+J18-N18 -> 0 | Q18: 5450 | R18: =+J18*E$7 -> 0
C19: Foliar N (Urea) | D19: 5 | F19: Pound | G19: 0.61 | I19: 3.05 | J19: 0 | K19: 0 | M19: 0 | N19: 0 | O19: 3.05 | P19: 0 | Q19: 305 | R19: 0
C20: Foliar 3-18-18 | D20: 1 | F20: Gallon | G20: 22 | I20: 22 | J20: 0 | K20: 0 | M20: 0 | N20: 0 | O20: 22 | P20: 0 | Q20: 2200 | R20: 0
C21: Foliar Zn | D21: 2 | F21: Pound | G21: 0.8 | I21: 1.6 | J21: 0 | K21: 0 | M21: 0 | N21: 0 | O21: 1.6 | P21: 0 | Q21: 160 | R21: 0
C22: Foliar 18-8-5 | D22: 2 | F22: Gallon | G22: 15.5 | I22: 31 | J22: 0 | K22: 0 | M22: 0 | N22: 0 | O22: 31 | P22: 0 | Q22: 3100 | R22: 0
B23: Custom
C24: Foliar Application | D24: 7 | F24: Acre | G24: 42 | I24: 294 | J24: 0 | K24: 0 | M24: 0 | N24: 0 | O24: 294 | P24: 0 | Q24: 29400 | R24: 0
C25: Prune (Yr 3-6 Year) | D25: 1 | F25: Acre | G25: 56 | I25: 56 | J25: 0 | K25: 0 | M25: 0 | N25: 0 | O25: 56 | P25: 0 | Q25: 5600 | R25: 0
B26: Miscellaneous
C27: Citrus Assessment | D27: 1 | F27: Acre | G27: 45 | I27: 45 | J27: 0 | K27: 0 | M27: 0 | N27: 0 | O27: 45 | P27: 0 | Q27: 4500 | R27: 0
C28: Insurance, Grapefruit | D28: 1 | F28: Acre | G28: 30 | I28: 30 | J28: 0 | K28: 0 | M28: 0 | N28: 0 | O28: 30 | P28: 0 | Q28: 3000 | R28: 0
B29: Insecticide
C30: Admire Pro | D30: 0.44 | F30: Pint | G30: 27.7368 | I30: 12.204192 | J30: 0 | K30: 0 | M30: 0 | N30: 0 | O30: 12.204192 | P30: 0 | Q30: 1220.4192 | R30: 0
C31: Vendex | D31: 8 | F31: Pound | G31: 17.89 | I31: 143.12 | J31: 0 | K31: 0 | M31: 0 | N31: 0 | O31: 143.12 | P31: 0 | Q31: 14312 | R31: 0
C32: Agri-Mek SC | D32: 0.32 | F32: Gallon | G32: 499.9072 | I32: 159.970304 | J32: 0 | K32: 0 | M32: 0 | N32: 0 | O32: 159.970304 | P32: 0 | Q32: 15997.0304 | R32: 0
C33: Movento | D33: 30 | F33: Ounce | G33: 7.25 | I33: 217.5 | J33: 0 | K33: 0 | M33: 0 | N33: 0 | O33: 217.5 | P33: 0 | Q33: 21750 | R33: 0
C34: Micromite | D34: 18.8 | F34: Ounce | G34: 3.88 | I34: 72.944 | J34: 0 | K34: 0 | M34: 0 | N34: 0 | O34: 72.944 | P34: 0 | Q34: 7294.4 | R34: 0
C35: Actara | D35: 11 | F35: Ounce | G35: 2.35 | I35: 25.85 | J35: 0 | K35: 0 | M35: 0 | N35: 0 | O35: 25.85 | P35: 0 | Q35: 2585 | R35: 0
C36: Sivanto | D36: 10 | F36: Ounce | G36: 2.3 | I36: 23 | J36: 0 | K36: 0 | M36: 0 | N36: 0 | O36: 23 | P36: 0 | Q36: 2300 | R36: 0
C37: Esteem | D37: 10 | F37: Ounce | G37: 13 | I37: 130 | J37: 0 | K37: 0 | M37: 0 | N37: 0 | O37: 130 | P37: 0 | Q37: 13000 | R37: 0
C38: Danitol | D38: 16 | F38: Ounce | G38: 1.58 | I38: 25.28 | J38: 0 | K38: 0 | M38: 0 | N38: 0 | O38: 25.28 | P38: 0 | Q38: 2528 | R38: 0
B39: Herbicide
C40: Simazine 4L | D40: 1.25 | F40: Gallon | G40: 21.4608 | I40: 26.826 | J40: 0 | K40: 0 | M40: 0 | N40: 0 | O40: 26.826 | P40: 0 | Q40: 2682.6 | R40: 0
C41: Krovar I 80 DF | D41: 3 | F41: Pound | G41: 15.65376 | I41: 46.96128 | J41: 0 | K41: 0 | M41: 0 | N41: 0 | O41: 46.96128 | P41: 0 | Q41: 4696.128 | R41: 0
C42: Roundup/Glyphosate | D42: 3.4 | F42: Gallon | G42: 20 | I42: 68 | J42: 0 | K42: 0 | M42: 0 | N42: 0 | O42: 68 | P42: 0 | Q42: 6800 | R42: 0
B43: Other Chemicals
C44: Surfactant - Citrus | D44: 7.98 | F44: Pint | G44: 8 | I44: 63.84 | J44: 0 | K44: 0 | M44: 0 | N44: 0 | O44: 63.84 | P44: 0 | Q44: 6384 | R44: 0
B45: Other Labor
C46: Unallocated Labor | D46: 1 | F46: Hour | G46: 12 | I46: 12 | J46: 0 | K46: 0 | M46: 0 | N46: 0 | O46: 12 | P46: 0 | Q46: 1200 | R46: 0
C47: Costum Soil Fert. Citrus | D47: 6 | F47: Hour | G47: 12 | I47: 72 | J47: 0 | K47: 0 | M47: 0 | N47: 0 | O47: 72 | P47: 0 | Q47: 7200 | R47: 0
B48: Seed
C49: Young Citrus Trees | D49: 3 | F49: Tree | G49: 10 | I49: 30 | J49: 0 | K49: 0 | M49: 0 | N49: 0 | O49: 30 | P49: 0 | Q49: 3000 | R49: 0
C50: Layout and Plant | D50: 3 | F50: Tree | G50: 5 | I50: 15 | J50: 0 | K50: 0 | M50: 0 | N50: 0 | O50: 15 | P50: 0 | Q50: 1500 | R50: 0
C51: Removal Citrus | D51: 3 | F51: Tree | G51: 25 | I51: 75 | J51: 0 | K51: 0 | M51: 0 | N51: 0 | O51: 75 | P51: 0 | Q51: 7500 | R51: 0
C52: Treatment Removed citrus | D52: 3 | F52: Tree | G52: 5 | I52: 15 | J52: 0 | K52: 0 | M52: 0 | N52: 0 | O52: 15 | P52: 0 | Q52: 1500 | R52: 0
C53: Tree Wrap/Unwrap | D53: 3 | F53: Tree | G53: 2 | I53: 6 | J53: 0 | K53: 0 | M53: 0 | N53: 0 | O53: 6 | P53: 0 | Q53: 600 | R53: 0
B54: Fungicides
C55: Quadris Top | D55: 10 | F55: Ounce | G55: 1.5 | I55: 15 | J55: 0 | K55: 0 | M55: 0 | N55: 0 | O55: 15 | P55: 0 | Q55: 1500 | R55: 0
C56: GEM | D56: 3.8 | F56: Ounce | G56: 4.88 | I56: 18.544 | J56: 0 | K56: 0 | M56: 0 | N56: 0 | O56: 18.544 | P56: 0 | Q56: 1854.4 | R56: 0
C57: Headline | D57: 24 | F57: Ounce | G57: 2.66 | I57: 63.84 | J57: 0 | K57: 0 | M57: 0 | N57: 0 | O57: 63.84 | P57: 0 | Q57: 6384 | R57: 0
D58: 16 | G58: 4.88 | I58: 78.08 | J58: 0 | K58: 0 | M58: 0 | N58: 0 | O58: 78.08 | P58: 0 | Q58: 7808 | R58: 0
D59: 0 | G59: 0 | I59: 0 | J59: 0 | K59: 0 | M59: 0 | N59: 0 | O59: 0 | P59: 0 | Q59: 0 | R59: 0
D60: 0 | G60: 0 | I60: 0 | J60: =E60*H60 -> 0 | K60: 0 | M60: 0 | N60: =J60*L60 -> 0 | O60: 0 | P60: =+J60-N60 -> 0 | Q60: 0 | R60: =+J60*E$7 -> 0
B61: Irrigation
C62: Water Cost | D62: 4 | F62: Acre/Foot | G62: 20 | I62: 80 | J62: =E62*H62 -> 0 | K62: 0 | M62: 0 | N62: =J62*L62 -> 0 | O62: 80 | P62: =+J62-N62 -> 0 | Q62: 8000 | R62: =+J62*E$7 -> 0
C63: Irrigation Labor | D63: 14 | F63: Hour | G63: 12 | I63: 168 | J63: 0 | K63: 0 | M63: 0 | N63: 0 | O63: 168 | P63: 0 | Q63: 16800 | R63: 0
B64: Machinery Labor
C65: Tractors/Self-Propelled | D65: 0.8 | F65: Hour | G65: 12 | I65: 9.6 | J65: =E65*H65 -> 0 | K65: 0 | M65: 0 | N65: =J65*L65 -> 0 | O65: 9.6 | P65: =+J65-N65 -> 0 | Q65: 960 | R65: =+J65*E$7 -> 0
C66: Other Labor | D66: 0.4 | F66: Hour | G66: 12 | I66: 4.8 | J66: =E66*H66 -> 0 | K66: 0 | M66: 0 | N66: =J66*L66 -> 0 | O66: 4.8 | P66: =+J66-N66 -> 0 | Q66: 480 | R66: =+J66*E$7 -> 0
B68: Diesel Fuel
C69: Pickup/General Use Equipment | D69: 1 | F69: Acre | G69: 0 | I69: 0 | J69: =E69*H69 -> 0 | K69: 0 | M69: 0 | N69: =J69*L69 -> 0 | O69: 0 | P69: =+J69-N69 -> 0 | Q69: 0 | R69: =+J69*E$7 -> 0
C70: Tractors/Self-Propelled | D70: 3.66 | F70: Gallon | G70: 2.3 | I70: 8.418 | J70: =E70*H70 -> 0 | K70: 0 | M70: 0 | N70: =J70*L70 -> 0 | O70: 8.418 | P70: =+J70-N70 -> 0 | Q70: 841.8 | R70: =+J70*E$7 -> 0
B72: Gasoline
C73: Pickup/General Use Equipment | D73: 1 | F73: Acre | G73: 0 | I73: 0 | J73: =E73*H73 -> 0 | K73: 0 | M73: 0 | N73: =J73*L73 -> 0 | O73: 0 | P73: =+J73-N73 -> 0 | Q73: 0 | R73: =+J73*E$7 -> 0
C74: Tractors/Self-Propelled | D74: 0 | F74: Gallon | G74: 2.2 | I74: 0 | J74: =E74*H74 -> 0 | K74: 0 | M74: 0 | N74: =J74*L74 -> 0 | O74: 0 | P74: =+J74-N74 -> 0 | Q74: 0 | R74: =+J74*E$7 -> 0
B76: Repairs & Maintenance
C77: Pickup/General Use Equipment | D77: 1 | F77: Acre | G77: 0 | I77: 0 | J77: =E77*H77 -> 0 | K77: 0 | M77: 0 | N77: =J77*L77 -> 0 | O77: 0 | P77: =+J77-N77 -> 0 | Q77: 0 | R77: =+J77*E$7 -> 0
C78: Irrigation Equipment | D78: 1 | F78: Acre | G78: 0 | I78: 0 | J78: 0 | K78: 0 | M78: 0 | N78: 0 | O78: 0 | P78: 0 | Q78: 0 | R78: 0
C79: Tractors/Self-Propelled | D79: 1 | F79: Acre | G79: 8.428795717 | I79: 8.428795717 | J79: 0 | K79: 0 | M79: 0 | N79: 0 | O79: 8.428795717 | P79: 0 | Q79: 842.8795717 | R79: 0
C80: Implements | D80: 1 | F80: Acre | G80: 2.858799603 | I80: 2.858799603 | J80: 0 | K80: 0 | M80: 0 | N80: 0 | O80: 2.858799603 | P80: 0 | Q80: 285.8799603 | R80: 0
I81: 0 | J81: 0 | K81: 0 | M81: 0 | N81: 0 | O81: 0 | P81: 0 | Q81: 0 | R81: 0
I82: 0 | J82: 0 | K82: 0 | M82: 0 | N82: 0 | O82: 0 | P82: 0 | Q82: 0 | R82: 0
B83: Interest on Credit Line | G83: 0.05 | I83: 57.70118532 | J83: =+SUM(J17:J82)/2*H83 -> 0 | M83: 0 | N83: =+SUM(N17:N82)/2*L83 -> 0 | O83: 57.70118532 | P83: =+SUM(P17:P82)/2*L83 -> 0 | Q83: 5770.118532 | R83: =+J83*E$7 -> 0
A84: Total Variable Costs | I84: 2292.916557 | J84: =SUM(J18:J83) -> 0 | M84: 0 | N84: =SUM(N18:N83) -> 0 | O84: 2292.916557 | P84: =SUM(P18:P83) -> 0 | Q84: 229291.6557 | R84: =SUM(R18:R83) -> 0
A85: Planned Returns Above Variable Costs: | I85: 927.0834434 | J85: =+J13-J84 -> 0 | M85: 0 | N85: =+N13-N84 -> 0 | O85: 927.0834434 | P85: =+P13-P84 -> 0 | Q85: 92708.34434 | R85: =+R13-R84 -> 0
B86: Breakeven Price to Cover Variable Costs | G86: 163.779754 | H86: =IF(E10=0,"n/a",(YVarExp-(YTotExp+YTotRet-J10))/E10) -> n/a | I86: Ton
Q87: Enterprise | R87: Enterprise
A88: FIXED COSTS | D88: Quantity | E88: Quantity | F88: Units | G88: $/Unit | H88: $/Unit | I88: Total | J88: Total | K88: Share | L88: Share | M88: Landlord | N88: Landlord | O88: Tenant | P88: Tenant | Q88: Total | R88: Total
B89: Machinery Depreciation
C90: Tractors/Self-Propelled | D90: 1 | F90: Acre | G90: 8.709755574 | I90: 8.709755574 | J90: =E90*H90 -> 0 | K90: 0 | M90: 0 | N90: =J90*L90 -> 0 | O90: 8.709755574 | P90: =+J90-N90 -> 0 | Q90: 870.9755574 | R90: =+J90*E$7 -> 0
C91: Implements | D91: 1 | F91: Acre | G91: 3.055939539 | I91: 3.055939539 | J91: 0 | K91: 0 | M91: 0 | N91: =J91*L91 -> 0 | O91: 3.055939539 | P91: 0 | Q91: 305.5939539 | R91: 0
B92: Equipment Investment
C93: Tractors/Self-Propelled | D93: 67.85180552 | F93: Dollars | G93: 0.07 | I93: 4.749626387 | J93: =E93*H93 -> 0 | K93: 0 | M93: 0 | N93: =J93*L93 -> 0 | O93: 4.749626387 | P93: =+J93-N93 -> 0 | Q93: 474.9626387 | R93: =+J93*E$7 -> 0
C94: Implements | D94: 13.07263025 | F94: Dollars | G94: 0.07 | I94: 0.9150841174 | J94: 0 | K94: 0 | M94: 0 | N94: =J94*L94 -> 0 | O94: 0.9150841174 | P94: 0 | Q94: 91.50841174 | R94: 0
B95: Salaried Labor | D95: 1 | F95: Acre | G95: 0 | I95: 0 | J95: 0 | K95: 0 | M95: 0 | N95: =J95*L95 -> 0 | O95: 0 | P95: =+J95-N95 -> 0 | Q95: 0 | R95: =+J95*E$7 -> 0
B96: Management Fee, Owner/Operator Labor | D96: 1 | F96: Acre | G96: 0 | I96: 0 | J96: 0 | K96: 0 | M96: 0 | N96: 0 | O96: 0 | P96: 0 | Q96: 0 | R96: 0
B97: Allocated Establishment Cost | D97: 1 | F97: Acre | G97: 120.6554496 | I97: 120.6554496 | J97: 0 | K97: 0 | M97: 0 | N97: 0 | O97: 120.6554496 | P97: 0 | Q97: 12065.54496 | R97: 0
B98: Land Cost, Orchard | D98: 1 | F98: Acre | G98: 100 | I98: 100 | J98: 0 | K98: 0 | M98: 0 | N98: 0 | O98: 100 | P98: 0 | Q98: 10000 | R98: 0
B99: Property Taxes | D99: 1 | F99: Acre | G99: 0 | I99: 0 | J99: 0 | K99: 0 | M99: 0 | N99: 0 | O99: 0 | P99: 0 | Q99: 0 | R99: 0
B100: Whole Farm Insurance | D100: 1 | F100: Acre | G100: 0 | I100: 0 | J100: 0 | K100: 0 | M100: 0 | N100: 0 | O100: 0 | P100: 0 | Q100: 0 | R100: 0
D101: 1 | G101: 0 | I101: 0 | J101: 0 | K101: 0 | M101: 0 | N101: 0 | O101: 0 | P101: 0 | Q101: 0 | R101: 0
D102: 1 | G102: 0 | I102: 0 | J102: =E102*H102 -> 0 | K102: 0 | M102: 0 | N102: 0 | O102: 0 | P102: 0 | Q102: 0 | R102: 0
A103: Total Fixed Costs | I103: 238.0858552 | J103: =+SUM(J90:J102) -> 0 | M103: 0 | N103: =+SUM(N90:N102) -> 0 | O103: 238.0858552 | P103: =+SUM(P90:P102) -> 0 | Q103: 23808.58552 | R103: =+SUM(R90:R102) -> 0
A104: Total Specified Costs | I104: 2531.002412 | J104: =+J84+J103 -> 0 | M104: 0 | N104: =+N84+N103 -> 0 | O104: 2531.002412 | P104: =+P84+P103 -> 0 | Q104: 253100.2412 | R104: =+R84+R103 -> 0
A106: Returns Above Specified Costs | I106: 688.9975881 | J106: =+J13-J104 -> 0 | M106: 0 | N106: =+N13-N104 -> 0 | O106: 688.9975881 | P106: =+P13-P104 -> 0 | Q106: 68899.75881 | R106: =+R13-R104 -> 0
A108: Breakeven Price to Cover Total Costs | G108: 180.7858866 | H108: =IF(E10=0,"n/a",(YTotExp-(YTotExp+YTotRet-J10))/E10) -> n/a | I108: Ton
D110: Example Breakeven Prices
B111: Example | C111: Example | D111: To Cover | G111: To Cover
B112: Yield | C112: Yield | D112: Variable | G112: Total
B113: Percent | C113: Ton | D113: Costs | G113: Costs
B114: 0.75 | C114: 10.5 | D114: 218.3730054 | G114: 241.0478488
B115: 0.9 | C115: 12.6 | D115: 181.9775045 | G115: 200.8732073
B116: 1 | C116: 14 | D116: 163.779754 | G116: 180.7858866
B117: 1.1 | C117: 15.4 | D117: 148.8906855 | G117: 164.350806
B118: 1.25 | C118: 17.5 | D118: 131.0238032 | G118: 144.6287093
D120: Your Breakeven Prices
B121: Your | C121: Your | E121: To Cover | H121: To Cover
B122: Yield | C122: Yield | E122: Variable | H122: Total
B123: Percent | C123: Ton | E123: Costs | H123: Costs
B124: 0.75 | C124: =E10*YPER1 -> 0 | E124: =IF($E$10=0,0,(YVarExp-(YTotExp+YTotRet-J10))/($E$10*YPER1)) -> 0 | H124: =IF($E$10=0,0,(YTotExp-(YTotExp+YTotRet-J10))/($E$10*YPER1)) -> 0
B125: 0.9 | C125: =E10*YPER2 -> 0 | E125: =IF($E$10=0,0,(YVarExp-(YTotExp+YTotRet-J10))/($E$10*YPER2)) -> 0 | H125: =IF($E$10=0,0,(YTotExp-(YTotExp+YTotRet-J10))/($E$10*YPER2)) -> 0
B126: 1 | C126: =+E10 -> 0 | E126: =IF($E$10=0,0,(YVarExp-(YTotExp+YTotRet-J10))/($E$10*YPER3)) -> 0 | H126: =IF($E$10=0,0,(YTotExp-(YTotExp+YTotRet-J10))/($E$10*YPER3)) -> 0
B127: 1.1 | C127: =E10*YPER4 -> 0 | E127: =IF($E$10=0,0,(YVarExp-(YTotExp+YTotRet-J10))/($E$10*YPER4)) -> 0 | H127: =IF($E$10=0,0,(YTotExp-(YTotExp+YTotRet-J10))/($E$10*YPER4)) -> 0
B128: 1.25 | C128: =E10*YPER5 -> 0 | E128: =IF($E$10=0,0,(YVarExp-(YTotExp+YTotRet-J10))/($E$10*YPER5)) -> 0 | H128: =IF($E$10=0,0,(YTotExp-(YTotExp+YTotRet-J10))/($E$10*YPER5)) -> 0
A130: Developed by Samuel Zapata, Assistant Professor and Extension Economist, Texas A&M AgriLife Extension, 956-968-5581.
A132: Information presented is prepared solely as a general guide and not intended to recognize or predict the costs and returns from any one operation. Brand names are mentioned only as examples and imply no endorsement.

Sheet GrapefruitYear7
A1: Projections for Planning Purposes Only -- Not to be Used without Updating
A2: 2020 Estimated Costs and Returns per Acre
A3: Grapefruit, Year 7, Orchard Establishment, Flood Irrigated, Rio Grande Valley
A4: Enter your name for this budget in the cell above.
A5: Enter Your Values in the cells highlighed in MAROON.
E6: Your Acres | R6: Your
C7: Crop Acres | D7: 100 | L7: Your | Q7: Enterprise | R7: Enterprise
E8: Your | H8: Your | I8: Cash | J8: Your | K8: Landlord | L8: Landlord | N8: Your | P8: Your | Q8: Total | R8: Total
A9: REVENUE | D9: Quantity | E9: Quantity | F9: Units | G9: $/Unit | H9: $/Unit | I9: Total | J9: Total | K9: Share | L9: Share | M9: Landlord | N9: Landlord | O9: Tenant | P9: Tenant | Q9: (100 acres) | R9: ="(" & E7 & " acres)" -> ( acres)
B10: Grapefruit (Rio Red) | D10: 18 | F10: Ton | G10: 230 | I10: 4140 | J10: =E10*H10 -> 0 | K10: 0 | M10: 0 | N10: =J10*L10 -> 0 | O10: 4140 | P10: =+J10-N10 -> 0 | Q10: 414000 | R10: =+J10*E$7 -> 0
D11: 0 | G11: 0 | I11: 0 | J11: 0 | K11: 0 | M11: 0 | N11: 0 | O11: 0 | P11: =+J11-N11 -> 0 | Q11: 0 | R11: 0
D12: 0 | G12: 0 | I12: 0 | J12: 0 | K12: 0 | M12: 0 | N12: 0 | O12: 0 | P12: 0 | Q12: 0 | R12: 0
A13: Total Revenue | I13: 4140 | J13: =SUM(J10:J12) -> 0 | M13: 0 | N13: =SUM(N10:N12) -> 0 | O13: 4140 | P13: =SUM(P10:P12) -> 0 | Q13: 414000 | R13: =SUM(R10:R12) -> 0
Q14: Enterprise | R14: Enterprise
A15: VARIABLE COSTS | D15: Quantity | E15: Quantity | F15: Units | G15: $/Unit | H15: $/Unit | I15: Total | J15: Total | K15: Share | L15: Share | M15: Landlord | N15: Landlord | O15: Tenant | P15: Tenant | Q15: Total | R15: Total
A16: Production Costs
B17: Fertilizer
C18: Urea (46%) | D18: 2.5 | F18: CTW | G18: 21.8 | I18: 54.5 | J18: =E18*H18 -> 0 | K18: 0 | M18: 0 | N18: =J18*L18 -> 0 | O18: 54.5 | P18: =+J18-N18 -> 0 | Q18: 5450 | R18: =+J18*E$7 -> 0
C19: Foliar N (Urea) | D19: 5 | F19: Pound | G19: 0.61 | I19: 3.05 | J19: 0 | K19: 0 | M19: 0 | N19: 0 | O19: 3.05 | P19: 0 | Q19: 305 | R19: 0
C20: Foliar 3-18-18 | D20: 1 | F20: Gallon | G20: 22 | I20: 22 | J20: 0 | K20: 0 | M20: 0 | N20: 0 | O20: 22 | P20: 0 | Q20: 2200 | R20: 0
C21: Foliar Zn | D21: 2 | F21: Pound | G21: 0.8 | I21: 1.6 | J21: 0 | K21: 0 | M21: 0 | N21: 0 | O21: 1.6 | P21: 0 | Q21: 160 | R21: 0
C22: Foliar 18-8-5 | D22: 2 | F22: Gallon | G22: 15.5 | I22: 31 | J22: 0 | K22: 0 | M22: 0 | N22: 0 | O22: 31 | P22: 0 | Q22: 3100 | R22: 0
B23: Custom
C24: Foliar Application | D24: 7 | F24: Acre | G24: 42 | I24: 294 | J24: 0 | K24: 0 | M24: 0 | N24: 0 | O24: 294 | P24: 0 | Q24: 29400 | R24: 0
C25: Topping and Hedging | D25: 1 | F25: Acre | G25: 120 | I25: 120 | J25: 0 | K25: 0 | M25: 0 | N25: 0 | O25: 120 | P25: 0 | Q25: 12000 | R25: 0
B26: Miscellaneous
C27: Citrus Assessment | D27: 1 | F27: Acre | G27: 45 | I27: 45 | J27: 0 | K27: 0 | M27: 0 | N27: 0 | O27: 45 | P27: 0 | Q27: 4500 | R27: 0
C28: Insurance, Grapefruit | D28: 1 | F28: Acre | G28: 30 | I28: 30 | J28: 0 | K28: 0 | M28: 0 | N28: 0 | O28: 30 | P28: 0 | Q28: 3000 | R28: 0
B29: Insecticide
C30: Admire Pro | D30: 0.44 | F30: Pint | G30: 27.7368 | I30: 12.204192 | J30: 0 | K30: 0 | M30: 0 | N30: 0 | O30: 12.204192 | P30: 0 | Q30: 1220.4192 | R30: 0
C31: Vendex | D31: 8 | F31: Pound | G31: 17.89 | I31: 143.12 | J31: 0 | K31: 0 | M31: 0 | N31: 0 | O31: 143.12 | P31: 0 | Q31: 14312 | R31: 0
C32: Agri-Mek SC | D32: 0.32 | F32: Gallon | G32: 499.9072 | I32: 159.970304 | J32: 0 | K32: 0 | M32: 0 | N32: 0 | O32: 159.970304 | P32: 0 | Q32: 15997.0304 | R32: 0
C33: Movento | D33: 30 | F33: Ounce | G33: 7.25 | I33: 217.5 | J33: 0 | K33: 0 | M33: 0 | N33: 0 | O33: 217.5 | P33: 0 | Q33: 21750 | R33: 0
C34: Micromite | D34: 18.8 | F34: Ounce | G34: 3.88 | I34: 72.944 | J34: 0 | K34: 0 | M34: 0 | N34: 0 | O34: 72.944 | P34: 0 | Q34: 7294.4 | R34: 0
C35: Actara | D35: 11 | F35: Ounce | G35: 2.35 | I35: 25.85 | J35: 0 | K35: 0 | M35: 0 | N35: 0 | O35: 25.85 | P35: 0 | Q35: 2585 | R35: 0
C36: Sivanto | D36: 10 | F36: Ounce | G36: 2.3 | I36: 23 | J36: 0 | K36: 0 | M36: 0 | N36: 0 | O36: 23 | P36: 0 | Q36: 2300 | R36: 0
C37: Danitol | D37: 16 | F37: Ounce | G37: 1.58 | I37: 25.28 | J37: 0 | K37: 0 | M37: 0 | N37: 0 | O37: 25.28 | P37: 0 | Q37: 2528 | R37: 0
C38: Esteem | D38: 10 | F38: Ounce | G38: 4.7 | I38: 47 | J38: 0 | K38: 0 | M38: 0 | N38: 0 | O38: 47 | P38: 0 | Q38: 4700 | R38: 0
B39: Herbicide
C40: Simazine 4L | D40: 1.25 | F40: Gallon | G40: 21.4608 | I40: 26.826 | J40: 0 | K40: 0 | M40: 0 | N40: 0 | O40: 26.826 | P40: 0 | Q40: 2682.6 | R40: 0
C41: Krovar I 80 DF | D41: 3 | F41: Pound | G41: 15.65376 | I41: 46.96128 | J41: 0 | K41: 0 | M41: 0 | N41: 0 | O41: 46.96128 | P41: 0 | Q41: 4696.128 | R41: 0
C42: Roundup/Glyphosate | D42: 3.4 | F42: Gallon | G42: 20 | I42: 68 | J42: 0 | K42: 0 | M42: 0 | N42: 0 | O42: 68 | P42: 0 | Q42: 6800 | R42: 0
B43: Other Chemicals
C44: Surfactant - Citrus | D44: 7.98 | F44: Pint | G44: 8 | I44: 63.84 | J44: 0 | K44: 0 | M44: 0 | N44: 0 | O44: 63.84 | P44: 0 | Q44: 6384 | R44: 0
B45: Other Labor
C46: Unallocated Labor | D46: 1 | F46: Hour | G46: 12 | I46: 12 | J46: 0 | K46: 0 | M46: 0 | N46: 0 | O46: 12 | P46: 0 | Q46: 1200 | R46: 0
C47: Costum Soil Fert. Citrus | D47: 6 | F47: Hour | G47: 12 | I47: 72 | J47: 0 | K47: 0 | M47: 0 | N47: 0 | O47: 72 | P47: 0 | Q47: 7200 | R47: 0
B48: Seed
C49: Young Citrus Trees | D49: 3 | F49: Tree | G49: 10 | I49: 30 | J49: 0 | K49: 0 | M49: 0 | N49: 0 | O49: 30 | P49: 0 | Q49: 3000 | R49: 0
C50: Layout and Plant | D50: 3 | F50: Tree | G50: 5 | I50: 15 | J50: 0 | K50: 0 | M50: 0 | N50: 0 | O50: 15 | P50: 0 | Q50: 1500 | R50: 0
C51: Removal Citrus | D51: 3 | F51: Tree | G51: 25 | I51: 75 | J51: 0 | K51: 0 | M51: 0 | N51: 0 | O51: 75 | P51: 0 | Q51: 7500 | R51: 0
C52: Treatment Removed citrus | D52: 3 | F52: Tree | G52: 5 | I52: 15 | J52: 0 | K52: 0 | M52: 0 | N52: 0 | O52: 15 | P52: 0 | Q52: 1500 | R52: 0
C53: Tree Wrap/Unwrap | D53: 3 | F53: Tree | G53: 2 | I53: 6 | J53: 0 | K53: 0 | M53: 0 | N53: 0 | O53: 6 | P53: 0 | Q53: 600 | R53: 0
B54: Fungicides
C55: Quadris Top | D55: 10 | F55: Ounce | G55: 1.5 | I55: 15 | J55: 0 | K55: 0 | M55: 0 | N55: 0 | O55: 15 | P55: 0 | Q55: 1500 | R55: 0
C56: GEM | D56: 3.8 | F56: Ounce | G56: 4.88 | I56: 18.544 | J56: 0 | K56: 0 | M56: 0 | N56: 0 | O56: 18.544 | P56: 0 | Q56: 1854.4 | R56: 0
C57: Headline | D57: 24 | F57: Ounce | G57: 2.66 | I57: 63.84 | J57: 0 | K57: 0 | M57: 0 | N57: 0 | O57: 63.84 | P57: 0 | Q57: 6384 | R57: 0
D58: 16 | G58: 4.88 | I58: 78.08 | J58: 0 | K58: 0 | M58: 0 | N58: 0 | O58: 78.08 | P58: 0 | Q58: 7808 | R58: 0
D59: 0 | G59: 0 | I59: 0 | J59: 0 | K59: 0 | M59: 0 | N59: 0 | O59: 0 | P59: 0 | Q59: 0 | R59: 0
D60: 0 | G60: 0 | I60: 0 | J60: =E60*H60 -> 0 | K60: 0 | M60: 0 | N60: =J60*L60 -> 0 | O60: 0 | P60: =+J60-N60 -> 0 | Q60: 0 | R60: =+J60*E$7 -> 0
B61: Irrigation
C62: Water Cost | D62: 4 | F62: Acre/Foot | G62: 20 | I62: 80 | J62: =E62*H62 -> 0 | K62: 0 | M62: 0 | N62: =J62*L62 -> 0 | O62: 80 | P62: =+J62-N62 -> 0 | Q62: 8000 | R62: =+J62*E$7 -> 0
C63: Irrigation Labor | D63: 14 | F63: Hour | G63: 12 | I63: 168 | J63: 0 | K63: 0 | M63: 0 | N63: 0 | O63: 168 | P63: 0 | Q63: 16800 | R63: 0
B64: Machinery Labor
C65: Tractors/Self-Propelled | D65: 0.8 | F65: Hour | G65: 12 | I65: 9.6 | J65: =E65*H65 -> 0 | K65: 0 | M65: 0 | N65: =J65*L65 -> 0 | O65: 9.6 | P65: =+J65-N65 -> 0 | Q65: 960 | R65: =+J65*E$7 -> 0
C66: Other Labor | D66: 0.4 | F66: Hour | G66: 12 | I66: 4.8 | J66: =E66*H66 -> 0 | K66: 0 | M66: 0 | N66: =J66*L66 -> 0 | O66: 4.8 | P66: =+J66-N66 -> 0 | Q66: 480 | R66: =+J66*E$7 -> 0
B68: Diesel Fuel
C69: Pickup/General Use Equipment | D69: 1 | F69: Acre | G69: 0 | I69: 0 | J69: =E69*H69 -> 0 | K69: 0 | M69: 0 | N69: =J69*L69 -> 0 | O69: 0 | P69: =+J69-N69 -> 0 | Q69: 0 | R69: =+J69*E$7 -> 0
C70: Tractors/Self-Propelled | D70: 3.66 | F70: Gallon | G70: 2.3 | I70: 8.418 | J70: =E70*H70 -> 0 | K70: 0 | M70: 0 | N70: =J70*L70 -> 0 | O70: 8.418 | P70: =+J70-N70 -> 0 | Q70: 841.8 | R70: =+J70*E$7 -> 0
B72: Gasoline
C73: Pickup/General Use Equipment | D73: 1 | F73: Acre | G73: 0 | I73: 0 | J73: =E73*H73 -> 0 | K73: 0 | M73: 0 | N73: =J73*L73 -> 0 | O73: 0 | P73: =+J73-N73 -> 0 | Q73: 0 | R73: =+J73*E$7 -> 0
C74: Tractors/Self-Propelled | D74: 0 | F74: Gallon | G74: 2.2 | I74: 0 | J74: =E74*H74 -> 0 | K74: 0 | M74: 0 | N74: =J74*L74 -> 0 | O74: 0 | P74: =+J74-N74 -> 0 | Q74: 0 | R74: =+J74*E$7 -> 0
B76: Repairs & Maintenance
C77: Pickup/General Use Equipment | D77: 1 | F77: Acre | G77: 0 | I77: 0 | J77: =E77*H77 -> 0 | K77: 0 | M77: 0 | N77: =J77*L77 -> 0 | O77: 0 | P77: =+J77-N77 -> 0 | Q77: 0 | R77: =+J77*E$7 -> 0
C78: Irrigation Equipment | D78: 1 | F78: Acre | G78: 0 | I78: 0 | J78: 0 | K78: 0 | M78: 0 | N78: 0 | O78: 0 | P78: 0 | Q78: 0 | R78: 0
C79: Tractors/Self-Propelled | D79: 1 | F79: Acre | G79: 8.428795717 | I79: 8.428795717 | J79: 0 | K79: 0 | M79: 0 | N79: 0 | O79: 8.428795717 | P79: 0 | Q79: 842.8795717 | R79: 0
C80: Implements | D80: 1 | F80: Acre | G80: 2.858799603 | I80: 2.858799603 | J80: 0 | K80: 0 | M80: 0 | N80: 0 | O80: 2.858799603 | P80: 0 | Q80: 285.8799603 | R80: 0
I81: 0 | J81: 0 | K81: 0 | M81: 0 | N81: 0 | O81: 0 | P81: 0 | Q81: 0 | R81: 0
I82: 0 | J82: 0 | K82: 0 | M82: 0 | N82: 0 | O82: 0 | P82: 0 | Q82: 0 | R82: 0
B83: Interest on Credit Line | G83: 0.05 | I83: 59.37022642 | J83: =+SUM(J17:J82)/2*H83 -> 0 | M83: 0 | N83: =+SUM(N17:N82)/2*L83 -> 0 | O83: 59.37022642 | P83: =+SUM(P17:P82)/2*L83 -> 0 | Q83: 5937.022642 | R83: =+J83*E$7 -> 0
A84: Total Variable Costs | I84: 2275.585598 | J84: =SUM(J18:J83) -> 0 | M84: 0 | N84: =SUM(N18:N83) -> 0 | O84: 2275.585598 | P84: =SUM(P18:P83) -> 0 | Q84: 227558.5598 | R84: =SUM(R18:R83) -> 0
A85: Planned Returns Above Variable Costs: | I85: 1864.414402 | J85: =+J13-J84 -> 0 | M85: 0 | N85: =+N13-N84 -> 0 | O85: 1864.414402 | P85: =+P13-P84 -> 0 | Q85: 186441.4402 | R85: =+R13-R84 -> 0
B86: Breakeven Price to Cover Variable Costs | G86: 126.4214221 | H86: =IF(E10=0,"n/a",(YVarExp-(YTotExp+YTotRet-J10))/E10) -> n/a | I86: Ton
Q87: Enterprise | R87: Enterprise
A88: FIXED COSTS | D88: Quantity | E88: Quantity | F88: Units | G88: $/Unit | H88: $/Unit | I88: Total | J88: Total | K88: Share | L88: Share | M88: Landlord | N88: Landlord | O88: Tenant | P88: Tenant | Q88: Total | R88: Total
B89: Machinery Depreciation
C90: Tractors/Self-Propelled | D90: 1 | F90: Acre | G90: 8.709755574 | I90: 8.709755574 | J90: =E90*H90 -> 0 | K90: 0 | M90: 0 | N90: =J90*L90 -> 0 | O90: 8.709755574 | P90: =+J90-N90 -> 0 | Q90: 870.9755574 | R90: =+J90*E$7 -> 0
C91: Implements | D91: 1 | F91: Acre | G91: 3.055939539 | I91: 3.055939539 | J91: 0 | K91: 0 | M91: 0 | N91: =J91*L91 -> 0 | O91: 3.055939539 | P91: 0 | Q91: 305.5939539 | R91: 0
B92: Equipment Investment
C93: Tractors/Self-Propelled | D93: 67.85180552 | F93: Dollars | G93: 0.07 | I93: 4.749626387 | J93: =E93*H93 -> 0 | K93: 0 | M93: 0 | N93: =J93*L93 -> 0 | O93: 4.749626387 | P93: =+J93-N93 -> 0 | Q93: 474.9626387 | R93: =+J93*E$7 -> 0
C94: Implements | D94: 13.07263025 | F94: Dollars | G94: 0.07 | I94: 0.9150841174 | J94: 0 | K94: 0 | M94: 0 | N94: =J94*L94 -> 0 | O94: 0.9150841174 | P94: 0 | Q94: 91.50841174 | R94: 0
B95: Salaried Labor | D95: 1 | F95: Acre | G95: 0 | I95: 0 | J95: 0 | K95: 0 | M95: 0 | N95: =J95*L95 -> 0 | O95: 0 | P95: =+J95-N95 -> 0 | Q95: 0 | R95: =+J95*E$7 -> 0
B96: Management Fee, Owner/Operator Labor | D96: 1 | F96: Acre | G96: 0 | I96: 0 | J96: 0 | K96: 0 | M96: 0 | N96: 0 | O96: 0 | P96: 0 | Q96: 0 | R96: 0
B97: Allocated Establishment Cost | D97: 1 | F97: Acre | G97: 120.6554496 | I97: 120.6554496 | J97: 0 | K97: 0 | M97: 0 | N97: 0 | O97: 120.6554496 | P97: 0 | Q97: 12065.54496 | R97: 0
B98: Land Cost, Orchard | D98: 1 | F98: Acre | G98: 100 | I98: 100 | J98: 0 | K98: 0 | M98: 0 | N98: 0 | O98: 100 | P98: 0 | Q98: 10000 | R98: 0
B99: Property Taxes | D99: 1 | F99: Acre | G99: 0 | I99: 0 | J99: 0 | K99: 0 | M99: 0 | N99: 0 | O99: 0 | P99: 0 | Q99: 0 | R99: 0
B100: Whole Farm Insurance | D100: 1 | F100: Acre | G100: 0 | I100: 0 | J100: 0 | K100: 0 | M100: 0 | N100: 0 | O100: 0 | P100: 0 | Q100: 0 | R100: 0
D101: 1 | G101: 0 | I101: 0 | J101: 0 | K101: 0 | M101: 0 | N101: 0 | O101: 0 | P101: 0 | Q101: 0 | R101: 0
D102: 1 | G102: 0 | I102: 0 | J102: =E102*H102 -> 0 | K102: 0 | M102: 0 | N102: 0 | O102: 0 | P102: 0 | Q102: 0 | R102: 0
A103: Total Fixed Costs | I103: 238.0858552 | J103: =+SUM(J90:J102) -> 0 | M103: 0 | N103: =+SUM(N90:N102) -> 0 | O103: 238.0858552 | P103: =+SUM(P90:P102) -> 0 | Q103: 23808.58552 | R103: =+SUM(R90:R102) -> 0
A104: Total Specified Costs | I104: 2513.671453 | J104: =+J84+J103 -> 0 | M104: 0 | N104: =+N84+N103 -> 0 | O104: 2513.671453 | P104: =+P84+P103 -> 0 | Q104: 251367.1453 | R104: =+R84+R103 -> 0
A106: Returns Above Specified Costs | I106: 1626.328547 | J106: =+J13-J104 -> 0 | M106: 0 | N106: =+N13-N104 -> 0 | O106: 1626.328547 | P106: =+P13-P104 -> 0 | Q106: 162632.8547 | R106: =+R13-R104 -> 0
A108: Breakeven Price to Cover Total Costs | G108: 139.6484141 | H108: =IF(E10=0,"n/a",(YTotExp-(YTotExp+YTotRet-J10))/E10) -> n/a | I108: Ton
D110: Example Breakeven Prices
B111: Example | C111: Example | D111: To Cover | G111: To Cover
B112: Yield | C112: Yield | D112: Variable | G112: Total
B113: Percent | C113: Ton | D113: Costs | G113: Costs
B114: 0.75 | C114: 13.5 | D114: 168.5618961 | G114: 186.1978854
B115: 0.9 | C115: 16.2 | D115: 140.4682468 | G115: 155.1649045
B116: 1 | C116: 18 | D116: 126.4214221 | G116: 139.6484141
B117: 1.1 | C117: 19.8 | D117: 114.9285655 | G117: 126.9531037
B118: 1.25 | C118: 22.5 | D118: 101.1371377 | G118: 111.7187312
D120: Your Breakeven Prices
B121: Your | C121: Your | E121: To Cover | H121: To Cover
B122: Yield | C122: Yield | E122: Variable | H122: Total
B123: Percent | C123: Ton | E123: Costs | H123: Costs
B124: 0.75 | C124: =E10*YPER1 -> 0 | E124: =IF($E$10=0,0,(YVarExp-(YTotExp+YTotRet-J10))/($E$10*YPER1)) -> 0 | H124: =IF($E$10=0,0,(YTotExp-(YTotExp+YTotRet-J10))/($E$10*YPER1)) -> 0
B125: 0.9 | C125: =E10*YPER2 -> 0 | E125: =IF($E$10=0,0,(YVarExp-(YTotExp+YTotRet-J10))/($E$10*YPER2)) -> 0 | H125: =IF($E$10=0,0,(YTotExp-(YTotExp+YTotRet-J10))/($E$10*YPER2)) -> 0
B126: 1 | C126: =+E10 -> 0 | E126: =IF($E$10=0,0,(YVarExp-(YTotExp+YTotRet-J10))/($E$10*YPER3)) -> 0 | H126: =IF($E$10=0,0,(YTotExp-(YTotExp+YTotRet-J10))/($E$10*YPER3)) -> 0
B127: 1.1 | C127: =E10*YPER4 -> 0 | E127: =IF($E$10=0,0,(YVarExp-(YTotExp+YTotRet-J10))/($E$10*YPER4)) -> 0 | H127: =IF($E$10=0,0,(YTotExp-(YTotExp+YTotRet-J10))/($E$10*YPER4)) -> 0
B128: 1.25 | C128: =E10*YPER5 -> 0 | E128: =IF($E$10=0,0,(YVarExp-(YTotExp+YTotRet-J10))/($E$10*YPER5)) -> 0 | H128: =IF($E$10=0,0,(YTotExp-(YTotExp+YTotRet-J10))/($E$10*YPER5)) -> 0
A130: Developed by Samuel Zapata, Assistant Professor and Extension Economist, Texas A&M AgriLife Extension, 956-968-5581.
A132: Information presented is prepared solely as a general guide and not intended to recognize or predict the costs and returns from any one operation. Brand names are mentioned only as examples and imply no endorsement.

Sheet GrapefruitYear8
A1: Projections for Planning Purposes Only -- Not to be Used without Updating
A2: 2020 Estimated Costs and Returns per Acre
A3: Grapefruit, Year 8, Orchard Establishment, Flood Irrigated, Rio Grande Valley
A4: Enter your name for this budget in the cell above.
A5: Enter Your Values in the cells highlighed in MAROON.
E6: Your Acres | R6: Your
C7: Crop Acres | D7: 100 | L7: Your | Q7: Enterprise | R7: Enterprise
E8: Your | H8: Your | I8: Cash | J8: Your | K8: Landlord | L8: Landlord | N8: Your | P8: Your | Q8: Total | R8: Total
A9: REVENUE | D9: Quantity | E9: Quantity | F9: Units | G9: $/Unit | H9: $/Unit | I9: Total | J9: Total | K9: Share | L9: Share | M9: Landlord | N9: Landlord | O9: Tenant | P9: Tenant | Q9: (100 acres) | R9: ="(" & E7 & " acres)" -> ( acres)
B10: Grapefruit (Rio Red) | D10: 20 | F10: Ton | G10: 230 | I10: 4600 | J10: =E10*H10 -> 0 | K10: 0 | M10: 0 | N10: =J10*L10 -> 0 | O10: 4600 | P10: =+J10-N10 -> 0 | Q10: 460000 | R10: =+J10*E$7 -> 0
D11: 0 | G11: 0 | I11: 0 | J11: 0 | K11: 0 | M11: 0 | N11: 0 | O11: 0 | P11: =+J11-N11 -> 0 | Q11: 0 | R11: 0
D12: 0 | G12: 0 | I12: 0 | J12: 0 | K12: 0 | M12: 0 | N12: 0 | O12: 0 | P12: 0 | Q12: 0 | R12: 0
A13: Total Revenue | I13: 4600 | J13: =SUM(J10:J12) -> 0 | M13: 0 | N13: =SUM(N10:N12) -> 0 | O13: 4600 | P13: =SUM(P10:P12) -> 0 | Q13: 460000 | R13: =SUM(R10:R12) -> 0
Q14: Enterprise | R14: Enterprise
A15: VARIABLE COSTS | D15: Quantity | E15: Quantity | F15: Units | G15: $/Unit | H15: $/Unit | I15: Total | J15: Total | K15: Share | L15: Share | M15: Landlord | N15: Landlord | O15: Tenant | P15: Tenant | Q15: Total | R15: Total
A16: Production Costs
B17: Fertilizer
C18: Urea (46%) | D18: 2.5 | F18: CTW | G18: 21.8 | I18: 54.5 | J18: =E18*H18 -> 0 | K18: 0 | M18: 0 | N18: =J18*L18 -> 0 | O18: 54.5 | P18: =+J18-N18 -> 0 | Q18: 5450 | R18: =+J18*E$7 -> 0
C19: Foliar N (Urea) | D19: 5 | F19: Pound | G19: 0.61 | I19: 3.05 | J19: 0 | K19: 0 | M19: 0 | N19: 0 | O19: 3.05 | P19: 0 | Q19: 305 | R19: 0
C20: Foliar 3-18-18 | D20: 1 | F20: Gallon | G20: 22 | I20: 22 | J20: 0 | K20: 0 | M20: 0 | N20: 0 | O20: 22 | P20: 0 | Q20: 2200 | R20: 0
C21: Foliar Zn | D21: 2 | F21: Pound | G21: 0.8 | I21: 1.6 | J21: 0 | K21: 0 | M21: 0 | N21: 0 | O21: 1.6 | P21: 0 | Q21: 160 | R21: 0
C22: Foliar 11-8-5 | D22: 2 | F22: Gallon | G22: 15.5 | I22: 31 | J22: 0 | K22: 0 | M22: 0 | N22: 0 | O22: 31 | P22: 0 | Q22: 3100 | R22: 0
B23: Custom
C24: Topping and Hedging | D24: 1 | F24: Acre | G24: 120 | I24: 120 | J24: 0 | K24: 0 | M24: 0 | N24: 0 | O24: 120 | P24: 0 | Q24: 12000 | R24: 0
C25: Foliar Aplication | D25: 7 | F25: Acre | G25: 42 | I25: 294 | J25: 0 | K25: 0 | M25: 0 | N25: 0 | O25: 294 | P25: 0 | Q25: 29400 | R25: 0
B26: Miscellaneous
C27: Citrus Assessment | D27: 1 | F27: Acre | G27: 45 | I27: 45 | J27: 0 | K27: 0 | M27: 0 | N27: 0 | O27: 45 | P27: 0 | Q27: 4500 | R27: 0
C28: Insurance, Grapefruit | D28: 1 | F28: Acre | G28: 30 | I28: 30 | J28: 0 | K28: 0 | M28: 0 | N28: 0 | O28: 30 | P28: 0 | Q28: 3000 | R28: 0
B29: Insecticide
C30: Vendex | D30: 8 | F30: Pound | G30: 17.89 | I30: 143.12 | J30: 0 | K30: 0 | M30: 0 | N30: 0 | O30: 143.12 | P30: 0 | Q30: 14312 | R30: 0
C31: Agri-Mek SC | D31: 0.32 | F31: Gallon | G31: 499.9072 | I31: 159.970304 | J31: 0 | K31: 0 | M31: 0 | N31: 0 | O31: 159.970304 | P31: 0 | Q31: 15997.0304 | R31: 0
C32: Movento | D32: 30 | F32: Ounce | G32: 7.25 | I32: 217.5 | J32: 0 | K32: 0 | M32: 0 | N32: 0 | O32: 217.5 | P32: 0 | Q32: 21750 | R32: 0
C33: Micromite | D33: 18.8 | F33: Ounce | G33: 3.88 | I33: 72.944 | J33: 0 | K33: 0 | M33: 0 | N33: 0 | O33: 72.944 | P33: 0 | Q33: 7294.4 | R33: 0
C34: Actara | D34: 11 | F34: Ounce | G34: 2.35 | I34: 25.85 | J34: 0 | K34: 0 | M34: 0 | N34: 0 | O34: 25.85 | P34: 0 | Q34: 2585 | R34: 0
C35: Sivanto | D35: 10 | F35: Ounce | G35: 2.3 | I35: 23 | J35: 0 | K35: 0 | M35: 0 | N35: 0 | O35: 23 | P35: 0 | Q35: 2300 | R35: 0
C36: Esteem | D36: 10 | F36: Ounce | G36: 4.7 | I36: 47 | J36: 0 | K36: 0 | M36: 0 | N36: 0 | O36: 47 | P36: 0 | Q36: 4700 | R36: 0
C37: Danitol | D37: 16 | F37: Ounce | G37: 1.58 | I37: 25.28 | J37: 0 | K37: 0 | M37: 0 | N37: 0 | O37: 25.28 | P37: 0 | Q37: 2528 | R37: 0
C38: Admire Pro | D38: 0.44 | F38: Pint | G38: 27.7368 | I38: 12.204192 | J38: 0 | K38: 0 | M38: 0 | N38: 0 | O38: 12.204192 | P38: 0 | Q38: 1220.4192 | R38: 0
B39: Herbicide
C40: Simazine 4L | D40: 1.25 | F40: Gallon | G40: 21.4608 | I40: 26.826 | J40: 0 | K40: 0 | M40: 0 | N40: 0 | O40: 26.826 | P40: 0 | Q40: 2682.6 | R40: 0
C41: Krovar I 80 DF | D41: 3 | F41: Pound | G41: 15.65376 | I41: 46.96128 | J41: 0 | K41: 0 | M41: 0 | N41: 0 | O41: 46.96128 | P41: 0 | Q41: 4696.128 | R41: 0
C42: Roundup/Glyphosate | D42: 3.4 | F42: Gallon | G42: 20 | I42: 68 | J42: 0 | K42: 0 | M42: 0 | N42: 0 | O42: 68 | P42: 0 | Q42: 6800 | R42: 0
B43: Other Chemicals
C44: Surfactant - Citrus | D44: 7.98 | F44: Pint | G44: 8 | I44: 63.84 | J44: 0 | K44: 0 | M44: 0 | N44: 0 | O44: 63.84 | P44: 0 | Q44: 6384 | R44: 0
B45: Other Labor
C46: Costum Soil Fert. Citrus | D46: 6 | F46: Hour | G46: 12 | I46: 72 | J46: 0 | K46: 0 | M46: 0 | N46: 0 | O46: 72 | P46: 0 | Q46: 7200 | R46: 0
C47: Unallocated Labor | D47: 1 | F47: Hour | G47: 12 | I47: 12 | J47: 0 | K47: 0 | M47: 0 | N47: 0 | O47: 12 | P47: 0 | Q47: 1200 | R47: 0
B48: Seed
C49: Young Citrus Trees | D49: 3 | F49: Tree | G49: 10 | I49: 30 | J49: 0 | K49: 0 | M49: 0 | N49: 0 | O49: 30 | P49: 0 | Q49: 3000 | R49: 0
C50: Layout and Plant | D50: 3 | F50: Tree | G50: 5 | I50: 15 | J50: 0 | K50: 0 | M50: 0 | N50: 0 | O50: 15 | P50: 0 | Q50: 1500 | R50: 0
C51: Removal Citrus | D51: 3 | F51: Tree | G51: 25 | I51: 75 | J51: 0 | K51: 0 | M51: 0 | N51: 0 | O51: 75 | P51: 0 | Q51: 7500 | R51: 0
C52: Treatment Removed citrus | D52: 3 | F52: Tree | G52: 5 | I52: 15 | J52: 0 | K52: 0 | M52: 0 | N52: 0 | O52: 15 | P52: 0 | Q52: 1500 | R52: 0
C53: Tree Wrap/Unwrap | D53: 3 | F53: Tree | G53: 2 | I53: 6 | J53: 0 | K53: 0 | M53: 0 | N53: 0 | O53: 6 | P53: 0 | Q53: 600 | R53: 0
B54: Fungicides
C55: Quadris Top | D55: 10 | F55: Ounce | G55: 1.5 | I55: 15 | J55: 0 | K55: 0 | M55: 0 | N55: 0 | O55: 15 | P55: 0 | Q55: 1500 | R55: 0
C56: GEM | D56: 3.8 | F56: Ounce | G56: 4.88 | I56: 18.544 | J56: 0 | K56: 0 | M56: 0 | N56: 0 | O56: 18.544 | P56: 0 | Q56: 1854.4 | R56: 0
C57: Headline | D57: 24 | F57: Ounce | G57: 2.66 | I57: 63.84 | J57: 0 | K57: 0 | M57: 0 | N57: 0 | O57: 63.84 | P57: 0 | Q57: 6384 | R57: 0
D58: 16 | G58: 4.88 | I58: 78.08 | J58: 0 | K58: 0 | M58: 0 | N58: 0 | O58: 78.08 | P58: 0 | Q58: 7808 | R58: 0
D59: 0 | G59: 0 | I59: 0 | J59: 0 | K59: 0 | M59: 0 | N59: 0 | O59: 0 | P59: 0 | Q59: 0 | R59: 0
D60: 0 | G60: 0 | I60: 0 | J60: =E60*H60 -> 0 | K60: 0 | M60: 0 | N60: =J60*L60 -> 0 | O60: 0 | P60: =+J60-N60 -> 0 | Q60: 0 | R60: =+J60*E$7 -> 0
B61: Irrigation
C62: Water Cost | D62: 4 | F62: Acre/Foot | G62: 20 | I62: 80 | J62: =E62*H62 -> 0 | K62: 0 | M62: 0 | N62: =J62*L62 -> 0 | O62: 80 | P62: =+J62-N62 -> 0 | Q62: 8000 | R62: =+J62*E$7 -> 0
C63: Irrigation Labor | D63: 14 | F63: Hour | G63: 12 | I63: 168 | J63: 0 | K63: 0 | M63: 0 | N63: 0 | O63: 168 | P63: 0 | Q63: 16800 | R63: 0
B64: Machinery Labor
C65: Tractors/Self-Propelled | D65: 0.8 | F65: Hour | G65: 12 | I65: 9.6 | J65: =E65*H65 -> 0 | K65: 0 | M65: 0 | N65: =J65*L65 -> 0 | O65: 9.6 | P65: =+J65-N65 -> 0 | Q65: 960 | R65: =+J65*E$7 -> 0
C66: Other Labor | D66: 0.4 | F66: Hour | G66: 12 | I66: 4.8 | J66: =E66*H66 -> 0 | K66: 0 | M66: 0 | N66: =J66*L66 -> 0 | O66: 4.8 | P66: =+J66-N66 -> 0 | Q66: 480 | R66: =+J66*E$7 -> 0
B68: Diesel Fuel
C69: Pickup/General Use Equipment | D69: 1 | F69: Acre | G69: 0 | I69: 0 | J69: =E69*H69 -> 0 | K69: 0 | M69: 0 | N69: =J69*L69 -> 0 | O69: 0 | P69: =+J69-N69 -> 0 | Q69: 0 | R69: =+J69*E$7 -> 0
C70: Tractors/Self-Propelled | D70: 3.66 | F70: Gallon | G70: 2.3 | I70: 8.418 | J70: =E70*H70 -> 0 | K70: 0 | M70: 0 | N70: =J70*L70 -> 0 | O70: 8.418 | P70: =+J70-N70 -> 0 | Q70: 841.8 | R70: =+J70*E$7 -> 0
B72: Gasoline
C73: Pickup/General Use Equipment | D73: 1 | F73: Acre | G73: 0 | I73: 0 | J73: =E73*H73 -> 0 | K73: 0 | M73: 0 | N73: =J73*L73 -> 0 | O73: 0 | P73: =+J73-N73 -> 0 | Q73: 0 | R73: =+J73*E$7 -> 0
C74: Tractors/Self-Propelled | D74: 0 | F74: Gallon | G74: 2.2 | I74: 0 | J74: =E74*H74 -> 0 | K74: 0 | M74: 0 | N74: =J74*L74 -> 0 | O74: 0 | P74: =+J74-N74 -> 0 | Q74: 0 | R74: =+J74*E$7 -> 0
B76: Repairs & Maintenance
C77: Pickup/General Use Equipment | D77: 1 | F77: Acre | G77: 0 | I77: 0 | J77: =E77*H77 -> 0 | K77: 0 | M77: 0 | N77: =J77*L77 -> 0 | O77: 0 | P77: =+J77-N77 -> 0 | Q77: 0 | R77: =+J77*E$7 -> 0
C78: Irrigation Equipment | D78: 1 | F78: Acre | G78: 0 | I78: 0 | J78: 0 | K78: 0 | M78: 0 | N78: 0 | O78: 0 | P78: 0 | Q78: 0 | R78: 0
C79: Tractors/Self-Propelled | D79: 1 | F79: Acre | G79: 8.428795717 | I79: 8.428795717 | J79: 0 | K79: 0 | M79: 0 | N79: 0 | O79: 8.428795717 | P79: 0 | Q79: 842.8795717 | R79: 0
C80: Implements | D80: 1 | F80: Acre | G80: 2.858799603 | I80: 2.858799603 | J80: 0 | K80: 0 | M80: 0 | N80: 0 | O80: 2.858799603 | P80: 0 | Q80: 285.8799603 | R80: 0
I81: 0 | J81: 0 | K81: 0 | M81: 0 | N81: 0 | O81: 0 | P81: 0 | Q81: 0 | R81: 0
I82: 0 | J82: 0 | K82: 0 | M82: 0 | N82: 0 | O82: 0 | P82: 0 | Q82: 0 | R82: 0
B83: Interest on Credit Line | G83: 0.05 | I83: 59.37022642 | J83: =+SUM(J17:J82)/2*H83 -> 0 | M83: 0 | N83: =+SUM(N17:N82)/2*L83 -> 0 | O83: 59.37022642 | P83: =+SUM(P17:P82)/2*L83 -> 0 | Q83: 5937.022642 | R83: =+J83*E$7 -> 0
A84: Total Variable Costs | I84: 2275.585598 | J84: =SUM(J18:J83) -> 0 | M84: 0 | N84: =SUM(N18:N83) -> 0 | O84: 2275.585598 | P84: =SUM(P18:P83) -> 0 | Q84: 227558.5598 | R84: =SUM(R18:R83) -> 0
A85: Planned Returns Above Variable Costs: | I85: 2324.414402 | J85: =+J13-J84 -> 0 | M85: 0 | N85: =+N13-N84 -> 0 | O85: 2324.414402 | P85: =+P13-P84 -> 0 | Q85: 232441.4402 | R85: =+R13-R84 -> 0
B86: Breakeven Price to Cover Variable Costs | G86: 113.7792799 | H86: =IF(E10=0,"n/a",(YVarExp-(YTotExp+YTotRet-J10))/E10) -> n/a | I86: Ton
Q87: Enterprise | R87: Enterprise
A88: FIXED COSTS | D88: Quantity | E88: Quantity | F88: Units | G88: $/Unit | H88: $/Unit | I88: Total | J88: Total | K88: Share | L88: Share | M88: Landlord | N88: Landlord | O88: Tenant | P88: Tenant | Q88: Total | R88: Total
B89: Machinery Depreciation
C90: Tractors/Self-Propelled | D90: 1 | F90: Acre | G90: 8.709755574 | I90: 8.709755574 | J90: =E90*H90 -> 0 | K90: 0 | M90: 0 | N90: =J90*L90 -> 0 | O90: 8.709755574 | P90: =+J90-N90 -> 0 | Q90: 870.9755574 | R90: =+J90*E$7 -> 0
C91: Implements | D91: 1 | F91: Acre | G91: 3.055939539 | I91: 3.055939539 | J91: 0 | K91: 0 | M91: 0 | N91: =J91*L91 -> 0 | O91: 3.055939539 | P91: 0 | Q91: 305.5939539 | R91: 0
B92: Equipment Investment
C93: Tractors/Self-Propelled | D93: 67.85180552 | F93: Dollars | G93: 0.07 | I93: 4.749626387 | J93: =E93*H93 -> 0 | K93: 0 | M93: 0 | N93: =J93*L93 -> 0 | O93: 4.749626387 | P93: =+J93-N93 -> 0 | Q93: 474.9626387 | R93: =+J93*E$7 -> 0
C94: Implements | D94: 13.07263025 | F94: Dollars | G94: 0.07 | I94: 0.9150841174 | J94: 0 | K94: 0 | M94: 0 | N94: =J94*L94 -> 0 | O94: 0.9150841174 | P94: 0 | Q94: 91.50841174 | R94: 0
B95: Salaried Labor | D95: 1 | F95: Acre | G95: 0 | I95: 0 | J95: 0 | K95: 0 | M95: 0 | N95: =J95*L95 -> 0 | O95: 0 | P95: =+J95-N95 -> 0 | Q95: 0 | R95: =+J95*E$7 -> 0
B96: Management Fee, Owner/Operator Labor | D96: 1 | F96: Acre | G96: 0 | I96: 0 | J96: 0 | K96: 0 | M96: 0 | N96: 0 | O96: 0 | P96: 0 | Q96: 0 | R96: 0
B97: Allocated Establishment Cost | D97: 1 | F97: Acre | G97: 120.6554496 | I97: 120.6554496 | J97: 0 | K97: 0 | M97: 0 | N97: 0 | O97: 120.6554496 | P97: 0 | Q97: 12065.54496 | R97: 0
B98: Land Cost, Orchard | D98: 1 | F98: Acre | G98: 100 | I98: 100 | J98: 0 | K98: 0 | M98: 0 | N98: 0 | O98: 100 | P98: 0 | Q98: 10000 | R98: 0
B99: Property Taxes | D99: 1 | F99: Acre | G99: 0 | I99: 0 | J99: 0 | K99: 0 | M99: 0 | N99: 0 | O99: 0 | P99: 0 | Q99: 0 | R99: 0
B100: Whole Farm Insurance | D100: 1 | F100: Acre | G100: 0 | I100: 0 | J100: 0 | K100: 0 | M100: 0 | N100: 0 | O100: 0 | P100: 0 | Q100: 0 | R100: 0
D101: 1 | G101: 0 | I101: 0 | J101: 0 | K101: 0 | M101: 0 | N101: 0 | O101: 0 | P101: 0 | Q101: 0 | R101: 0
D102: 1 | G102: 0 | I102: 0 | J102: =E102*H102 -> 0 | K102: 0 | M102: 0 | N102: 0 | O102: 0 | P102: 0 | Q102: 0 | R102: 0
A103: Total Fixed Costs | I103: 238.0858552 | J103: =+SUM(J90:J102) -> 0 | M103: 0 | N103: =+SUM(N90:N102) -> 0 | O103: 238.0858552 | P103: =+SUM(P90:P102) -> 0 | Q103: 23808.58552 | R103: =+SUM(R90:R102) -> 0
A104: Total Specified Costs | I104: 2513.671453 | J104: =+J84+J103 -> 0 | M104: 0 | N104: =+N84+N103 -> 0 | O104: 2513.671453 | P104: =+P84+P103 -> 0 | Q104: 251367.1453 | R104: =+R84+R103 -> 0
A106: Returns Above Specified Costs | I106: 2086.328547 | J106: =+J13-J104 -> 0 | M106: 0 | N106: =+N13-N104 -> 0 | O106: 2086.328547 | P106: =+P13-P104 -> 0 | Q106: 208632.8547 | R106: =+R13-R104 -> 0
A108: Breakeven Price to Cover Total Costs | G108: 125.6835726 | H108: =IF(E10=0,"n/a",(YTotExp-(YTotExp+YTotRet-J10))/E10) -> n/a | I108: Ton
D110: Example Breakeven Prices
B111: Example | C111: Example | D111: To Cover | G111: To Cover
B112: Yield | C112: Yield | D112: Variable | G112: Total
B113: Percent | C113: Ton | D113: Costs | G113: Costs
B114: 0.75 | C114: 15 | D114: 151.7057065 | G114: 167.5780969
B115: 0.9 | C115: 18 | D115: 126.4214221 | G115: 139.6484141
B116: 1 | C116: 20 | D116: 113.7792799 | G116: 125.6835726
B117: 1.1 | C117: 22 | D117: 103.435709 | G117: 114.2577933
B118: 1.25 | C118: 25 | D118: 91.02342391 | G118: 100.5468581
D120: Your Breakeven Prices
B121: Your | C121: Your | E121: To Cover | H121: To Cover
B122: Yield | C122: Yield | E122: Variable | H122: Total
B123: Percent | C123: Ton | E123: Costs | H123: Costs
B124: 0.75 | C124: =E10*YPER1 -> 0 | E124: =IF($E$10=0,0,(YVarExp-(YTotExp+YTotRet-J10))/($E$10*YPER1)) -> 0 | H124: =IF($E$10=0,0,(YTotExp-(YTotExp+YTotRet-J10))/($E$10*YPER1)) -> 0
B125: 0.9 | C125: =E10*YPER2 -> 0 | E125: =IF($E$10=0,0,(YVarExp-(YTotExp+YTotRet-J10))/($E$10*YPER2)) -> 0 | H125: =IF($E$10=0,0,(YTotExp-(YTotExp+YTotRet-J10))/($E$10*YPER2)) -> 0
B126: 1 | C126: =+E10 -> 0 | E126: =IF($E$10=0,0,(YVarExp-(YTotExp+YTotRet-J10))/($E$10*YPER3)) -> 0 | H126: =IF($E$10=0,0,(YTotExp-(YTotExp+YTotRet-J10))/($E$10*YPER3)) -> 0
B127: 1.1 | C127: =E10*YPER4 -> 0 | E127: =IF($E$10=0,0,(YVarExp-(YTotExp+YTotRet-J10))/($E$10*YPER4)) -> 0 | H127: =IF($E$10=0,0,(YTotExp-(YTotExp+YTotRet-J10))/($E$10*YPER4)) -> 0
B128: 1.25 | C128: =E10*YPER5 -> 0 | E128: =IF($E$10=0,0,(YVarExp-(YTotExp+YTotRet-J10))/($E$10*YPER5)) -> 0 | H128: =IF($E$10=0,0,(YTotExp-(YTotExp+YTotRet-J10))/($E$10*YPER5)) -> 0
A130: Developed by Samuel Zapata, Assistant Professor and Extension Economist, Texas A&M AgriLife Extension, 956-968-5581.
A132: Information presented is prepared solely as a general guide and not intended to recognize or predict the costs and returns from any one operation. Brand names are mentioned only as examples and imply no endorsement.

Sheet OrangesNavel
A1: Projections for Planning Purposes Only -- Not to be Used without Updating
A2: 2020 Estimated Costs and Returns per Acre
A3: Oranges, Early Orange, Mature Orchard, Flood Irrigated, Rio Grande Valley
A4: Enter your name for this budget in the cell above.
A5: Enter Your Values in the cells highlighed in MAROON.
E6: Your Acres | R6: Your
C7: Crop Acres | D7: 100 | L7: Your | Q7: Enterprise | R7: Enterprise
E8: Your | H8: Your | I8: Cash | J8: Your | K8: Landlord | L8: Landlord | N8: Your | P8: Your | Q8: Total | R8: Total
A9: REVENUE | D9: Quantity | E9: Quantity | F9: Units | G9: $/Unit | H9: $/Unit | I9: Total | J9: Total | K9: Share | L9: Share | M9: Landlord | N9: Landlord | O9: Tenant | P9: Tenant | Q9: (100 acres) | R9: ="(" & E7 & " acres)" -> ( acres)
B10: Early Oranges | D10: 18 | F10: Ton | G10: 170 | I10: 3060 | J10: =E10*H10 -> 0 | K10: 0 | M10: 0 | N10: =J10*L10 -> 0 | O10: 3060 | P10: =+J10-N10 -> 0 | Q10: 306000 | R10: =+J10*E$7 -> 0
D11: 0 | G11: 0 | I11: 0 | J11: 0 | K11: 0 | M11: 0 | N11: 0 | O11: 0 | P11: =+J11-N11 -> 0 | Q11: 0 | R11: 0
D12: 0 | G12: 0 | I12: 0 | J12: 0 | K12: 0 | M12: 0 | N12: 0 | O12: 0 | P12: 0 | Q12: 0 | R12: 0
A13: Total Revenue | I13: 3060 | J13: =SUM(J10:J12) -> 0 | M13: 0 | N13: =SUM(N10:N12) -> 0 | O13: 3060 | P13: =SUM(P10:P12) -> 0 | Q13: 306000 | R13: =SUM(R10:R12) -> 0
Q14: Enterprise | R14: Enterprise
A15: VARIABLE COSTS | D15: Quantity | E15: Quantity | F15: Units | G15: $/Unit | H15: $/Unit | I15: Total | J15: Total | K15: Share | L15: Share | M15: Landlord | N15: Landlord | O15: Tenant | P15: Tenant | Q15: Total | R15: Total
A16: Production Costs
B17: Seed
C18: Young Citrus Trees | D18: 4 | F18: Tree | G18: 10 | I18: 40 | J18: =E18*H18 -> 0 | K18: 0 | M18: 0 | N18: =J18*L18 -> 0 | O18: 40 | P18: =+J18-N18 -> 0 | Q18: 4000 | R18: =+J18*E$7 -> 0
C19: Layout and Plant | D19: 4 | F19: Tree | G19: 5 | I19: 20 | J19: 0 | K19: 0 | M19: 0 | N19: 0 | O19: 20 | P19: 0 | Q19: 2000 | R19: 0
C20: Removal Citrus | D20: 4 | F20: Tree | G20: 25 | I20: 100 | J20: 0 | K20: 0 | M20: 0 | N20: 0 | O20: 100 | P20: 0 | Q20: 10000 | R20: 0
C21: Treatment Removed citrus | D21: 4 | F21: Tree | G21: 5 | I21: 20 | J21: 0 | K21: 0 | M21: 0 | N21: 0 | O21: 20 | P21: 0 | Q21: 2000 | R21: 0
C22: Tree Wrap/Unwrap | D22: 4 | F22: Tree | G22: 2 | I22: 8 | J22: 0 | K22: 0 | M22: 0 | N22: 0 | O22: 8 | P22: 0 | Q22: 800 | R22: 0
B23: Herbicide
C24: Simazine 4L | D24: 1.25 | F24: Gallon | G24: 21.4608 | I24: 26.826 | J24: 0 | K24: 0 | M24: 0 | N24: 0 | O24: 26.826 | P24: 0 | Q24: 2682.6 | R24: 0
C25: Roundup/Glyphosate | D25: 3.4 | F25: Gallon | G25: 20 | I25: 68 | J25: 0 | K25: 0 | M25: 0 | N25: 0 | O25: 68 | P25: 0 | Q25: 6800 | R25: 0
C26: Krovar I 80 DF | D26: 3 | F26: Pound | G26: 15.65376 | I26: 46.96128 | J26: 0 | K26: 0 | M26: 0 | N26: 0 | O26: 46.96128 | P26: 0 | Q26: 4696.128 | R26: 0
B27: Fertilizer
C28: Urea (46%) | D28: 2.5 | F28: CTW | G28: 21.8 | I28: 54.5 | J28: 0 | K28: 0 | M28: 0 | N28: 0 | O28: 54.5 | P28: 0 | Q28: 5450 | R28: 0
C29: Foliar N (Urea) | D29: 5 | F29: Pound | G29: 0.61 | I29: 3.05 | J29: 0 | K29: 0 | M29: 0 | N29: 0 | O29: 3.05 | P29: 0 | Q29: 305 | R29: 0
C30: Foliar 3-18-18 | D30: 1 | F30: Gallon | G30: 22 | I30: 22 | J30: 0 | K30: 0 | M30: 0 | N30: 0 | O30: 22 | P30: 0 | Q30: 2200 | R30: 0
C31: Foliar Zn | D31: 2 | F31: Pound | G31: 0.8 | I31: 1.6 | J31: 0 | K31: 0 | M31: 0 | N31: 0 | O31: 1.6 | P31: 0 | Q31: 160 | R31: 0
C32: Foliar 18-8-5 | D32: 2 | F32: Gallon | G32: 15.5 | I32: 31 | J32: 0 | K32: 0 | M32: 0 | N32: 0 | O32: 31 | P32: 0 | Q32: 3100 | R32: 0
B33: Other Labor
C34: Costum Soil Fert. Citrus | D34: 6 | F34: Hour | G34: 12 | I34: 72 | J34: 0 | K34: 0 | M34: 0 | N34: 0 | O34: 72 | P34: 0 | Q34: 7200 | R34: 0
C35: Unallocated Labor | D35: 1 | F35: Hour | G35: 12 | I35: 12 | J35: 0 | K35: 0 | M35: 0 | N35: 0 | O35: 12 | P35: 0 | Q35: 1200 | R35: 0
B36: Insecticide
C37: Movento | D37: 30 | F37: Ounce | G37: 7.25 | I37: 217.5 | J37: 0 | K37: 0 | M37: 0 | N37: 0 | O37: 217.5 | P37: 0 | Q37: 21750 | R37: 0
C38: Micromite | D38: 18.8 | F38: Ounce | G38: 3.88 | I38: 72.944 | J38: 0 | K38: 0 | M38: 0 | N38: 0 | O38: 72.944 | P38: 0 | Q38: 7294.4 | R38: 0
C39: Vendex | D39: 8 | F39: Pound | G39: 17.89 | I39: 143.12 | J39: 0 | K39: 0 | M39: 0 | N39: 0 | O39: 143.12 | P39: 0 | Q39: 14312 | R39: 0
C40: Agri-Mek SC | D40: 0.32 | F40: Gallon | G40: 499.9072 | I40: 159.970304 | J40: 0 | K40: 0 | M40: 0 | N40: 0 | O40: 159.970304 | P40: 0 | Q40: 15997.0304 | R40: 0
C41: Actara | D41: 11 | F41: Ounce | G41: 2.35 | I41: 25.85 | J41: 0 | K41: 0 | M41: 0 | N41: 0 | O41: 25.85 | P41: 0 | Q41: 2585 | R41: 0
C42: Sivanto | D42: 10 | F42: Ounce | G42: 2.3 | I42: 23 | J42: 0 | K42: 0 | M42: 0 | N42: 0 | O42: 23 | P42: 0 | Q42: 2300 | R42: 0
C43: Esteem | D43: 10 | F43: Ounce | G43: 13 | I43: 130 | J43: 0 | K43: 0 | M43: 0 | N43: 0 | O43: 130 | P43: 0 | Q43: 13000 | R43: 0
C44: Danitol | D44: 16 | F44: Ounce | G44: 1.58 | I44: 25.28 | J44: 0 | K44: 0 | M44: 0 | N44: 0 | O44: 25.28 | P44: 0 | Q44: 2528 | R44: 0
C45: Admire Pro | D45: 0.44 | F45: Pint | G45: 27.7368 | I45: 12.204192 | J45: 0 | K45: 0 | M45: 0 | N45: 0 | O45: 12.204192 | P45: 0 | Q45: 1220.4192 | R45: 0
B46: Custom
C47: Foliar Application | D47: 7 | F47: Acre | G47: 42 | I47: 294 | J47: 0 | K47: 0 | M47: 0 | N47: 0 | O47: 294 | P47: 0 | Q47: 29400 | R47: 0
C48: Topping and Hedging | D48: 1 | F48: Acre | G48: 120 | I48: 120 | J48: 0 | K48: 0 | M48: 0 | N48: 0 | O48: 120 | P48: 0 | Q48: 12000 | R48: 0
B49: Miscellaneous
C50: Citrus Assessment | D50: 1 | F50: Acre | G50: 45 | I50: 45 | J50: 0 | K50: 0 | M50: 0 | N50: 0 | O50: 45 | P50: 0 | Q50: 4500 | R50: 0
C51: Insurance, Oranges | D51: 1 | F51: Acre | G51: 15 | I51: 15 | J51: 0 | K51: 0 | M51: 0 | N51: 0 | O51: 15 | P51: 0 | Q51: 1500 | R51: 0
B52: Other Chemicals
C53: Surfactant - Citrus | D53: 7.98 | F53: Pint | G53: 8 | I53: 63.84 | J53: 0 | K53: 0 | M53: 0 | N53: 0 | O53: 63.84 | P53: 0 | Q53: 6384 | R53: 0
B54: Fungicides
C55: Quadris Top | D55: 10 | F55: Ounce | G55: 1.5 | I55: 15 | J55: 0 | K55: 0 | M55: 0 | N55: 0 | O55: 15 | P55: 0 | Q55: 1500 | R55: 0
C56: GEM | D56: 3.8 | F56: Ounce | G56: 4.88 | I56: 18.544 | J56: 0 | K56: 0 | M56: 0 | N56: 0 | O56: 18.544 | P56: 0 | Q56: 1854.4 | R56: 0
C57: Headline | D57: 24 | F57: Ounce | G57: 2.66 | I57: 63.84 | J57: 0 | K57: 0 | M57: 0 | N57: 0 | O57: 63.84 | P57: 0 | Q57: 6384 | R57: 0
D58: 16 | G58: 4.88 | I58: 78.08 | J58: 0 | K58: 0 | M58: 0 | N58: 0 | O58: 78.08 | P58: 0 | Q58: 7808 | R58: 0
D59: 0 | G59: 0 | I59: 0 | J59: 0 | K59: 0 | M59: 0 | N59: 0 | O59: 0 | P59: 0 | Q59: 0 | R59: 0
D60: 0 | G60: 0 | I60: 0 | J60: =E60*H60 -> 0 | K60: 0 | M60: 0 | N60: =J60*L60 -> 0 | O60: 0 | P60: =+J60-N60 -> 0 | Q60: 0 | R60: =+J60*E$7 -> 0
B61: Irrigation
C62: Water Cost | D62: 4 | F62: Acre/Foot | G62: 7.5 | I62: 30 | J62: =E62*H62 -> 0 | K62: 0 | M62: 0 | N62: =J62*L62 -> 0 | O62: 30 | P62: =+J62-N62 -> 0 | Q62: 3000 | R62: =+J62*E$7 -> 0
C63: Irrigation Labor | D63: 14 | F63: Hour | G63: 12 | I63: 168 | J63: 0 | K63: 0 | M63: 0 | N63: 0 | O63: 168 | P63: 0 | Q63: 16800 | R63: 0
B64: Machinery Labor
C65: Tractors/Self-Propelled | D65: 0.8 | F65: Hour | G65: 12 | I65: 9.6 | J65: =E65*H65 -> 0 | K65: 0 | M65: 0 | N65: =J65*L65 -> 0 | O65: 9.6 | P65: =+J65-N65 -> 0 | Q65: 960 | R65: =+J65*E$7 -> 0
C66: Other Labor | D66: 0.4 | F66: Hour | G66: 12 | I66: 4.8 | J66: =E66*H66 -> 0 | K66: 0 | M66: 0 | N66: =J66*L66 -> 0 | O66: 4.8 | P66: =+J66-N66 -> 0 | Q66: 480 | R66: =+J66*E$7 -> 0
B68: Diesel Fuel
C69: Pickup/General Use Equipment | D69: 1 | F69: Acre | G69: 0 | I69: 0 | J69: =E69*H69 -> 0 | K69: 0 | M69: 0 | N69: =J69*L69 -> 0 | O69: 0 | P69: =+J69-N69 -> 0 | Q69: 0 | R69: =+J69*E$7 -> 0
C70: Tractors/Self-Propelled | D70: 3.66 | F70: Gallon | G70: 2.3 | I70: 8.418 | J70: =E70*H70 -> 0 | K70: 0 | M70: 0 | N70: =J70*L70 -> 0 | O70: 8.418 | P70: =+J70-N70 -> 0 | Q70: 841.8 | R70: =+J70*E$7 -> 0
B72: Gasoline
C73: Pickup/General Use Equipment | D73: 1 | F73: Acre | G73: 0 | I73: 0 | J73: =E73*H73 -> 0 | K73: 0 | M73: 0 | N73: =J73*L73 -> 0 | O73: 0 | P73: =+J73-N73 -> 0 | Q73: 0 | R73: =+J73*E$7 -> 0
C74: Tractors/Self-Propelled | D74: 0 | F74: Gallon | G74: 2.2 | I74: 0 | J74: =E74*H74 -> 0 | K74: 0 | M74: 0 | N74: =J74*L74 -> 0 | O74: 0 | P74: =+J74-N74 -> 0 | Q74: 0 | R74: =+J74*E$7 -> 0
B76: Repairs & Maintenance
C77: Pickup/General Use Equipment | D77: 1 | F77: Acre | G77: 0 | I77: 0 | J77: =E77*H77 -> 0 | K77: 0 | M77: 0 | N77: =J77*L77 -> 0 | O77: 0 | P77: =+J77-N77 -> 0 | Q77: 0 | R77: =+J77*E$7 -> 0
C78: Irrigation Equipment | D78: 1 | F78: Acre | G78: 0 | I78: 0 | J78: 0 | K78: 0 | M78: 0 | N78: 0 | O78: 0 | P78: 0 | Q78: 0 | R78: 0
C79: Tractors/Self-Propelled | D79: 1 | F79: Acre | G79: 8.428795717 | I79: 8.428795717 | J79: 0 | K79: 0 | M79: 0 | N79: 0 | O79: 8.428795717 | P79: 0 | Q79: 842.8795717 | R79: 0
C80: Implements | D80: 1 | F80: Acre | G80: 2.858799603 | I80: 2.858799603 | J80: 0 | K80: 0 | M80: 0 | N80: 0 | O80: 2.858799603 | P80: 0 | Q80: 285.8799603 | R80: 0
I81: 0 | J81: 0 | K81: 0 | M81: 0 | N81: 0 | O81: 0 | P81: 0 | Q81: 0 | R81: 0
I82: 0 | J82: 0 | K82: 0 | M82: 0 | N82: 0 | O82: 0 | P82: 0 | Q82: 0 | R82: 0
B83: Interest on Credit Line | G83: 0.05 | I83: 61.46967847 | J83: =+SUM(J17:J82)/2*H83 -> 0 | M83: 0 | N83: =+SUM(N17:N82)/2*L83 -> 0 | O83: 61.46967847 | P83: =+SUM(P17:P82)/2*L83 -> 0 | Q83: 6146.967847 | R83: =+J83*E$7 -> 0
A84: Total Variable Costs | I84: 2342.68505 | J84: =SUM(J18:J83) -> 0 | M84: 0 | N84: =SUM(N18:N83) -> 0 | O84: 2342.68505 | P84: =SUM(P18:P83) -> 0 | Q84: 234268.505 | R84: =SUM(R18:R83) -> 0
A85: Planned Returns Above Variable Costs: | I85: 717.3149502 | J85: =+J13-J84 -> 0 | M85: 0 | N85: =+N13-N84 -> 0 | O85: 717.3149502 | P85: =+P13-P84 -> 0 | Q85: 71731.49502 | R85: =+R13-R84 -> 0
B86: Breakeven Price to Cover Variable Costs | G86: 130.1491694 | H86: =IF(E10=0,"n/a",(YVarExp-(YTotExp+YTotRet-J10))/E10) -> n/a | I86: Ton
Q87: Enterprise | R87: Enterprise
A88: FIXED COSTS | D88: Quantity | E88: Quantity | F88: Units | G88: $/Unit | H88: $/Unit | I88: Total | J88: Total | K88: Share | L88: Share | M88: Landlord | N88: Landlord | O88: Tenant | P88: Tenant | Q88: Total | R88: Total
B89: Machinery Depreciation
C90: Tractors/Self-Propelled | D90: 1 | F90: Acre | G90: 8.709755574 | I90: 8.709755574 | J90: =E90*H90 -> 0 | K90: 0 | M90: 0 | N90: =J90*L90 -> 0 | O90: 8.709755574 | P90: =+J90-N90 -> 0 | Q90: 870.9755574 | R90: =+J90*E$7 -> 0
C91: Implements | D91: 1 | F91: Acre | G91: 3.055939539 | I91: 3.055939539 | J91: 0 | K91: 0 | M91: 0 | N91: =J91*L91 -> 0 | O91: 3.055939539 | P91: 0 | Q91: 305.5939539 | R91: 0
B92: Equipment Investment
C93: Tractors/Self-Propelled | D93: 67.85180552 | F93: Dollars | G93: 0.07 | I93: 4.749626387 | J93: =E93*H93 -> 0 | K93: 0 | M93: 0 | N93: =J93*L93 -> 0 | O93: 4.749626387 | P93: =+J93-N93 -> 0 | Q93: 474.9626387 | R93: =+J93*E$7 -> 0
C94: Implements | D94: 13.07263025 | F94: Dollars | G94: 0.07 | I94: 0.9150841174 | J94: 0 | K94: 0 | M94: 0 | N94: =J94*L94 -> 0 | O94: 0.9150841174 | P94: 0 | Q94: 91.50841174 | R94: 0
B95: Salaried Labor | D95: 1 | F95: Acre | G95: 0 | I95: 0 | J95: 0 | K95: 0 | M95: 0 | N95: =J95*L95 -> 0 | O95: 0 | P95: =+J95-N95 -> 0 | Q95: 0 | R95: =+J95*E$7 -> 0
B96: Management Fee, Owner/Operator Labor | D96: 1 | F96: Acre | G96: 0 | I96: 0 | J96: 0 | K96: 0 | M96: 0 | N96: 0 | O96: 0 | P96: 0 | Q96: 0 | R96: 0
B97: Allocated Establishment Cost | D97: 1 | F97: Acre | G97: 120.6554496 | I97: 120.6554496 | J97: 0 | K97: 0 | M97: 0 | N97: 0 | O97: 120.6554496 | P97: 0 | Q97: 12065.54496 | R97: 0
B98: Land Cost, Orchard | D98: 1 | F98: Acre | G98: 100 | I98: 100 | J98: 0 | K98: 0 | M98: 0 | N98: 0 | O98: 100 | P98: 0 | Q98: 10000 | R98: 0
B99: Property Taxes | D99: 1 | F99: Acre | G99: 0 | I99: 0 | J99: 0 | K99: 0 | M99: 0 | N99: 0 | O99: 0 | P99: 0 | Q99: 0 | R99: 0
B100: Whole Farm Insurance | D100: 1 | F100: Acre | G100: 0 | I100: 0 | J100: 0 | K100: 0 | M100: 0 | N100: 0 | O100: 0 | P100: 0 | Q100: 0 | R100: 0
D101: 1 | G101: 0 | I101: 0 | J101: 0 | K101: 0 | M101: 0 | N101: 0 | O101: 0 | P101: 0 | Q101: 0 | R101: 0
D102: 1 | G102: 0 | I102: 0 | J102: =E102*H102 -> 0 | K102: 0 | M102: 0 | N102: 0 | O102: 0 | P102: 0 | Q102: 0 | R102: 0
A103: Total Fixed Costs | I103: 238.0858552 | J103: =+SUM(J90:J102) -> 0 | M103: 0 | N103: =+SUM(N90:N102) -> 0 | O103: 238.0858552 | P103: =+SUM(P90:P102) -> 0 | Q103: 23808.58552 | R103: =+SUM(R90:R102) -> 0
A104: Total Specified Costs | I104: 2580.770905 | J104: =+J84+J103 -> 0 | M104: 0 | N104: =+N84+N103 -> 0 | O104: 2580.770905 | P104: =+P84+P103 -> 0 | Q104: 258077.0905 | R104: =+R84+R103 -> 0
A106: Returns Above Specified Costs | I106: 479.229095 | J106: =+J13-J104 -> 0 | M106: 0 | N106: =+N13-N104 -> 0 | O106: 479.229095 | P106: =+P13-P104 -> 0 | Q106: 47922.9095 | R106: =+R13-R104 -> 0
A108: Breakeven Price to Cover Total Costs | G108: 143.3761614 | H108: =IF(E10=0,"n/a",(YTotExp-(YTotExp+YTotRet-J10))/E10) -> n/a | I108: Ton
D110: Example Breakeven Prices
B111: Example | C111: Example | D111: To Cover | G111: To Cover
B112: Yield | C112: Yield | D112: Variable | G112: Total
B113: Percent | C113: Ton | D113: Costs | G113: Costs
B114: 0.75 | C114: 13.5 | D114: 173.5322259 | G114: 191.1682152
B115: 0.9 | C115: 16.2 | D115: 144.6101883 | G115: 159.306846
B116: 1 | C116: 18 | D116: 130.1491694 | G116: 143.3761614
B117: 1.1 | C117: 19.8 | D117: 118.3174268 | G117: 130.3419649
B118: 1.25 | C118: 22.5 | D118: 104.1193355 | G118: 114.7009291
D120: Your Breakeven Prices
B121: Your | C121: Your | E121: To Cover | H121: To Cover
B122: Yield | C122: Yield | E122: Variable | H122: Total
B123: Percent | C123: Ton | E123: Costs | H123: Costs
B124: 0.75 | C124: =E10*YPER1 -> 0 | E124: =IF($E$10=0,0,(YVarExp-(YTotExp+YTotRet-J10))/($E$10*YPER1)) -> 0 | H124: =IF($E$10=0,0,(YTotExp-(YTotExp+YTotRet-J10))/($E$10*YPER1)) -> 0
B125: 0.9 | C125: =E10*YPER2 -> 0 | E125: =IF($E$10=0,0,(YVarExp-(YTotExp+YTotRet-J10))/($E$10*YPER2)) -> 0 | H125: =IF($E$10=0,0,(YTotExp-(YTotExp+YTotRet-J10))/($E$10*YPER2)) -> 0
B126: 1 | C126: =+E10 -> 0 | E126: =IF($E$10=0,0,(YVarExp-(YTotExp+YTotRet-J10))/($E$10*YPER3)) -> 0 | H126: =IF($E$10=0,0,(YTotExp-(YTotExp+YTotRet-J10))/($E$10*YPER3)) -> 0
B127: 1.1 | C127: =E10*YPER4 -> 0 | E127: =IF($E$10=0,0,(YVarExp-(YTotExp+YTotRet-J10))/($E$10*YPER4)) -> 0 | H127: =IF($E$10=0,0,(YTotExp-(YTotExp+YTotRet-J10))/($E$10*YPER4)) -> 0
B128: 1.25 | C128: =E10*YPER5 -> 0 | E128: =IF($E$10=0,0,(YVarExp-(YTotExp+YTotRet-J10))/($E$10*YPER5)) -> 0 | H128: =IF($E$10=0,0,(YTotExp-(YTotExp+YTotRet-J10))/($E$10*YPER5)) -> 0
A130: Developed by Samuel Zapata, Assistant Professor and Extension Economist, Texas A&M AgriLife Extension, 956-968-5581.
A132: Information presented is prepared solely as a general guide and not intended to recognize or predict the costs and returns from any one operation. Brand names are mentioned only as examples and imply no endorsement.

Sheet OrangesValencias
A1: Projections for Planning Purposes Only -- Not to be Used without Updating
A2: 2020 Estimated Costs and Returns per Acre
A3: Oranges, Valencias, Mature Orchard, Flood Irrigated, Rio Grande Valley
A4: Enter your name for this budget in the cell above.
A5: Enter Your Values in the cells highlighed in MAROON.
E6: Your Acres | R6: Your
C7: Crop Acres | D7: 100 | L7: Your | Q7: Enterprise | R7: Enterprise
E8: Your | H8: Your | I8: Cash | J8: Your | K8: Landlord | L8: Landlord | N8: Your | P8: Your | Q8: Total | R8: Total
A9: REVENUE | D9: Quantity | E9: Quantity | F9: Units | G9: $/Unit | H9: $/Unit | I9: Total | J9: Total | K9: Share | L9: Share | M9: Landlord | N9: Landlord | O9: Tenant | P9: Tenant | Q9: (100 acres) | R9: ="(" & E7 & " acres)" -> ( acres)
B10: Oranges (Valencias) | D10: 18 | F10: Ton | G10: 345 | I10: 6210 | J10: =E10*H10 -> 0 | K10: 0 | M10: 0 | N10: =J10*L10 -> 0 | O10: 6210 | P10: =+J10-N10 -> 0 | Q10: 621000 | R10: =+J10*E$7 -> 0
D11: 0 | G11: 0 | I11: 0 | J11: 0 | K11: 0 | M11: 0 | N11: 0 | O11: 0 | P11: =+J11-N11 -> 0 | Q11: 0 | R11: 0
D12: 0 | G12: 0 | I12: 0 | J12: 0 | K12: 0 | M12: 0 | N12: 0 | O12: 0 | P12: 0 | Q12: 0 | R12: 0
A13: Total Revenue | I13: 6210 | J13: =SUM(J10:J12) -> 0 | M13: 0 | N13: =SUM(N10:N12) -> 0 | O13: 6210 | P13: =SUM(P10:P12) -> 0 | Q13: 621000 | R13: =SUM(R10:R12) -> 0
Q14: Enterprise | R14: Enterprise
A15: VARIABLE COSTS | D15: Quantity | E15: Quantity | F15: Units | G15: $/Unit | H15: $/Unit | I15: Total | J15: Total | K15: Share | L15: Share | M15: Landlord | N15: Landlord | O15: Tenant | P15: Tenant | Q15: Total | R15: Total
A16: Production Costs
B17: Fertilizer
C18: Urea (46%) | D18: 2.5 | F18: CTW | G18: 21.8 | I18: 54.5 | J18: =E18*H18 -> 0 | K18: 0 | M18: 0 | N18: =J18*L18 -> 0 | O18: 54.5 | P18: =+J18-N18 -> 0 | Q18: 5450 | R18: =+J18*E$7 -> 0
C19: Foliar N (Urea) | D19: 5 | F19: Pound | G19: 0.61 | I19: 3.05 | J19: 0 | K19: 0 | M19: 0 | N19: 0 | O19: 3.05 | P19: 0 | Q19: 305 | R19: 0
C20: Foliar 3-18-18 | D20: 1 | F20: Gallon | G20: 22 | I20: 22 | J20: 0 | K20: 0 | M20: 0 | N20: 0 | O20: 22 | P20: 0 | Q20: 2200 | R20: 0
C21: Foliar Zn | D21: 2 | F21: Pound | G21: 0.8 | I21: 1.6 | J21: 0 | K21: 0 | M21: 0 | N21: 0 | O21: 1.6 | P21: 0 | Q21: 160 | R21: 0
C22: Foliar 18-8-5 | D22: 2 | F22: Gallon | G22: 15.5 | I22: 31 | J22: 0 | K22: 0 | M22: 0 | N22: 0 | O22: 31 | P22: 0 | Q22: 3100 | R22: 0
B23: Custom
C24: Foliar Application | D24: 7 | F24: Acre | G24: 42 | I24: 294 | J24: 0 | K24: 0 | M24: 0 | N24: 0 | O24: 294 | P24: 0 | Q24: 29400 | R24: 0
C25: Topping and Hedging | D25: 1 | F25: Acre | G25: 120 | I25: 120 | J25: 0 | K25: 0 | M25: 0 | N25: 0 | O25: 120 | P25: 0 | Q25: 12000 | R25: 0
B26: Miscellaneous
C27: Citrus Assessment | D27: 1 | F27: Acre | G27: 45 | I27: 45 | J27: 0 | K27: 0 | M27: 0 | N27: 0 | O27: 45 | P27: 0 | Q27: 4500 | R27: 0
C28: Insurance, Oranges | D28: 1 | F28: Acre | G28: 15 | I28: 15 | J28: 0 | K28: 0 | M28: 0 | N28: 0 | O28: 15 | P28: 0 | Q28: 1500 | R28: 0
B29: Herbicide
C30: Simazine 4L | D30: 1.25 | F30: Gallon | G30: 21.4608 | I30: 26.826 | J30: 0 | K30: 0 | M30: 0 | N30: 0 | O30: 26.826 | P30: 0 | Q30: 2682.6 | R30: 0
C31: Krovar I 80 DF | D31: 3 | F31: Pound | G31: 15.65376 | I31: 46.96128 | J31: 0 | K31: 0 | M31: 0 | N31: 0 | O31: 46.96128 | P31: 0 | Q31: 4696.128 | R31: 0
C32: Roundup/Glyphosate | D32: 3.4 | F32: Gallon | G32: 20 | I32: 68 | J32: 0 | K32: 0 | M32: 0 | N32: 0 | O32: 68 | P32: 0 | Q32: 6800 | R32: 0
B33: Insecticide
C34: Admire Pro | D34: 0.44 | F34: Pint | G34: 27.7368 | I34: 12.204192 | J34: 0 | K34: 0 | M34: 0 | N34: 0 | O34: 12.204192 | P34: 0 | Q34: 1220.4192 | R34: 0
C35: Vendex | D35: 8 | F35: Pound | G35: 17.89 | I35: 143.12 | J35: 0 | K35: 0 | M35: 0 | N35: 0 | O35: 143.12 | P35: 0 | Q35: 14312 | R35: 0
C36: Agri-Mek SC | D36: 0.32 | F36: Gallon | G36: 499.9072 | I36: 159.970304 | J36: 0 | K36: 0 | M36: 0 | N36: 0 | O36: 159.970304 | P36: 0 | Q36: 15997.0304 | R36: 0
C37: Movento | D37: 30 | F37: Ounce | G37: 7.25 | I37: 217.5 | J37: 0 | K37: 0 | M37: 0 | N37: 0 | O37: 217.5 | P37: 0 | Q37: 21750 | R37: 0
C38: Micromite | D38: 18.8 | F38: Ounce | G38: 3.88 | I38: 72.944 | J38: 0 | K38: 0 | M38: 0 | N38: 0 | O38: 72.944 | P38: 0 | Q38: 7294.4 | R38: 0
C39: Actara | D39: 11 | F39: Ounce | G39: 2.35 | I39: 25.85 | J39: 0 | K39: 0 | M39: 0 | N39: 0 | O39: 25.85 | P39: 0 | Q39: 2585 | R39: 0
C40: Sivanto | D40: 10 | F40: Ounce | G40: 2.3 | I40: 23 | J40: 0 | K40: 0 | M40: 0 | N40: 0 | O40: 23 | P40: 0 | Q40: 2300 | R40: 0
C41: Esteem | D41: 10 | F41: Ounce | G41: 13 | I41: 130 | J41: 0 | K41: 0 | M41: 0 | N41: 0 | O41: 130 | P41: 0 | Q41: 13000 | R41: 0
C42: Danitol | D42: 16 | F42: Ounce | G42: 1.58 | I42: 25.28 | J42: 0 | K42: 0 | M42: 0 | N42: 0 | O42: 25.28 | P42: 0 | Q42: 2528 | R42: 0
B43: Other Chemicals
C44: Surfactant - Citrus | D44: 7.98 | F44: Pint | G44: 8 | I44: 63.84 | J44: 0 | K44: 0 | M44: 0 | N44: 0 | O44: 63.84 | P44: 0 | Q44: 6384 | R44: 0
B45: Other Labor
C46: Unallocated Labor | D46: 1 | F46: Hour | G46: 12 | I46: 12 | J46: 0 | K46: 0 | M46: 0 | N46: 0 | O46: 12 | P46: 0 | Q46: 1200 | R46: 0
C47: Costum Soil Fert. Citrus | D47: 6 | F47: Hour | G47: 12 | I47: 72 | J47: 0 | K47: 0 | M47: 0 | N47: 0 | O47: 72 | P47: 0 | Q47: 7200 | R47: 0
B48: Seed
C49: Young Citrus Trees | D49: 4 | F49: Tree | G49: 10 | I49: 40 | J49: 0 | K49: 0 | M49: 0 | N49: 0 | O49: 40 | P49: 0 | Q49: 4000 | R49: 0
C50: Layout and Plant | D50: 4 | F50: Tree | G50: 5 | I50: 20 | J50: 0 | K50: 0 | M50: 0 | N50: 0 | O50: 20 | P50: 0 | Q50: 2000 | R50: 0
C51: Removal Citrus | D51: 4 | F51: Tree | G51: 25 | I51: 100 | J51: 0 | K51: 0 | M51: 0 | N51: 0 | O51: 100 | P51: 0 | Q51: 10000 | R51: 0
C52: Treatment Removed citrus | D52: 4 | F52: Tree | G52: 5 | I52: 20 | J52: 0 | K52: 0 | M52: 0 | N52: 0 | O52: 20 | P52: 0 | Q52: 2000 | R52: 0
C53: Tree Wrap/Unwrap | D53: 3 | F53: Tree | G53: 2 | I53: 6 | J53: 0 | K53: 0 | M53: 0 | N53: 0 | O53: 6 | P53: 0 | Q53: 600 | R53: 0
B54: Fungicides
C55: Quadris Top | D55: 10 | F55: Ounce | G55: 1.5 | I55: 15 | J55: 0 | K55: 0 | M55: 0 | N55: 0 | O55: 15 | P55: 0 | Q55: 1500 | R55: 0
C56: GEM | D56: 3.8 | F56: Ounce | G56: 4.88 | I56: 18.544 | J56: 0 | K56: 0 | M56: 0 | N56: 0 | O56: 18.544 | P56: 0 | Q56: 1854.4 | R56: 0
C57: Headline | D57: 24 | F57: Ounce | G57: 2.66 | I57: 63.84 | J57: 0 | K57: 0 | M57: 0 | N57: 0 | O57: 63.84 | P57: 0 | Q57: 6384 | R57: 0
D58: 16 | G58: 4.88 | I58: 78.08 | J58: 0 | K58: 0 | M58: 0 | N58: 0 | O58: 78.08 | P58: 0 | Q58: 7808 | R58: 0
D59: 0 | G59: 0 | I59: 0 | J59: 0 | K59: 0 | M59: 0 | N59: 0 | O59: 0 | P59: 0 | Q59: 0 | R59: 0
D60: 0 | G60: 0 | I60: 0 | J60: =E60*H60 -> 0 | K60: 0 | M60: 0 | N60: =J60*L60 -> 0 | O60: 0 | P60: =+J60-N60 -> 0 | Q60: 0 | R60: =+J60*E$7 -> 0
B61: Irrigation
C62: Water Cost | D62: 1.6 | F62: Acre/Foot | G62: 20 | I62: 32 | J62: =E62*H62 -> 0 | K62: 0 | M62: 0 | N62: =J62*L62 -> 0 | O62: 32 | P62: =+J62-N62 -> 0 | Q62: 3200 | R62: =+J62*E$7 -> 0
C63: Irrigation Labor | D63: 4 | F63: Hour | G63: 12 | I63: 48 | J63: 0 | K63: 0 | M63: 0 | N63: 0 | O63: 48 | P63: 0 | Q63: 4800 | R63: 0
B64: Machinery Labor
C65: Tractors/Self-Propelled | D65: 0.8 | F65: Hour | G65: 12 | I65: 9.6 | J65: =E65*H65 -> 0 | K65: 0 | M65: 0 | N65: =J65*L65 -> 0 | O65: 9.6 | P65: =+J65-N65 -> 0 | Q65: 960 | R65: =+J65*E$7 -> 0
C66: Other Labor | D66: 0.4 | F66: Hour | G66: 12 | I66: 4.8 | J66: =E66*H66 -> 0 | K66: 0 | M66: 0 | N66: =J66*L66 -> 0 | O66: 4.8 | P66: =+J66-N66 -> 0 | Q66: 480 | R66: =+J66*E$7 -> 0
B68: Diesel Fuel
C69: Pickup/General Use Equipment | D69: 1 | F69: Acre | G69: 0 | I69: 0 | J69: =E69*H69 -> 0 | K69: 0 | M69: 0 | N69: =J69*L69 -> 0 | O69: 0 | P69: =+J69-N69 -> 0 | Q69: 0 | R69: =+J69*E$7 -> 0
C70: Tractors/Self-Propelled | D70: 3.66 | F70: Gallon | G70: 2.3 | I70: 8.418 | J70: =E70*H70 -> 0 | K70: 0 | M70: 0 | N70: =J70*L70 -> 0 | O70: 8.418 | P70: =+J70-N70 -> 0 | Q70: 841.8 | R70: =+J70*E$7 -> 0
B72: Gasoline
C73: Pickup/General Use Equipment | D73: 1 | F73: Acre | G73: 0 | I73: 0 | J73: =E73*H73 -> 0 | K73: 0 | M73: 0 | N73: =J73*L73 -> 0 | O73: 0 | P73: =+J73-N73 -> 0 | Q73: 0 | R73: =+J73*E$7 -> 0
C74: Tractors/Self-Propelled | D74: 0 | F74: Gallon | G74: 2.2 | I74: 0 | J74: =E74*H74 -> 0 | K74: 0 | M74: 0 | N74: =J74*L74 -> 0 | O74: 0 | P74: =+J74-N74 -> 0 | Q74: 0 | R74: =+J74*E$7 -> 0
B76: Repairs & Maintenance
C77: Pickup/General Use Equipment | D77: 1 | F77: Acre | G77: 0 | I77: 0 | J77: =E77*H77 -> 0 | K77: 0 | M77: 0 | N77: =J77*L77 -> 0 | O77: 0 | P77: =+J77-N77 -> 0 | Q77: 0 | R77: =+J77*E$7 -> 0
C78: Irrigation Equipment | D78: 1 | F78: Acre | G78: 0 | I78: 0 | J78: 0 | K78: 0 | M78: 0 | N78: 0 | O78: 0 | P78: 0 | Q78: 0 | R78: 0
C79: Tractors/Self-Propelled | D79: 1 | F79: Acre | G79: 8.428795717 | I79: 8.428795717 | J79: 0 | K79: 0 | M79: 0 | N79: 0 | O79: 8.428795717 | P79: 0 | Q79: 842.8795717 | R79: 0
C80: Implements | D80: 1 | F80: Acre | G80: 2.858799603 | I80: 2.858799603 | J80: 0 | K80: 0 | M80: 0 | N80: 0 | O80: 2.858799603 | P80: 0 | Q80: 285.8799603 | R80: 0
I81: 0 | J81: 0 | K81: 0 | M81: 0 | N81: 0 | O81: 0 | P81: 0 | Q81: 0 | R81: 0
I82: 0 | J82: 0 | K82: 0 | M82: 0 | N82: 0 | O82: 0 | P82: 0 | Q82: 0 | R82: 0
B83: Interest on Credit Line | G83: 0.05 | I83: 57.50913053 | J83: =+SUM(J17:J82)/2*H83 -> 0 | M83: 0 | N83: =+SUM(N17:N82)/2*L83 -> 0 | O83: 57.50913053 | P83: =+SUM(P17:P82)/2*L83 -> 0 | Q83: 5750.913053 | R83: =+J83*E$7 -> 0
A84: Total Variable Costs | I84: 2218.724502 | J84: =SUM(J18:J83) -> 0 | M84: 0 | N84: =SUM(N18:N83) -> 0 | O84: 2218.724502 | P84: =SUM(P18:P83) -> 0 | Q84: 221872.4502 | R84: =SUM(R18:R83) -> 0
A85: Planned Returns Above Variable Costs: | I85: 3991.275498 | J85: =+J13-J84 -> 0 | M85: 0 | N85: =+N13-N84 -> 0 | O85: 3991.275498 | P85: =+P13-P84 -> 0 | Q85: 399127.5498 | R85: =+R13-R84 -> 0
B86: Breakeven Price to Cover Variable Costs | G86: 123.2624723 | H86: =IF(E10=0,"n/a",(YVarExp-(YTotExp+YTotRet-J10))/E10) -> n/a | I86: Ton
Q87: Enterprise | R87: Enterprise
A88: FIXED COSTS | D88: Quantity | E88: Quantity | F88: Units | G88: $/Unit | H88: $/Unit | I88: Total | J88: Total | K88: Share | L88: Share | M88: Landlord | N88: Landlord | O88: Tenant | P88: Tenant | Q88: Total | R88: Total
B89: Machinery Depreciation
C90: Tractors/Self-Propelled | D90: 1 | F90: Acre | G90: 8.709755574 | I90: 8.709755574 | J90: =E90*H90 -> 0 | K90: 0 | M90: 0 | N90: =J90*L90 -> 0 | O90: 8.709755574 | P90: =+J90-N90 -> 0 | Q90: 870.9755574 | R90: =+J90*E$7 -> 0
C91: Implements | D91: 1 | F91: Acre | G91: 3.055939539 | I91: 3.055939539 | J91: 0 | K91: 0 | M91: 0 | N91: =J91*L91 -> 0 | O91: 3.055939539 | P91: 0 | Q91: 305.5939539 | R91: 0
B92: Equipment Investment
C93: Tractors/Self-Propelled | D93: 67.85180552 | F93: Dollars | G93: 0.07 | I93: 4.749626387 | J93: =E93*H93 -> 0 | K93: 0 | M93: 0 | N93: =J93*L93 -> 0 | O93: 4.749626387 | P93: =+J93-N93 -> 0 | Q93: 474.9626387 | R93: =+J93*E$7 -> 0
C94: Implements | D94: 13.07263025 | F94: Dollars | G94: 0.07 | I94: 0.9150841174 | J94: 0 | K94: 0 | M94: 0 | N94: =J94*L94 -> 0 | O94: 0.9150841174 | P94: 0 | Q94: 91.50841174 | R94: 0
B95: Salaried Labor | D95: 1 | F95: Acre | G95: 0 | I95: 0 | J95: 0 | K95: 0 | M95: 0 | N95: =J95*L95 -> 0 | O95: 0 | P95: =+J95-N95 -> 0 | Q95: 0 | R95: =+J95*E$7 -> 0
B96: Management Fee, Owner/Operator Labor | D96: 1 | F96: Acre | G96: 0 | I96: 0 | J96: 0 | K96: 0 | M96: 0 | N96: 0 | O96: 0 | P96: 0 | Q96: 0 | R96: 0
B97: Allocated Establishment Cost | D97: 1 | F97: Acre | G97: 120.6554496 | I97: 120.6554496 | J97: 0 | K97: 0 | M97: 0 | N97: 0 | O97: 120.6554496 | P97: 0 | Q97: 12065.54496 | R97: 0
B98: Land Cost, Orchard | D98: 1 | F98: Acre | G98: 100 | I98: 100 | J98: 0 | K98: 0 | M98: 0 | N98: 0 | O98: 100 | P98: 0 | Q98: 10000 | R98: 0
B99: Property Taxes | D99: 1 | F99: Acre | G99: 0 | I99: 0 | J99: 0 | K99: 0 | M99: 0 | N99: 0 | O99: 0 | P99: 0 | Q99: 0 | R99: 0
B100: Whole Farm Insurance | D100: 1 | F100: Acre | G100: 0 | I100: 0 | J100: 0 | K100: 0 | M100: 0 | N100: 0 | O100: 0 | P100: 0 | Q100: 0 | R100: 0
D101: 1 | G101: 0 | I101: 0 | J101: 0 | K101: 0 | M101: 0 | N101: 0 | O101: 0 | P101: 0 | Q101: 0 | R101: 0
D102: 1 | G102: 0 | I102: 0 | J102: =E102*H102 -> 0 | K102: 0 | M102: 0 | N102: 0 | O102: 0 | P102: 0 | Q102: 0 | R102: 0
A103: Total Fixed Costs | I103: 238.0858552 | J103: =+SUM(J90:J102) -> 0 | M103: 0 | N103: =+SUM(N90:N102) -> 0 | O103: 238.0858552 | P103: =+SUM(P90:P102) -> 0 | Q103: 23808.58552 | R103: =+SUM(R90:R102) -> 0
A104: Total Specified Costs | I104: 2456.810357 | J104: =+J84+J103 -> 0 | M104: 0 | N104: =+N84+N103 -> 0 | O104: 2456.810357 | P104: =+P84+P103 -> 0 | Q104: 245681.0357 | R104: =+R84+R103 -> 0
A106: Returns Above Specified Costs | I106: 3753.189643 | J106: =+J13-J104 -> 0 | M106: 0 | N106: =+N13-N104 -> 0 | O106: 3753.189643 | P106: =+P13-P104 -> 0 | Q106: 375318.9643 | R106: =+R13-R104 -> 0
A108: Breakeven Price to Cover Total Costs | G108: 136.4894643 | H108: =IF(E10=0,"n/a",(YTotExp-(YTotExp+YTotRet-J10))/E10) -> n/a | I108: Ton
D110: Example Breakeven Prices
B111: Example | C111: Example | D111: To Cover | G111: To Cover
B112: Yield | C112: Yield | D112: Variable | G112: Total
B113: Percent | C113: Ton | D113: Costs | G113: Costs
B114: 0.75 | C114: 13.5 | D114: 164.3499631 | G114: 181.9859524
B115: 0.9 | C115: 16.2 | D115: 136.9583026 | G115: 151.6549603
B116: 1 | C116: 18 | D116: 123.2624723 | G116: 136.4894643
B117: 1.1 | C117: 19.8 | D117: 112.056793 | G117: 124.0813312
B118: 1.25 | C118: 22.5 | D118: 98.60997786 | G118: 109.1915714
D120: Your Breakeven Prices
B121: Your | C121: Your | E121: To Cover | H121: To Cover
B122: Yield | C122: Yield | E122: Variable | H122: Total
B123: Percent | C123: Ton | E123: Costs | H123: Costs
B124: 0.75 | C124: =E10*YPER1 -> 0 | E124: =IF($E$10=0,0,(YVarExp-(YTotExp+YTotRet-J10))/($E$10*YPER1)) -> 0 | H124: =IF($E$10=0,0,(YTotExp-(YTotExp+YTotRet-J10))/($E$10*YPER1)) -> 0
B125: 0.9 | C125: =E10*YPER2 -> 0 | E125: =IF($E$10=0,0,(YVarExp-(YTotExp+YTotRet-J10))/($E$10*YPER2)) -> 0 | H125: =IF($E$10=0,0,(YTotExp-(YTotExp+YTotRet-J10))/($E$10*YPER2)) -> 0
B126: 1 | C126: =+E10 -> 0 | E126: =IF($E$10=0,0,(YVarExp-(YTotExp+YTotRet-J10))/($E$10*YPER3)) -> 0 | H126: =IF($E$10=0,0,(YTotExp-(YTotExp+YTotRet-J10))/($E$10*YPER3)) -> 0
B127: 1.1 | C127: =E10*YPER4 -> 0 | E127: =IF($E$10=0,0,(YVarExp-(YTotExp+YTotRet-J10))/($E$10*YPER4)) -> 0 | H127: =IF($E$10=0,0,(YTotExp-(YTotExp+YTotRet-J10))/($E$10*YPER4)) -> 0
B128: 1.25 | C128: =E10*YPER5 -> 0 | E128: =IF($E$10=0,0,(YVarExp-(YTotExp+YTotRet-J10))/($E$10*YPER5)) -> 0 | H128: =IF($E$10=0,0,(YTotExp-(YTotExp+YTotRet-J10))/($E$10*YPER5)) -> 0
A130: Developed by Samuel Zapata, Assistant Professor and Extension Economist, Texas A&M AgriLife Extension, 956-968-5581.
A132: Information presented is prepared solely as a general guide and not intended to recognize or predict the costs and returns from any one operation. Brand names are mentioned only as examples and imply no endorsement.

Sheet CornConventionalTill
A1: Projections for Planning Purposes Only -- Not to be Used without Updating
A2: 2020 Estimated Costs and Returns per Acre
A3: Corn, Conventional Tillage, Furrow Irrigated, Rio Grande Valley
A4: Enter your name for this budget in the cell above.
A5: Enter Your Values in the cells highlighed in MAROON.
E6: Your Acres | R6: Your
C7: Crop Acres | D7: 100 | L7: Your | Q7: Enterprise | R7: Enterprise
E8: Your | H8: Your | I8: Cash | J8: Your | K8: Landlord | L8: Landlord | N8: Your | P8: Your | Q8: Total | R8: Total
A9: REVENUE | D9: Quantity | E9: Quantity | F9: Units | G9: $/Unit | H9: $/Unit | I9: Total | J9: Total | K9: Share | L9: Share | M9: Landlord | N9: Landlord | O9: Tenant | P9: Tenant | Q9: (100 acres) | R9: ="(" & E7 & " acres)" -> ( acres)
B10: Corn | D10: 140 | F10: Bushel | G10: 3.65 | I10: 511 | J10: =E10*H10 -> 0 | K10: 0 | M10: 0 | N10: =J10*L10 -> 0 | O10: 511 | P10: =+J10-N10 -> 0 | Q10: 51100 | R10: =+J10*E$7 -> 0
D11: 0 | G11: 0 | I11: 0 | J11: 0 | K11: 0 | M11: 0 | N11: 0 | O11: 0 | P11: 0 | Q11: 0 | R11: 0
D12: 0 | G12: 0 | I12: 0 | J12: 0 | K12: 0 | M12: 0 | N12: 0 | O12: 0 | P12: 0 | Q12: 0 | R12: 0
A13: Total Revenue | I13: 511 | J13: =SUM(J10:J12) -> 0 | M13: 0 | N13: =SUM(N10:N12) -> 0 | O13: 511 | P13: =SUM(P10:P12) -> 0 | Q13: 51100 | R13: =SUM(R10:R12) -> 0
Q14: Enterprise | R14: Enterprise
A15: VARIABLE COSTS | D15: Quantity | E15: Quantity | F15: Units | G15: $/Unit | H15: $/Unit | I15: Total | J15: Total | K15: Share | L15: Share | M15: Landlord | N15: Landlord | O15: Tenant | P15: Tenant | Q15: Total | R15: Total
A16: Production Costs
B17: Custom
C18: Custom Harvest and Hauling Corn | D18: 140 | F18: Bushel | G18: 0.49 | I18: 68.6 | J18: =E18*H18 -> 0 | K18: 0 | M18: 0 | N18: =J18*L18 -> 0 | O18: 68.6 | P18: =+J18-N18 -> 0 | Q18: 6860 | R18: =+J18*E$7 -> 0
B19: Fertilizer
C20: UAN (32% N) | D20: 3.61 | F20: CWT | G20: 15.25 | I20: 55.0525 | J20: 0 | K20: 0 | M20: 0 | N20: 0 | O20: 55.0525 | P20: 0 | Q20: 5505.25 | R20: 0
B21: Herbicide
C22: Prowl 3.3 EC | D22: 3.6 | F22: Pint | G22: 5.92276 | I22: 21.321936 | J22: 0 | K22: 0 | M22: 0 | N22: 0 | O22: 21.321936 | P22: 0 | Q22: 2132.1936 | R22: 0
C23: Glyphosate | D23: 1.25 | F23: Pint | G23: 1.5625 | I23: 1.953125 | J23: 0 | K23: 0 | M23: 0 | N23: 0 | O23: 1.953125 | P23: 0 | Q23: 195.3125 | R23: 0
B24: Seed
C25: Corn Seed | D25: 30 | F25: Thousand | G25: 3 | I25: 90 | J25: 0 | K25: 0 | M25: 0 | N25: 0 | O25: 90 | P25: 0 | Q25: 9000 | R25: 0
B26: Miscellaneous
C27: Insurance, Corn | D27: 1 | F27: Acre | G27: 18 | I27: 18 | J27: 0 | K27: 0 | M27: 0 | N27: 0 | O27: 18 | P27: 0 | Q27: 1800 | R27: 0
B28: Other Labor
C29: Unallocated Labor | D29: 0.4736 | F29: Hour | G29: 12 | I29: 5.6832 | J29: 0 | K29: 0 | M29: 0 | N29: 0 | O29: 5.6832 | P29: 0 | Q29: 568.32 | R29: 0
D30: 0 | G30: 0 | I30: 0 | J30: 0 | K30: 0 | M30: 0 | N30: 0 | O30: 0 | P30: 0 | Q30: 0 | R30: 0
D31: 0 | G31: 0 | I31: 0 | J31: 0 | K31: 0 | M31: 0 | N31: 0 | O31: 0 | P31: 0 | Q31: 0 | R31: 0
D32: 0 | G32: 0 | I32: 0 | J32: =E32*H32 -> 0 | K32: 0 | M32: 0 | N32: =J32*L32 -> 0 | O32: 0 | P32: =+J32-N32 -> 0 | Q32: 0 | R32: =+J32*E$7 -> 0
B33: Irrigation
C34: Water Cost | D34: 1.2 | F34: Acre/Foot | G34: 20 | I34: 24 | J34: =E34*H34 -> 0 | K34: 0 | M34: 0 | N34: =J34*L34 -> 0 | O34: 24 | P34: =+J34-N34 -> 0 | Q34: 2400 | R34: =+J34*E$7 -> 0
C35: Irrigation Labor | D35: 3.3 | F35: Hour | G35: 12 | I35: 39.6 | J35: 0 | K35: 0 | M35: 0 | N35: 0 | O35: 39.6 | P35: 0 | Q35: 3960 | R35: 0
B36: Machinery Labor
C37: Tractors/Self-Propelled | D37: 1.34 | F37: Hour | G37: 12 | I37: 16.08 | J37: =E37*H37 -> 0 | K37: 0 | M37: 0 | N37: =J37*L37 -> 0 | O37: 16.08 | P37: =+J37-N37 -> 0 | Q37: 1608 | R37: =+J37*E$7 -> 0
C38: Other Labor | D38: 0 | F38: Hour | G38: 12 | I38: 0 | J38: =E38*H38 -> 0 | K38: 0 | M38: 0 | N38: =J38*L38 -> 0 | O38: 0 | P38: =+J38-N38 -> 0 | Q38: 0 | R38: =+J38*E$7 -> 0
B40: Diesel Fuel
C41: Pickup/General Use Equipment | D41: 1 | F41: Acre | G41: 0 | I41: 0 | J41: =E41*H41 -> 0 | K41: 0 | M41: 0 | N41: =J41*L41 -> 0 | O41: 0 | P41: =+J41-N41 -> 0 | Q41: 0 | R41: =+J41*E$7 -> 0
C42: Tractors/Self-Propelled | D42: 8.11 | F42: Gallon | G42: 2.3 | I42: 18.653 | J42: =E42*H42 -> 0 | K42: 0 | M42: 0 | N42: =J42*L42 -> 0 | O42: 18.653 | P42: =+J42-N42 -> 0 | Q42: 1865.3 | R42: =+J42*E$7 -> 0
B44: Gasoline
C45: Pickup/General Use Equipment | D45: 1 | F45: Acre | G45: 0 | I45: 0 | J45: =E45*H45 -> 0 | K45: 0 | M45: 0 | N45: =J45*L45 -> 0 | O45: 0 | P45: =+J45-N45 -> 0 | Q45: 0 | R45: =+J45*E$7 -> 0
C46: Tractors/Self-Propelled | D46: 0 | F46: Gallon | G46: 2.2 | I46: 0 | J46: =E46*H46 -> 0 | K46: 0 | M46: 0 | N46: =J46*L46 -> 0 | O46: 0 | P46: =+J46-N46 -> 0 | Q46: 0 | R46: =+J46*E$7 -> 0
B48: Repairs & Maintenance
C49: Pickup/General Use Equipment | D49: 1 | F49: Acre | G49: 0 | I49: 0 | J49: =E49*H49 -> 0 | K49: 0 | M49: 0 | N49: =J49*L49 -> 0 | O49: 0 | P49: =+J49-N49 -> 0 | Q49: 0 | R49: =+J49*E$7 -> 0
C50: Irrigation Equipment | D50: 1 | F50: Acre | G50: 0 | I50: 0 | J50: 0 | K50: 0 | M50: 0 | N50: 0 | O50: 0 | P50: 0 | Q50: 0 | R50: 0
C51: Tractors/Self-Propelled | D51: 1 | F51: Acre | G51: 18.0248702 | I51: 18.0248702 | J51: 0 | K51: 0 | M51: 0 | N51: 0 | O51: 18.0248702 | P51: 0 | Q51: 1802.48702 | R51: 0
C52: Implements | D52: 1 | F52: Acre | G52: 17.06191601 | I52: 17.06191601 | J52: 0 | K52: 0 | M52: 0 | N52: 0 | O52: 17.06191601 | P52: 0 | Q52: 1706.191601 | R52: 0
I53: 0 | J53: 0 | K53: 0 | M53: 0 | N53: 0 | O53: 0 | P53: 0 | Q53: 0 | R53: =+J53*E$7 -> 0
I54: 0 | J54: 0 | K54: 0 | M54: 0 | N54: 0 | O54: 0 | P54: 0 | Q54: 0 | R54: 0
B55: Interest on Credit Line | G55: 0.05 | I55: 6.820539669 | J55: =+SUM(J17:J54)/2*H55 -> 0 | M55: 0 | N55: =+SUM(N17:N54)/2*L55 -> 0 | O55: 6.820539669 | P55: =+SUM(P17:P54)/2*L55 -> 0 | Q55: 682.0539669 | R55: =+J55*E$7 -> 0
A56: Total Variable Costs | I56: 400.8510869 | J56: =SUM(J18:J55) -> 0 | M56: 0 | N56: =SUM(N18:N55) -> 0 | O56: 400.8510869 | P56: =SUM(P18:P55) -> 0 | Q56: 40085.10869 | R56: =SUM(R18:R55) -> 0
A57: Planned Returns Above Variable Costs: | I57: 110.1489131 | J57: =+J13-J56 -> 0 | M57: 0 | N57: =+N13-N56 -> 0 | O57: 110.1489131 | P57: =+P13-P56 -> 0 | Q57: 11014.89131 | R57: =+R13-R56 -> 0
B58: Breakeven Price to Cover Variable Costs | G58: 2.863222049 | H58: =IF(E10=0,"n/a",(YVarExp-(YTotExp+YTotRet-J10))/E10) -> n/a | I58: Bushel
Q59: Enterprise | R59: Enterprise
A60: FIXED COSTS | D60: Quantity | E60: Quantity | F60: Units | G60: $/Unit | H60: $/Unit | J60: Total | K60: Share | L60: Share | M60: Landlord | N60: Landlord | O60: Tenant | P60: Tenant | Q60: Total | R60: Total
B61: Machinery Depreciation
C62: Tractors/Self-Propelled | D62: 1 | F62: Acre | G62: 18.62569921 | I62: 18.62569921 | J62: =E62*H62 -> 0 | K62: 0 | M62: 0 | N62: =J62*L62 -> 0 | O62: 18.62569921 | P62: =+J62-N62 -> 0 | Q62: 1862.569921 | R62: =+J62*E$7 -> 0
C63: Implements | D63: 1 | F63: Acre | G63: 19.93366139 | I63: 19.93366139 | J63: 0 | K63: 0 | M63: 0 | N63: =J63*L63 -> 0 | O63: 19.93366139 | P63: 0 | Q63: 1993.366139 | R63: 0
B64: Equipment Investment
C65: Tractors/Self-Propelled | D65: 145.1002051 | F65: Dollars | G65: 0.07 | I65: 10.15701436 | J65: =E65*H65 -> 0 | K65: 0 | M65: 0 | N65: =J65*L65 -> 0 | O65: 10.15701436 | P65: =+J65-N65 -> 0 | Q65: 1015.701436 | R65: =+J65*E$7 -> 0
C66: Implements | D66: 92.16315158 | F66: Dollars | G66: 0.07 | I66: 6.451420611 | J66: 0 | K66: 0 | M66: 0 | N66: =J66*L66 -> 0 | O66: 6.451420611 | P66: 0 | Q66: 645.1420611 | R66: 0
B67: Salaried Labor | D67: 1 | F67: Acre | G67: 0 | I67: 0 | J67: 0 | K67: 0 | M67: 0 | N67: =J67*L67 -> 0 | O67: 0 | P67: =+J67-N67 -> 0 | Q67: 0 | R67: =+J67*E$7 -> 0
B68: Management Fee, Owner/Operator Labor | D68: 1 | F68: Acre | G68: 0 | I68: 0 | J68: 0 | K68: 0 | M68: 0 | N68: 0 | O68: 0 | P68: 0 | Q68: 0 | R68: 0
B69: Allocated Establishment Cost | D69: 1 | F69: Acre | G69: 0 | I69: 0 | J69: 0 | K69: 0 | M69: 0 | N69: 0 | O69: 0 | P69: 0 | Q69: 0 | R69: 0
B70: Cash Rent, Irrigated | D70: 1 | F70: Acre | G70: 85 | I70: 85 | J70: 0 | K70: 0 | M70: 0 | N70: 0 | O70: 85 | P70: 0 | Q70: 8500 | R70: 0
B71: Property Taxes | D71: 1 | F71: Acre | G71: 0 | I71: 0 | J71: =E71*H71 -> 0 | K71: 0 | M71: 0 | N71: 0 | O71: 0 | P71: 0 | Q71: 0 | R71: =+J71*E$7 -> 0
B72: Whole Farm Insurance | D72: 1 | F72: Acre | G72: 0 | I72: 0 | J72: 0 | K72: 0 | M72: 0 | N72: 0 | O72: 0 | P72: 0 | Q72: 0 | R72: 0
D73: 1 | G73: 0 | I73: 0 | J73: 0 | K73: 0 | M73: 0 | N73: 0 | O73: 0 | P73: 0 | Q73: 0 | R73: 0
D74: 1 | G74: 0 | I74: 0 | J74: 0 | K74: 0 | M74: 0 | N74: 0 | O74: 0 | P74: 0 | Q74: 0 | R74: 0
A75: Total Fixed Costs | I75: 140.1677956 | J75: =+SUM(J62:J74) -> 0 | M75: 0 | N75: =+SUM(N62:N74) -> 0 | O75: 140.1677956 | P75: =+SUM(P62:P74) -> 0 | Q75: 14016.77956 | R75: =+SUM(R62:R74) -> 0
A76: Total Specified Costs | I76: 541.0188824 | J76: =+J56+J75 -> 0 | M76: 0 | N76: =+N56+N75 -> 0 | O76: 541.0188824 | P76: =+P56+P75 -> 0 | Q76: 54101.88824 | R76: =+R56+R75 -> 0
A78: Returns Above Specified Costs | I78: -30.01888244 | J78: =+J13-J76 -> 0 | M78: 0 | N78: =+N13-N76 -> 0 | O78: -30.01888244 | P78: =+P13-P76 -> 0 | Q78: -3001.888244 | R78: =+R13-R76 -> 0
A80: Breakeven Price to Cover Total Costs | G80: 3.864420589 | H80: =IF(E10=0,"n/a",(YTotExp-(YTotExp+YTotRet-J10))/E10) -> n/a | I80: Bushel
D82: Example Breakeven Prices
B83: Example | C83: Example | D83: To Cover | G83: To Cover
B84: Yield | C84: Yield | D84: Variable | G84: Total
B85: Percent | C85: Bushel | D85: Costs | G85: Costs
B86: 0.75 | C86: 105 | D86: 3.817629399 | G86: 5.152560785
B87: 0.9 | C87: 126 | D87: 3.181357832 | G87: 4.293800654
B88: 1 | C88: 140 | D88: 2.863222049 | G88: 3.864420589
B89: 1.1 | C89: 154 | D89: 2.602929136 | G89: 3.513109626
B90: 1.25 | C90: 175 | D90: 2.290577639 | G90: 3.091536471
D92: Your Breakeven Prices
B93: Your | C93: Your | E93: To Cover | H93: To Cover
B94: Yield | C94: Yield | E94: Variable | H94: Total
B95: Percent | C95: Bushel | E95: Costs | H95: Costs
B96: 0.75 | C96: =E10*YPER1 -> 0 | E96: =IF($E$10=0,0,(YVarExp-(YTotExp+YTotRet-J10))/($E$10*YPER1)) -> 0 | H96: =IF($E$10=0,0,(YTotExp-(YTotExp+YTotRet-J10))/($E$10*YPER1)) -> 0
B97: 0.9 | C97: =E10*YPER2 -> 0 | E97: =IF($E$10=0,0,(YVarExp-(YTotExp+YTotRet-J10))/($E$10*YPER2)) -> 0 | H97: =IF($E$10=0,0,(YTotExp-(YTotExp+YTotRet-J10))/($E$10*YPER2)) -> 0
B98: 1 | C98: =+E10 -> 0 | E98: =IF($E$10=0,0,(YVarExp-(YTotExp+YTotRet-J10))/($E$10*YPER3)) -> 0 | H98: =IF($E$10=0,0,(YTotExp-(YTotExp+YTotRet-J10))/($E$10*YPER3)) -> 0
B99: 1.1 | C99: =E10*YPER4 -> 0 | E99: =IF($E$10=0,0,(YVarExp-(YTotExp+YTotRet-J10))/($E$10*YPER4)) -> 0 | H99: =IF($E$10=0,0,(YTotExp-(YTotExp+YTotRet-J10))/($E$10*YPER4)) -> 0
B100: 1.25 | C100: =E10*YPER5 -> 0 | E100: =IF($E$10=0,0,(YVarExp-(YTotExp+YTotRet-J10))/($E$10*YPER5)) -> 0 | H100: =IF($E$10=0,0,(YTotExp-(YTotExp+YTotRet-J10))/($E$10*YPER5)) -> 0
A102: Developed by Samuel Zapata, Assistant Professor and Extension Economist, Texas A&M AgriLife Extension, 956-968-5581.
A104: Information presented is prepared solely as a general guide and not intended to recognize or predict the costs and returns from any one operation. Brand names are mentioned only as examples and imply no endorsement.

Sheet CornReducedTill
A1: Projections for Planning Purposes Only -- Not to be Used without Updating
A2: 2020 Estimated Costs and Returns per Acre
A3: Corn, Reduced Tillage, Furrow Irrigated, Rio Grande Valley
A4: Enter your name for this budget in the cell above.
A5: Enter Your Values in the cells highlighed in MAROON.
E6: Your Acres | R6: Your
C7: Crop Acres | D7: 100 | L7: Your | Q7: Enterprise | R7: Enterprise
E8: Your | H8: Your | I8: Cash | J8: Your | K8: Landlord | L8: Landlord | N8: Your | P8: Your | Q8: Total | R8: Total
A9: REVENUE | D9: Quantity | E9: Quantity | F9: Units | G9: $/Unit | H9: $/Unit | I9: Total | J9: Total | K9: Share | L9: Share | M9: Landlord | N9: Landlord | O9: Tenant | P9: Tenant | Q9: (100 acres) | R9: ="(" & E7 & " acres)" -> ( acres)
B10: Corn | D10: 140 | F10: Bushel | G10: 3.65 | I10: 511 | J10: =E10*H10 -> 0 | K10: 0 | M10: 0 | N10: =J10*L10 -> 0 | O10: 511 | P10: =+J10-N10 -> 0 | Q10: 51100 | R10: =+J10*E$7 -> 0
D11: 0 | G11: 0 | I11: 0 | J11: 0 | K11: 0 | M11: 0 | N11: 0 | O11: 0 | P11: =+J11-N11 -> 0 | Q11: 0 | R11: 0
D12: 0 | G12: 0 | I12: 0 | J12: 0 | K12: 0 | M12: 0 | N12: 0 | O12: 0 | P12: 0 | Q12: 0 | R12: 0
A13: Total Revenue | I13: 511 | J13: =SUM(J10:J12) -> 0 | M13: 0 | N13: =SUM(N10:N12) -> 0 | O13: 511 | P13: =SUM(P10:P12) -> 0 | Q13: 51100 | R13: =SUM(R10:R12) -> 0
Q14: Enterprise | R14: Enterprise
A15: VARIABLE COSTS | D15: Quantity | E15: Quantity | F15: Units | G15: $/Unit | H15: $/Unit | I15: Total | J15: Total | K15: Share | L15: Share | M15: Landlord | N15: Landlord | O15: Tenant | P15: Tenant | Q15: Total | R15: Total
A16: Production Costs
B17: Custom
C18: Custom Harvest and Hauling Corn | D18: 140 | F18: Bushel | G18: 0.49 | I18: 68.6 | J18: =E18*H18 -> 0 | K18: 0 | M18: 0 | N18: =J18*L18 -> 0 | O18: 68.6 | P18: =+J18-N18 -> 0 | Q18: 6860 | R18: =+J18*E$7 -> 0
B19: Fertilizer
C20: UAN (32% N) | D20: 3.61 | F20: CWT | G20: 15.25 | I20: 55.0525 | J20: 0 | K20: 0 | M20: 0 | N20: 0 | O20: 55.0525 | P20: 0 | Q20: 5505.25 | R20: 0
B21: Herbicide
C22: Glyphosate | D22: 1.25 | F22: Pint | G22: 1.5625 | I22: 1.953125 | J22: 0 | K22: 0 | M22: 0 | N22: 0 | O22: 1.953125 | P22: 0 | Q22: 195.3125 | R22: 0
C23: AAtrex 4L | D23: 2 | F23: Pint | G23: 2.476408 | I23: 4.952816 | J23: 0 | K23: 0 | M23: 0 | N23: 0 | O23: 4.952816 | P23: 0 | Q23: 495.2816 | R23: 0
B24: Seed
C25: Corn Seed | D25: 30 | F25: Thousand | G25: 3 | I25: 90 | J25: 0 | K25: 0 | M25: 0 | N25: 0 | O25: 90 | P25: 0 | Q25: 9000 | R25: 0
B26: Miscellaneous
C27: Insurance, Corn | D27: 1 | F27: Acre | G27: 18 | I27: 18 | J27: 0 | K27: 0 | M27: 0 | N27: 0 | O27: 18 | P27: 0 | Q27: 1800 | R27: 0
B28: Other Labor
C29: Unallocated Labor | D29: 0.2096 | F29: Hour | G29: 12 | I29: 2.5152 | J29: 0 | K29: 0 | M29: 0 | N29: 0 | O29: 2.5152 | P29: 0 | Q29: 251.52 | R29: 0
D30: 0 | G30: 0 | I30: 0 | J30: 0 | K30: 0 | M30: 0 | N30: 0 | O30: 0 | P30: 0 | Q30: 0 | R30: 0
D31: 0 | G31: 0 | I31: 0 | J31: 0 | K31: 0 | M31: 0 | N31: 0 | O31: 0 | P31: 0 | Q31: 0 | R31: 0
D32: 0 | G32: 0 | I32: 0 | J32: =E32*H32 -> 0 | K32: 0 | M32: 0 | N32: =J32*L32 -> 0 | O32: 0 | P32: =+J32-N32 -> 0 | Q32: 0 | R32: =+J32*E$7 -> 0
B33: Irrigation
C34: Water Cost | D34: 1.2 | F34: Acre/Foot | G34: 20 | I34: 24 | J34: =E34*H34 -> 0 | K34: 0 | M34: 0 | N34: =J34*L34 -> 0 | O34: 24 | P34: =+J34-N34 -> 0 | Q34: 2400 | R34: =+J34*E$7 -> 0
C35: Irrigation Labor | D35: 3.3 | F35: Hour | G35: 12 | I35: 39.6 | J35: 0 | K35: 0 | M35: 0 | N35: 0 | O35: 39.6 | P35: 0 | Q35: 3960 | R35: 0
B36: Machinery Labor
C37: Tractors/Self-Propelled | D37: 0.89 | F37: Hour | G37: 12 | I37: 10.68 | J37: =E37*H37 -> 0 | K37: 0 | M37: 0 | N37: =J37*L37 -> 0 | O37: 10.68 | P37: =+J37-N37 -> 0 | Q37: 1068 | R37: =+J37*E$7 -> 0
C38: Other Labor | D38: 0 | F38: Hour | G38: 12 | I38: 0 | J38: =E38*H38 -> 0 | K38: 0 | M38: 0 | N38: =J38*L38 -> 0 | O38: 0 | P38: =+J38-N38 -> 0 | Q38: 0 | R38: =+J38*E$7 -> 0
B40: Diesel Fuel
C41: Pickup/General Use Equipment | D41: 1 | F41: Acre | G41: 0 | I41: 0 | J41: =E41*H41 -> 0 | K41: 0 | M41: 0 | N41: =J41*L41 -> 0 | O41: 0 | P41: =+J41-N41 -> 0 | Q41: 0 | R41: =+J41*E$7 -> 0
C42: Tractors/Self-Propelled | D42: 4.26 | F42: Gallon | G42: 2.3 | I42: 9.798 | J42: =E42*H42 -> 0 | K42: 0 | M42: 0 | N42: =J42*L42 -> 0 | O42: 9.798 | P42: =+J42-N42 -> 0 | Q42: 979.8 | R42: =+J42*E$7 -> 0
B44: Gasoline
C45: Pickup/General Use Equipment | D45: 1 | F45: Acre | G45: 0 | I45: 0 | J45: =E45*H45 -> 0 | K45: 0 | M45: 0 | N45: =J45*L45 -> 0 | O45: 0 | P45: =+J45-N45 -> 0 | Q45: 0 | R45: =+J45*E$7 -> 0
C46: Tractors/Self-Propelled | D46: 0 | F46: Gallon | G46: 2.2 | I46: 0 | J46: =E46*H46 -> 0 | K46: 0 | M46: 0 | N46: =J46*L46 -> 0 | O46: 0 | P46: =+J46-N46 -> 0 | Q46: 0 | R46: =+J46*E$7 -> 0
B48: Repairs & Maintenance
C49: Pickup/General Use Equipment | D49: 1 | F49: Acre | G49: 0 | I49: 0 | J49: =E49*H49 -> 0 | K49: 0 | M49: 0 | N49: =J49*L49 -> 0 | O49: 0 | P49: =+J49-N49 -> 0 | Q49: 0 | R49: =+J49*E$7 -> 0
C50: Irrigation Equipment | D50: 1 | F50: Acre | G50: 0 | I50: 0 | J50: 0 | K50: 0 | M50: 0 | N50: 0 | O50: 0 | P50: 0 | Q50: 0 | R50: 0
C51: Tractors/Self-Propelled | D51: 1 | F51: Acre | G51: 8.468237173 | I51: 8.468237173 | J51: 0 | K51: 0 | M51: 0 | N51: 0 | O51: 8.468237173 | P51: 0 | Q51: 846.8237173 | R51: 0
C52: Implements | D52: 1 | F52: Acre | G52: 9.819706487 | I52: 9.819706487 | J52: 0 | K52: 0 | M52: 0 | N52: 0 | O52: 9.819706487 | P52: 0 | Q52: 981.9706487 | R52: 0
I53: 0 | J53: 0 | K53: 0 | M53: 0 | N53: 0 | O53: 0 | P53: 0 | Q53: 0 | R53: 0
I54: 0 | J54: 0 | K54: 0 | M54: 0 | N54: 0 | O54: 0 | P54: 0 | Q54: 0 | R54: 0
B55: Interest on Credit Line | G55: 0.05 | I55: 5.58605128 | J55: =+SUM(J17:J54)/2*H55 -> 0 | M55: 0 | N55: =+SUM(N17:N54)/2*L55 -> 0 | O55: 5.58605128 | P55: =+SUM(P17:P54)/2*L55 -> 0 | Q55: 558.605128 | R55: =+J55*E$7 -> 0
A56: Total Variable Costs | I56: 349.0256359 | J56: =SUM(J18:J55) -> 0 | M56: 0 | N56: =SUM(N18:N55) -> 0 | O56: 349.0256359 | P56: =SUM(P18:P55) -> 0 | Q56: 34902.56359 | R56: =SUM(R18:R55) -> 0
A57: Planned Returns Above Variable Costs: | I57: 161.9743641 | J57: =+J13-J56 -> 0 | M57: 0 | N57: =+N13-N56 -> 0 | O57: 161.9743641 | P57: =+P13-P56 -> 0 | Q57: 16197.43641 | R57: =+R13-R56 -> 0
B58: Breakeven Price to Cover Variable Costs | G58: 2.493040257 | H58: =IF(E10=0,"n/a",(YVarExp-(YTotExp+YTotRet-J10))/E10) -> n/a | I58: Bushel
Q59: Enterprise | R59: Enterprise
A60: FIXED COSTS | D60: Quantity | E60: Quantity | F60: Units | G60: $/Unit | H60: $/Unit | I60: Total | J60: Total | K60: Share | L60: Share | M60: Landlord | N60: Landlord | O60: Tenant | P60: Tenant | Q60: Total | R60: Total
B61: Machinery Depreciation
C62: Tractors/Self-Propelled | D62: 1 | F62: Acre | G62: 8.750511745 | I62: 8.750511745 | J62: =E62*H62 -> 0 | K62: 0 | M62: 0 | N62: =J62*L62 -> 0 | O62: 8.750511745 | P62: =+J62-N62 -> 0 | Q62: 875.0511745 | R62: =+J62*E$7 -> 0
C63: Implements | D63: 1 | F63: Acre | G63: 12.07868412 | I63: 12.07868412 | J63: 0 | K63: 0 | M63: 0 | N63: =J63*L63 -> 0 | O63: 12.07868412 | P63: 0 | Q63: 1207.868412 | R63: 0
B64: Equipment Investment
C65: Tractors/Self-Propelled | D65: 68.16930924 | F65: Dollars | G65: 0.07 | I65: 4.771851647 | J65: =E65*H65 -> 0 | K65: 0 | M65: 0 | N65: =J65*L65 -> 0 | O65: 4.771851647 | P65: =+J65-N65 -> 0 | Q65: 477.1851647 | R65: =+J65*E$7 -> 0
C66: Implements | D66: 59.20763114 | F66: Dollars | G66: 0.07 | I66: 4.14453418 | J66: 0 | K66: 0 | M66: 0 | N66: =J66*L66 -> 0 | O66: 4.14453418 | P66: 0 | Q66: 414.453418 | R66: 0
B67: Salaried Labor | D67: 1 | F67: Acre | G67: 0 | I67: 0 | J67: 0 | K67: 0 | M67: 0 | N67: =J67*L67 -> 0 | O67: 0 | P67: =+J67-N67 -> 0 | Q67: 0 | R67: =+J67*E$7 -> 0
B68: Management Fee, Owner/Operator Labor | D68: 1 | F68: Acre | G68: 0 | I68: 0 | J68: 0 | K68: 0 | M68: 0 | N68: 0 | O68: 0 | P68: 0 | Q68: 0 | R68: 0
B69: Allocated Establishment Cost | D69: 1 | F69: Acre | G69: 0 | I69: 0 | J69: 0 | K69: 0 | M69: 0 | N69: 0 | O69: 0 | P69: 0 | Q69: 0 | R69: 0
B70: Cash Rent, Irrigated | D70: 1 | F70: Acre | G70: 85 | I70: 85 | J70: 0 | K70: 0 | M70: 0 | N70: 0 | O70: 85 | P70: 0 | Q70: 8500 | R70: 0
B71: Property Taxes | D71: 1 | F71: Acre | G71: 0 | I71: 0 | J71: 0 | K71: 0 | M71: 0 | N71: 0 | O71: 0 | P71: 0 | Q71: 0 | R71: 0
B72: Whole Farm Insurance | D72: 1 | F72: Acre | G72: 0 | I72: 0 | J72: 0 | K72: 0 | M72: 0 | N72: 0 | O72: 0 | P72: 0 | Q72: 0 | R72: 0
D73: 1 | G73: 0 | I73: 0 | J73: 0 | K73: 0 | M73: 0 | N73: 0 | O73: 0 | P73: 0 | Q73: 0 | R73: 0
D74: 1 | G74: 0 | I74: 0 | J74: =E74*H74 -> 0 | K74: 0 | M74: 0 | N74: 0 | O74: 0 | P74: 0 | Q74: 0 | R74: 0
A75: Total Fixed Costs | I75: 114.7455817 | J75: =+SUM(J62:J74) -> 0 | M75: 0 | N75: =+SUM(N62:N74) -> 0 | O75: 114.7455817 | P75: =+SUM(P62:P74) -> 0 | Q75: 11474.55817 | R75: =+SUM(R62:R74) -> 0
A76: Total Specified Costs | I76: 463.7712176 | J76: =+J56+J75 -> 0 | M76: 0 | N76: =+N56+N75 -> 0 | O76: 463.7712176 | P76: =+P56+P75 -> 0 | Q76: 46377.12176 | R76: =+R56+R75 -> 0
A78: Returns Above Specified Costs | I78: 47.22878237 | J78: =+J13-J76 -> 0 | M78: 0 | N78: =+N13-N76 -> 0 | O78: 47.22878237 | P78: =+P13-P76 -> 0 | Q78: 4722.878237 | R78: =+R13-R76 -> 0
A80: Breakeven Price to Cover Total Costs | G80: 3.312651555 | H80: =IF(E10=0,"n/a",(YTotExp-(YTotExp+YTotRet-J10))/E10) -> n/a | I80: Bushel
D82: Example Breakeven Prices
B83: Example | C83: Example | D83: To Cover | G83: To Cover
B84: Yield | C84: Yield | D84: Variable | G84: Total
B85: Percent | C85: Bushel | D85: Costs | G85: Costs
B86: 0.75 | C86: 105 | D86: 3.324053676 | G86: 4.416868739
B87: 0.9 | C87: 126 | D87: 2.77004473 | G87: 3.680723949
B88: 1 | C88: 140 | D88: 2.493040257 | G88: 3.312651555
B89: 1.1 | C89: 154 | D89: 2.266400233 | G89: 3.011501413
B90: 1.25 | C90: 175 | D90: 1.994432205 | G90: 2.650121244
D92: Your Breakeven Prices
B93: Your | C93: Your | E93: To Cover | H93: To Cover
B94: Yield | C94: Yield | E94: Variable | H94: Total
B95: Percent | C95: Bushel | E95: Costs | H95: Costs
B96: 0.75 | C96: =E10*YPER1 -> 0 | E96: =IF($E$10=0,0,(YVarExp-(YTotExp+YTotRet-J10))/($E$10*YPER1)) -> 0 | H96: =IF($E$10=0,0,(YTotExp-(YTotExp+YTotRet-J10))/($E$10*YPER1)) -> 0
B97: 0.9 | C97: =E10*YPER2 -> 0 | E97: =IF($E$10=0,0,(YVarExp-(YTotExp+YTotRet-J10))/($E$10*YPER2)) -> 0 | H97: =IF($E$10=0,0,(YTotExp-(YTotExp+YTotRet-J10))/($E$10*YPER2)) -> 0
B98: 1 | C98: =+E10 -> 0 | E98: =IF($E$10=0,0,(YVarExp-(YTotExp+YTotRet-J10))/($E$10*YPER3)) -> 0 | H98: =IF($E$10=0,0,(YTotExp-(YTotExp+YTotRet-J10))/($E$10*YPER3)) -> 0
B99: 1.1 | C99: =E10*YPER4 -> 0 | E99: =IF($E$10=0,0,(YVarExp-(YTotExp+YTotRet-J10))/($E$10*YPER4)) -> 0 | H99: =IF($E$10=0,0,(YTotExp-(YTotExp+YTotRet-J10))/($E$10*YPER4)) -> 0
B100: 1.25 | C100: =E10*YPER5 -> 0 | E100: =IF($E$10=0,0,(YVarExp-(YTotExp+YTotRet-J10))/($E$10*YPER5)) -> 0 | H100: =IF($E$10=0,0,(YTotExp-(YTotExp+YTotRet-J10))/($E$10*YPER5)) -> 0
A102: Developed by Samuel Zapata, Assistant Professor and Extension Economist, Texas A&M AgriLife Extension, 956-968-5581.
A104: Information presented is prepared solely as a general guide and not intended to recognize or predict the costs and returns from any one operation. Brand names are mentioned only as examples and imply no endorsement.

Sheet CottonConventionalTill
A1: Projections for Planning Purposes Only -- Not to be Used without Updating
A2: 2020 Estimated Costs and Returns per Acre
A3: Cotton, Conventional Tillage, Furrow Irrigated, Rio Grande Valley
A4: Enter your name for this budget in the cell above.
A5: Enter Your Values in the cells highlighed in MAROON.
E6: Your Acres | R6: Your
C7: Crop Acres | D7: 100 | L7: Your | Q7: Enterprise | R7: Enterprise
E8: Your | H8: Your | I8: Cash | J8: Your | K8: Landlord | L8: Landlord | N8: Your | P8: Your | Q8: Total | R8: Total
A9: REVENUE | D9: Quantity | E9: Quantity | F9: Units | G9: $/Unit | H9: $/Unit | I9: Total | J9: Total | K9: Share | L9: Share | M9: Landlord | N9: Landlord | O9: Tenant | P9: Tenant | Q9: (100 acres) | R9: ="(" & E7 & " acres)" -> ( acres)
B10: Cotton Lint | D10: 975 | F10: Pound | G10: 0.66 | I10: 643.5 | J10: =E10*H10 -> 0 | K10: 0 | M10: 0 | N10: =J10*L10 -> 0 | O10: 643.5 | P10: =+J10-N10 -> 0 | Q10: 64350 | R10: =+J10*E$7 -> 0
B11: Cottonseed | D11: 0.6942 | F11: Ton | G11: 144 | I11: 99.9648 | J11: 0 | K11: 0 | M11: 0 | N11: 0 | O11: 99.9648 | P11: =+J11-N11 -> 0 | Q11: 9996.48 | R11: 0
D12: 0 | G12: 0 | I12: 0 | J12: 0 | K12: 0 | M12: 0 | N12: 0 | O12: 0 | P12: 0 | Q12: 0 | R12: 0
D13: 0 | G13: 0 | I13: 0 | J13: 0 | K13: 0 | M13: 0 | N13: 0 | O13: 0 | P13: 0 | Q13: 0 | R13: 0
A14: Total Revenue | I14: 743.4648 | J14: =SUM(J10:J13) -> 0 | M14: 0 | N14: =SUM(N10:N13) -> 0 | O14: 743.4648 | P14: =SUM(P10:P13) -> 0 | Q14: 74346.48 | R14: =SUM(R10:R13) -> 0
Q15: Enterprise | R15: Enterprise
A16: VARIABLE COSTS | D16: Quantity | E16: Quantity | F16: Units | G16: $/Unit | H16: $/Unit | I16: Total | J16: Total | K16: Share | L16: Share | M16: Landlord | N16: Landlord | O16: Tenant | P16: Tenant | Q16: Total | R16: Total
A17: Production Costs
B18: Custom
C19: Insect Scouting | D19: 1 | F19: Acre | G19: 10 | I19: 10 | J19: =E19*H19 -> 0 | K19: 0 | M19: 0 | N19: =J19*L19 -> 0 | O19: 10 | P19: =+J19-N19 -> 0 | Q19: 1000 | R19: =+J19*E$7 -> 0
C20: Custon Harvest Cotton | D20: 975 | F20: Pound | G20: 0.13 | I20: 126.75 | J20: 0 | K20: 0 | M20: 0 | N20: 0 | O20: 126.75 | P20: 0 | Q20: 12675 | R20: 0
C21: Gin | D21: 975 | F21: Pound | G21: 0.12 | I21: 117 | J21: 0 | K21: 0 | M21: 0 | N21: 0 | O21: 117 | P21: 0 | Q21: 11700 | R21: 0
B22: Fertilizer
C23: UAN (32% N) | D23: 3.06 | F23: CWT | G23: 15.25 | I23: 46.665 | J23: 0 | K23: 0 | M23: 0 | N23: 0 | O23: 46.665 | P23: 0 | Q23: 4666.5 | R23: 0
B24: Herbicide
C25: Trifluralin 4EC | D25: 2 | F25: Pint | G25: 3.65044 | I25: 7.30088 | J25: 0 | K25: 0 | M25: 0 | N25: 0 | O25: 7.30088 | P25: 0 | Q25: 730.088 | R25: 0
C26: 2, 4-D Amine | D26: 1 | F26: Pint | G26: 1.75 | I26: 1.75 | J26: 0 | K26: 0 | M26: 0 | N26: 0 | O26: 1.75 | P26: 0 | Q26: 175 | R26: 0
B27: Insecticide
C28: Transform | D28: 1 | F28: Ounce | G28: 7.8 | I28: 7.8 | J28: 0 | K28: 0 | M28: 0 | N28: 0 | O28: 7.8 | P28: 0 | Q28: 780 | R28: 0
C29: Sivanto | D29: 10.5 | F29: Ounce | G29: 2.3 | I29: 24.15 | J29: 0 | K29: 0 | M29: 0 | N29: 0 | O29: 24.15 | P29: 0 | Q29: 2415 | R29: 0
C30: Centric | D30: 2.5 | F30: Ounce | G30: 5.52 | I30: 13.8 | J30: 0 | K30: 0 | M30: 0 | N30: 0 | O30: 13.8 | P30: 0 | Q30: 1380 | R30: 0
B31: Miscellaneous
C32: Insurance, Cotton - Irrigated | D32: 1 | F32: Acre | G32: 29 | I32: 29 | J32: 0 | K32: 0 | M32: 0 | N32: 0 | O32: 29 | P32: 0 | Q32: 2900 | R32: 0
C33: BW Erradication Program - Irr | D33: 1 | F33: Acre | G33: 28 | I33: 28 | J33: 0 | K33: 0 | M33: 0 | N33: 0 | O33: 28 | P33: 0 | Q33: 2800 | R33: 0
B34: Seed
C35: Cotton Seed | D35: 50 | F35: Thousand | G35: 1.52173913 | I35: 76.08695652 | J35: 0 | K35: 0 | M35: 0 | N35: 0 | O35: 76.08695652 | P35: 0 | Q35: 7608.695652 | R35: 0
B36: Other Chemicals
C37: Mepiquat | D37: 24 | F37: Ounce | G37: 0.13 | I37: 3.12 | J37: 0 | K37: 0 | M37: 0 | N37: 0 | O37: 3.12 | P37: 0 | Q37: 312 | R37: 0
C38: Thidiazuron | D38: 4 | F38: Ounce | G38: 1.21 | I38: 4.84 | J38: 0 | K38: 0 | M38: 0 | N38: 0 | O38: 4.84 | P38: 0 | Q38: 484 | R38: 0
C39: Surfactant | D39: 0.25 | F39: Pint | G39: 5.35 | I39: 1.3375 | J39: 0 | K39: 0 | M39: 0 | N39: 0 | O39: 1.3375 | P39: 0 | Q39: 133.75 | R39: 0
C40: Ethephon | D40: 21 | F40: Ounce | G40: 0.229765625 | I40: 4.825078125 | J40: 0 | K40: 0 | M40: 0 | N40: 0 | O40: 4.825078125 | P40: 0 | Q40: 482.5078125 | R40: 0
B41: Other Labor
C42: Unallocated Labor | D42: 1.2856 | F42: Hour | G42: 12 | I42: 15.4272 | J42: 0 | K42: 0 | M42: 0 | N42: 0 | O42: 15.4272 | P42: 0 | Q42: 1542.72 | R42: 0
D43: 0 | G43: 0 | I43: 0 | J43: 0 | K43: 0 | M43: 0 | N43: 0 | O43: 0 | P43: 0 | Q43: 0 | R43: 0
D44: 0 | G44: 0 | I44: 0 | J44: 0 | K44: 0 | M44: 0 | N44: 0 | O44: 0 | P44: 0 | Q44: 0 | R44: 0
D45: 0 | G45: 0 | I45: 0 | J45: =E45*H45 -> 0 | K45: 0 | M45: 0 | N45: =J45*L45 -> 0 | O45: 0 | P45: =+J45-N45 -> 0 | Q45: 0 | R45: =+J45*E$7 -> 0
B46: Irrigation
C47: Water Cost | D47: 1.2 | F47: Acre/Foot | G47: 20 | I47: 24 | J47: =E47*H47 -> 0 | K47: 0 | M47: 0 | N47: =J47*L47 -> 0 | O47: 24 | P47: =+J47-N47 -> 0 | Q47: 2400 | R47: =+J47*E$7 -> 0
C48: Irrigation Labor | D48: 3.3 | F48: Hour | G48: 12 | I48: 39.6 | J48: 0 | K48: 0 | M48: 0 | N48: 0 | O48: 39.6 | P48: 0 | Q48: 3960 | R48: 0
B49: Machinery Labor
C50: Tractors/Self-Propelled | D50: 1.86 | F50: Hour | G50: 12 | I50: 22.32 | J50: =E50*H50 -> 0 | K50: 0 | M50: 0 | N50: =J50*L50 -> 0 | O50: 22.32 | P50: =+J50-N50 -> 0 | Q50: 2232 | R50: =+J50*E$7 -> 0
C51: Other Labor | D51: 0.36 | F51: Hour | G51: 12 | I51: 4.32 | J51: =E51*H51 -> 0 | K51: 0 | M51: 0 | N51: =J51*L51 -> 0 | O51: 4.32 | P51: =+J51-N51 -> 0 | Q51: 432 | R51: =+J51*E$7 -> 0
B53: Diesel Fuel
C54: Pickup/General Use Equipment | D54: 1 | F54: Acre | G54: 0 | I54: 0 | J54: =E54*H54 -> 0 | K54: 0 | M54: 0 | N54: =J54*L54 -> 0 | O54: 0 | P54: =+J54-N54 -> 0 | Q54: 0 | R54: =+J54*E$7 -> 0
C55: Tractors/Self-Propelled | D55: 13.12 | F55: Gallon | G55: 2.3 | I55: 30.176 | J55: =E55*H55 -> 0 | K55: 0 | M55: 0 | N55: =J55*L55 -> 0 | O55: 30.176 | P55: =+J55-N55 -> 0 | Q55: 3017.6 | R55: =+J55*E$7 -> 0
B57: Gasoline
C58: Pickup/General Use Equipment | D58: 1 | F58: Acre | G58: 0 | I58: 0 | J58: =E58*H58 -> 0 | K58: 0 | M58: 0 | N58: =J58*L58 -> 0 | O58: 0 | P58: =+J58-N58 -> 0 | Q58: 0 | R58: =+J58*E$7 -> 0
C59: Tractors/Self-Propelled | D59: 0 | F59: Gallon | G59: 2.2 | I59: 0 | J59: =E59*H59 -> 0 | K59: 0 | M59: 0 | N59: =J59*L59 -> 0 | O59: 0 | P59: =+J59-N59 -> 0 | Q59: 0 | R59: =+J59*E$7 -> 0
B61: Repairs & Maintenance
C62: Pickup/General Use Equipment | D62: 1 | F62: Acre | G62: 0 | I62: 0 | J62: =E62*H62 -> 0 | K62: 0 | M62: 0 | N62: =J62*L62 -> 0 | O62: 0 | P62: =+J62-N62 -> 0 | Q62: 0 | R62: =+J62*E$7 -> 0
C63: Irrigation Equipment | D63: 1 | F63: Acre | G63: 0 | I63: 0 | J63: 0 | K63: 0 | M63: 0 | N63: 0 | O63: 0 | P63: 0 | Q63: 0 | R63: 0
C64: Tractors/Self-Propelled | D64: 1 | F64: Acre | G64: 26.91361261 | I64: 26.91361261 | J64: 0 | K64: 0 | M64: 0 | N64: 0 | O64: 26.91361261 | P64: 0 | Q64: 2691.361261 | R64: 0
C65: Implements | D65: 1 | F65: Acre | G65: 18.92481242 | I65: 18.92481242 | J65: 0 | K65: 0 | M65: 0 | N65: 0 | O65: 18.92481242 | P65: 0 | Q65: 1892.481242 | R65: 0
I66: 0 | J66: 0 | K66: 0 | M66: 0 | N66: 0 | O66: 0 | P66: 0 | Q66: 0 | R66: 0
I67: 0 | J67: 0 | K67: 0 | M67: 0 | N67: 0 | O67: 0 | P67: 0 | Q67: 0 | R67: 0
B68: Interest on Credit Line | G68: 0.05 | I68: 7.646451707 | J68: =+SUM(J18:J67)/2*H68 -> 0 | M68: 0 | N68: =+SUM(N18:N67)/2*L68 -> 0 | O68: 7.646451707 | P68: =+SUM(P18:P67)/2*L68 -> 0 | Q68: 764.6451707 | R68: =+J68*E$7 -> 0
A69: Total Variable Costs | I69: 691.7534914 | J69: =SUM(J19:J68) -> 0 | M69: 0 | N69: =SUM(N19:N68) -> 0 | O69: 691.7534914 | P69: =SUM(P19:P68) -> 0 | Q69: 69175.34914 | R69: =SUM(R19:R68) -> 0
A70: Planned Returns Above Variable Costs: | I70: 51.71130861 | J70: =+J14-J69 -> 0 | M70: 0 | N70: =+N14-N69 -> 0 | O70: 51.71130861 | P70: =+P14-P69 -> 0 | Q70: 5171.130861 | R70: =+R14-R69 -> 0
B71: Breakeven Price to Cover Variable Costs | G71: 0.6069627604 | H71: =IF(E10=0,"n/a",(YVarExp-(YTotExp+YTotRet-J10))/E10) -> n/a | I71: Pound
Q72: Enterprise | R72: Enterprise
A73: FIXED COSTS | D73: Quantity | E73: Quantity | F73: Units | G73: $/Unit | H73: $/Unit | I73: Total | J73: Total | K73: Share | L73: Share | M73: Landlord | N73: Landlord | O73: Tenant | P73: Tenant | Q73: Total | R73: Total
B74: Machinery Depreciation
C75: Tractors/Self-Propelled | D75: 1 | F75: Acre | G75: 35.51993542 | I75: 35.51993542 | J75: =E75*H75 -> 0 | K75: 0 | M75: 0 | N75: =J75*L75 -> 0 | O75: 35.51993542 | P75: =+J75-N75 -> 0 | Q75: 3551.993542 | R75: =+J75*E$7 -> 0
C76: Implements | D76: 1 | F76: Acre | G76: 23.39269811 | I76: 23.39269811 | J76: 0 | K76: 0 | M76: 0 | N76: =J76*L76 -> 0 | O76: 23.39269811 | P76: 0 | Q76: 2339.269811 | R76: 0
B77: Equipment Investment
C78: Tractors/Self-Propelled | D78: 273.1297935 | F78: Dollars | G78: 0.07 | I78: 19.11908555 | J78: =E78*H78 -> 0 | K78: 0 | M78: 0 | N78: =J78*L78 -> 0 | O78: 19.11908555 | P78: =+J78-N78 -> 0 | Q78: 1911.908555 | R78: =+J78*E$7 -> 0
C79: Implements | D79: 127.8885639 | F79: Dollars | G79: 0.07 | I79: 8.952199472 | J79: 0 | K79: 0 | M79: 0 | N79: =J79*L79 -> 0 | O79: 8.952199472 | P79: 0 | Q79: 895.2199472 | R79: 0
B80: Salaried Labor | D80: 1 | F80: Acre | G80: 0 | I80: 0 | J80: 0 | K80: 0 | M80: 0 | N80: =J80*L80 -> 0 | O80: 0 | P80: =+J80-N80 -> 0 | Q80: 0 | R80: =+J80*E$7 -> 0
B81: Management Fee, Owner/Operator Labor | D81: 1 | F81: Acre | G81: 0 | I81: 0 | J81: 0 | K81: 0 | M81: 0 | N81: 0 | O81: 0 | P81: 0 | Q81: 0 | R81: 0
B82: Allocated Establishment Cost | D82: 1 | F82: Acre | G82: 0 | I82: 0 | J82: 0 | K82: 0 | M82: 0 | N82: 0 | O82: 0 | P82: 0 | Q82: 0 | R82: 0
B83: Cash Rent, Irrigated | D83: 1 | F83: Acre | G83: 85 | I83: 85 | J83: 0 | K83: 0 | M83: 0 | N83: 0 | O83: 85 | P83: 0 | Q83: 8500 | R83: 0
B84: Property Taxes | D84: 1 | F84: Acre | G84: 0 | I84: 0 | J84: 0 | K84: 0 | M84: 0 | N84: 0 | O84: 0 | P84: 0 | Q84: 0 | R84: 0
B85: Whole Farm Insurance | D85: 1 | F85: Acre | G85: 0 | I85: 0 | J85: 0 | K85: 0 | M85: 0 | N85: 0 | O85: 0 | P85: 0 | Q85: 0 | R85: 0
D86: 1 | G86: 0 | I86: 0 | J86: 0 | K86: 0 | M86: 0 | N86: 0 | O86: 0 | P86: 0 | Q86: 0 | R86: 0
D87: 1 | G87: 0 | I87: 0 | J87: =E87*H87 -> 0 | K87: 0 | M87: 0 | N87: 0 | O87: 0 | P87: 0 | Q87: 0 | R87: 0
A88: Total Fixed Costs | I88: 171.9839185 | J88: =+SUM(J75:J87) -> 0 | M88: 0 | N88: =+SUM(N75:N87) -> 0 | O88: 171.9839185 | P88: =+SUM(P75:P87) -> 0 | Q88: 17198.39185 | R88: =+SUM(R75:R87) -> 0
A89: Total Specified Costs | I89: 863.7374099 | J89: =+J69+J88 -> 0 | M89: 0 | N89: =+N69+N88 -> 0 | O89: 863.7374099 | P89: =+P69+P88 -> 0 | Q89: 86373.74099 | R89: =+R69+R88 -> 0
A91: Returns Above Specified Costs | I91: -120.2726099 | J91: =+J14-J89 -> 0 | M91: 0 | N91: =+N14-N89 -> 0 | O91: -120.2726099 | P91: =+P14-P89 -> 0 | Q91: -12027.26099 | R91: =+R14-R89 -> 0
A93: Breakeven Price to Cover Total Costs | G93: 0.783356523 | H93: =IF(E10=0,"n/a",(YTotExp-(YTotExp+YTotRet-J10))/E10) -> n/a | I93: Pound
D95: Example Breakeven Prices
B96: Example | C96: Example | D96: To Cover | G96: To Cover
B97: Yield | C97: Yield | D97: Variable | G97: Total
B98: Percent | C98: Pound | D98: Costs | G98: Costs
B99: 0.75 | C99: 731.25 | D99: 0.8092836805 | G99: 1.044475364
B100: 0.9 | C100: 877.5 | D100: 0.6744030671 | G100: 0.8703961367
B101: 1 | C101: 975 | D101: 0.6069627604 | G101: 0.783356523
B102: 1.1 | C102: 1072.5 | D102: 0.5517843276 | G102: 0.7121422936
B103: 1.25 | C103: 1218.75 | D103: 0.4855702083 | G103: 0.6266852184
D105: Your Breakeven Prices
B106: Your | C106: Your | E106: To Cover | H106: To Cover
B107: Yield | C107: Yield | E107: Variable | H107: Total
B108: Percent | C108: Pound | E108: Costs | H108: Costs
B109: 0.75 | C109: =E10*YPER1 -> 0 | E109: =IF($E$10=0,0,(YVarExp-(YTotExp+YTotRet-J10))/($E$10*YPER1)) -> 0 | H109: =IF($E$10=0,0,(YTotExp-(YTotExp+YTotRet-J10))/($E$10*YPER1)) -> 0
B110: 0.9 | C110: =E10*YPER2 -> 0 | E110: =IF($E$10=0,0,(YVarExp-(YTotExp+YTotRet-J10))/($E$10*YPER2)) -> 0 | H110: =IF($E$10=0,0,(YTotExp-(YTotExp+YTotRet-J10))/($E$10*YPER2)) -> 0
B111: 1 | C111: =+E10 -> 0 | E111: =IF($E$10=0,0,(YVarExp-(YTotExp+YTotRet-J10))/($E$10*YPER3)) -> 0 | H111: =IF($E$10=0,0,(YTotExp-(YTotExp+YTotRet-J10))/($E$10*YPER3)) -> 0
B112: 1.1 | C112: =E10*YPER4 -> 0 | E112: =IF($E$10=0,0,(YVarExp-(YTotExp+YTotRet-J10))/($E$10*YPER4)) -> 0 | H112: =IF($E$10=0,0,(YTotExp-(YTotExp+YTotRet-J10))/($E$10*YPER4)) -> 0
B113: 1.25 | C113: =E10*YPER5 -> 0 | E113: =IF($E$10=0,0,(YVarExp-(YTotExp+YTotRet-J10))/($E$10*YPER5)) -> 0 | H113: =IF($E$10=0,0,(YTotExp-(YTotExp+YTotRet-J10))/($E$10*YPER5)) -> 0
A115: Developed by Samuel Zapata, Assistant Professor and Extension Economist, Texas A&M AgriLife Extension, 956-968-5581.
A117: Information presented is prepared solely as a general guide and not intended to recognize or predict the costs and returns from any one operation. Brand names are mentioned only as examples and imply no endorsement.

Sheet CottonReducedTill
A1: Projections for Planning Purposes Only -- Not to be Used without Updating
A2: 2020 Estimated Costs and Returns per Acre
A3: Cotton, Reduced Tillage, GMO, Furrow Irrigated, Rio Grande Valley
A4: Enter your name for this budget in the cell above.
A5: Enter Your Values in the cells highlighed in MAROON.
E6: Your Acres | R6: Your
C7: Crop Acres | D7: 100 | L7: Your | Q7: Enterprise | R7: Enterprise
E8: Your | H8: Your | I8: Cash | J8: Your | K8: Landlord | L8: Landlord | N8: Your | P8: Your | Q8: Total | R8: Total
A9: REVENUE | D9: Quantity | E9: Quantity | F9: Units | G9: $/Unit | H9: $/Unit | I9: Total | J9: Total | K9: Share | L9: Share | M9: Landlord | N9: Landlord | O9: Tenant | P9: Tenant | Q9: (100 acres) | R9: ="(" & E7 & " acres)" -> ( acres)
B10: Cotton Lint | D10: 1250 | F10: Pound | G10: 0.66 | I10: 825 | J10: =E10*H10 -> 0 | K10: 0 | M10: 0 | N10: =J10*L10 -> 0 | O10: 825 | P10: =+J10-N10 -> 0 | Q10: 82500 | R10: =+J10*E$7 -> 0
B11: Cottonseed | D11: 0.89 | F11: Ton | G11: 144 | I11: 128.16 | J11: 0 | K11: 0 | M11: 0 | N11: 0 | O11: 128.16 | P11: =+J11-N11 -> 0 | Q11: 12816 | R11: 0
D12: 0 | G12: 0 | I12: 0 | J12: 0 | K12: 0 | M12: 0 | N12: 0 | O12: 0 | P12: 0 | Q12: 0 | R12: 0
D13: 0 | G13: 0 | I13: 0 | J13: 0 | K13: 0 | M13: 0 | N13: 0 | O13: 0 | P13: 0 | Q13: 0 | R13: 0
A14: Total Revenue | I14: 953.16 | J14: =SUM(J10:J13) -> 0 | M14: 0 | N14: =SUM(N10:N13) -> 0 | O14: 953.16 | P14: =SUM(P10:P13) -> 0 | Q14: 95316 | R14: =SUM(R10:R13) -> 0
Q15: Enterprise | R15: Enterprise
A16: VARIABLE COSTS | D16: Quantity | E16: Quantity | F16: Units | G16: $/Unit | H16: $/Unit | I16: Total | J16: Total | K16: Share | L16: Share | M16: Landlord | N16: Landlord | O16: Tenant | P16: Tenant | Q16: Total | R16: Total
A17: Production Costs
B18: Custom
C19: Insect Scouting | D19: 1 | F19: Acre | G19: 10 | I19: 10 | J19: =E19*H19 -> 0 | K19: 0 | M19: 0 | N19: =J19*L19 -> 0 | O19: 10 | P19: =+J19-N19 -> 0 | Q19: 1000 | R19: =+J19*E$7 -> 0
C20: Custon Harvest Cotton | D20: 1250 | F20: Pound | G20: 0.13 | I20: 162.5 | J20: 0 | K20: 0 | M20: 0 | N20: 0 | O20: 162.5 | P20: 0 | Q20: 16250 | R20: 0
C21: Gin | D21: 1250 | F21: Pound | G21: 0.12 | I21: 150 | J21: 0 | K21: 0 | M21: 0 | N21: 0 | O21: 150 | P21: 0 | Q21: 15000 | R21: 0
B22: Fertilizer
C23: UAN (32% N) | D23: 3.93 | F23: CWT | G23: 15.25 | I23: 59.9325 | J23: 0 | K23: 0 | M23: 0 | N23: 0 | O23: 59.9325 | P23: 0 | Q23: 5993.25 | R23: 0
B24: Herbicide
C25: Glyphosate | D25: 3.75 | F25: Pint | G25: 1.5625 | I25: 5.859375 | J25: 0 | K25: 0 | M25: 0 | N25: 0 | O25: 5.859375 | P25: 0 | Q25: 585.9375 | R25: 0
C26: Harmony Extra | D26: 0.6 | F26: Ounce | G26: 15.0962 | I26: 9.05772 | J26: 0 | K26: 0 | M26: 0 | N26: 0 | O26: 9.05772 | P26: 0 | Q26: 905.772 | R26: 0
C27: 2, 4-D Amine | D27: 2 | F27: Pint | G27: 1.75 | I27: 3.5 | J27: 0 | K27: 0 | M27: 0 | N27: 0 | O27: 3.5 | P27: 0 | Q27: 350 | R27: 0
B28: Insecticide
C29: Centric | D29: 2.5 | F29: Ounce | G29: 5.52 | I29: 13.8 | J29: 0 | K29: 0 | M29: 0 | N29: 0 | O29: 13.8 | P29: 0 | Q29: 1380 | R29: 0
C30: Sivanto | D30: 10.5 | F30: Ounce | G30: 2.3 | I30: 24.15 | J30: 0 | K30: 0 | M30: 0 | N30: 0 | O30: 24.15 | P30: 0 | Q30: 2415 | R30: 0
C31: Transform | D31: 1 | F31: Ounce | G31: 7.8 | I31: 7.8 | J31: 0 | K31: 0 | M31: 0 | N31: 0 | O31: 7.8 | P31: 0 | Q31: 780 | R31: 0
B32: Miscellaneous
C33: BW Erradication Program - Irr | D33: 1 | F33: Acre | G33: 28 | I33: 28 | J33: 0 | K33: 0 | M33: 0 | N33: 0 | O33: 28 | P33: 0 | Q33: 2800 | R33: 0
C34: Insurance, Cotton - Non-irrigated | D34: 1 | F34: Acre | G34: 22 | I34: 22 | J34: 0 | K34: 0 | M34: 0 | N34: 0 | O34: 22 | P34: 0 | Q34: 2200 | R34: 0
B35: Seed
C36: Cotton Seed | D36: 50 | F36: Thousand | G36: 1.52173913 | I36: 76.08695652 | J36: 0 | K36: 0 | M36: 0 | N36: 0 | O36: 76.08695652 | P36: 0 | Q36: 7608.695652 | R36: 0
B37: Other Chemicals
C38: Mepiquat | D38: 24 | F38: Ounce | G38: 0.13 | I38: 3.12 | J38: 0 | K38: 0 | M38: 0 | N38: 0 | O38: 3.12 | P38: 0 | Q38: 312 | R38: 0
C39: Thidiazuron | D39: 4 | F39: Ounce | G39: 1.21 | I39: 4.84 | J39: 0 | K39: 0 | M39: 0 | N39: 0 | O39: 4.84 | P39: 0 | Q39: 484 | R39: 0
C40: Surfactant | D40: 0.5 | F40: Pint | G40: 5.35 | I40: 2.675 | J40: 0 | K40: 0 | M40: 0 | N40: 0 | O40: 2.675 | P40: 0 | Q40: 267.5 | R40: 0
C41: Ethephon | D41: 21 | F41: Ounce | G41: 0.229765625 | I41: 4.825078125 | J41: 0 | K41: 0 | M41: 0 | N41: 0 | O41: 4.825078125 | P41: 0 | Q41: 482.5078125 | R41: 0
B42: Other Labor
C43: Unallocated Labor | D43: 0.88 | F43: Hour | G43: 12 | I43: 10.56 | J43: 0 | K43: 0 | M43: 0 | N43: 0 | O43: 10.56 | P43: 0 | Q43: 1056 | R43: 0
D44: 0 | G44: 0 | I44: 0 | J44: 0 | K44: 0 | M44: 0 | N44: 0 | O44: 0 | P44: 0 | Q44: 0 | R44: 0
D45: 0 | G45: 0 | I45: 0 | J45: 0 | K45: 0 | M45: 0 | N45: 0 | O45: 0 | P45: 0 | Q45: 0 | R45: 0
D46: 0 | G46: 0 | I46: 0 | J46: =E46*H46 -> 0 | K46: 0 | M46: 0 | N46: =J46*L46 -> 0 | O46: 0 | P46: =+J46-N46 -> 0 | Q46: 0 | R46: =+J46*E$7 -> 0
B47: Irrigation
C48: Water Cost | D48: 1.2 | F48: Acre/Foot | G48: 20 | I48: 24 | J48: =E48*H48 -> 0 | K48: 0 | M48: 0 | N48: =J48*L48 -> 0 | O48: 24 | P48: =+J48-N48 -> 0 | Q48: 2400 | R48: =+J48*E$7 -> 0
C49: Irrigation Labor | D49: 3.3 | F49: Hour | G49: 12 | I49: 39.6 | J49: 0 | K49: 0 | M49: 0 | N49: 0 | O49: 39.6 | P49: 0 | Q49: 3960 | R49: 0
B50: Machinery Labor
C51: Tractors/Self-Propelled | D51: 1.55 | F51: Hour | G51: 12 | I51: 18.6 | J51: =E51*H51 -> 0 | K51: 0 | M51: 0 | N51: =J51*L51 -> 0 | O51: 18.6 | P51: =+J51-N51 -> 0 | Q51: 1860 | R51: =+J51*E$7 -> 0
C52: Other Labor | D52: 0.36 | F52: Hour | G52: 12 | I52: 4.32 | J52: =E52*H52 -> 0 | K52: 0 | M52: 0 | N52: =J52*L52 -> 0 | O52: 4.32 | P52: =+J52-N52 -> 0 | Q52: 432 | R52: =+J52*E$7 -> 0
B54: Diesel Fuel
C55: Pickup/General Use Equipment | D55: 1 | F55: Acre | G55: 0 | I55: 0 | J55: =E55*H55 -> 0 | K55: 0 | M55: 0 | N55: =J55*L55 -> 0 | O55: 0 | P55: =+J55-N55 -> 0 | Q55: 0 | R55: =+J55*E$7 -> 0
C56: Tractors/Self-Propelled | D56: 9.29 | F56: Gallon | G56: 2.3 | I56: 21.367 | J56: =E56*H56 -> 0 | K56: 0 | M56: 0 | N56: =J56*L56 -> 0 | O56: 21.367 | P56: =+J56-N56 -> 0 | Q56: 2136.7 | R56: =+J56*E$7 -> 0
B58: Gasoline
C59: Pickup/General Use Equipment | D59: 1 | F59: Acre | G59: 0 | I59: 0 | J59: =E59*H59 -> 0 | K59: 0 | M59: 0 | N59: =J59*L59 -> 0 | O59: 0 | P59: =+J59-N59 -> 0 | Q59: 0 | R59: =+J59*E$7 -> 0
C60: Tractors/Self-Propelled | D60: 0 | F60: Gallon | G60: 2.2 | I60: 0 | J60: =E60*H60 -> 0 | K60: 0 | M60: 0 | N60: =J60*L60 -> 0 | O60: 0 | P60: =+J60-N60 -> 0 | Q60: 0 | R60: =+J60*E$7 -> 0
B62: Repairs & Maintenance
C63: Pickup/General Use Equipment | D63: 1 | F63: Acre | G63: 0 | I63: 0 | J63: =E63*H63 -> 0 | K63: 0 | M63: 0 | N63: =J63*L63 -> 0 | O63: 0 | P63: =+J63-N63 -> 0 | Q63: 0 | R63: =+J63*E$7 -> 0
C64: Irrigation Equipment | D64: 1 | F64: Acre | G64: 0 | I64: 0 | J64: 0 | K64: 0 | M64: 0 | N64: 0 | O64: 0 | P64: 0 | Q64: 0 | R64: 0
C65: Tractors/Self-Propelled | D65: 1 | F65: Acre | G65: 16.55301854 | I65: 16.55301854 | J65: 0 | K65: 0 | M65: 0 | N65: 0 | O65: 16.55301854 | P65: 0 | Q65: 1655.301854 | R65: 0
C66: Implements | D66: 1 | F66: Acre | G66: 12.67353432 | I66: 12.67353432 | J66: 0 | K66: 0 | M66: 0 | N66: 0 | O66: 12.67353432 | P66: 0 | Q66: 1267.353432 | R66: 0
I67: 0 | J67: 0 | K67: 0 | M67: 0 | N67: 0 | O67: 0 | P67: 0 | Q67: 0 | R67: 0
I68: 0 | J68: 0 | K68: 0 | M68: 0 | N68: 0 | O68: 0 | P68: 0 | Q68: 0 | R68: 0
B69: Interest on Credit Line | G69: 0.05 | I69: 8.683551806 | J69: =+SUM(J18:J68)/2*H69 -> 0 | M69: 0 | N69: =+SUM(N18:N68)/2*L69 -> 0 | O69: 8.683551806 | P69: =+SUM(P18:P68)/2*L69 -> 0 | Q69: 868.3551806 | R69: =+J69*E$7 -> 0
A70: Total Variable Costs | I70: 744.5037343 | J70: =SUM(J19:J69) -> 0 | M70: 0 | N70: =SUM(N19:N69) -> 0 | O70: 744.5037343 | P70: =SUM(P19:P69) -> 0 | Q70: 74450.37343 | R70: =SUM(R19:R69) -> 0
A71: Planned Returns Above Variable Costs: | I71: 208.6562657 | J71: =+J14-J70 -> 0 | M71: 0 | N71: =+N14-N70 -> 0 | O71: 208.6562657 | P71: =+P14-P70 -> 0 | Q71: 20865.62657 | R71: =+R14-R70 -> 0
B72: Breakeven Price to Cover Variable Costs | G72: 0.4930749875 | H72: =IF(E10=0,"n/a",(YVarExp-(YTotExp+YTotRet-J10))/E10) -> n/a | I72: Pound
Q73: Enterprise | R73: Enterprise
A74: FIXED COSTS | D74: Quantity | E74: Quantity | F74: Units | G74: $/Unit | H74: $/Unit | I74: Total | J74: Total | K74: Share | L74: Share | M74: Landlord | N74: Landlord | O74: Tenant | P74: Tenant | Q74: Total | R74: Total
B75: Machinery Depreciation
C76: Tractors/Self-Propelled | D76: 1 | F76: Acre | G76: 24.81398821 | I76: 24.81398821 | J76: =E76*H76 -> 0 | K76: 0 | M76: 0 | N76: =J76*L76 -> 0 | O76: 24.81398821 | P76: =+J76-N76 -> 0 | Q76: 2481.398821 | R76: =+J76*E$7 -> 0
C77: Implements | D77: 1 | F77: Acre | G77: 15.54938209 | I77: 15.54938209 | J77: 0 | K77: 0 | M77: 0 | N77: =J77*L77 -> 0 | O77: 15.54938209 | P77: 0 | Q77: 1554.938209 | R77: 0
B78: Equipment Investment
C79: Tractors/Self-Propelled | D79: 189.7270112 | F79: Dollars | G79: 0.07 | I79: 13.28089079 | J79: =E79*H79 -> 0 | K79: 0 | M79: 0 | N79: =J79*L79 -> 0 | O79: 13.28089079 | P79: =+J79-N79 -> 0 | Q79: 1328.089079 | R79: =+J79*E$7 -> 0
C80: Implements | D80: 94.78303861 | F80: Dollars | G80: 0.07 | I80: 6.634812703 | J80: 0 | K80: 0 | M80: 0 | N80: =J80*L80 -> 0 | O80: 6.634812703 | P80: 0 | Q80: 663.4812703 | R80: 0
B81: Salaried Labor | D81: 1 | F81: Acre | G81: 0 | I81: 0 | J81: 0 | K81: 0 | M81: 0 | N81: =J81*L81 -> 0 | O81: 0 | P81: =+J81-N81 -> 0 | Q81: 0 | R81: =+J81*E$7 -> 0
B82: Management Fee, Owner/Operator Labor | D82: 1 | F82: Acre | G82: 0 | I82: 0 | J82: 0 | K82: 0 | M82: 0 | N82: 0 | O82: 0 | P82: 0 | Q82: 0 | R82: 0
B83: Allocated Establishment Cost | D83: 1 | F83: Acre | G83: 0 | I83: 0 | J83: 0 | K83: 0 | M83: 0 | N83: 0 | O83: 0 | P83: 0 | Q83: 0 | R83: 0
B84: Cash Rent, Irrigated | D84: 1 | F84: Acre | G84: 85 | I84: 85 | J84: 0 | K84: 0 | M84: 0 | N84: 0 | O84: 85 | P84: 0 | Q84: 8500 | R84: 0
B85: Property Taxes | D85: 1 | F85: Acre | G85: 0 | I85: 0 | J85: 0 | K85: 0 | M85: 0 | N85: 0 | O85: 0 | P85: 0 | Q85: 0 | R85: 0
B86: Whole Farm Insurance | D86: 1 | F86: Acre | G86: 0 | I86: 0 | J86: 0 | K86: 0 | M86: 0 | N86: 0 | O86: 0 | P86: 0 | Q86: 0 | R86: 0
D87: 1 | G87: 0 | I87: 0 | J87: 0 | K87: 0 | M87: 0 | N87: 0 | O87: 0 | P87: 0 | Q87: 0 | R87: 0
D88: 1 | G88: 0 | I88: 0 | J88: =E88*H88 -> 0 | K88: 0 | M88: 0 | N88: 0 | O88: 0 | P88: 0 | Q88: 0 | R88: 0
A89: Total Fixed Costs | I89: 145.2790738 | J89: =+SUM(J76:J88) -> 0 | M89: 0 | N89: =+SUM(N76:N88) -> 0 | O89: 145.2790738 | P89: =+SUM(P76:P88) -> 0 | Q89: 14527.90738 | R89: =+SUM(R76:R88) -> 0
A90: Total Specified Costs | I90: 889.7828081 | J90: =+J70+J89 -> 0 | M90: 0 | N90: =+N70+N89 -> 0 | O90: 889.7828081 | P90: =+P70+P89 -> 0 | Q90: 88978.28081 | R90: =+R70+R89 -> 0
A92: Returns Above Specified Costs | I92: 63.37719189 | J92: =+J14-J90 -> 0 | M92: 0 | N92: =+N14-N90 -> 0 | O92: 63.37719189 | P92: =+P14-P90 -> 0 | Q92: 6337.719189 | R92: =+R14-R90 -> 0
A94: Breakeven Price to Cover Total Costs | G94: 0.6092982465 | H94: =IF(E10=0,"n/a",(YTotExp-(YTotExp+YTotRet-J10))/E10) -> n/a | I94: Pound
D96: Example Breakeven Prices
B97: Example | C97: Example | D97: To Cover | G97: To Cover
B98: Yield | C98: Yield | D98: Variable | G98: Total
B99: Percent | C99: Pound | D99: Costs | G99: Costs
B100: 0.75 | C100: 937.5 | D100: 0.6574333166 | G100: 0.812397662
B101: 0.9 | C101: 1125 | D101: 0.5478610972 | G101: 0.6769980517
B102: 1 | C102: 1250 | D102: 0.4930749875 | G102: 0.6092982465
B103: 1.1 | C103: 1375 | D103: 0.4482499886 | G103: 0.5539074968
B104: 1.25 | C104: 1562.5 | D104: 0.39445999 | G104: 0.4874385972
D106: Your Breakeven Prices
B107: Your | C107: Your | E107: To Cover | H107: To Cover
B108: Yield | C108: Yield | E108: Variable | H108: Total
B109: Percent | C109: Pound | E109: Costs | H109: Costs
B110: 0.75 | C110: =E10*YPER1 -> 0 | E110: =IF($E$10=0,0,(YVarExp-(YTotExp+YTotRet-J10))/($E$10*YPER1)) -> 0 | H110: =IF($E$10=0,0,(YTotExp-(YTotExp+YTotRet-J10))/($E$10*YPER1)) -> 0
B111: 0.9 | C111: =E10*YPER2 -> 0 | E111: =IF($E$10=0,0,(YVarExp-(YTotExp+YTotRet-J10))/($E$10*YPER2)) -> 0 | H111: =IF($E$10=0,0,(YTotExp-(YTotExp+YTotRet-J10))/($E$10*YPER2)) -> 0
B112: 1 | C112: =+E10 -> 0 | E112: =IF($E$10=0,0,(YVarExp-(YTotExp+YTotRet-J10))/($E$10*YPER3)) -> 0 | H112: =IF($E$10=0,0,(YTotExp-(YTotExp+YTotRet-J10))/($E$10*YPER3)) -> 0
B113: 1.1 | C113: =E10*YPER4 -> 0 | E113: =IF($E$10=0,0,(YVarExp-(YTotExp+YTotRet-J10))/($E$10*YPER4)) -> 0 | H113: =IF($E$10=0,0,(YTotExp-(YTotExp+YTotRet-J10))/($E$10*YPER4)) -> 0
B114: 1.25 | C114: =E10*YPER5 -> 0 | E114: =IF($E$10=0,0,(YVarExp-(YTotExp+YTotRet-J10))/($E$10*YPER5)) -> 0 | H114: =IF($E$10=0,0,(YTotExp-(YTotExp+YTotRet-J10))/($E$10*YPER5)) -> 0
A116: Developed by Samuel Zapata, Assistant Professor and Extension Economist, Texas A&M AgriLife Extension, 956-968-5581.
A118: Information presented is prepared solely as a general guide and not intended to recognize or predict the costs and returns from any one operation. Brand names are mentioned only as examples and imply no endorsement.

Sheet CottonDryland
A1: Projections for Planning Purposes Only -- Not to be Used without Updating
A2: 2020 Estimated Costs and Returns per Acre
A3: Cotton, Conventional Tillage, Dryland, Rio Grande Valley
A4: Enter your name for this budget in the cell above.
A5: Enter Your Values in the cells highlighed in MAROON.
E6: Your Acres | R6: Your
C7: Crop Acres | D7: 100 | L7: Your | Q7: Enterprise | R7: Enterprise
E8: Your | H8: Your | I8: Cash | J8: Your | K8: Landlord | L8: Landlord | N8: Your | P8: Your | Q8: Total | R8: Total
A9: REVENUE | D9: Quantity | E9: Quantity | F9: Units | G9: $/Unit | H9: $/Unit | I9: Total | J9: Total | K9: Share | L9: Share | M9: Landlord | N9: Landlord | O9: Tenant | P9: Tenant | Q9: (100 acres) | R9: ="(" & E7 & " acres)" -> ( acres)
B10: Cotton Lint | D10: 720 | F10: Pound | G10: 0.66 | I10: 475.2 | J10: =E10*H10 -> 0 | K10: 0 | M10: 0 | N10: =J10*L10 -> 0 | O10: 475.2 | P10: =+J10-N10 -> 0 | Q10: 47520 | R10: =+J10*E$7 -> 0
B11: Cottonseed | D11: 0.51264 | F11: Ton | G11: 144 | I11: 73.82016 | J11: 0 | K11: 0 | M11: 0 | N11: 0 | O11: 73.82016 | P11: =+J11-N11 -> 0 | Q11: 7382.016 | R11: 0
D12: 0 | G12: 0 | I12: 0 | J12: 0 | K12: 0 | M12: 0 | N12: 0 | O12: 0 | P12: 0 | Q12: 0 | R12: 0
D13: 0 | G13: 0 | I13: 0 | J13: 0 | K13: 0 | M13: 0 | N13: 0 | O13: 0 | P13: 0 | Q13: 0 | R13: 0
A14: Total Revenue | I14: 549.02016 | J14: =SUM(J10:J13) -> 0 | M14: 0 | N14: =SUM(N10:N13) -> 0 | O14: 549.02016 | P14: =SUM(P10:P13) -> 0 | Q14: 54902.016 | R14: =SUM(R10:R13) -> 0
Q15: Enterprise | R15: Enterprise
A16: VARIABLE COSTS | D16: Quantity | E16: Quantity | F16: Units | G16: $/Unit | H16: $/Unit | I16: Total | J16: Total | K16: Share | L16: Share | M16: Landlord | N16: Landlord | O16: Tenant | P16: Tenant | Q16: Total | R16: Total
A17: Production Costs
B18: Custom
C19: Insect Scouting | D19: 1 | F19: Acre | G19: 10 | I19: 10 | J19: =E19*H19 -> 0 | K19: 0 | M19: 0 | N19: =J19*L19 -> 0 | O19: 10 | P19: =+J19-N19 -> 0 | Q19: 1000 | R19: =+J19*E$7 -> 0
C20: Custon Harvest Cotton | D20: 720 | F20: Pound | G20: 0.13 | I20: 93.6 | J20: 0 | K20: 0 | M20: 0 | N20: 0 | O20: 93.6 | P20: 0 | Q20: 9360 | R20: 0
C21: Gin | D21: 720 | F21: Pound | G21: 0.12 | I21: 86.4 | J21: 0 | K21: 0 | M21: 0 | N21: 0 | O21: 86.4 | P21: 0 | Q21: 8640 | R21: 0
B22: Fertilizer
C23: UAN (32% N) | D23: 2.26 | F23: CWT | G23: 15.25 | I23: 34.465 | J23: 0 | K23: 0 | M23: 0 | N23: 0 | O23: 34.465 | P23: 0 | Q23: 3446.5 | R23: 0
B24: Herbicide
C25: Trifluralin 4EC | D25: 2 | F25: Pint | G25: 3.65044 | I25: 7.30088 | J25: 0 | K25: 0 | M25: 0 | N25: 0 | O25: 7.30088 | P25: 0 | Q25: 730.088 | R25: 0
B26: Insecticide
C27: Transform | D27: 1 | F27: Ounce | G27: 7.8 | I27: 7.8 | J27: 0 | K27: 0 | M27: 0 | N27: 0 | O27: 7.8 | P27: 0 | Q27: 780 | R27: 0
C28: Centric | D28: 2.5 | F28: Ounce | G28: 5.52 | I28: 13.8 | J28: 0 | K28: 0 | M28: 0 | N28: 0 | O28: 13.8 | P28: 0 | Q28: 1380 | R28: 0
C29: Sivanto | D29: 10.5 | F29: Ounce | G29: 2.3 | I29: 24.15 | J29: 0 | K29: 0 | M29: 0 | N29: 0 | O29: 24.15 | P29: 0 | Q29: 2415 | R29: 0
B30: Seed
C31: Cotton Seed | D31: 30 | F31: Thousand | G31: 1.52173913 | I31: 45.65217391 | J31: 0 | K31: 0 | M31: 0 | N31: 0 | O31: 45.65217391 | P31: 0 | Q31: 4565.217391 | R31: 0
B32: Other Chemicals
C33: Thidiazuron | D33: 4 | F33: Ounce | G33: 1.21 | I33: 4.84 | J33: 0 | K33: 0 | M33: 0 | N33: 0 | O33: 4.84 | P33: 0 | Q33: 484 | R33: 0
C34: Surfactant | D34: 0.25 | F34: Pint | G34: 5.35 | I34: 1.3375 | J34: 0 | K34: 0 | M34: 0 | N34: 0 | O34: 1.3375 | P34: 0 | Q34: 133.75 | R34: 0
C35: Ethephon | D35: 21 | F35: Ounce | G35: 0.229765625 | I35: 4.825078125 | J35: 0 | K35: 0 | M35: 0 | N35: 0 | O35: 4.825078125 | P35: 0 | Q35: 482.5078125 | R35: 0
C36: Mepiquat | D36: 24 | F36: Ounce | G36: 0.13 | I36: 3.12 | J36: 0 | K36: 0 | M36: 0 | N36: 0 | O36: 3.12 | P36: 0 | Q36: 312 | R36: 0
B37: Other Labor
C38: Unallocated Labor | D38: 1.2432 | F38: Hour | G38: 12 | I38: 14.9184 | J38: 0 | K38: 0 | M38: 0 | N38: 0 | O38: 14.9184 | P38: 0 | Q38: 1491.84 | R38: 0
B39: Miscellaneous
C40: Insurance, Cotton - Non-irrigated | D40: 1 | F40: Acre | G40: 22 | I40: 22 | J40: 0 | K40: 0 | M40: 0 | N40: 0 | O40: 22 | P40: 0 | Q40: 2200 | R40: 0
C41: BW Erradication Program - Dry | D41: 1 | F41: Acre | G41: 14 | I41: 14 | J41: 0 | K41: 0 | M41: 0 | N41: 0 | O41: 14 | P41: 0 | Q41: 1400 | R41: 0
D42: 0 | G42: 0 | I42: 0 | J42: 0 | K42: 0 | M42: 0 | N42: 0 | O42: 0 | P42: 0 | Q42: 0 | R42: 0
D43: 0 | G43: 0 | I43: 0 | J43: 0 | K43: 0 | M43: 0 | N43: 0 | O43: 0 | P43: 0 | Q43: 0 | R43: 0
D44: 0 | G44: 0 | I44: 0 | J44: =E44*H44 -> 0 | K44: 0 | M44: 0 | N44: =J44*L44 -> 0 | O44: 0 | P44: =+J44-N44 -> 0 | Q44: 0 | R44: =+J44*E$7 -> 0
B45: Machinery Labor
C46: Tractors/Self-Propelled | D46: 1.71 | F46: Hour | G46: 12 | I46: 20.52 | J46: =E46*H46 -> 0 | K46: 0 | M46: 0 | N46: =J46*L46 -> 0 | O46: 20.52 | P46: =+J46-N46 -> 0 | Q46: 2052 | R46: =+J46*E$7 -> 0
C47: Other Labor | D47: 0.35 | F47: Hour | G47: 12 | I47: 4.2 | J47: =E47*H47 -> 0 | K47: 0 | M47: 0 | N47: =J47*L47 -> 0 | O47: 4.2 | P47: =+J47-N47 -> 0 | Q47: 420 | R47: =+J47*E$7 -> 0
B49: Diesel Fuel
C50: Pickup/General Use Equipment | D50: 1 | F50: Acre | G50: 0 | I50: 0 | J50: =E50*H50 -> 0 | K50: 0 | M50: 0 | N50: =J50*L50 -> 0 | O50: 0 | P50: =+J50-N50 -> 0 | Q50: 0 | R50: =+J50*E$7 -> 0
C51: Tractors/Self-Propelled | D51: 12.97 | F51: Gallon | G51: 2.3 | I51: 29.831 | J51: =E51*H51 -> 0 | K51: 0 | M51: 0 | N51: =J51*L51 -> 0 | O51: 29.831 | P51: =+J51-N51 -> 0 | Q51: 2983.1 | R51: =+J51*E$7 -> 0
B53: Gasoline
C54: Pickup/General Use Equipment | D54: 1 | F54: Acre | G54: 0 | I54: 0 | J54: =E54*H54 -> 0 | K54: 0 | M54: 0 | N54: =J54*L54 -> 0 | O54: 0 | P54: =+J54-N54 -> 0 | Q54: 0 | R54: =+J54*E$7 -> 0
C55: Tractors/Self-Propelled | D55: 0 | F55: Gallon | G55: 2.2 | I55: 0 | J55: =E55*H55 -> 0 | K55: 0 | M55: 0 | N55: =J55*L55 -> 0 | O55: 0 | P55: =+J55-N55 -> 0 | Q55: 0 | R55: =+J55*E$7 -> 0
B57: Repairs & Maintenance
C58: Pickup/General Use Equipment | D58: 1 | F58: Acre | G58: 0 | I58: 0 | J58: =E58*H58 -> 0 | K58: 0 | M58: 0 | N58: =J58*L58 -> 0 | O58: 0 | P58: =+J58-N58 -> 0 | Q58: 0 | R58: =+J58*E$7 -> 0
C59: Irrigation Equipment | D59: 1 | F59: Acre | G59: 0 | I59: 0 | J59: 0 | K59: 0 | M59: 0 | N59: 0 | O59: 0 | P59: 0 | Q59: 0 | R59: 0
C60: Tractors/Self-Propelled | D60: 1 | F60: Acre | G60: 26.60392608 | I60: 26.60392608 | J60: 0 | K60: 0 | M60: 0 | N60: 0 | O60: 26.60392608 | P60: 0 | Q60: 2660.392608 | R60: 0
C61: Implements | D61: 1 | F61: Acre | G61: 18.7864277 | I61: 18.7864277 | J61: 0 | K61: 0 | M61: 0 | N61: 0 | O61: 18.7864277 | P61: 0 | Q61: 1878.64277 | R61: 0
I62: 0 | J62: 0 | K62: 0 | M62: 0 | N62: 0 | O62: 0 | P62: 0 | Q62: 0 | R62: 0
I63: 0 | J63: 0 | K63: 0 | M63: 0 | N63: 0 | O63: 0 | P63: 0 | Q63: 0 | R63: 0
B64: Interest on Credit Line | G64: 0.05 | I64: 5.425172959 | J64: =+SUM(J18:J63)/2*H64 -> 0 | M64: 0 | N64: =+SUM(N18:N63)/2*L64 -> 0 | O64: 5.425172959 | P64: =+SUM(P18:P63)/2*L64 -> 0 | Q64: 542.5172959 | R64: =+J64*E$7 -> 0
A65: Total Variable Costs | I65: 493.5755588 | J65: =SUM(J19:J64) -> 0 | M65: 0 | N65: =SUM(N19:N64) -> 0 | O65: 493.5755588 | P65: =SUM(P19:P64) -> 0 | Q65: 49357.55588 | R65: =SUM(R19:R64) -> 0
A66: Planned Returns Above Variable Costs: | I66: 55.44460122 | J66: =+J14-J65 -> 0 | M66: 0 | N66: =+N14-N65 -> 0 | O66: 55.44460122 | P66: =+P14-P65 -> 0 | Q66: 5544.460122 | R66: =+R14-R65 -> 0
B67: Breakeven Price to Cover Variable Costs | G67: 0.5829936094 | H67: =IF(E10=0,"n/a",(YVarExp-(YTotExp+YTotRet-J10))/E10) -> n/a | I67: Pound
Q68: Enterprise | R68: Enterprise
A69: FIXED COSTS | D69: Quantity | E69: Quantity | F69: Units | G69: $/Unit | H69: $/Unit | I69: Total | J69: Total | K69: Share | L69: Share | M69: Landlord | N69: Landlord | O69: Tenant | P69: Tenant | Q69: Total | R69: Total
B70: Machinery Depreciation
C71: Tractors/Self-Propelled | D71: 1 | F71: Acre | G71: 35.199926 | I71: 35.199926 | J71: =E71*H71 -> 0 | K71: 0 | M71: 0 | N71: =J71*L71 -> 0 | O71: 35.199926 | P71: =+J71-N71 -> 0 | Q71: 3519.9926 | R71: =+J71*E$7 -> 0
C72: Implements | D72: 1 | F72: Acre | G72: 23.11592867 | I72: 23.11592867 | J72: 0 | K72: 0 | M72: 0 | N72: =J72*L72 -> 0 | O72: 23.11592867 | P72: 0 | Q72: 2311.592867 | R72: 0
B73: Equipment Investment
C74: Tractors/Self-Propelled | D74: 270.6368169 | F74: Dollars | G74: 0.07 | I74: 18.94457719 | J74: =E74*H74 -> 0 | K74: 0 | M74: 0 | N74: =J74*L74 -> 0 | O74: 18.94457719 | P74: =+J74-N74 -> 0 | Q74: 1894.457719 | R74: =+J74*E$7 -> 0
C75: Implements | D75: 126.5047167 | F75: Dollars | G75: 0.07 | I75: 8.855330167 | J75: 0 | K75: 0 | M75: 0 | N75: =J75*L75 -> 0 | O75: 8.855330167 | P75: 0 | Q75: 885.5330167 | R75: 0
B76: Salaried Labor | D76: 1 | F76: Acre | G76: 0 | I76: 0 | J76: 0 | K76: 0 | M76: 0 | N76: =J76*L76 -> 0 | O76: 0 | P76: =+J76-N76 -> 0 | Q76: 0 | R76: =+J76*E$7 -> 0
B77: Management Fee, Owner/Operator Labor | D77: 1 | F77: Acre | G77: 0 | I77: 0 | J77: 0 | K77: 0 | M77: 0 | N77: 0 | O77: 0 | P77: 0 | Q77: 0 | R77: 0
B78: Allocated Establishment Cost | D78: 1 | F78: Acre | G78: 0 | I78: 0 | J78: 0 | K78: 0 | M78: 0 | N78: 0 | O78: 0 | P78: 0 | Q78: 0 | R78: 0
B79: Cash Rent, Dryland | D79: 1 | F79: Acre | G79: 60 | I79: 60 | J79: 0 | K79: 0 | M79: 0 | N79: 0 | O79: 60 | P79: 0 | Q79: 6000 | R79: 0
B80: Property Taxes | D80: 1 | F80: Acre | G80: 0 | I80: 0 | J80: 0 | K80: 0 | M80: 0 | N80: 0 | O80: 0 | P80: 0 | Q80: 0 | R80: 0
B81: Whole Farm Insurance | D81: 1 | F81: Acre | G81: 0 | I81: 0 | J81: 0 | K81: 0 | M81: 0 | N81: 0 | O81: 0 | P81: 0 | Q81: 0 | R81: 0
D82: 1 | G82: 0 | I82: 0 | J82: 0 | K82: 0 | M82: 0 | N82: 0 | O82: 0 | P82: 0 | Q82: 0 | R82: 0
D83: 1 | G83: 0 | I83: 0 | J83: =E83*H83 -> 0 | K83: 0 | M83: 0 | N83: 0 | O83: 0 | P83: 0 | Q83: 0 | R83: 0
A84: Total Fixed Costs | I84: 146.115762 | J84: =+SUM(J71:J83) -> 0 | M84: 0 | N84: =+SUM(N71:N83) -> 0 | O84: 146.115762 | P84: =+SUM(P71:P83) -> 0 | Q84: 14611.5762 | R84: =+SUM(R71:R83) -> 0
A85: Total Specified Costs | I85: 639.6913208 | J85: =+J65+J84 -> 0 | M85: 0 | N85: =+N65+N84 -> 0 | O85: 639.6913208 | P85: =+P65+P84 -> 0 | Q85: 63969.13208 | R85: =+R65+R84 -> 0
A87: Returns Above Specified Costs | I87: -90.6711608 | J87: =+J14-J85 -> 0 | M87: 0 | N87: =+N14-N85 -> 0 | O87: -90.6711608 | P87: =+P14-P85 -> 0 | Q87: -9067.11608 | R87: =+R14-R85 -> 0
A89: Breakeven Price to Cover Total Costs | G89: 0.7859321678 | H89: =IF(E10=0,"n/a",(YTotExp-(YTotExp+YTotRet-J10))/E10) -> n/a | I89: Pound
D91: Example Breakeven Prices
B92: Example | C92: Example | D92: To Cover | G92: To Cover
B93: Yield | C93: Yield | D93: Variable | G93: Total
B94: Percent | C94: Pound | D94: Costs | G94: Costs
B95: 0.75 | C95: 540 | D95: 0.7773248125 | G95: 1.047909557
B96: 0.9 | C96: 648 | D96: 0.6477706771 | G96: 0.8732579642
B97: 1 | C97: 720 | D97: 0.5829936094 | G97: 0.7859321678
B98: 1.1 | C98: 792 | D98: 0.5299941904 | G98: 0.7144837889
B99: 1.25 | C99: 900 | D99: 0.4663948875 | G99: 0.6287457342
D101: Your Breakeven Prices
B102: Your | C102: Your | E102: To Cover | H102: To Cover
B103: Yield | C103: Yield | E103: Variable | H103: Total
B104: Percent | C104: Pound | E104: Costs | H104: Costs
B105: 0.75 | C105: =E10*YPER1 -> 0 | E105: =IF($E$10=0,0,(YVarExp-(YTotExp+YTotRet-J10))/($E$10*YPER1)) -> 0 | H105: =IF($E$10=0,0,(YTotExp-(YTotExp+YTotRet-J10))/($E$10*YPER1)) -> 0
B106: 0.9 | C106: =E10*YPER2 -> 0 | E106: =IF($E$10=0,0,(YVarExp-(YTotExp+YTotRet-J10))/($E$10*YPER2)) -> 0 | H106: =IF($E$10=0,0,(YTotExp-(YTotExp+YTotRet-J10))/($E$10*YPER2)) -> 0
B107: 1 | C107: =+E10 -> 0 | E107: =IF($E$10=0,0,(YVarExp-(YTotExp+YTotRet-J10))/($E$10*YPER3)) -> 0 | H107: =IF($E$10=0,0,(YTotExp-(YTotExp+YTotRet-J10))/($E$10*YPER3)) -> 0
B108: 1.1 | C108: =E10*YPER4 -> 0 | E108: =IF($E$10=0,0,(YVarExp-(YTotExp+YTotRet-J10))/($E$10*YPER4)) -> 0 | H108: =IF($E$10=0,0,(YTotExp-(YTotExp+YTotRet-J10))/($E$10*YPER4)) -> 0
B109: 1.25 | C109: =E10*YPER5 -> 0 | E109: =IF($E$10=0,0,(YVarExp-(YTotExp+YTotRet-J10))/($E$10*YPER5)) -> 0 | H109: =IF($E$10=0,0,(YTotExp-(YTotExp+YTotRet-J10))/($E$10*YPER5)) -> 0
A111: Developed by Samuel Zapata, Assistant Professor and Extension Economist, Texas A&M AgriLife Extension, 956-968-5581.
A113: Information presented is prepared solely as a general guide and not intended to recognize or predict the costs and returns from any one operation. Brand names are mentioned only as examples and imply no endorsement.

Sheet SorghumConventionalTill
A1: Projections for Planning Purposes Only -- Not to be Used without Updating
A2: 2020 Estimated Costs and Returns per Acre
A3: Grain Sorghum, Conventional Tillage, Furrow Irrigated, Rio Grande Valley
A4: Enter your name for this budget in the cell above.
A5: Enter Your Values in the cells highlighed in MAROON.
E6: Your Acres | R6: Your
C7: Crop Acres | D7: 100 | L7: Your | Q7: Enterprise | R7: Enterprise
E8: Your | H8: Your | I8: Cash | J8: Your | K8: Landlord | L8: Landlord | N8: Your | P8: Your | Q8: Total | R8: Total
A9: REVENUE | D9: Quantity | E9: Quantity | F9: Units | G9: $/Unit | H9: $/Unit | I9: Total | J9: Total | K9: Share | L9: Share | M9: Landlord | N9: Landlord | O9: Tenant | P9: Tenant | Q9: (100 acres) | R9: ="(" & E7 & " acres)" -> ( acres)
B10: Grain Sorghum | D10: 45 | F10: CWT | G10: 6.5 | I10: 292.5 | J10: =E10*H10 -> 0 | K10: 0 | M10: 0 | N10: =J10*L10 -> 0 | O10: 292.5 | P10: =+J10-N10 -> 0 | Q10: 29250 | R10: =+J10*E$7 -> 0
D11: 0 | G11: 0 | I11: 0 | J11: 0 | K11: 0 | M11: 0 | N11: 0 | O11: 0 | P11: =+J11-N11 -> 0 | Q11: 0 | R11: 0
D12: 0 | G12: 0 | I12: 0 | J12: 0 | K12: 0 | M12: 0 | N12: 0 | O12: 0 | P12: 0 | Q12: 0 | R12: 0
A13: Total Revenue | I13: 292.5 | J13: =SUM(J10:J12) -> 0 | M13: 0 | N13: =SUM(N10:N12) -> 0 | O13: 292.5 | P13: =SUM(P10:P12) -> 0 | Q13: 29250 | R13: =SUM(R10:R12) -> 0
Q14: Enterprise | R14: Enterprise
A15: VARIABLE COSTS | D15: Quantity | E15: Quantity | F15: Units | G15: $/Unit | H15: $/Unit | I15: Total | J15: Total | K15: Share | L15: Share | M15: Landlord | N15: Landlord | O15: Tenant | P15: Tenant | Q15: Total | R15: Total
A16: Production Costs
B17: Custom
C18: Harvest/Haul Sorghum | D18: 45 | F18: CWT | G18: 0.51 | I18: 22.95 | J18: =E18*H18 -> 0 | K18: 0 | M18: 0 | N18: =J18*L18 -> 0 | O18: 22.95 | P18: =+J18-N18 -> 0 | Q18: 2295 | R18: =+J18*E$7 -> 0
B19: Fertilizer
C20: UAN (32% N) | D20: 2.11 | F20: CWT | G20: 15.25 | I20: 32.1775 | J20: 0 | K20: 0 | M20: 0 | N20: 0 | O20: 32.1775 | P20: 0 | Q20: 3217.75 | R20: 0
B21: Herbicide
C22: AAtrex 4L | D22: 2 | F22: Pint | G22: 2.476408 | I22: 4.952816 | J22: 0 | K22: 0 | M22: 0 | N22: 0 | O22: 4.952816 | P22: 0 | Q22: 495.2816 | R22: 0
B23: Insecticide
C24: Transform | D24: 1 | F24: Ounce | G24: 7.8 | I24: 7.8 | J24: 0 | K24: 0 | M24: 0 | N24: 0 | O24: 7.8 | P24: 0 | Q24: 780 | R24: 0
B25: Seed
C26: Grain Sorghum Seed | D26: 6 | F26: Pound | G26: 2.4 | I26: 14.4 | J26: 0 | K26: 0 | M26: 0 | N26: 0 | O26: 14.4 | P26: 0 | Q26: 1440 | R26: 0
B27: Other Labor
C28: Unallocated Labor | D28: 0.7232 | F28: Hour | G28: 12 | I28: 8.6784 | J28: 0 | K28: 0 | M28: 0 | N28: 0 | O28: 8.6784 | P28: 0 | Q28: 867.84 | R28: 0
B29: Miscellaneous
C30: Insurance, Sorghum - Irrigated | D30: 1 | F30: Acre | G30: 10.41 | I30: 10.41 | J30: 0 | K30: 0 | M30: 0 | N30: 0 | O30: 10.41 | P30: 0 | Q30: 1041 | R30: 0
D31: 0 | G31: 0 | I31: 0 | J31: 0 | K31: 0 | M31: 0 | N31: 0 | O31: 0 | P31: 0 | Q31: 0 | R31: 0
D32: 0 | G32: 0 | I32: 0 | J32: 0 | K32: 0 | M32: 0 | N32: 0 | O32: 0 | P32: 0 | Q32: 0 | R32: 0
D33: 0 | G33: 0 | I33: 0 | J33: =E33*H33 -> 0 | K33: 0 | M33: 0 | N33: =J33*L33 -> 0 | O33: 0 | P33: =+J33-N33 -> 0 | Q33: 0 | R33: =+J33*E$7 -> 0
B34: Irrigation
C35: Water Cost | D35: 0.8 | F35: Acre/Foot | G35: 20 | I35: 16 | J35: =E35*H35 -> 0 | K35: 0 | M35: 0 | N35: =J35*L35 -> 0 | O35: 16 | P35: =+J35-N35 -> 0 | Q35: 1600 | R35: =+J35*E$7 -> 0
C36: Irrigation Labor | D36: 2.2 | F36: Hour | G36: 12 | I36: 26.4 | J36: 0 | K36: 0 | M36: 0 | N36: 0 | O36: 26.4 | P36: 0 | Q36: 2640 | R36: 0
B37: Machinery Labor
C38: Tractors/Self-Propelled | D38: 1.66 | F38: Hour | G38: 12 | I38: 19.92 | J38: =E38*H38 -> 0 | K38: 0 | M38: 0 | N38: =J38*L38 -> 0 | O38: 19.92 | P38: =+J38-N38 -> 0 | Q38: 1992 | R38: =+J38*E$7 -> 0
C39: Other Labor | D39: 0 | F39: Hour | G39: 12 | I39: 0 | J39: =E39*H39 -> 0 | K39: 0 | M39: 0 | N39: =J39*L39 -> 0 | O39: 0 | P39: =+J39-N39 -> 0 | Q39: 0 | R39: =+J39*E$7 -> 0
B41: Diesel Fuel
C42: Pickup/General Use Equipment | D42: 1 | F42: Acre | G42: 0 | I42: 0 | J42: =E42*H42 -> 0 | K42: 0 | M42: 0 | N42: =J42*L42 -> 0 | O42: 0 | P42: =+J42-N42 -> 0 | Q42: 0 | R42: =+J42*E$7 -> 0
C43: Tractors/Self-Propelled | D43: 10.45 | F43: Gallon | G43: 2.3 | I43: 24.035 | J43: =E43*H43 -> 0 | K43: 0 | M43: 0 | N43: =J43*L43 -> 0 | O43: 24.035 | P43: =+J43-N43 -> 0 | Q43: 2403.5 | R43: =+J43*E$7 -> 0
B45: Gasoline
C46: Pickup/General Use Equipment | D46: 1 | F46: Acre | G46: 0 | I46: 0 | J46: =E46*H46 -> 0 | K46: 0 | M46: 0 | N46: =J46*L46 -> 0 | O46: 0 | P46: =+J46-N46 -> 0 | Q46: 0 | R46: =+J46*E$7 -> 0
C47: Tractors/Self-Propelled | D47: 0 | F47: Gallon | G47: 2.2 | I47: 0 | J47: =E47*H47 -> 0 | K47: 0 | M47: 0 | N47: =J47*L47 -> 0 | O47: 0 | P47: =+J47-N47 -> 0 | Q47: 0 | R47: =+J47*E$7 -> 0
B49: Repairs & Maintenance
C50: Pickup/General Use Equipment | D50: 1 | F50: Acre | G50: 0 | I50: 0 | J50: =E50*H50 -> 0 | K50: 0 | M50: 0 | N50: =J50*L50 -> 0 | O50: 0 | P50: =+J50-N50 -> 0 | Q50: 0 | R50: =+J50*E$7 -> 0
C51: Irrigation Equipment | D51: 1 | F51: Acre | G51: 0 | I51: 0 | J51: 0 | K51: 0 | M51: 0 | N51: 0 | O51: 0 | P51: 0 | Q51: 0 | R51: 0
C52: Tractors/Self-Propelled | D52: 1 | F52: Acre | G52: 23.10531951 | I52: 23.10531951 | J52: 0 | K52: 0 | M52: 0 | N52: 0 | O52: 23.10531951 | P52: 0 | Q52: 2310.531951 | R52: 0
C53: Implements | D53: 1 | F53: Acre | G53: 18.61338834 | I53: 18.61338834 | J53: 0 | K53: 0 | M53: 0 | N53: 0 | O53: 18.61338834 | P53: 0 | Q53: 1861.338834 | R53: 0
I54: 0 | J54: 0 | K54: 0 | M54: 0 | N54: 0 | O54: 0 | P54: 0 | Q54: 0 | R54: 0
I55: 0 | J55: 0 | K55: 0 | M55: 0 | N55: 0 | O55: 0 | P55: 0 | Q55: 0 | R55: 0
B56: Interest on Credit Line | G56: 0.05 | I56: 4.586874274 | J56: =+SUM(J17:J55)/2*H56 -> 0 | M56: 0 | N56: =+SUM(N17:N55)/2*L56 -> 0 | O56: 4.586874274 | P56: =+SUM(P17:P55)/2*L56 -> 0 | Q56: 458.6874274 | R56: =+J56*E$7 -> 0
A57: Total Variable Costs | I57: 234.0292981 | J57: =SUM(J18:J56) -> 0 | M57: 0 | N57: =SUM(N18:N56) -> 0 | O57: 234.0292981 | P57: =SUM(P18:P56) -> 0 | Q57: 23402.92981 | R57: =SUM(R18:R56) -> 0
A58: Planned Returns Above Variable Costs: | I58: 58.47070188 | J58: =+J13-J57 -> 0 | M58: 0 | N58: =+N13-N57 -> 0 | O58: 58.47070188 | P58: =+P13-P57 -> 0 | Q58: 5847.070188 | R58: =+R13-R57 -> 0
B59: Breakeven Price to Cover Variable Costs | G59: 5.200651069 | H59: =IF(E10=0,"n/a",(YVarExp-(YTotExp+YTotRet-J10))/E10) -> n/a | I59: CWT
Q60: Enterprise | R60: Enterprise
A61: FIXED COSTS | D61: Quantity | E61: Quantity | F61: Units | G61: $/Unit | H61: $/Unit | I61: Total | J61: Total | K61: Share | L61: Share | M61: Landlord | N61: Landlord | O61: Tenant | P61: Tenant | Q61: Total | R61: Total
B62: Machinery Depreciation
C63: Tractors/Self-Propelled | D63: 1 | F63: Acre | G63: 23.87549682 | I63: 23.87549682 | J63: =E63*H63 -> 0 | K63: 0 | M63: 0 | N63: =J63*L63 -> 0 | O63: 23.87549682 | P63: =+J63-N63 -> 0 | Q63: 2387.549682 | R63: =+J63*E$7 -> 0
C64: Implements | D64: 1 | F64: Acre | G64: 22.54096022 | I64: 22.54096022 | J64: 0 | K64: 0 | M64: 0 | N64: =J64*L64 -> 0 | O64: 22.54096022 | P64: 0 | Q64: 2254.096022 | R64: 0
B65: Equipment Investment
C66: Tractors/Self-Propelled | D66: 185.997822 | F66: Dollars | G66: 0.07 | I66: 13.01984754 | J66: =E66*H66 -> 0 | K66: 0 | M66: 0 | N66: =J66*L66 -> 0 | O66: 13.01984754 | P66: =+J66-N66 -> 0 | Q66: 1301.984754 | R66: =+J66*E$7 -> 0
C67: Implements | D67: 103.3165966 | F67: Dollars | G67: 0.07 | I67: 7.232161762 | J67: 0 | K67: 0 | M67: 0 | N67: =J67*L67 -> 0 | O67: 7.232161762 | P67: 0 | Q67: 723.2161762 | R67: 0
B68: Salaried Labor | D68: 1 | F68: Acre | G68: 0 | I68: 0 | J68: 0 | K68: 0 | M68: 0 | N68: =J68*L68 -> 0 | O68: 0 | P68: =+J68-N68 -> 0 | Q68: 0 | R68: =+J68*E$7 -> 0
B69: Management Fee, Owner/Operator Labor | D69: 1 | F69: Acre | G69: 0 | I69: 0 | J69: 0 | K69: 0 | M69: 0 | N69: 0 | O69: 0 | P69: 0 | Q69: 0 | R69: 0
B70: Allocated Establishment Cost | D70: 1 | F70: Acre | G70: 0 | I70: 0 | J70: 0 | K70: 0 | M70: 0 | N70: 0 | O70: 0 | P70: 0 | Q70: 0 | R70: 0
B71: Cash Rent, Irrigated | D71: 1 | F71: Acre | G71: 85 | I71: 85 | J71: 0 | K71: 0 | M71: 0 | N71: 0 | O71: 85 | P71: 0 | Q71: 8500 | R71: 0
B72: Property Taxes | D72: 1 | F72: Acre | G72: 0 | I72: 0 | J72: 0 | K72: 0 | M72: 0 | N72: 0 | O72: 0 | P72: 0 | Q72: 0 | R72: 0
B73: Whole Farm Insurance | D73: 1 | F73: Acre | G73: 0 | I73: 0 | J73: 0 | K73: 0 | M73: 0 | N73: 0 | O73: 0 | P73: 0 | Q73: 0 | R73: 0
D74: 1 | G74: 0 | I74: 0 | J74: 0 | K74: 0 | M74: 0 | N74: 0 | O74: 0 | P74: 0 | Q74: 0 | R74: 0
D75: 1 | G75: 0 | I75: 0 | J75: =E75*H75 -> 0 | K75: 0 | M75: 0 | N75: 0 | O75: 0 | P75: 0 | Q75: 0 | R75: 0
A76: Total Fixed Costs | I76: 151.6684664 | J76: =+SUM(J63:J75) -> 0 | M76: 0 | N76: =+SUM(N63:N75) -> 0 | O76: 151.6684664 | P76: =+SUM(P63:P75) -> 0 | Q76: 15166.84664 | R76: =+SUM(R63:R75) -> 0
A77: Total Specified Costs | I77: 385.6977645 | J77: =+J57+J76 -> 0 | M77: 0 | N77: =+N57+N76 -> 0 | O77: 385.6977645 | P77: =+P57+P76 -> 0 | Q77: 38569.77645 | R77: =+R57+R76 -> 0
A79: Returns Above Specified Costs | I79: -93.19776447 | J79: =+J13-J77 -> 0 | M79: 0 | N79: =+N13-N77 -> 0 | O79: -93.19776447 | P79: =+P13-P77 -> 0 | Q79: -9319.776447 | R79: =+R13-R77 -> 0
A81: Breakeven Price to Cover Total Costs | G81: 8.571061433 | H81: =IF(E10=0,"n/a",(YTotExp-(YTotExp+YTotRet-J10))/E10) -> n/a | I81: CWT
D83: Example Breakeven Prices
B84: Example | C84: Example | D84: To Cover | G84: To Cover
B85: Yield | C85: Yield | D85: Variable | G85: Total
B86: Percent | C86: CWT | D86: Costs | G86: Costs
B87: 0.75 | C87: 33.75 | D87: 6.934201426 | G87: 11.42808191
B88: 0.9 | C88: 40.5 | D88: 5.778501188 | G88: 9.523401592
B89: 1 | C89: 45 | D89: 5.200651069 | G89: 8.571061433
B90: 1.1 | C90: 49.5 | D90: 4.727864609 | G90: 7.79187403
B91: 1.25 | C91: 56.25 | D91: 4.160520856 | G91: 6.856849146
D93: Your Breakeven Prices
B94: Your | C94: Your | E94: To Cover | H94: To Cover
B95: Yield | C95: Yield | E95: Variable | H95: Total
B96: Percent | C96: CWT | E96: Costs | H96: Costs
B97: 0.75 | C97: =E10*YPER1 -> 0 | E97: =IF($E$10=0,0,(YVarExp-(YTotExp+YTotRet-J10))/($E$10*YPER1)) -> 0 | H97: =IF($E$10=0,0,(YTotExp-(YTotExp+YTotRet-J10))/($E$10*YPER1)) -> 0
B98: 0.9 | C98: =E10*YPER2 -> 0 | E98: =IF($E$10=0,0,(YVarExp-(YTotExp+YTotRet-J10))/($E$10*YPER2)) -> 0 | H98: =IF($E$10=0,0,(YTotExp-(YTotExp+YTotRet-J10))/($E$10*YPER2)) -> 0
B99: 1 | C99: =+E10 -> 0 | E99: =IF($E$10=0,0,(YVarExp-(YTotExp+YTotRet-J10))/($E$10*YPER3)) -> 0 | H99: =IF($E$10=0,0,(YTotExp-(YTotExp+YTotRet-J10))/($E$10*YPER3)) -> 0
B100: 1.1 | C100: =E10*YPER4 -> 0 | E100: =IF($E$10=0,0,(YVarExp-(YTotExp+YTotRet-J10))/($E$10*YPER4)) -> 0 | H100: =IF($E$10=0,0,(YTotExp-(YTotExp+YTotRet-J10))/($E$10*YPER4)) -> 0
B101: 1.25 | C101: =E10*YPER5 -> 0 | E101: =IF($E$10=0,0,(YVarExp-(YTotExp+YTotRet-J10))/($E$10*YPER5)) -> 0 | H101: =IF($E$10=0,0,(YTotExp-(YTotExp+YTotRet-J10))/($E$10*YPER5)) -> 0
A103: Developed by Samuel Zapata, Assistant Professor and Extension Economist, Texas A&M AgriLife Extension, 956-968-5581.
A105: Information presented is prepared solely as a general guide and not intended to recognize or predict the costs and returns from any one operation. Brand names are mentioned only as examples and imply no endorsement.

Sheet SorghumReducedTill
A1: Projections for Planning Purposes Only -- Not to be Used without Updating
A2: 2020 Estimated Costs and Returns per Acre
A3: Grain Sorghum, Reduced Tillage, Furrow Irrigated, Rio Grande Valley
A4: Enter your name for this budget in the cell above.
A5: Enter Your Values in the cells highlighed in MAROON.
E6: Your Acres | R6: Your
C7: Crop Acres | D7: 100 | L7: Your | Q7: Enterprise | R7: Enterprise
E8: Your | H8: Your | I8: Cash | J8: Your | K8: Landlord | L8: Landlord | N8: Your | P8: Your | Q8: Total | R8: Total
A9: REVENUE | D9: Quantity | E9: Quantity | F9: Units | G9: $/Unit | H9: $/Unit | I9: Total | J9: Total | K9: Share | L9: Share | M9: Landlord | N9: Landlord | O9: Tenant | P9: Tenant | Q9: (100 acres) | R9: ="(" & E7 & " acres)" -> ( acres)
B10: Grain Sorghum | D10: 45 | F10: CWT | G10: 6.5 | I10: 292.5 | J10: =E10*H10 -> 0 | K10: 0 | M10: 0 | N10: =J10*L10 -> 0 | O10: 292.5 | P10: =+J10-N10 -> 0 | Q10: 29250 | R10: =+J10*E$7 -> 0
D11: 0 | G11: 0 | I11: 0 | J11: 0 | K11: 0 | M11: 0 | N11: 0 | O11: 0 | P11: =+J11-N11 -> 0 | Q11: 0 | R11: 0
D12: 0 | G12: 0 | I12: 0 | J12: 0 | K12: 0 | M12: 0 | N12: 0 | O12: 0 | P12: 0 | Q12: 0 | R12: 0
A13: Total Revenue | I13: 292.5 | J13: =SUM(J10:J12) -> 0 | M13: 0 | N13: =SUM(N10:N12) -> 0 | O13: 292.5 | P13: =SUM(P10:P12) -> 0 | Q13: 29250 | R13: =SUM(R10:R12) -> 0
Q14: Enterprise | R14: Enterprise
A15: VARIABLE COSTS | D15: Quantity | E15: Quantity | F15: Units | G15: $/Unit | H15: $/Unit | I15: Total | J15: Total | K15: Share | L15: Share | M15: Landlord | N15: Landlord | O15: Tenant | P15: Tenant | Q15: Total | R15: Total
A16: Production Costs
B17: Custom
C18: Harvest/Haul Sorghum | D18: 45 | F18: CWT | G18: 0.51 | I18: 22.95 | J18: =E18*H18 -> 0 | K18: 0 | M18: 0 | N18: =J18*L18 -> 0 | O18: 22.95 | P18: =+J18-N18 -> 0 | Q18: 2295 | R18: =+J18*E$7 -> 0
B19: Fertilizer
C20: UAN (32% N) | D20: 2.11 | F20: CWT | G20: 15.25 | I20: 32.1775 | J20: 0 | K20: 0 | M20: 0 | N20: 0 | O20: 32.1775 | P20: 0 | Q20: 3217.75 | R20: 0
B21: Herbicide
C22: Glyphosate | D22: 2 | F22: Pint | G22: 1.5625 | I22: 3.125 | J22: 0 | K22: 0 | M22: 0 | N22: 0 | O22: 3.125 | P22: 0 | Q22: 312.5 | R22: 0
C23: AAtrex 4L | D23: 2 | F23: Pint | G23: 2.476408 | I23: 4.952816 | J23: 0 | K23: 0 | M23: 0 | N23: 0 | O23: 4.952816 | P23: 0 | Q23: 495.2816 | R23: 0
B24: Insecticide
C25: Transform | D25: 1 | F25: Ounce | G25: 7.8 | I25: 7.8 | J25: 0 | K25: 0 | M25: 0 | N25: 0 | O25: 7.8 | P25: 0 | Q25: 780 | R25: 0
B26: Seed
C27: Grain Sorghum Seed | D27: 6 | F27: Pound | G27: 2.4 | I27: 14.4 | J27: 0 | K27: 0 | M27: 0 | N27: 0 | O27: 14.4 | P27: 0 | Q27: 1440 | R27: 0
B28: Other Labor
C29: Unallocated Labor | D29: 0.22 | F29: Hour | G29: 12 | I29: 2.64 | J29: 0 | K29: 0 | M29: 0 | N29: 0 | O29: 2.64 | P29: 0 | Q29: 264 | R29: 0
B30: Miscellaneous
C31: Insurance, Sorghum - Irrigated | D31: 1 | F31: Acre | G31: 10.41 | I31: 10.41 | J31: 0 | K31: 0 | M31: 0 | N31: 0 | O31: 10.41 | P31: 0 | Q31: 1041 | R31: 0
D32: 0 | G32: 0 | I32: 0 | J32: 0 | K32: 0 | M32: 0 | N32: 0 | O32: 0 | P32: 0 | Q32: 0 | R32: 0
D33: 0 | G33: 0 | I33: 0 | J33: 0 | K33: 0 | M33: 0 | N33: 0 | O33: 0 | P33: 0 | Q33: 0 | R33: 0
D34: 0 | G34: 0 | I34: 0 | J34: =E34*H34 -> 0 | K34: 0 | M34: 0 | N34: =J34*L34 -> 0 | O34: 0 | P34: =+J34-N34 -> 0 | Q34: 0 | R34: =+J34*E$7 -> 0
B35: Irrigation
C36: Water Cost | D36: 0.8 | F36: Acre/Foot | G36: 20 | I36: 16 | J36: =E36*H36 -> 0 | K36: 0 | M36: 0 | N36: =J36*L36 -> 0 | O36: 16 | P36: =+J36-N36 -> 0 | Q36: 1600 | R36: =+J36*E$7 -> 0
C37: Irrigation Labor | D37: 2.2 | F37: Hour | G37: 12 | I37: 26.4 | J37: 0 | K37: 0 | M37: 0 | N37: 0 | O37: 26.4 | P37: 0 | Q37: 2640 | R37: 0
B38: Machinery Labor
C39: Tractors/Self-Propelled | D39: 0.97 | F39: Hour | G39: 12 | I39: 11.64 | J39: =E39*H39 -> 0 | K39: 0 | M39: 0 | N39: =J39*L39 -> 0 | O39: 11.64 | P39: =+J39-N39 -> 0 | Q39: 1164 | R39: =+J39*E$7 -> 0
C40: Other Labor | D40: 0 | F40: Hour | G40: 12 | I40: 0 | J40: =E40*H40 -> 0 | K40: 0 | M40: 0 | N40: =J40*L40 -> 0 | O40: 0 | P40: =+J40-N40 -> 0 | Q40: 0 | R40: =+J40*E$7 -> 0
B42: Diesel Fuel
C43: Pickup/General Use Equipment | D43: 1 | F43: Acre | G43: 0 | I43: 0 | J43: =E43*H43 -> 0 | K43: 0 | M43: 0 | N43: =J43*L43 -> 0 | O43: 0 | P43: =+J43-N43 -> 0 | Q43: 0 | R43: =+J43*E$7 -> 0
C44: Tractors/Self-Propelled | D44: 4.95 | F44: Gallon | G44: 2.3 | I44: 11.385 | J44: =E44*H44 -> 0 | K44: 0 | M44: 0 | N44: =J44*L44 -> 0 | O44: 11.385 | P44: =+J44-N44 -> 0 | Q44: 1138.5 | R44: =+J44*E$7 -> 0
B46: Gasoline
C47: Pickup/General Use Equipment | D47: 1 | F47: Acre | G47: 0 | I47: 0 | J47: =E47*H47 -> 0 | K47: 0 | M47: 0 | N47: =J47*L47 -> 0 | O47: 0 | P47: =+J47-N47 -> 0 | Q47: 0 | R47: =+J47*E$7 -> 0
C48: Tractors/Self-Propelled | D48: 0 | F48: Gallon | G48: 2.2 | I48: 0 | J48: =E48*H48 -> 0 | K48: 0 | M48: 0 | N48: =J48*L48 -> 0 | O48: 0 | P48: =+J48-N48 -> 0 | Q48: 0 | R48: =+J48*E$7 -> 0
B50: Repairs & Maintenance
C51: Pickup/General Use Equipment | D51: 1 | F51: Acre | G51: 0 | I51: 0 | J51: =E51*H51 -> 0 | K51: 0 | M51: 0 | N51: =J51*L51 -> 0 | O51: 0 | P51: =+J51-N51 -> 0 | Q51: 0 | R51: =+J51*E$7 -> 0
C52: Irrigation Equipment | D52: 1 | F52: Acre | G52: 0 | I52: 0 | J52: 0 | K52: 0 | M52: 0 | N52: 0 | O52: 0 | P52: 0 | Q52: 0 | R52: 0
C53: Tractors/Self-Propelled | D53: 1 | F53: Acre | G53: 9.554227318 | I53: 9.554227318 | J53: 0 | K53: 0 | M53: 0 | N53: 0 | O53: 9.554227318 | P53: 0 | Q53: 955.4227318 | R53: 0
C54: Implements | D54: 1 | F54: Acre | G54: 10.01287398 | I54: 10.01287398 | J54: 0 | K54: 0 | M54: 0 | N54: 0 | O54: 10.01287398 | P54: 0 | Q54: 1001.287398 | R54: 0
I55: 0 | J55: 0 | K55: 0 | M55: 0 | N55: 0 | O55: 0 | P55: 0 | Q55: 0 | R55: 0
I56: 0 | J56: 0 | K56: 0 | M56: 0 | N56: 0 | O56: 0 | P56: 0 | Q56: 0 | R56: 0
B57: Interest on Credit Line | G57: 0.05 | I57: 3.013467889 | J57: =+SUM(J17:J56)/2*H57 -> 0 | M57: 0 | N57: =+SUM(N17:N56)/2*L57 -> 0 | O57: 3.013467889 | P57: =+SUM(P17:P56)/2*L57 -> 0 | Q57: 301.3467889 | R57: =+J57*E$7 -> 0
A58: Total Variable Costs | I58: 186.4608852 | J58: =SUM(J18:J57) -> 0 | M58: 0 | N58: =SUM(N18:N57) -> 0 | O58: 186.4608852 | P58: =SUM(P18:P57) -> 0 | Q58: 18646.08852 | R58: =SUM(R18:R57) -> 0
A59: Planned Returns Above Variable Costs: | I59: 106.0391148 | J59: =+J13-J58 -> 0 | M59: 0 | N59: =+N13-N58 -> 0 | O59: 106.0391148 | P59: =+P13-P58 -> 0 | Q59: 10603.91148 | R59: =+R13-R58 -> 0
B60: Breakeven Price to Cover Variable Costs | G60: 4.143575226 | H60: =IF(E10=0,"n/a",(YVarExp-(YTotExp+YTotRet-J10))/E10) -> n/a | I60: CWT
Q61: Enterprise | R61: Enterprise
A62: FIXED COSTS | D62: Quantity | E62: Quantity | F62: Units | G62: $/Unit | H62: $/Unit | I62: Total | J62: Total | K62: Share | L62: Share | M62: Landlord | N62: Landlord | O62: Tenant | P62: Tenant | Q62: Total | R62: Total
B63: Machinery Depreciation
C64: Tractors/Self-Propelled | D64: 1 | F64: Acre | G64: 10.97401619 | I64: 10.97401619 | J64: =E64*H64 -> 0 | K64: 0 | M64: 0 | N64: =J64*L64 -> 0 | O64: 10.97401619 | P64: =+J64-N64 -> 0 | Q64: 1097.401619 | R64: =+J64*E$7 -> 0
C65: Implements | D65: 1 | F65: Acre | G65: 12.13485842 | I65: 12.13485842 | J65: 0 | K65: 0 | M65: 0 | N65: =J65*L65 -> 0 | O65: 12.13485842 | P65: 0 | Q65: 1213.485842 | R65: 0
B66: Equipment Investment
C67: Tractors/Self-Propelled | D67: 84.97941734 | F67: Dollars | G67: 0.07 | I67: 5.948559214 | J67: =E67*H67 -> 0 | K67: 0 | M67: 0 | N67: =J67*L67 -> 0 | O67: 5.948559214 | P67: =+J67-N67 -> 0 | Q67: 594.8559214 | R67: =+J67*E$7 -> 0
C68: Implements | D68: 59.24804327 | F68: Dollars | G68: 0.07 | I68: 4.147363029 | J68: 0 | K68: 0 | M68: 0 | N68: =J68*L68 -> 0 | O68: 4.147363029 | P68: 0 | Q68: 414.7363029 | R68: 0
B69: Salaried Labor | D69: 1 | F69: Acre | G69: 0 | I69: 0 | J69: 0 | K69: 0 | M69: 0 | N69: =J69*L69 -> 0 | O69: 0 | P69: =+J69-N69 -> 0 | Q69: 0 | R69: =+J69*E$7 -> 0
B70: Management Fee, Owner/Operator Labor | D70: 1 | F70: Acre | G70: 0 | I70: 0 | J70: 0 | K70: 0 | M70: 0 | N70: 0 | O70: 0 | P70: 0 | Q70: 0 | R70: 0
B71: Allocated Establishment Cost | D71: 1 | F71: Acre | G71: 0 | I71: 0 | J71: 0 | K71: 0 | M71: 0 | N71: 0 | O71: 0 | P71: 0 | Q71: 0 | R71: 0
B72: Cash Rent, Irrigated | D72: 1 | F72: Acre | G72: 85 | I72: 85 | J72: 0 | K72: 0 | M72: 0 | N72: 0 | O72: 85 | P72: 0 | Q72: 8500 | R72: 0
B73: Property Taxes | D73: 1 | F73: Acre | G73: 0 | I73: 0 | J73: 0 | K73: 0 | M73: 0 | N73: 0 | O73: 0 | P73: 0 | Q73: 0 | R73: 0
B74: Whole Farm Insurance | D74: 1 | F74: Acre | G74: 0 | I74: 0 | J74: 0 | K74: 0 | M74: 0 | N74: 0 | O74: 0 | P74: 0 | Q74: 0 | R74: 0
D75: 1 | G75: 0 | I75: 0 | J75: 0 | K75: 0 | M75: 0 | N75: 0 | O75: 0 | P75: 0 | Q75: 0 | R75: 0
D76: 1 | G76: 0 | I76: 0 | J76: =E76*H76 -> 0 | K76: 0 | M76: 0 | N76: 0 | O76: 0 | P76: 0 | Q76: 0 | R76: 0
A77: Total Fixed Costs | I77: 118.2047969 | J77: =+SUM(J64:J76) -> 0 | M77: 0 | N77: =+SUM(N64:N76) -> 0 | O77: 118.2047969 | P77: =+SUM(P64:P76) -> 0 | Q77: 11820.47969 | R77: =+SUM(R64:R76) -> 0
A78: Total Specified Costs | I78: 304.665682 | J78: =+J58+J77 -> 0 | M78: 0 | N78: =+N58+N77 -> 0 | O78: 304.665682 | P78: =+P58+P77 -> 0 | Q78: 30466.5682 | R78: =+R58+R77 -> 0
A80: Returns Above Specified Costs | I80: -12.16568204 | J80: =+J13-J78 -> 0 | M80: 0 | N80: =+N13-N78 -> 0 | O80: -12.16568204 | P80: =+P13-P78 -> 0 | Q80: -1216.568204 | R80: =+R13-R78 -> 0
A82: Breakeven Price to Cover Total Costs | G82: 6.77034849 | H82: =IF(E10=0,"n/a",(YTotExp-(YTotExp+YTotRet-J10))/E10) -> n/a | I82: CWT
D84: Example Breakeven Prices
B85: Example | C85: Example | D85: To Cover | G85: To Cover
B86: Yield | C86: Yield | D86: Variable | G86: Total
B87: Percent | C87: CWT | D87: Costs | G87: Costs
B88: 0.75 | C88: 33.75 | D88: 5.524766969 | G88: 9.02713132
B89: 0.9 | C89: 40.5 | D89: 4.603972474 | G89: 7.522609433
B90: 1 | C90: 45 | D90: 4.143575226 | G90: 6.77034849
B91: 1.1 | C91: 49.5 | D91: 3.76688657 | G91: 6.154862263
B92: 1.25 | C92: 56.25 | D92: 3.314860181 | G92: 5.416278792
D94: Your Breakeven Prices
B95: Your | C95: Your | E95: To Cover | H95: To Cover
B96: Yield | C96: Yield | E96: Variable | H96: Total
B97: Percent | C97: CWT | E97: Costs | H97: Costs
B98: 0.75 | C98: =E10*YPER1 -> 0 | E98: =IF($E$10=0,0,(YVarExp-(YTotExp+YTotRet-J10))/($E$10*YPER1)) -> 0 | H98: =IF($E$10=0,0,(YTotExp-(YTotExp+YTotRet-J10))/($E$10*YPER1)) -> 0
B99: 0.9 | C99: =E10*YPER2 -> 0 | E99: =IF($E$10=0,0,(YVarExp-(YTotExp+YTotRet-J10))/($E$10*YPER2)) -> 0 | H99: =IF($E$10=0,0,(YTotExp-(YTotExp+YTotRet-J10))/($E$10*YPER2)) -> 0
B100: 1 | C100: =+E10 -> 0 | E100: =IF($E$10=0,0,(YVarExp-(YTotExp+YTotRet-J10))/($E$10*YPER3)) -> 0 | H100: =IF($E$10=0,0,(YTotExp-(YTotExp+YTotRet-J10))/($E$10*YPER3)) -> 0
B101: 1.1 | C101: =E10*YPER4 -> 0 | E101: =IF($E$10=0,0,(YVarExp-(YTotExp+YTotRet-J10))/($E$10*YPER4)) -> 0 | H101: =IF($E$10=0,0,(YTotExp-(YTotExp+YTotRet-J10))/($E$10*YPER4)) -> 0
B102: 1.25 | C102: =E10*YPER5 -> 0 | E102: =IF($E$10=0,0,(YVarExp-(YTotExp+YTotRet-J10))/($E$10*YPER5)) -> 0 | H102: =IF($E$10=0,0,(YTotExp-(YTotExp+YTotRet-J10))/($E$10*YPER5)) -> 0
A104: Developed by Samuel Zapata, Assistant Professor and Extension Economist, Texas A&M AgriLife Extension, 956-968-5581.
A106: Information presented is prepared solely as a general guide and not intended to recognize or predict the costs and returns from any one operation. Brand names are mentioned only as examples and imply no endorsement.

Sheet SorghumDryland
A1: Projections for Planning Purposes Only -- Not to be Used without Updating
A2: 2020 Estimated Costs and Returns per Acre
A3: Grain Sorghum, Conventional Tillage, Dryland, Rio Grande Valley
A4: Enter your name for this budget in the cell above.
A5: Enter Your Values in the cells highlighed in MAROON.
E6: Your Acres | R6: Your
C7: Crop Acres | D7: 100 | L7: Your | Q7: Enterprise | R7: Enterprise
E8: Your | H8: Your | I8: Cash | J8: Your | K8: Landlord | L8: Landlord | N8: Your | P8: Your | Q8: Total | R8: Total
A9: REVENUE | D9: Quantity | E9: Quantity | F9: Units | G9: $/Unit | H9: $/Unit | I9: Total | J9: Total | K9: Share | L9: Share | M9: Landlord | N9: Landlord | O9: Tenant | P9: Tenant | Q9: (100 acres) | R9: ="(" & E7 & " acres)" -> ( acres)
B10: Grain Sorghum | D10: 30 | F10: CWT | G10: 6.5 | I10: 195 | J10: =E10*H10 -> 0 | K10: 0 | M10: 0 | N10: =J10*L10 -> 0 | O10: 195 | P10: =+J10-N10 -> 0 | Q10: 19500 | R10: =+J10*E$7 -> 0
D11: 0 | G11: 0 | I11: 0 | J11: 0 | K11: 0 | M11: 0 | N11: 0 | O11: 0 | P11: =+J11-N11 -> 0 | Q11: 0 | R11: 0
D12: 0 | G12: 0 | I12: 0 | J12: 0 | K12: 0 | M12: 0 | N12: 0 | O12: 0 | P12: 0 | Q12: 0 | R12: 0
A13: Total Revenue | I13: 195 | J13: =SUM(J10:J12) -> 0 | M13: 0 | N13: =SUM(N10:N12) -> 0 | O13: 195 | P13: =SUM(P10:P12) -> 0 | Q13: 19500 | R13: =SUM(R10:R12) -> 0
Q14: Enterprise | R14: Enterprise
A15: VARIABLE COSTS | D15: Quantity | E15: Quantity | F15: Units | G15: $/Unit | H15: $/Unit | I15: Total | J15: Total | K15: Share | L15: Share | M15: Landlord | N15: Landlord | O15: Tenant | P15: Tenant | Q15: Total | R15: Total
A16: Production Costs
B17: Herbicide
C18: AAtrex 4L | D18: 2 | F18: Pint | G18: 2.476408 | I18: 4.952816 | J18: =E18*H18 -> 0 | K18: 0 | M18: 0 | N18: =J18*L18 -> 0 | O18: 4.952816 | P18: =+J18-N18 -> 0 | Q18: 495.2816 | R18: =+J18*E$7 -> 0
B19: Seed
C20: Grain Sorghum Seed | D20: 4.5 | F20: Pound | G20: 2.4 | I20: 10.8 | J20: 0 | K20: 0 | M20: 0 | N20: 0 | O20: 10.8 | P20: 0 | Q20: 1080 | R20: 0
B21: Fertilizer
C22: UAN (32% N) | D22: 1.41 | F22: CWT | G22: 15.25 | I22: 21.5025 | J22: 0 | K22: 0 | M22: 0 | N22: 0 | O22: 21.5025 | P22: 0 | Q22: 2150.25 | R22: 0
B23: Custom
C24: Harvest/Haul Sorghum | D24: 30 | F24: CWT | G24: 0.51 | I24: 15.3 | J24: 0 | K24: 0 | M24: 0 | N24: 0 | O24: 15.3 | P24: 0 | Q24: 1530 | R24: 0
B25: Other Labor
C26: Unallocated Labor | D26: 0.7072 | F26: Hour | G26: 12 | I26: 8.4864 | J26: 0 | K26: 0 | M26: 0 | N26: 0 | O26: 8.4864 | P26: 0 | Q26: 848.64 | R26: 0
B27: Miscellaneous
C28: Insurance, Sorghum - Dryland | D28: 1 | F28: acre | G28: 8.61 | I28: 8.61 | J28: 0 | K28: 0 | M28: 0 | N28: 0 | O28: 8.61 | P28: 0 | Q28: 861 | R28: 0
D29: 0 | G29: 0 | I29: 0 | J29: 0 | K29: 0 | M29: 0 | N29: 0 | O29: 0 | P29: 0 | Q29: 0 | R29: 0
D30: 0 | G30: 0 | I30: 0 | J30: 0 | K30: 0 | M30: 0 | N30: 0 | O30: 0 | P30: 0 | Q30: 0 | R30: 0
D31: 0 | G31: 0 | I31: 0 | J31: =E31*H31 -> 0 | K31: 0 | M31: 0 | N31: =J31*L31 -> 0 | O31: 0 | P31: =+J31-N31 -> 0 | Q31: 0 | R31: =+J31*E$7 -> 0
B32: Machinery Labor
C33: Tractors/Self-Propelled | D33: 1.4 | F33: Hour | G33: 12 | I33: 16.8 | J33: =E33*H33 -> 0 | K33: 0 | M33: 0 | N33: =J33*L33 -> 0 | O33: 16.8 | P33: =+J33-N33 -> 0 | Q33: 1680 | R33: =+J33*E$7 -> 0
C34: Other Labor | D34: 0 | F34: Hour | G34: 12 | I34: 0 | J34: =E34*H34 -> 0 | K34: 0 | M34: 0 | N34: =J34*L34 -> 0 | O34: 0 | P34: =+J34-N34 -> 0 | Q34: 0 | R34: =+J34*E$7 -> 0
B36: Diesel Fuel
C37: Pickup/General Use Equipment | D37: 1 | F37: Acre | G37: 0 | I37: 0 | J37: =E37*H37 -> 0 | K37: 0 | M37: 0 | N37: =J37*L37 -> 0 | O37: 0 | P37: =+J37-N37 -> 0 | Q37: 0 | R37: =+J37*E$7 -> 0
C38: Tractors/Self-Propelled | D38: 8.51 | F38: Gallon | G38: 2.3 | I38: 19.573 | J38: =E38*H38 -> 0 | K38: 0 | M38: 0 | N38: =J38*L38 -> 0 | O38: 19.573 | P38: =+J38-N38 -> 0 | Q38: 1957.3 | R38: =+J38*E$7 -> 0
B40: Gasoline
C41: Pickup/General Use Equipment | D41: 1 | F41: Acre | G41: 0 | I41: 0 | J41: =E41*H41 -> 0 | K41: 0 | M41: 0 | N41: =J41*L41 -> 0 | O41: 0 | P41: =+J41-N41 -> 0 | Q41: 0 | R41: =+J41*E$7 -> 0
C42: Tractors/Self-Propelled | D42: 0 | F42: Gallon | G42: 2.2 | I42: 0 | J42: =E42*H42 -> 0 | K42: 0 | M42: 0 | N42: =J42*L42 -> 0 | O42: 0 | P42: =+J42-N42 -> 0 | Q42: 0 | R42: =+J42*E$7 -> 0
B44: Repairs & Maintenance
C45: Pickup/General Use Equipment | D45: 1 | F45: Acre | G45: 0 | I45: 0 | J45: =E45*H45 -> 0 | K45: 0 | M45: 0 | N45: =J45*L45 -> 0 | O45: 0 | P45: =+J45-N45 -> 0 | Q45: 0 | R45: =+J45*E$7 -> 0
C46: Irrigation Equipment | D46: 1 | F46: Acre | G46: 0 | I46: 0 | J46: 0 | K46: 0 | M46: 0 | N46: 0 | O46: 0 | P46: 0 | Q46: 0 | R46: 0
C47: Tractors/Self-Propelled | D47: 1 | F47: Acre | G47: 18.81798598 | I47: 18.81798598 | J47: 0 | K47: 0 | M47: 0 | N47: 0 | O47: 18.81798598 | P47: 0 | Q47: 1881.798598 | R47: 0
C48: Implements | D48: 1 | F48: Acre | G48: 16.1502374 | I48: 16.1502374 | J48: 0 | K48: 0 | M48: 0 | N48: 0 | O48: 16.1502374 | P48: 0 | Q48: 1615.02374 | R48: 0
I49: 0 | J49: 0 | K49: 0 | M49: 0 | N49: 0 | O49: 0 | P49: 0 | Q49: 0 | R49: 0
I50: 0 | J50: 0 | K50: 0 | M50: 0 | N50: 0 | O50: 0 | P50: 0 | Q50: 0 | R50: 0
B51: Interest on Credit Line | G51: 0.05 | I51: 2.947340829 | J51: =+SUM(J17:J50)/2*H51 -> 0 | M51: 0 | N51: =+SUM(N17:N50)/2*L51 -> 0 | O51: 2.947340829 | P51: =+SUM(P17:P50)/2*L51 -> 0 | Q51: 294.7340829 | R51: =+J51*E$7 -> 0
A52: Total Variable Costs | I52: 143.9402802 | J52: =SUM(J18:J51) -> 0 | M52: 0 | N52: =SUM(N18:N51) -> 0 | O52: 143.9402802 | P52: =SUM(P18:P51) -> 0 | Q52: 14394.02802 | R52: =SUM(R18:R51) -> 0
A53: Planned Returns Above Variable Costs: | I53: 51.05971979 | J53: =+J13-J52 -> 0 | M53: 0 | N53: =+N13-N52 -> 0 | O53: 51.05971979 | P53: =+P13-P52 -> 0 | Q53: 5105.971979 | R53: =+R13-R52 -> 0
B54: Breakeven Price to Cover Variable Costs | G54: 4.79800934 | H54: =IF(E10=0,"n/a",(YVarExp-(YTotExp+YTotRet-J10))/E10) -> n/a | I54: CWT
Q55: Enterprise | R55: Enterprise
A56: FIXED COSTS | D56: Quantity | E56: Quantity | F56: Units | G56: $/Unit | H56: $/Unit | I56: Total | J56: Total | K56: Share | L56: Share | M56: Landlord | N56: Landlord | O56: Tenant | P56: Tenant | Q56: Total | R56: Total
B57: Machinery Depreciation
C58: Tractors/Self-Propelled | D58: 1 | F58: Acre | G58: 19.44525218 | I58: 19.44525218 | J58: =E58*H58 -> 0 | K58: 0 | M58: 0 | N58: =J58*L58 -> 0 | O58: 19.44525218 | P58: =+J58-N58 -> 0 | Q58: 1944.525218 | R58: =+J58*E$7 -> 0
C59: Implements | D59: 1 | F59: Acre | G59: 19.68888128 | I59: 19.68888128 | J59: 0 | K59: 0 | M59: 0 | N59: =J59*L59 -> 0 | O59: 19.68888128 | P59: 0 | Q59: 1968.888128 | R59: 0
B60: Equipment Investment
C61: Tractors/Self-Propelled | D61: 151.4847872 | F61: Dollars | G61: 0.07 | I61: 10.6039351 | J61: =E61*H61 -> 0 | K61: 0 | M61: 0 | N61: =J61*L61 -> 0 | O61: 10.6039351 | P61: =+J61-N61 -> 0 | Q61: 1060.39351 | R61: =+J61*E$7 -> 0
C62: Implements | D62: 90.91614765 | F62: Dollars | G62: 0.07 | I62: 6.364130336 | J62: 0 | K62: 0 | M62: 0 | N62: =J62*L62 -> 0 | O62: 6.364130336 | P62: 0 | Q62: 636.4130336 | R62: 0
B63: Salaried Labor | D63: 1 | F63: Acre | G63: 0 | I63: 0 | J63: 0 | K63: 0 | M63: 0 | N63: =J63*L63 -> 0 | O63: 0 | P63: =+J63-N63 -> 0 | Q63: 0 | R63: =+J63*E$7 -> 0
B64: Management Fee, Owner/Operator Labor | D64: 1 | F64: Acre | G64: 0 | I64: 0 | J64: 0 | K64: 0 | M64: 0 | N64: 0 | O64: 0 | P64: 0 | Q64: 0 | R64: 0
B65: Allocated Establishment Cost | D65: 1 | F65: Acre | G65: 0 | I65: 0 | J65: 0 | K65: 0 | M65: 0 | N65: 0 | O65: 0 | P65: 0 | Q65: 0 | R65: 0
B66: Cash Rent, Dryland | D66: 1 | F66: Acre | G66: 60 | I66: 60 | J66: 0 | K66: 0 | M66: 0 | N66: 0 | O66: 60 | P66: 0 | Q66: 6000 | R66: 0
B67: Property Taxes | D67: 1 | F67: Acre | G67: 0 | I67: 0 | J67: 0 | K67: 0 | M67: 0 | N67: 0 | O67: 0 | P67: 0 | Q67: 0 | R67: 0
B68: Whole Farm Insurance | D68: 1 | F68: Acre | G68: 0 | I68: 0 | J68: 0 | K68: 0 | M68: 0 | N68: 0 | O68: 0 | P68: 0 | Q68: 0 | R68: 0
D69: 1 | G69: 0 | I69: 0 | J69: 0 | K69: 0 | M69: 0 | N69: 0 | O69: 0 | P69: 0 | Q69: 0 | R69: 0
D70: 1 | G70: 0 | I70: 0 | J70: =E70*H70 -> 0 | K70: 0 | M70: 0 | N70: 0 | O70: 0 | P70: 0 | Q70: 0 | R70: 0
A71: Total Fixed Costs | I71: 116.1021989 | J71: =+SUM(J58:J70) -> 0 | M71: 0 | N71: =+SUM(N58:N70) -> 0 | O71: 116.1021989 | P71: =+SUM(P58:P70) -> 0 | Q71: 11610.21989 | R71: =+SUM(R58:R70) -> 0
A72: Total Specified Costs | I72: 260.0424791 | J72: =+J52+J71 -> 0 | M72: 0 | N72: =+N52+N71 -> 0 | O72: 260.0424791 | P72: =+P52+P71 -> 0 | Q72: 26004.24791 | R72: =+R52+R71 -> 0
A74: Returns Above Specified Costs | I74: -65.04247911 | J74: =+J13-J72 -> 0 | M74: 0 | N74: =+N13-N72 -> 0 | O74: -65.04247911 | P74: =+P13-P72 -> 0 | Q74: -6504.247911 | R74: =+R13-R72 -> 0
A76: Breakeven Price to Cover Total Costs | G76: 8.668082637 | H76: =IF(E10=0,"n/a",(YTotExp-(YTotExp+YTotRet-J10))/E10) -> n/a | I76: CWT
D78: Example Breakeven Prices
B79: Example | C79: Example | D79: To Cover | G79: To Cover
B80: Yield | C80: Yield | D80: Variable | G80: Total
B81: Percent | C81: CWT | D81: Costs | G81: Costs
B82: 0.75 | C82: 22.5 | D82: 6.397345787 | G82: 11.55744352
B83: 0.9 | C83: 27 | D83: 5.331121489 | G83: 9.63120293
B84: 1 | C84: 30 | D84: 4.79800934 | G84: 8.668082637
B85: 1.1 | C85: 33 | D85: 4.361826673 | G85: 7.880075125
B86: 1.25 | C86: 37.5 | D86: 3.838407472 | G86: 6.93446611
D88: Your Breakeven Prices
B89: Your | C89: Your | E89: To Cover | H89: To Cover
B90: Yield | C90: Yield | E90: Variable | H90: Total
B91: Percent | C91: CWT | E91: Costs | H91: Costs
B92: 0.75 | C92: =E10*YPER1 -> 0 | E92: =IF($E$10=0,0,(YVarExp-(YTotExp+YTotRet-J10))/($E$10*YPER1)) -> 0 | H92: =IF($E$10=0,0,(YTotExp-(YTotExp+YTotRet-J10))/($E$10*YPER1)) -> 0
B93: 0.9 | C93: =E10*YPER2 -> 0 | E93: =IF($E$10=0,0,(YVarExp-(YTotExp+YTotRet-J10))/($E$10*YPER2)) -> 0 | H93: =IF($E$10=0,0,(YTotExp-(YTotExp+YTotRet-J10))/($E$10*YPER2)) -> 0
B94: 1 | C94: =+E10 -> 0 | E94: =IF($E$10=0,0,(YVarExp-(YTotExp+YTotRet-J10))/($E$10*YPER3)) -> 0 | H94: =IF($E$10=0,0,(YTotExp-(YTotExp+YTotRet-J10))/($E$10*YPER3)) -> 0
B95: 1.1 | C95: =E10*YPER4 -> 0 | E95: =IF($E$10=0,0,(YVarExp-(YTotExp+YTotRet-J10))/($E$10*YPER4)) -> 0 | H95: =IF($E$10=0,0,(YTotExp-(YTotExp+YTotRet-J10))/($E$10*YPER4)) -> 0
B96: 1.25 | C96: =E10*YPER5 -> 0 | E96: =IF($E$10=0,0,(YVarExp-(YTotExp+YTotRet-J10))/($E$10*YPER5)) -> 0 | H96: =IF($E$10=0,0,(YTotExp-(YTotExp+YTotRet-J10))/($E$10*YPER5)) -> 0
A98: Developed by Samuel Zapata, Assistant Professor and Extension Economist, Texas A&M AgriLife Extension, 956-968-5581.
A100: Information presented is prepared solely as a general guide and not intended to recognize or predict the costs and returns from any one operation. Brand names are mentioned only as examples and imply no endorsement.

Sheet SugarCanePlant
A2: 2020 Estimated Costs and Returns per Acre
A3: Sugar Cane, Planted, Furrow Irrigated, Rio Grande Valley
A4: Enter your name for this budget in the cell above.
A5: Enter Your Values in the cells highlighed in MAROON.
E6: Your Acres | R6: Your
C7: Crop Acres | D7: 100 | L7: Your | Q7: Enterprise | R7: Enterprise
E8: Your | H8: Your | I8: Cash | J8: Your | K8: Landlord | L8: Landlord | N8: Your | P8: Your | Q8: Total | R8: Total
A9: REVENUE | D9: Quantity | E9: Quantity | F9: Units | G9: $/Unit | H9: $/Unit | I9: Total | J9: Total | K9: Share | L9: Share | M9: Landlord | N9: Landlord | O9: Tenant | P9: Tenant | Q9: (100 acres) | R9: ="(" & E7 & " acres)" -> ( acres)
B10: Sugar Cane | D10: 50 | F10: Ton | G10: 29.212 | I10: 1460.6 | J10: =E10*H10 -> 0 | K10: 0 | M10: 0 | N10: =J10*L10 -> 0 | O10: 1460.6 | P10: =+J10-N10 -> 0 | Q10: 146060 | R10: =+J10*E$7 -> 0
D11: 0 | G11: 0 | I11: 0 | J11: 0 | K11: 0 | M11: 0 | N11: 0 | O11: 0 | P11: =+J11-N11 -> 0 | Q11: 0 | R11: 0
D12: 0 | G12: 0 | I12: 0 | J12: 0 | K12: 0 | M12: 0 | N12: 0 | O12: 0 | P12: 0 | Q12: 0 | R12: 0
A13: Total Revenue | I13: 1460.6 | J13: =SUM(J10:J12) -> 0 | M13: 0 | N13: =SUM(N10:N12) -> 0 | O13: 1460.6 | P13: =SUM(P10:P12) -> 0 | Q13: 146060 | R13: =SUM(R10:R12) -> 0
Q14: Enterprise | R14: Enterprise
A15: VARIABLE COSTS | D15: Quantity | E15: Quantity | F15: Units | G15: $/Unit | H15: $/Unit | I15: Total | J15: Total | K15: Share | L15: Share | M15: Landlord | N15: Landlord | O15: Tenant | P15: Tenant | Q15: Total | R15: Total
A16: Production Costs
B17: Custom
C18: Fixed Harvesting - SC | D18: 1 | F18: Acre | G18: 145 | I18: 145 | J18: =E18*H18 -> 0 | K18: 0 | M18: 0 | N18: =J18*L18 -> 0 | O18: 145 | P18: =+J18-N18 -> 0 | Q18: 14500 | R18: =+J18*E$7 -> 0
C19: Variable Harvesting - SC | D19: 50 | F19: Ton | G19: 3.87 | I19: 193.5 | J19: 0 | K19: 0 | M19: 0 | N19: 0 | O19: 193.5 | P19: 0 | Q19: 19350 | R19: 0
C20: Hauling - SC | D20: 50 | F20: Ton | G20: 3.96 | I20: 198 | J20: 0 | K20: 0 | M20: 0 | N20: 0 | O20: 198 | P20: 0 | Q20: 19800 | R20: 0
B21: Fertilizer
C22: Fertilizer 10-34-0 | D22: 2.4 | F22: CWT | G22: 35.0025 | I22: 84.006 | J22: 0 | K22: 0 | M22: 0 | N22: 0 | O22: 84.006 | P22: 0 | Q22: 8400.6 | R22: 0
C23: UAN (32% N) | D23: 3.3 | F23: CWT | G23: 15.25 | I23: 50.325 | J23: 0 | K23: 0 | M23: 0 | N23: 0 | O23: 50.325 | P23: 0 | Q23: 5032.5 | R23: 0
B24: Herbicide
C25: Atrazine 4L | D25: 6 | F25: Pint | G25: 1.90412 | I25: 11.42472 | J25: 0 | K25: 0 | M25: 0 | N25: 0 | O25: 11.42472 | P25: 0 | Q25: 1142.472 | R25: 0
C26: Pendimethalin | D26: 9.6 | F26: Pint | G26: 6.11212 | I26: 58.676352 | J26: 0 | K26: 0 | M26: 0 | N26: 0 | O26: 58.676352 | P26: 0 | Q26: 5867.6352 | R26: 0
B27: Miscellaneous
C28: Insurance, Sugarcane | D28: 1 | F28: Acre | G28: 16 | I28: 16 | J28: 0 | K28: 0 | M28: 0 | N28: 0 | O28: 16 | P28: 0 | Q28: 1600 | R28: 0
B29: Seed
C30: Seed Cane | D30: 1 | F30: acre | G30: 1200 | I30: 1200 | J30: 0 | K30: 0 | M30: 0 | N30: 0 | O30: 1200 | P30: 0 | Q30: 120000 | R30: 0
B31: Other Labor
C32: Unallocated Labor | D32: 0.5 | F32: Hour | G32: 12 | I32: 6 | J32: 0 | K32: 0 | M32: 0 | N32: 0 | O32: 6 | P32: 0 | Q32: 600 | R32: 0
D33: 0 | G33: 0 | I33: 0 | J33: 0 | K33: 0 | M33: 0 | N33: 0 | O33: 0 | P33: 0 | Q33: 0 | R33: 0
D34: 0 | G34: 0 | I34: 0 | J34: 0 | K34: 0 | M34: 0 | N34: 0 | O34: 0 | P34: 0 | Q34: 0 | R34: 0
D35: 0 | G35: 0 | I35: 0 | J35: =E35*H35 -> 0 | K35: 0 | M35: 0 | N35: =J35*L35 -> 0 | O35: 0 | P35: =+J35-N35 -> 0 | Q35: 0 | R35: =+J35*E$7 -> 0
B36: Irrigation
C37: Water Cost | D37: 5.5 | F37: Acre/Foot | G37: 20 | I37: 110 | J37: =E37*H37 -> 0 | K37: 0 | M37: 0 | N37: =J37*L37 -> 0 | O37: 110 | P37: =+J37-N37 -> 0 | Q37: 11000 | R37: =+J37*E$7 -> 0
C38: Irrigation Labor | D38: 7.7 | F38: Hour | G38: 12 | I38: 92.4 | J38: 0 | K38: 0 | M38: 0 | N38: 0 | O38: 92.4 | P38: 0 | Q38: 9240 | R38: 0
B39: Machinery Labor
C40: Tractors/Self-Propelled | D40: 1.21 | F40: Hour | G40: 12 | I40: 14.52 | J40: =E40*H40 -> 0 | K40: 0 | M40: 0 | N40: =J40*L40 -> 0 | O40: 14.52 | P40: =+J40-N40 -> 0 | Q40: 1452 | R40: =+J40*E$7 -> 0
C41: Other Labor | D41: 0 | F41: Hour | G41: 12 | I41: 0 | J41: =E41*H41 -> 0 | K41: 0 | M41: 0 | N41: =J41*L41 -> 0 | O41: 0 | P41: =+J41-N41 -> 0 | Q41: 0 | R41: =+J41*E$7 -> 0
B43: Diesel Fuel
C44: Pickup/General Use Equipment | D44: 1 | F44: Acre | G44: 0 | I44: 0 | J44: =E44*H44 -> 0 | K44: 0 | M44: 0 | N44: =J44*L44 -> 0 | O44: 0 | P44: =+J44-N44 -> 0 | Q44: 0 | R44: =+J44*E$7 -> 0
C45: Tractors/Self-Propelled | D45: 5.89 | F45: Gallon | G45: 2.3 | I45: 13.547 | J45: =E45*H45 -> 0 | K45: 0 | M45: 0 | N45: =J45*L45 -> 0 | O45: 13.547 | P45: =+J45-N45 -> 0 | Q45: 1354.7 | R45: =+J45*E$7 -> 0
B47: Gasoline
C48: Pickup/General Use Equipment | D48: 1 | F48: Acre | G48: 0 | I48: 0 | J48: =E48*H48 -> 0 | K48: 0 | M48: 0 | N48: =J48*L48 -> 0 | O48: 0 | P48: =+J48-N48 -> 0 | Q48: 0 | R48: =+J48*E$7 -> 0
C49: Tractors/Self-Propelled | D49: 0 | F49: Gallon | G49: 2.2 | I49: 0 | J49: =E49*H49 -> 0 | K49: 0 | M49: 0 | N49: =J49*L49 -> 0 | O49: 0 | P49: =+J49-N49 -> 0 | Q49: 0 | R49: =+J49*E$7 -> 0
B51: Repairs & Maintenance
C52: Pickup/General Use Equipment | D52: 1 | F52: Acre | G52: 0 | I52: 0 | J52: =E52*H52 -> 0 | K52: 0 | M52: 0 | N52: =J52*L52 -> 0 | O52: 0 | P52: =+J52-N52 -> 0 | Q52: 0 | R52: =+J52*E$7 -> 0
C53: Irrigation Equipment | D53: 1 | F53: Acre | G53: 0 | I53: 0 | J53: 0 | K53: 0 | M53: 0 | N53: 0 | O53: 0 | P53: 0 | Q53: 0 | R53: 0
C54: Tractors/Self-Propelled | D54: 1 | F54: Acre | G54: 13.0476355 | I54: 13.0476355 | J54: 0 | K54: 0 | M54: 0 | N54: 0 | O54: 13.0476355 | P54: 0 | Q54: 1304.76355 | R54: 0
C55: Implements | D55: 1 | F55: Acre | G55: 10.44731975 | I55: 10.44731975 | J55: 0 | K55: 0 | M55: 0 | N55: 0 | O55: 10.44731975 | P55: 0 | Q55: 1044.731975 | R55: 0
I56: 0 | J56: 0 | K56: 0 | M56: 0 | N56: 0 | O56: 0 | P56: 0 | Q56: 0 | R56: 0
I57: 0 | J57: 0 | K57: 0 | M57: 0 | N57: 0 | O57: 0 | P57: 0 | Q57: 0 | R57: 0
B58: Interest on Credit Line | G58: 0.05 | I58: 93.1818188 | J58: =+SUM(J17:J57)/2*H58 -> 0 | M58: 0 | N58: =+SUM(N17:N57)/2*L58 -> 0 | O58: 93.1818188 | P58: =+SUM(P17:P57)/2*L58 -> 0 | Q58: 9318.18188 | R58: =+J58*E$7 -> 0
A59: Total Variable Costs | I59: 2310.075846 | J59: =SUM(J18:J58) -> 0 | M59: 0 | N59: =SUM(N18:N58) -> 0 | O59: 2310.075846 | P59: =SUM(P18:P58) -> 0 | Q59: 231007.5846 | R59: =SUM(R18:R58) -> 0
A60: Planned Returns Above Variable Costs: | I60: -849.475846 | J60: =+J13-J59 -> 0 | M60: 0 | N60: =+N13-N59 -> 0 | O60: -849.475846 | P60: =+P13-P59 -> 0 | Q60: -84947.5846 | R60: =+R13-R59 -> 0
B61: Breakeven Price to Cover Variable Costs | G61: 46.20151692 | H61: =IF(E10=0,"n/a",(YVarExp-(YTotExp+YTotRet-J10))/E10) -> n/a | I61: Ton
Q62: Enterprise | R62: Enterprise
A63: FIXED COSTS | D63: Quantity | E63: Quantity | F63: Units | G63: $/Unit | H63: $/Unit | I63: Total | J63: Total | K63: Share | L63: Share | M63: Landlord | N63: Landlord | O63: Tenant | P63: Tenant | Q63: Total | R63: Total
B64: Machinery Depreciation
C65: Tractors/Self-Propelled | D65: 1 | F65: Acre | G65: 13.48255668 | I65: 13.48255668 | J65: =E65*H65 -> 0 | K65: 0 | M65: 0 | N65: =J65*L65 -> 0 | O65: 13.48255668 | P65: =+J65-N65 -> 0 | Q65: 1348.255668 | R65: =+J65*E$7 -> 0
C66: Implements | D66: 1 | F66: Acre | G66: 13.10304296 | I66: 13.10304296 | J66: 0 | K66: 0 | M66: 0 | N66: =J66*L66 -> 0 | O66: 13.10304296 | P66: 0 | Q66: 1310.304296 | R66: 0
B67: Equipment Investment
C68: Tractors/Self-Propelled | D68: 105.0334658 | F68: Dollars | G68: 0.07 | I68: 7.352342603 | J68: =E68*H68 -> 0 | K68: 0 | M68: 0 | N68: =J68*L68 -> 0 | O68: 7.352342603 | P68: =+J68-N68 -> 0 | Q68: 735.2342603 | R68: =+J68*E$7 -> 0
C69: Implements | D69: 56.93641231 | F69: Dollars | G69: 0.07 | I69: 3.985548862 | J69: 0 | K69: 0 | M69: 0 | N69: =J69*L69 -> 0 | O69: 3.985548862 | P69: 0 | Q69: 398.5548862 | R69: 0
B70: Salaried Labor | D70: 1 | F70: Acre | G70: 0 | I70: 0 | J70: 0 | K70: 0 | M70: 0 | N70: =J70*L70 -> 0 | O70: 0 | P70: =+J70-N70 -> 0 | Q70: 0 | R70: =+J70*E$7 -> 0
B71: Management Fee, Owner/Operator Labor | D71: 1 | F71: Acre | G71: 0 | I71: 0 | J71: 0 | K71: 0 | M71: 0 | N71: 0 | O71: 0 | P71: 0 | Q71: 0 | R71: 0
B72: Allocated Establishment Cost | D72: 1 | F72: Acre | G72: 2.11 | I72: 2.11 | J72: 0 | K72: 0 | M72: 0 | N72: 0 | O72: 2.11 | P72: 0 | Q72: 211 | R72: 0
B73: Cash Rent, Sugar Cane | D73: 1 | F73: Acre | G73: 110 | I73: 110 | J73: 0 | K73: 0 | M73: 0 | N73: 0 | O73: 110 | P73: 0 | Q73: 11000 | R73: 0
B74: Property Taxes | D74: 1 | F74: Acre | G74: 0 | I74: 0 | J74: 0 | K74: 0 | M74: 0 | N74: 0 | O74: 0 | P74: 0 | Q74: 0 | R74: 0
B75: Whole Farm Insurance | D75: 1 | F75: Acre | G75: 0 | I75: 0 | J75: 0 | K75: 0 | M75: 0 | N75: 0 | O75: 0 | P75: 0 | Q75: 0 | R75: 0
D76: 1 | G76: 0 | I76: 0 | J76: 0 | K76: 0 | M76: 0 | N76: 0 | O76: 0 | P76: 0 | Q76: 0 | R76: 0
D77: 1 | G77: 0 | I77: 0 | J77: =E77*H77 -> 0 | K77: 0 | M77: 0 | N77: 0 | O77: 0 | P77: 0 | Q77: 0 | R77: 0
A78: Total Fixed Costs | I78: 150.0334911 | J78: =+SUM(J65:J77) -> 0 | M78: 0 | N78: =+SUM(N65:N77) -> 0 | O78: 150.0334911 | P78: =+SUM(P65:P77) -> 0 | Q78: 15003.34911 | R78: =+SUM(R65:R77) -> 0
A79: Total Specified Costs | I79: 2460.109337 | J79: =+J59+J78 -> 0 | M79: 0 | N79: =+N59+N78 -> 0 | O79: 2460.109337 | P79: =+P59+P78 -> 0 | Q79: 246010.9337 | R79: =+R59+R78 -> 0
A81: Returns Above Specified Costs | I81: -999.5093372 | J81: =+J13-J79 -> 0 | M81: 0 | N81: =+N13-N79 -> 0 | O81: -999.5093372 | P81: =+P13-P79 -> 0 | Q81: -99950.93372 | R81: =+R13-R79 -> 0
A83: Breakeven Price to Cover Total Costs | G83: 49.20218674 | H83: =IF(E10=0,"n/a",(YTotExp-(YTotExp+YTotRet-J10))/E10) -> n/a | I83: Ton
D85: Example Breakeven Prices
B86: Example | C86: Example | D86: To Cover | G86: To Cover
B87: Yield | C87: Yield | D87: Variable | G87: Total
B88: Percent | C88: Ton | D88: Costs | G88: Costs
B89: 0.75 | C89: 37.5 | D89: 61.60202256 | G89: 65.60291566
B90: 0.9 | C90: 45 | D90: 51.3350188 | G90: 54.66909638
B91: 1 | C91: 50 | D91: 46.20151692 | G91: 49.20218674
B92: 1.1 | C92: 55 | D92: 42.00137902 | G92: 44.72926068
B93: 1.25 | C93: 62.5 | D93: 36.96121354 | G93: 39.36174939
D95: Your Breakeven Prices
B96: Your | C96: Your | E96: To Cover | H96: To Cover
B97: Yield | C97: Yield | E97: Variable | H97: Total
B98: Percent | C98: Ton | E98: Costs | H98: Costs
B99: 0.75 | C99: =E10*YPER1 -> 0 | E99: =IF($E$10=0,0,(YVarExp-(YTotExp+YTotRet-J10))/($E$10*YPER1)) -> 0 | H99: =IF($E$10=0,0,(YTotExp-(YTotExp+YTotRet-J10))/($E$10*YPER1)) -> 0
B100: 0.9 | C100: =E10*YPER2 -> 0 | E100: =IF($E$10=0,0,(YVarExp-(YTotExp+YTotRet-J10))/($E$10*YPER2)) -> 0 | H100: =IF($E$10=0,0,(YTotExp-(YTotExp+YTotRet-J10))/($E$10*YPER2)) -> 0
B101: 1 | C101: =+E10 -> 0 | E101: =IF($E$10=0,0,(YVarExp-(YTotExp+YTotRet-J10))/($E$10*YPER3)) -> 0 | H101: =IF($E$10=0,0,(YTotExp-(YTotExp+YTotRet-J10))/($E$10*YPER3)) -> 0
B102: 1.1 | C102: =E10*YPER4 -> 0 | E102: =IF($E$10=0,0,(YVarExp-(YTotExp+YTotRet-J10))/($E$10*YPER4)) -> 0 | H102: =IF($E$10=0,0,(YTotExp-(YTotExp+YTotRet-J10))/($E$10*YPER4)) -> 0
B103: 1.25 | C103: =E10*YPER5 -> 0 | E103: =IF($E$10=0,0,(YVarExp-(YTotExp+YTotRet-J10))/($E$10*YPER5)) -> 0 | H103: =IF($E$10=0,0,(YTotExp-(YTotExp+YTotRet-J10))/($E$10*YPER5)) -> 0
A105: Developed by Samuel Zapata, Assistant Professor and Extension Economist, Texas A&M AgriLife Extension, 956-968-5581.
A107: Information presented is prepared solely as a general guide and not intended to recognize or predict the costs and returns from any one operation. Brand names are mentioned only as examples and imply no endorsement.

Sheet SugarCaneRatoon
A1: Projections for Planning Purposes Only -- Not to be Used without Updating
A2: 2020 Estimated Costs and Returns per Acre
A3: Sugar Cane, Ratoon, Furrow Irrigated, Rio Grande Valley
A4: Enter your name for this budget in the cell above.
A5: Enter Your Values in the cells highlighed in MAROON.
E6: Your Acres | R6: Your
C7: Crop Acres | D7: 100 | L7: Your | Q7: Enterprise | R7: Enterprise
E8: Your | H8: Your | I8: Cash | J8: Your | K8: Landlord | L8: Landlord | N8: Your | P8: Your | Q8: Total | R8: Total
A9: REVENUE | D9: Quantity | E9: Quantity | F9: Units | G9: $/Unit | H9: $/Unit | I9: Total | J9: Total | K9: Share | L9: Share | M9: Landlord | N9: Landlord | O9: Tenant | P9: Tenant | Q9: (100 acres) | R9: ="(" & E7 & " acres)" -> ( acres)
B10: Sugar Cane | D10: 38 | F10: Ton | G10: 29.212 | I10: 1110.056 | J10: =E10*H10 -> 0 | K10: 0 | M10: 0 | N10: =J10*L10 -> 0 | O10: 1110.056 | P10: =+J10-N10 -> 0 | Q10: 111005.6 | R10: =+J10*E$7 -> 0
D11: 0 | G11: 0 | I11: 0 | J11: 0 | K11: 0 | M11: 0 | N11: 0 | O11: 0 | P11: =+J11-N11 -> 0 | Q11: 0 | R11: 0
D12: 0 | G12: 0 | I12: 0 | J12: 0 | K12: 0 | M12: 0 | N12: 0 | O12: 0 | P12: 0 | Q12: 0 | R12: 0
A13: Total Revenue | I13: 1110.056 | J13: =SUM(J10:J12) -> 0 | M13: 0 | N13: =SUM(N10:N12) -> 0 | O13: 1110.056 | P13: =SUM(P10:P12) -> 0 | Q13: 111005.6 | R13: =SUM(R10:R12) -> 0
Q14: Enterprise | R14: Enterprise
A15: VARIABLE COSTS | D15: Quantity | E15: Quantity | F15: Units | G15: $/Unit | H15: $/Unit | I15: Total | J15: Total | K15: Share | L15: Share | M15: Landlord | N15: Landlord | O15: Tenant | P15: Tenant | Q15: Total | R15: Total
A16: Production Costs
B17: Custom
C18: Fixed Harvesting - SC | D18: 1 | F18: Acre | G18: 145 | I18: 145 | J18: =E18*H18 -> 0 | K18: 0 | M18: 0 | N18: =J18*L18 -> 0 | O18: 145 | P18: =+J18-N18 -> 0 | Q18: 14500 | R18: =+J18*E$7 -> 0
C19: Variable Harvesting - SC | D19: 38 | F19: Ton | G19: 3.87 | I19: 147.06 | J19: 0 | K19: 0 | M19: 0 | N19: 0 | O19: 147.06 | P19: 0 | Q19: 14706 | R19: 0
C20: Hauling - SC | D20: 38 | F20: Ton | G20: 3.96 | I20: 150.48 | J20: 0 | K20: 0 | M20: 0 | N20: 0 | O20: 150.48 | P20: 0 | Q20: 15048 | R20: 0
B21: Fertilizer
C22: UAN (32% N) | D22: 3.3 | F22: CWT | G22: 15.25 | I22: 50.325 | J22: 0 | K22: 0 | M22: 0 | N22: 0 | O22: 50.325 | P22: 0 | Q22: 5032.5 | R22: 0
C23: Fertilizer 10-34-0 | D23: 2.4 | F23: CWT | G23: 35.0025 | I23: 84.006 | J23: 0 | K23: 0 | M23: 0 | N23: 0 | O23: 84.006 | P23: 0 | Q23: 8400.6 | R23: 0
C24: Iron Chelate | D24: 5.5 | F24: Pound | G24: 5.385 | I24: 29.6175 | J24: 0 | K24: 0 | M24: 0 | N24: 0 | O24: 29.6175 | P24: 0 | Q24: 2961.75 | R24: 0
B25: Herbicide
C26: Atrazine 4L | D26: 12 | F26: Pint | G26: 1.90412 | I26: 22.84944 | J26: 0 | K26: 0 | M26: 0 | N26: 0 | O26: 22.84944 | P26: 0 | Q26: 2284.944 | R26: 0
C27: Pendimethalin | D27: 9.6 | F27: Pint | G27: 6.11212 | I27: 58.676352 | J27: 0 | K27: 0 | M27: 0 | N27: 0 | O27: 58.676352 | P27: 0 | Q27: 5867.6352 | R27: 0
C28: Glyphosate | D28: 0.8 | F28: Pint | G28: 1.5625 | I28: 1.25 | J28: 0 | K28: 0 | M28: 0 | N28: 0 | O28: 1.25 | P28: 0 | Q28: 125 | R28: 0
B29: Miscellaneous
C30: Insurance, Sugarcane | D30: 1 | F30: Acre | G30: 16 | I30: 16 | J30: 0 | K30: 0 | M30: 0 | N30: 0 | O30: 16 | P30: 0 | Q30: 1600 | R30: 0
B31: Other Labor
C32: Labor - Weed Control | D32: 1.75 | F32: Hour | G32: 12 | I32: 21 | J32: 0 | K32: 0 | M32: 0 | N32: 0 | O32: 21 | P32: 0 | Q32: 2100 | R32: 0
C33: Unallocated Labor | D33: 0.4872 | F33: Hour | G33: 12 | I33: 5.8464 | J33: 0 | K33: 0 | M33: 0 | N33: 0 | O33: 5.8464 | P33: 0 | Q33: 584.64 | R33: 0
D34: 0 | G34: 0 | I34: 0 | J34: 0 | K34: 0 | M34: 0 | N34: 0 | O34: 0 | P34: 0 | Q34: 0 | R34: 0
D35: 0 | G35: 0 | I35: 0 | J35: 0 | K35: 0 | M35: 0 | N35: 0 | O35: 0 | P35: 0 | Q35: 0 | R35: 0
D36: 0 | G36: 0 | I36: 0 | J36: =E36*H36 -> 0 | K36: 0 | M36: 0 | N36: =J36*L36 -> 0 | O36: 0 | P36: =+J36-N36 -> 0 | Q36: 0 | R36: =+J36*E$7 -> 0
B37: Irrigation
C38: Water Cost | D38: 5 | F38: Acre/Foot | G38: 20 | I38: 100 | J38: =E38*H38 -> 0 | K38: 0 | M38: 0 | N38: =J38*L38 -> 0 | O38: 100 | P38: =+J38-N38 -> 0 | Q38: 10000 | R38: =+J38*E$7 -> 0
C39: Irrigation Labor | D39: 7 | F39: Hour | G39: 12 | I39: 84 | J39: 0 | K39: 0 | M39: 0 | N39: 0 | O39: 84 | P39: 0 | Q39: 8400 | R39: 0
B40: Machinery Labor
C41: Tractors/Self-Propelled | D41: 0.68 | F41: Hour | G41: 12 | I41: 8.16 | J41: =E41*H41 -> 0 | K41: 0 | M41: 0 | N41: =J41*L41 -> 0 | O41: 8.16 | P41: =+J41-N41 -> 0 | Q41: 816 | R41: =+J41*E$7 -> 0
C42: Other Labor | D42: 0 | F42: Hour | G42: 12 | I42: 0 | J42: =E42*H42 -> 0 | K42: 0 | M42: 0 | N42: =J42*L42 -> 0 | O42: 0 | P42: =+J42-N42 -> 0 | Q42: 0 | R42: =+J42*E$7 -> 0
B44: Diesel Fuel
C45: Pickup/General Use Equipment | D45: 1 | F45: Acre | G45: 0 | I45: 0 | J45: =E45*H45 -> 0 | K45: 0 | M45: 0 | N45: =J45*L45 -> 0 | O45: 0 | P45: =+J45-N45 -> 0 | Q45: 0 | R45: =+J45*E$7 -> 0
C46: Tractors/Self-Propelled | D46: 4.65 | F46: Gallon | G46: 2.3 | I46: 10.695 | J46: =E46*H46 -> 0 | K46: 0 | M46: 0 | N46: =J46*L46 -> 0 | O46: 10.695 | P46: =+J46-N46 -> 0 | Q46: 1069.5 | R46: =+J46*E$7 -> 0
B48: Gasoline
C49: Pickup/General Use Equipment | D49: 1 | F49: Acre | G49: 0 | I49: 0 | J49: =E49*H49 -> 0 | K49: 0 | M49: 0 | N49: =J49*L49 -> 0 | O49: 0 | P49: =+J49-N49 -> 0 | Q49: 0 | R49: =+J49*E$7 -> 0
C50: Tractors/Self-Propelled | D50: 0 | F50: Gallon | G50: 2.2 | I50: 0 | J50: =E50*H50 -> 0 | K50: 0 | M50: 0 | N50: =J50*L50 -> 0 | O50: 0 | P50: =+J50-N50 -> 0 | Q50: 0 | R50: =+J50*E$7 -> 0
B52: Repairs & Maintenance
C53: Pickup/General Use Equipment | D53: 1 | F53: Acre | G53: 0 | I53: 0 | J53: =E53*H53 -> 0 | K53: 0 | M53: 0 | N53: =J53*L53 -> 0 | O53: 0 | P53: =+J53-N53 -> 0 | Q53: 0 | R53: =+J53*E$7 -> 0
C54: Irrigation Equipment | D54: 1 | F54: Acre | G54: 0 | I54: 0 | J54: 0 | K54: 0 | M54: 0 | N54: 0 | O54: 0 | P54: 0 | Q54: 0 | R54: 0
C55: Tractors/Self-Propelled | D55: 1 | F55: Acre | G55: 10.13303517 | I55: 10.13303517 | J55: 0 | K55: 0 | M55: 0 | N55: 0 | O55: 10.13303517 | P55: 0 | Q55: 1013.303517 | R55: 0
C56: Implements | D56: 1 | F56: Acre | G56: 6.042328646 | I56: 6.042328646 | J56: 0 | K56: 0 | M56: 0 | N56: 0 | O56: 6.042328646 | P56: 0 | Q56: 604.2328646 | R56: 0
I57: 0 | J57: 0 | K57: 0 | M57: 0 | N57: 0 | O57: 0 | P57: 0 | Q57: 0 | R57: 0
I58: 0 | J58: 0 | K58: 0 | M58: 0 | N58: 0 | O58: 0 | P58: 0 | Q58: 0 | R58: 0
B59: Interest on Credit Line | G59: 0.05 | I59: 17.049661 | J59: =+SUM(J17:J58)/2*H59 -> 0 | M59: 0 | N59: =+SUM(N17:N58)/2*L59 -> 0 | O59: 17.049661 | P59: =+SUM(P17:P58)/2*L59 -> 0 | Q59: 1704.9661 | R59: =+J59*E$7 -> 0
A60: Total Variable Costs | I60: 968.1907168 | J60: =SUM(J18:J59) -> 0 | M60: 0 | N60: =SUM(N18:N59) -> 0 | O60: 968.1907168 | P60: =SUM(P18:P59) -> 0 | Q60: 96819.07168 | R60: =SUM(R18:R59) -> 0
A61: Planned Returns Above Variable Costs: | I61: 141.8652832 | J61: =+J13-J60 -> 0 | M61: 0 | N61: =+N13-N60 -> 0 | O61: 141.8652832 | P61: =+P13-P60 -> 0 | Q61: 14186.52832 | R61: =+R13-R60 -> 0
B62: Breakeven Price to Cover Variable Costs | G62: 25.47870307 | H62: =IF(E10=0,"n/a",(YVarExp-(YTotExp+YTotRet-J10))/E10) -> n/a | I62: Ton
Q63: Enterprise | R63: Enterprise
A64: FIXED COSTS | D64: Quantity | E64: Quantity | F64: Units | G64: $/Unit | H64: $/Unit | I64: Total | J64: Total | K64: Share | L64: Share | M64: Landlord | N64: Landlord | O64: Tenant | P64: Tenant | Q64: Total | R64: Total
B65: Machinery Depreciation
C66: Tractors/Self-Propelled | D66: 1 | F66: Acre | G66: 11.57211764 | I66: 11.57211764 | J66: =E66*H66 -> 0 | K66: 0 | M66: 0 | N66: =J66*L66 -> 0 | O66: 11.57211764 | P66: =+J66-N66 -> 0 | Q66: 1157.211764 | R66: =+J66*E$7 -> 0
C67: Implements | D67: 1 | F67: Acre | G67: 7.90726364 | I67: 7.90726364 | J67: 0 | K67: 0 | M67: 0 | N67: =J67*L67 -> 0 | O67: 7.90726364 | P67: 0 | Q67: 790.726364 | R67: 0
B68: Equipment Investment
C69: Tractors/Self-Propelled | D69: 89.63882058 | F69: Dollars | G69: 0.07 | I69: 6.274717441 | J69: =E69*H69 -> 0 | K69: 0 | M69: 0 | N69: =J69*L69 -> 0 | O69: 6.274717441 | P69: =+J69-N69 -> 0 | Q69: 627.4717441 | R69: =+J69*E$7 -> 0
C70: Implements | D70: 34.90991202 | F70: Dollars | G70: 0.07 | I70: 2.443693842 | J70: 0 | K70: 0 | M70: 0 | N70: =J70*L70 -> 0 | O70: 2.443693842 | P70: 0 | Q70: 244.3693842 | R70: 0
B71: Salaried Labor | D71: 1 | F71: Acre | G71: 0 | I71: 0 | J71: 0 | K71: 0 | M71: 0 | N71: =J71*L71 -> 0 | O71: 0 | P71: =+J71-N71 -> 0 | Q71: 0 | R71: =+J71*E$7 -> 0
B72: Management Fee, Owner/Operator Labor | D72: 1 | F72: Acre | G72: 0 | I72: 0 | J72: 0 | K72: 0 | M72: 0 | N72: 0 | O72: 0 | P72: 0 | Q72: 0 | R72: 0
B73: Allocated Establishment Cost | D73: 1 | F73: Acre | G73: 0 | I73: 0 | J73: 0 | K73: 0 | M73: 0 | N73: 0 | O73: 0 | P73: 0 | Q73: 0 | R73: 0
B74: Cash Rent, Sugar Cane | D74: 1 | F74: Acre | G74: 110 | I74: 110 | J74: 0 | K74: 0 | M74: 0 | N74: 0 | O74: 110 | P74: 0 | Q74: 11000 | R74: 0
B75: Property Taxes | D75: 1 | F75: Acre | G75: 0 | I75: 0 | J75: 0 | K75: 0 | M75: 0 | N75: 0 | O75: 0 | P75: 0 | Q75: 0 | R75: 0
B76: Whole Farm Insurance | D76: 1 | F76: Acre | G76: 0 | I76: 0 | J76: 0 | K76: 0 | M76: 0 | N76: 0 | O76: 0 | P76: 0 | Q76: 0 | R76: 0
D77: 1 | G77: 0 | I77: 0 | J77: 0 | K77: 0 | M77: 0 | N77: 0 | O77: 0 | P77: 0 | Q77: 0 | R77: 0
D78: 1 | G78: 0 | I78: 0 | J78: =E78*H78 -> 0 | K78: 0 | M78: 0 | N78: 0 | O78: 0 | P78: 0 | Q78: 0 | R78: 0
A79: Total Fixed Costs | I79: 138.1977926 | J79: =+SUM(J66:J78) -> 0 | M79: 0 | N79: =+SUM(N66:N78) -> 0 | O79: 138.1977926 | P79: =+SUM(P66:P78) -> 0 | Q79: 13819.77926 | R79: =+SUM(R66:R78) -> 0
A80: Total Specified Costs | I80: 1106.388509 | J80: =+J60+J79 -> 0 | M80: 0 | N80: =+N60+N79 -> 0 | O80: 1106.388509 | P80: =+P60+P79 -> 0 | Q80: 110638.8509 | R80: =+R60+R79 -> 0
A82: Returns Above Specified Costs | I82: 3.667490615 | J82: =+J13-J80 -> 0 | M82: 0 | N82: =+N13-N80 -> 0 | O82: 3.667490615 | P82: =+P13-P80 -> 0 | Q82: 366.7490615 | R82: =+R13-R80 -> 0
A84: Breakeven Price to Cover Total Costs | G84: 29.11548709 | H84: =IF(E10=0,"n/a",(YTotExp-(YTotExp+YTotRet-J10))/E10) -> n/a | I84: Ton
D86: Example Breakeven Prices
B87: Example | C87: Example | D87: To Cover | G87: To Cover
B88: Yield | C88: Yield | D88: Variable | G88: Total
B89: Percent | C89: Ton | D89: Costs | G89: Costs
B90: 0.75 | C90: 28.5 | D90: 33.9716041 | G90: 38.82064945
B91: 0.9 | C91: 34.2 | D91: 28.30967008 | G91: 32.35054121
B92: 1 | C92: 38 | D92: 25.47870307 | G92: 29.11548709
B93: 1.1 | C93: 41.8 | D93: 23.16245734 | G93: 26.46862463
B94: 1.25 | C94: 47.5 | D94: 20.38296246 | G94: 23.29238967
D96: Your Breakeven Prices
B97: Your | C97: Your | E97: To Cover | H97: To Cover
B98: Yield | C98: Yield | E98: Variable | H98: Total
B99: Percent | C99: Ton | E99: Costs | H99: Costs
B100: 0.75 | C100: =E10*YPER1 -> 0 | E100: =IF($E$10=0,0,(YVarExp-(YTotExp+YTotRet-J10))/($E$10*YPER1)) -> 0 | H100: =IF($E$10=0,0,(YTotExp-(YTotExp+YTotRet-J10))/($E$10*YPER1)) -> 0
B101: 0.9 | C101: =E10*YPER2 -> 0 | E101: =IF($E$10=0,0,(YVarExp-(YTotExp+YTotRet-J10))/($E$10*YPER2)) -> 0 | H101: =IF($E$10=0,0,(YTotExp-(YTotExp+YTotRet-J10))/($E$10*YPER2)) -> 0
B102: 1 | C102: =+E10 -> 0 | E102: =IF($E$10=0,0,(YVarExp-(YTotExp+YTotRet-J10))/($E$10*YPER3)) -> 0 | H102: =IF($E$10=0,0,(YTotExp-(YTotExp+YTotRet-J10))/($E$10*YPER3)) -> 0
B103: 1.1 | C103: =E10*YPER4 -> 0 | E103: =IF($E$10=0,0,(YVarExp-(YTotExp+YTotRet-J10))/($E$10*YPER4)) -> 0 | H103: =IF($E$10=0,0,(YTotExp-(YTotExp+YTotRet-J10))/($E$10*YPER4)) -> 0
B104: 1.25 | C104: =E10*YPER5 -> 0 | E104: =IF($E$10=0,0,(YVarExp-(YTotExp+YTotRet-J10))/($E$10*YPER5)) -> 0 | H104: =IF($E$10=0,0,(YTotExp-(YTotExp+YTotRet-J10))/($E$10*YPER5)) -> 0
A106: Developed by Samuel Zapata, Assistant Professor and Extension Economist, Texas A&M AgriLife Extension, 956-968-5581.
A108: Information presented is prepared solely as a general guide and not intended to recognize or predict the costs and returns from any one operation. Brand names are mentioned only as examples and imply no endorsement.

Sheet HayEstablishment
A1: Projections for Planning Purposes Only -- Not to be Used without Updating
A2: 2020 Estimated Costs and Returns per Acre
A3: Hay Establishment, Furrow Irrigated, Rio Grande Valley
A4: Enter your name for this budget in the cell above.
A5: Enter Your Values in the cells highlighed in MAROON.
E6: Your Acres | R6: Your
C7: Crop Acres | D7: 100 | L7: Your | Q7: Enterprise | R7: Enterprise
E8: Your | H8: Your | I8: Cash | J8: Your | K8: Landlord | L8: Landlord | N8: Your | P8: Your | Q8: Total | R8: Total
A9: REVENUE | D9: Quantity | E9: Quantity | F9: Units | G9: $/Unit | H9: $/Unit | I9: Total | J9: Total | K9: Share | L9: Share | M9: Landlord | N9: Landlord | O9: Tenant | P9: Tenant | Q9: (100 acres) | R9: ="(" & E7 & " acres)" -> ( acres)
B10: Bermuda Hay | D10: 0 | G10: 0 | I10: 0 | J10: =E10*H10 -> 0 | K10: 0 | M10: 0 | N10: =J10*L10 -> 0 | O10: 0 | P10: =+J10-N10 -> 0 | Q10: 0 | R10: =+J10*E$7 -> 0
D11: 0 | G11: 0 | I11: 0 | J11: 0 | K11: 0 | M11: 0 | N11: 0 | O11: 0 | P11: =+J11-N11 -> 0 | Q11: 0 | R11: 0
D12: 0 | G12: 0 | I12: 0 | J12: 0 | K12: 0 | M12: 0 | N12: 0 | O12: 0 | P12: 0 | Q12: 0 | R12: 0
A13: Total Revenue | I13: 0 | J13: =SUM(J10:J12) -> 0 | M13: 0 | N13: =SUM(N10:N12) -> 0 | O13: 0 | P13: =SUM(P10:P12) -> 0 | Q13: 0 | R13: =SUM(R10:R12) -> 0
Q14: Enterprise | R14: Enterprise
A15: VARIABLE COSTS | D15: Quantity | E15: Quantity | F15: Units | G15: $/Unit | H15: $/Unit | I15: Total | J15: Total | K15: Share | L15: Share | M15: Landlord | N15: Landlord | O15: Tenant | P15: Tenant | Q15: Total | R15: Total
A16: Production Costs
B17: Custom
C18: Land Prep and Disking | D18: 1 | F18: Acre | G18: 50 | I18: 50 | J18: =E18*H18 -> 0 | K18: 0 | M18: 0 | N18: =J18*L18 -> 0 | O18: 50 | P18: =+J18-N18 -> 0 | Q18: 5000 | R18: =+J18*E$7 -> 0
C19: Mechanical Weed Control | D19: 1 | F19: Acre | G19: 60 | I19: 60 | J19: 0 | K19: 0 | M19: 0 | N19: 0 | O19: 60 | P19: 0 | Q19: 6000 | R19: 0
B20: Fertilizer
C21: Ammonium Sulfate (21% N) | D21: 4 | F21: CWT | G21: 20.9 | I21: 83.6 | J21: 0 | K21: 0 | M21: 0 | N21: 0 | O21: 83.6 | P21: 0 | Q21: 8360 | R21: 0
B22: Herbicide
C23: Pendimethalin | D23: 3 | F23: Pint | G23: 6.11212 | I23: 18.33636 | J23: 0 | K23: 0 | M23: 0 | N23: 0 | O23: 18.33636 | P23: 0 | Q23: 1833.636 | R23: 0
B24: Other Labor
C25: Unallocated Labor | D25: 0.5 | F25: Hour | G25: 12 | I25: 6 | J25: 0 | K25: 0 | M25: 0 | N25: 0 | O25: 6 | P25: 0 | Q25: 600 | R25: 0
B26: Seed
C27: Costal Bermuda Sprigs | D27: 1 | F27: Acre | G27: 135 | I27: 135 | J27: 0 | K27: 0 | M27: 0 | N27: 0 | O27: 135 | P27: 0 | Q27: 13500 | R27: 0
D28: 0 | G28: 0 | I28: 0 | J28: 0 | K28: 0 | M28: 0 | N28: 0 | O28: 0 | P28: 0 | Q28: 0 | R28: 0
D29: 0 | G29: 0 | I29: 0 | J29: 0 | K29: 0 | M29: 0 | N29: 0 | O29: 0 | P29: 0 | Q29: 0 | R29: 0
D30: 0 | G30: 0 | I30: 0 | J30: =E30*H30 -> 0 | K30: 0 | M30: 0 | N30: =J30*L30 -> 0 | O30: 0 | P30: =+J30-N30 -> 0 | Q30: 0 | R30: =+J30*E$7 -> 0
B31: Irrigation
C32: Water Cost | D32: 2 | F32: Acre/Foot | G32: 20 | I32: 40 | J32: =E32*H32 -> 0 | K32: 0 | M32: 0 | N32: =J32*L32 -> 0 | O32: 40 | P32: =+J32-N32 -> 0 | Q32: 4000 | R32: =+J32*E$7 -> 0
C33: Irrigation Labor | D33: 1.2 | F33: Hour | G33: 12 | I33: 14.4 | J33: 0 | K33: 0 | M33: 0 | N33: 0 | O33: 14.4 | P33: 0 | Q33: 1440 | R33: 0
B34: Machinery Labor
C35: Tractors/Self-Propelled | D35: 0.37 | F35: Hour | G35: 12 | I35: 4.44 | J35: =E35*H35 -> 0 | K35: 0 | M35: 0 | N35: =J35*L35 -> 0 | O35: 4.44 | P35: =+J35-N35 -> 0 | Q35: 444 | R35: =+J35*E$7 -> 0
C36: Other Labor | D36: 0.18 | F36: Hour | G36: 12 | I36: 2.16 | J36: =E36*H36 -> 0 | K36: 0 | M36: 0 | N36: =J36*L36 -> 0 | O36: 2.16 | P36: =+J36-N36 -> 0 | Q36: 216 | R36: =+J36*E$7 -> 0
B38: Diesel Fuel
C39: Pickup/General Use Equipment | D39: 1 | F39: Acre | G39: 0 | I39: 0 | J39: =E39*H39 -> 0 | K39: 0 | M39: 0 | N39: =J39*L39 -> 0 | O39: 0 | P39: =+J39-N39 -> 0 | Q39: 0 | R39: =+J39*E$7 -> 0
C40: Tractors/Self-Propelled | D40: 1.73 | F40: Gallon | G40: 2.3 | I40: 3.979 | J40: =E40*H40 -> 0 | K40: 0 | M40: 0 | N40: =J40*L40 -> 0 | O40: 3.979 | P40: =+J40-N40 -> 0 | Q40: 397.9 | R40: =+J40*E$7 -> 0
B42: Gasoline
C43: Pickup/General Use Equipment | D43: 1 | F43: Acre | G43: 0 | I43: 0 | J43: =E43*H43 -> 0 | K43: 0 | M43: 0 | N43: =J43*L43 -> 0 | O43: 0 | P43: =+J43-N43 -> 0 | Q43: 0 | R43: =+J43*E$7 -> 0
C44: Tractors/Self-Propelled | D44: 0 | F44: Gallon | G44: 2.2 | I44: 0 | J44: =E44*H44 -> 0 | K44: 0 | M44: 0 | N44: =J44*L44 -> 0 | O44: 0 | P44: =+J44-N44 -> 0 | Q44: 0 | R44: =+J44*E$7 -> 0
B46: Repairs & Maintenance
C47: Pickup/General Use Equipment | D47: 1 | F47: Acre | G47: 0 | I47: 0 | J47: =E47*H47 -> 0 | K47: 0 | M47: 0 | N47: =J47*L47 -> 0 | O47: 0 | P47: =+J47-N47 -> 0 | Q47: 0 | R47: =+J47*E$7 -> 0
C48: Irrigation Equipment | D48: 1 | F48: Acre | G48: 0 | I48: 0 | J48: 0 | K48: 0 | M48: 0 | N48: 0 | O48: 0 | P48: 0 | Q48: 0 | R48: 0
C49: Tractors/Self-Propelled | D49: 1 | F49: Acre | G49: 3.68132353 | I49: 3.68132353 | J49: 0 | K49: 0 | M49: 0 | N49: 0 | O49: 3.68132353 | P49: 0 | Q49: 368.132353 | R49: 0
C50: Implements | D50: 1 | F50: Acre | G50: 1.606017062 | I50: 1.606017062 | J50: 0 | K50: 0 | M50: 0 | N50: 0 | O50: 1.606017062 | P50: 0 | Q50: 160.6017062 | R50: 0
I51: 0 | J51: 0 | K51: 0 | M51: 0 | N51: 0 | O51: 0 | P51: 0 | Q51: 0 | R51: 0
I52: 0 | J52: 0 | K52: 0 | M52: 0 | N52: 0 | O52: 0 | P52: 0 | Q52: 0 | R52: 0
B53: Interest on Credit Line | G53: 0.05 | I53: 17.11729391 | J53: =+SUM(J17:J52)/2*H53 -> 0 | M53: 0 | N53: =+SUM(N17:N52)/2*L53 -> 0 | O53: 17.11729391 | P53: =+SUM(P17:P52)/2*L53 -> 0 | Q53: 1711.729391 | R53: =+J53*E$7 -> 0
A54: Total Variable Costs | I54: 440.3199945 | J54: =SUM(J18:J53) -> 0 | M54: 0 | N54: =SUM(N18:N53) -> 0 | O54: 440.3199945 | P54: =SUM(P18:P53) -> 0 | Q54: 44031.99945 | R54: =SUM(R18:R53) -> 0
A55: Planned Returns Above Variable Costs: | I55: -440.3199945 | J55: =+J13-J54 -> 0 | M55: 0 | N55: =+N13-N54 -> 0 | O55: -440.3199945 | P55: =+P13-P54 -> 0 | Q55: -44031.99945 | R55: =+R13-R54 -> 0
B56: Breakeven Price to Cover Variable Costs | G56: n/a | H56: =IF(E10=0,"n/a",(YVarExp-(YTotExp+YTotRet-J10))/E10) -> n/a
Q57: Enterprise | R57: Enterprise
A58: FIXED COSTS | D58: Quantity | E58: Quantity | F58: Units | G58: $/Unit | H58: $/Unit | I58: Total | J58: Total | K58: Share | L58: Share | M58: Landlord | N58: Landlord | O58: Tenant | P58: Tenant | Q58: Total | R58: Total
B59: Machinery Depreciation
C60: Tractors/Self-Propelled | D60: 1 | F60: Acre | G60: 3.804034315 | I60: 3.804034315 | J60: =E60*H60 -> 0 | K60: 0 | M60: 0 | N60: =J60*L60 -> 0 | O60: 3.804034315 | P60: =+J60-N60 -> 0 | Q60: 380.4034315 | R60: =+J60*E$7 -> 0
C61: Implements | D61: 1 | F61: Acre | G61: 3.016221883 | I61: 3.016221883 | J61: 0 | K61: 0 | M61: 0 | N61: =J61*L61 -> 0 | O61: 3.016221883 | P61: 0 | Q61: 301.6221883 | R61: 0
B62: Equipment Investment
C63: Tractors/Self-Propelled | D63: 29.63465442 | F63: Dollars | G63: 0.07 | I63: 2.074425809 | J63: =E63*H63 -> 0 | K63: 0 | M63: 0 | N63: =J63*L63 -> 0 | O63: 2.074425809 | P63: =+J63-N63 -> 0 | Q63: 207.4425809 | R63: =+J63*E$7 -> 0
C64: Implements | D64: 12.10939032 | F64: Dollars | G64: 0.07 | I64: 0.8476573221 | J64: 0 | K64: 0 | M64: 0 | N64: =J64*L64 -> 0 | O64: 0.8476573221 | P64: 0 | Q64: 84.76573221 | R64: 0
B65: Salaried Labor | D65: 1 | F65: Acre | G65: 0 | I65: 0 | J65: 0 | K65: 0 | M65: 0 | N65: =J65*L65 -> 0 | O65: 0 | P65: =+J65-N65 -> 0 | Q65: 0 | R65: =+J65*E$7 -> 0
B66: Management Fee, Owner/Operator Labor | D66: 1 | F66: Acre | G66: 0 | I66: 0 | J66: 0 | K66: 0 | M66: 0 | N66: 0 | O66: 0 | P66: 0 | Q66: 0 | R66: 0
B67: Allocated Establishment Cost | D67: 1 | F67: Acre | G67: 0 | I67: 0 | J67: 0 | K67: 0 | M67: 0 | N67: 0 | O67: 0 | P67: 0 | Q67: 0 | R67: 0
B68: Cash Rent, Irrigated | D68: 1 | F68: Acre | G68: 85 | I68: 85 | J68: 0 | K68: 0 | M68: 0 | N68: 0 | O68: 85 | P68: 0 | Q68: 8500 | R68: 0
B69: Property Taxes | D69: 1 | F69: Acre | G69: 0 | I69: 0 | J69: 0 | K69: 0 | M69: 0 | N69: 0 | O69: 0 | P69: 0 | Q69: 0 | R69: 0
B70: Whole Farm Insurance | D70: 1 | F70: Acre | G70: 0 | I70: 0 | J70: 0 | K70: 0 | M70: 0 | N70: 0 | O70: 0 | P70: 0 | Q70: 0 | R70: 0
D71: 1 | G71: 0 | I71: 0 | J71: 0 | K71: 0 | M71: 0 | N71: 0 | O71: 0 | P71: 0 | Q71: 0 | R71: 0
D72: 1 | G72: 0 | I72: 0 | J72: =E72*H72 -> 0 | K72: 0 | M72: 0 | N72: 0 | O72: 0 | P72: 0 | Q72: 0 | R72: 0
A73: Total Fixed Costs | I73: 94.74233933 | J73: =+SUM(J60:J72) -> 0 | M73: 0 | N73: =+SUM(N60:N72) -> 0 | O73: 94.74233933 | P73: =+SUM(P60:P72) -> 0 | Q73: 9474.233933 | R73: =+SUM(R60:R72) -> 0
A74: Total Specified Costs | I74: 535.0623338 | J74: =+J54+J73 -> 0 | M74: 0 | N74: =+N54+N73 -> 0 | O74: 535.0623338 | P74: =+P54+P73 -> 0 | Q74: 53506.23338 | R74: =+R54+R73 -> 0
A76: Returns Above Specified Costs | I76: -535.0623338 | J76: =+J13-J74 -> 0 | M76: 0 | N76: =+N13-N74 -> 0 | O76: -535.0623338 | P76: =+P13-P74 -> 0 | Q76: -53506.23338 | R76: =+R13-R74 -> 0
A78: Breakeven Price to Cover Total Costs | G78: n/a | H78: =IF(E10=0,"n/a",(YTotExp-(YTotExp+YTotRet-J10))/E10) -> n/a
D80: Example Breakeven Prices
B81: Example | C81: Example | D81: To Cover | G81: To Cover
B82: Yield | C82: Yield | D82: Variable | G82: Total
B83: Percent | D83: Costs | G83: Costs
B84: 0.75 | C84: 0 | D84: 0 | G84: 0
B85: 0.9 | C85: 0 | D85: 0 | G85: 0
B86: 1 | C86: 0 | D86: 0 | G86: 0
B87: 1.1 | C87: 0 | D87: 0 | G87: 0
B88: 1.25 | C88: 0 | D88: 0 | G88: 0
D90: Your Breakeven Prices
B91: Your | C91: Your | E91: To Cover | H91: To Cover
B92: Yield | C92: Yield | E92: Variable | H92: Total
B93: Percent | E93: Costs | H93: Costs
B94: 0.75 | C94: =E10*YPER1 -> 0 | E94: =IF($E$10=0,0,(YVarExp-(YTotExp+YTotRet-J10))/($E$10*YPER1)) -> 0 | H94: =IF($E$10=0,0,(YTotExp-(YTotExp+YTotRet-J10))/($E$10*YPER1)) -> 0
B95: 0.9 | C95: =E10*YPER2 -> 0 | E95: =IF($E$10=0,0,(YVarExp-(YTotExp+YTotRet-J10))/($E$10*YPER2)) -> 0 | H95: =IF($E$10=0,0,(YTotExp-(YTotExp+YTotRet-J10))/($E$10*YPER2)) -> 0
B96: 1 | C96: =+E10 -> 0 | E96: =IF($E$10=0,0,(YVarExp-(YTotExp+YTotRet-J10))/($E$10*YPER3)) -> 0 | H96: =IF($E$10=0,0,(YTotExp-(YTotExp+YTotRet-J10))/($E$10*YPER3)) -> 0
B97: 1.1 | C97: =E10*YPER4 -> 0 | E97: =IF($E$10=0,0,(YVarExp-(YTotExp+YTotRet-J10))/($E$10*YPER4)) -> 0 | H97: =IF($E$10=0,0,(YTotExp-(YTotExp+YTotRet-J10))/($E$10*YPER4)) -> 0
B98: 1.25 | C98: =E10*YPER5 -> 0 | E98: =IF($E$10=0,0,(YVarExp-(YTotExp+YTotRet-J10))/($E$10*YPER5)) -> 0 | H98: =IF($E$10=0,0,(YTotExp-(YTotExp+YTotRet-J10))/($E$10*YPER5)) -> 0
A100: Developed by Samuel Zapata, Assistant Professor and Extension Economist, Texas A&M AgriLife Extension, 956-968-5581.
A102: Information presented is prepared solely as a general guide and not intended to recognize or predict the costs and returns from any one operation. Brand names are mentioned only as examples and imply no endorsement.

Sheet HayProduction
A1: Projections for Planning Purposes Only -- Not to be Used without Updating
A2: 2020 Estimated Costs and Returns per Acre
A3: Hay Production, Furrow Irrigated, Rio Grande Valley
A4: Enter your name for this budget in the cell above.
A5: Enter Your Values in the cells highlighed in MAROON.
E6: Your Acres | R6: Your
C7: Crop Acres | D7: 100 | L7: Your | Q7: Enterprise | R7: Enterprise
E8: Your | H8: Your | I8: Cash | J8: Your | K8: Landlord | L8: Landlord | N8: Your | P8: Your | Q8: Total | R8: Total
A9: REVENUE | D9: Quantity | E9: Quantity | F9: Units | G9: $/Unit | H9: $/Unit | I9: Total | J9: Total | K9: Share | L9: Share | M9: Landlord | N9: Landlord | O9: Tenant | P9: Tenant | Q9: (100 acres) | R9: ="(" & E7 & " acres)" -> ( acres)
B10: Bermuda Hay | D10: 36 | F10: Bale (950 lb) | G10: 60 | I10: 2160 | J10: =E10*H10 -> 0 | K10: 0 | M10: 0 | N10: =J10*L10 -> 0 | O10: 2160 | P10: =+J10-N10 -> 0 | Q10: 216000 | R10: =+J10*E$7 -> 0
D11: 0 | G11: 0 | I11: 0 | J11: 0 | K11: 0 | M11: 0 | N11: 0 | O11: 0 | P11: =+J11-N11 -> 0 | Q11: 0 | R11: 0
D12: 0 | G12: 0 | I12: 0 | J12: 0 | K12: 0 | M12: 0 | N12: 0 | O12: 0 | P12: 0 | Q12: 0 | R12: 0
A13: Total Revenue | I13: 2160 | J13: =SUM(J10:J12) -> 0 | M13: 0 | N13: =SUM(N10:N12) -> 0 | O13: 2160 | P13: =SUM(P10:P12) -> 0 | Q13: 216000 | R13: =SUM(R10:R12) -> 0
Q14: Enterprise | R14: Enterprise
A15: VARIABLE COSTS | D15: Quantity | E15: Quantity | F15: Units | G15: $/Unit | H15: $/Unit | I15: Total | J15: Total | K15: Share | L15: Share | M15: Landlord | N15: Landlord | O15: Tenant | P15: Tenant | Q15: Total | R15: Total
A16: Production Costs
B17: Custom
C18: Hay Harvest | D18: 36 | F18: Bale | G18: 22.5 | I18: 810 | J18: =E18*H18 -> 0 | K18: 0 | M18: 0 | N18: =J18*L18 -> 0 | O18: 810 | P18: =+J18-N18 -> 0 | Q18: 81000 | R18: =+J18*E$7 -> 0
B19: Fertilizer
C20: Ammonium Sulfate (21% N) | D20: 21.43 | F20: CWT | G20: 20.9 | I20: 447.887 | J20: 0 | K20: 0 | M20: 0 | N20: 0 | O20: 447.887 | P20: 0 | Q20: 44788.7 | R20: 0
B21: Herbicide
C22: Pendimethalin | D22: 3 | F22: Pint | G22: 6.11212 | I22: 18.33636 | J22: 0 | K22: 0 | M22: 0 | N22: 0 | O22: 18.33636 | P22: 0 | Q22: 1833.636 | R22: 0
B23: Other Labor
C24: Unallocated Labor | D24: 1 | F24: Hour | G24: 12 | I24: 12 | J24: 0 | K24: 0 | M24: 0 | N24: 0 | O24: 12 | P24: 0 | Q24: 1200 | R24: 0
D25: 0 | G25: 0 | I25: 0 | J25: 0 | K25: 0 | M25: 0 | N25: 0 | O25: 0 | P25: 0 | Q25: 0 | R25: 0
D26: 0 | G26: 0 | I26: 0 | J26: 0 | K26: 0 | M26: 0 | N26: 0 | O26: 0 | P26: 0 | Q26: 0 | R26: 0
D27: 0 | G27: 0 | I27: 0 | J27: =E27*H27 -> 0 | K27: 0 | M27: 0 | N27: =J27*L27 -> 0 | O27: 0 | P27: =+J27-N27 -> 0 | Q27: 0 | R27: =+J27*E$7 -> 0
B28: Irrigation
C29: Water Cost | D29: 3 | F29: Acre/Foot | G29: 20 | I29: 60 | J29: =E29*H29 -> 0 | K29: 0 | M29: 0 | N29: =J29*L29 -> 0 | O29: 60 | P29: =+J29-N29 -> 0 | Q29: 6000 | R29: =+J29*E$7 -> 0
C30: Irrigation Labor | D30: 2.1 | F30: Hour | G30: 12 | I30: 25.2 | J30: 0 | K30: 0 | M30: 0 | N30: 0 | O30: 25.2 | P30: 0 | Q30: 2520 | R30: 0
B31: Machinery Labor
C32: Tractors/Self-Propelled | D32: 1.3 | F32: Hour | G32: 12 | I32: 15.6 | J32: =E32*H32 -> 0 | K32: 0 | M32: 0 | N32: =J32*L32 -> 0 | O32: 15.6 | P32: =+J32-N32 -> 0 | Q32: 1560 | R32: =+J32*E$7 -> 0
C33: Other Labor | D33: 0.43 | F33: Hour | G33: 12 | I33: 5.16 | J33: =E33*H33 -> 0 | K33: 0 | M33: 0 | N33: =J33*L33 -> 0 | O33: 5.16 | P33: =+J33-N33 -> 0 | Q33: 516 | R33: =+J33*E$7 -> 0
B35: Diesel Fuel
C36: Pickup/General Use Equipment | D36: 1 | F36: Acre | G36: 0 | I36: 0 | J36: =E36*H36 -> 0 | K36: 0 | M36: 0 | N36: =J36*L36 -> 0 | O36: 0 | P36: =+J36-N36 -> 0 | Q36: 0 | R36: =+J36*E$7 -> 0
C37: Tractors/Self-Propelled | D37: 7.46 | F37: Gallon | G37: 2.3 | I37: 17.158 | J37: =E37*H37 -> 0 | K37: 0 | M37: 0 | N37: =J37*L37 -> 0 | O37: 17.158 | P37: =+J37-N37 -> 0 | Q37: 1715.8 | R37: =+J37*E$7 -> 0
B39: Gasoline
C40: Pickup/General Use Equipment | D40: 1 | F40: Acre | G40: 0 | I40: 0 | J40: =E40*H40 -> 0 | K40: 0 | M40: 0 | N40: =J40*L40 -> 0 | O40: 0 | P40: =+J40-N40 -> 0 | Q40: 0 | R40: =+J40*E$7 -> 0
C41: Tractors/Self-Propelled | D41: 0 | F41: Gallon | G41: 2.2 | I41: 0 | J41: =E41*H41 -> 0 | K41: 0 | M41: 0 | N41: =J41*L41 -> 0 | O41: 0 | P41: =+J41-N41 -> 0 | Q41: 0 | R41: =+J41*E$7 -> 0
B43: Repairs & Maintenance
C44: Pickup/General Use Equipment | D44: 1 | F44: Acre | G44: 0 | I44: 0 | J44: =E44*H44 -> 0 | K44: 0 | M44: 0 | N44: =J44*L44 -> 0 | O44: 0 | P44: =+J44-N44 -> 0 | Q44: 0 | R44: =+J44*E$7 -> 0
C45: Irrigation Equipment | D45: 1 | F45: Acre | G45: 0 | I45: 0 | J45: 0 | K45: 0 | M45: 0 | N45: 0 | O45: 0 | P45: 0 | Q45: 0 | R45: 0
C46: Tractors/Self-Propelled | D46: 1 | F46: Acre | G46: 15.8666839 | I46: 15.8666839 | J46: 0 | K46: 0 | M46: 0 | N46: 0 | O46: 15.8666839 | P46: 0 | Q46: 1586.66839 | R46: 0
C47: Implements | D47: 1 | F47: Acre | G47: 9.612343482 | I47: 9.612343482 | J47: 0 | K47: 0 | M47: 0 | N47: 0 | O47: 9.612343482 | P47: 0 | Q47: 961.2343482 | R47: 0
I48: 0 | J48: 0 | K48: 0 | M48: 0 | N48: 0 | O48: 0 | P48: 0 | Q48: 0 | R48: 0
I49: 0 | J49: 0 | K49: 0 | M49: 0 | N49: 0 | O49: 0 | P49: 0 | Q49: 0 | R49: 0
B50: Interest on Credit Line | G50: 0.05 | I50: 25.83071262 | J50: =+SUM(J17:J49)/2*H50 -> 0 | M50: 0 | N50: =+SUM(N17:N49)/2*L50 -> 0 | O50: 25.83071262 | P50: =+SUM(P17:P49)/2*L50 -> 0 | Q50: 2583.071262 | R50: =+J50*E$7 -> 0
A51: Total Variable Costs | I51: 1462.6511 | J51: =SUM(J18:J50) -> 0 | M51: 0 | N51: =SUM(N18:N50) -> 0 | O51: 1462.6511 | P51: =SUM(P18:P50) -> 0 | Q51: 146265.11 | R51: =SUM(R18:R50) -> 0
A52: Planned Returns Above Variable Costs: | I52: 697.3489 | J52: =+J13-J51 -> 0 | M52: 0 | N52: =+N13-N51 -> 0 | O52: 697.3489 | P52: =+P13-P51 -> 0 | Q52: 69734.89 | R52: =+R13-R51 -> 0
B53: Breakeven Price to Cover Variable Costs | G53: 40.62919722 | H53: =IF(E10=0,"n/a",(YVarExp-(YTotExp+YTotRet-J10))/E10) -> n/a | I53: Bale (950 lb)
Q54: Enterprise | R54: Enterprise
A55: FIXED COSTS | D55: Quantity | E55: Quantity | F55: Units | G55: $/Unit | H55: $/Unit | I55: Total | J55: Total | K55: Share | L55: Share | M55: Landlord | N55: Landlord | O55: Tenant | P55: Tenant | Q55: Total | R55: Total
B56: Machinery Depreciation
C57: Tractors/Self-Propelled | D57: 1 | F57: Acre | G57: 17.49688799 | I57: 17.49688799 | J57: =E57*H57 -> 0 | K57: 0 | M57: 0 | N57: =J57*L57 -> 0 | O57: 17.49688799 | P57: =+J57-N57 -> 0 | Q57: 1749.688799 | R57: =+J57*E$7 -> 0
C58: Implements | D58: 1 | F58: Acre | G58: 15.04729331 | I58: 15.04729331 | J58: 0 | K58: 0 | M58: 0 | N58: =J58*L58 -> 0 | O58: 15.04729331 | P58: 0 | Q58: 1504.729331 | R58: 0
B59: Equipment Investment
C60: Tractors/Self-Propelled | D60: 135.7946928 | F60: Dollars | G60: 0.07 | I60: 9.505628497 | J60: =E60*H60 -> 0 | K60: 0 | M60: 0 | N60: =J60*L60 -> 0 | O60: 9.505628497 | P60: =+J60-N60 -> 0 | Q60: 950.5628497 | R60: =+J60*E$7 -> 0
C61: Implements | D61: 63.47003071 | F61: Dollars | G61: 0.07 | I61: 4.44290215 | J61: 0 | K61: 0 | M61: 0 | N61: =J61*L61 -> 0 | O61: 4.44290215 | P61: 0 | Q61: 444.290215 | R61: 0
B62: Salaried Labor | D62: 1 | F62: Acre | G62: 0 | I62: 0 | J62: 0 | K62: 0 | M62: 0 | N62: =J62*L62 -> 0 | O62: 0 | P62: =+J62-N62 -> 0 | Q62: 0 | R62: =+J62*E$7 -> 0
B63: Management Fee, Owner/Operator Labor | D63: 1 | F63: Acre | G63: 0 | I63: 0 | J63: 0 | K63: 0 | M63: 0 | N63: 0 | O63: 0 | P63: 0 | Q63: 0 | R63: 0
B64: Allocated Establishment Cost | D64: 1 | F64: Acre | G64: 0 | I64: 0 | J64: 0 | K64: 0 | M64: 0 | N64: 0 | O64: 0 | P64: 0 | Q64: 0 | R64: 0
B65: Cash Rent, Irrigated | D65: 1 | F65: Acre | G65: 85 | I65: 85 | J65: 0 | K65: 0 | M65: 0 | N65: 0 | O65: 85 | P65: 0 | Q65: 8500 | R65: 0
B66: Property Taxes | D66: 1 | F66: Acre | G66: 0 | I66: 0 | J66: 0 | K66: 0 | M66: 0 | N66: 0 | O66: 0 | P66: 0 | Q66: 0 | R66: 0
B67: Whole Farm Insurance | D67: 1 | F67: Acre | G67: 0 | I67: 0 | J67: 0 | K67: 0 | M67: 0 | N67: 0 | O67: 0 | P67: 0 | Q67: 0 | R67: 0
D68: 1 | G68: 0 | I68: 0 | J68: 0 | K68: 0 | M68: 0 | N68: 0 | O68: 0 | P68: 0 | Q68: 0 | R68: 0
D69: 1 | G69: 0 | I69: 0 | J69: =E69*H69 -> 0 | K69: 0 | M69: 0 | N69: 0 | O69: 0 | P69: 0 | Q69: 0 | R69: 0
A70: Total Fixed Costs | I70: 131.4927119 | J70: =+SUM(J57:J69) -> 0 | M70: 0 | N70: =+SUM(N57:N69) -> 0 | O70: 131.4927119 | P70: =+SUM(P57:P69) -> 0 | Q70: 13149.27119 | R70: =+SUM(R57:R69) -> 0
A71: Total Specified Costs | I71: 1594.143812 | J71: =+J51+J70 -> 0 | M71: 0 | N71: =+N51+N70 -> 0 | O71: 1594.143812 | P71: =+P51+P70 -> 0 | Q71: 159414.3812 | R71: =+R51+R70 -> 0
A73: Returns Above Specified Costs | I73: 565.856188 | J73: =+J13-J71 -> 0 | M73: 0 | N73: =+N13-N71 -> 0 | O73: 565.856188 | P73: =+P13-P71 -> 0 | Q73: 56585.6188 | R73: =+R13-R71 -> 0
A75: Breakeven Price to Cover Total Costs | G75: 44.28177255 | H75: =IF(E10=0,"n/a",(YTotExp-(YTotExp+YTotRet-J10))/E10) -> n/a | I75: Bale (950 lb)
D77: Example Breakeven Prices
B78: Example | C78: Example | D78: To Cover | G78: To Cover
B79: Yield | C79: Yield | D79: Variable | G79: Total
B80: Percent | C80: Bale (950 lb) | D80: Costs | G80: Costs
B81: 0.75 | C81: 27 | D81: 54.17226296 | G81: 59.04236341
B82: 0.9 | C82: 32.4 | D82: 45.14355247 | G82: 49.2019695
B83: 1 | C83: 36 | D83: 40.62919722 | G83: 44.28177255
B84: 1.1 | C84: 39.6 | D84: 36.93563384 | G84: 40.25615687
B85: 1.25 | C85: 45 | D85: 32.50335778 | G85: 35.42541804
D87: Your Breakeven Prices
B88: Your | C88: Your | E88: To Cover | H88: To Cover
B89: Yield | C89: Yield | E89: Variable | H89: Total
B90: Percent | C90: Bale (950 lb) | E90: Costs | H90: Costs
B91: 0.75 | C91: =E10*YPER1 -> 0 | E91: =IF($E$10=0,0,(YVarExp-(YTotExp+YTotRet-J10))/($E$10*YPER1)) -> 0 | H91: =IF($E$10=0,0,(YTotExp-(YTotExp+YTotRet-J10))/($E$10*YPER1)) -> 0
B92: 0.9 | C92: =E10*YPER2 -> 0 | E92: =IF($E$10=0,0,(YVarExp-(YTotExp+YTotRet-J10))/($E$10*YPER2)) -> 0 | H92: =IF($E$10=0,0,(YTotExp-(YTotExp+YTotRet-J10))/($E$10*YPER2)) -> 0
B93: 1 | C93: =+E10 -> 0 | E93: =IF($E$10=0,0,(YVarExp-(YTotExp+YTotRet-J10))/($E$10*YPER3)) -> 0 | H93: =IF($E$10=0,0,(YTotExp-(YTotExp+YTotRet-J10))/($E$10*YPER3)) -> 0
B94: 1.1 | C94: =E10*YPER4 -> 0 | E94: =IF($E$10=0,0,(YVarExp-(YTotExp+YTotRet-J10))/($E$10*YPER4)) -> 0 | H94: =IF($E$10=0,0,(YTotExp-(YTotExp+YTotRet-J10))/($E$10*YPER4)) -> 0
B95: 1.25 | C95: =E10*YPER5 -> 0 | E95: =IF($E$10=0,0,(YVarExp-(YTotExp+YTotRet-J10))/($E$10*YPER5)) -> 0 | H95: =IF($E$10=0,0,(YTotExp-(YTotExp+YTotRet-J10))/($E$10*YPER5)) -> 0
A97: Developed by Samuel Zapata, Assistant Professor and Extension Economist, Texas A&M AgriLife Extension, 956-968-5581.
A99: Information presented is prepared solely as a general guide and not intended to recognize or predict the costs and returns from any one operation. Brand names are mentioned only as examples and imply no endorsement.

Sheet Cabbage
A1: Projections for Planning Purposes Only -- Not to be Used without Updating
A2: 2020 Estimated Costs and Returns per Acre
A3: Cabbage, Fresh Market, Furrow Irrigated, Rio Grande Valley
A4: Enter your name for this budget in the cell above.
A5: Enter Your Values in the cells highlighed in MAROON.
E6: Your Acres | R6: Your
C7: Crop Acres | D7: 100 | L7: Your | Q7: Enterprise | R7: Enterprise
E8: Your | H8: Your | I8: Cash | J8: Your | K8: Landlord | L8: Landlord | N8: Your | P8: Your | Q8: Total | R8: Total
A9: REVENUE | D9: Quantity | E9: Quantity | F9: Units | G9: $/Unit | H9: $/Unit | I9: Total | J9: Total | K9: Share | L9: Share | M9: Landlord | N9: Landlord | O9: Tenant | P9: Tenant | Q9: (100 acres) | R9: ="(" & E7 & " acres)" -> ( acres)
B10: Cabbage | D10: 750 | F10: Carton | G10: 9 | I10: 6750 | J10: =E10*H10 -> 0 | K10: 0 | M10: 0 | N10: =J10*L10 -> 0 | O10: 6750 | P10: =+J10-N10 -> 0 | Q10: 675000 | R10: =+J10*E$7 -> 0
D11: 0 | G11: 0 | I11: 0 | J11: 0 | K11: 0 | M11: 0 | N11: 0 | O11: 0 | P11: =+J11-N11 -> 0 | Q11: 0 | R11: 0
D12: 0 | G12: 0 | I12: 0 | J12: 0 | K12: 0 | M12: 0 | N12: 0 | O12: 0 | P12: 0 | Q12: 0 | R12: 0
A13: Total Revenue | I13: 6750 | J13: =SUM(J10:J12) -> 0 | M13: 0 | N13: =SUM(N10:N12) -> 0 | O13: 6750 | P13: =SUM(P10:P12) -> 0 | Q13: 675000 | R13: =SUM(R10:R12) -> 0
Q14: Enterprise | R14: Enterprise
A15: VARIABLE COSTS | D15: Quantity | E15: Quantity | F15: Units | G15: $/Unit | H15: $/Unit | I15: Total | J15: Total | K15: Share | L15: Share | M15: Landlord | N15: Landlord | O15: Tenant | P15: Tenant | Q15: Total | R15: Total
A16: Production Costs
B17: Custom
C18: Harvest Cabbage | D18: 750 | F18: Carton | G18: 1.5 | I18: 1125 | J18: =E18*H18 -> 0 | K18: 0 | M18: 0 | N18: =J18*L18 -> 0 | O18: 1125 | P18: =+J18-N18 -> 0 | Q18: 112500 | R18: =+J18*E$7 -> 0
C19: Pack and Count Cabbage | D19: 750 | F19: Carton | G19: 3 | I19: 2250 | J19: 0 | K19: 0 | M19: 0 | N19: 0 | O19: 2250 | P19: 0 | Q19: 225000 | R19: 0
B20: Fertilizer
C21: Phosphorus (46% P2O5) | D21: 1.75 | F21: CWT | G21: 25.6 | I21: 44.8 | J21: 0 | K21: 0 | M21: 0 | N21: 0 | O21: 44.8 | P21: 0 | Q21: 4480 | R21: 0
C22: Ammonium Nitrate (34% N) | D22: 4.41 | F22: CWT | G22: 25.848 | I22: 113.98968 | J22: 0 | K22: 0 | M22: 0 | N22: 0 | O22: 113.98968 | P22: 0 | Q22: 11398.968 | R22: 0
B23: Herbicide
C24: Prefar 4E | D24: 2.75 | F24: Quart | G24: 19.26212 | I24: 52.97083 | J24: 0 | K24: 0 | M24: 0 | N24: 0 | O24: 52.97083 | P24: 0 | Q24: 5297.083 | R24: 0
B25: Insecticide
C26: Admire Pro | D26: 0.275 | F26: Pint | G26: 27.7368 | I26: 7.62762 | J26: 0 | K26: 0 | M26: 0 | N26: 0 | O26: 7.62762 | P26: 0 | Q26: 762.762 | R26: 0
C27: Lorsban 4E | D27: 3.55 | F27: Pint | G27: 6.3544 | I27: 22.55812 | J27: 0 | K27: 0 | M27: 0 | N27: 0 | O27: 22.55812 | P27: 0 | Q27: 2255.812 | R27: 0
C28: Karate | D28: 7.68 | F28: Ounce | G28: 1.7888 | I28: 13.737984 | J28: 0 | K28: 0 | M28: 0 | N28: 0 | O28: 13.737984 | P28: 0 | Q28: 1373.7984 | R28: 0
C29: Asana XL | D29: 24 | F29: Ounce | G29: 0.6136 | I29: 14.7264 | J29: 0 | K29: 0 | M29: 0 | N29: 0 | O29: 14.7264 | P29: 0 | Q29: 1472.64 | R29: 0
B30: Seed
C31: Cabbage Seed | D31: 24 | F31: Thousand | G31: 5 | I31: 120 | J31: 0 | K31: 0 | M31: 0 | N31: 0 | O31: 120 | P31: 0 | Q31: 12000 | R31: 0
B32: Fungicides
C33: Bravo Ultrex | D33: 7 | F33: Pound | G33: 7.2072 | I33: 50.4504 | J33: 0 | K33: 0 | M33: 0 | N33: 0 | O33: 50.4504 | P33: 0 | Q33: 5045.04 | R33: 0
C34: Ridomil Gold SC | D34: 72 | F34: Ounce | G34: 0.8944 | I34: 64.3968 | J34: 0 | K34: 0 | M34: 0 | N34: 0 | O34: 64.3968 | P34: 0 | Q34: 6439.68 | R34: 0
B35: Other Labor
C36: Unallocated Labor | D36: 0.1546 | F36: Hour | G36: 12 | I36: 1.8552 | J36: 0 | K36: 0 | M36: 0 | N36: 0 | O36: 1.8552 | P36: 0 | Q36: 185.52 | R36: 0
D37: 0 | G37: 0 | I37: 0 | J37: 0 | K37: 0 | M37: 0 | N37: 0 | O37: 0 | P37: 0 | Q37: 0 | R37: 0
D38: 0 | G38: 0 | I38: 0 | J38: 0 | K38: 0 | M38: 0 | N38: 0 | O38: 0 | P38: 0 | Q38: 0 | R38: 0
D39: 0 | G39: 0 | I39: 0 | J39: =E39*H39 -> 0 | K39: 0 | M39: 0 | N39: =J39*L39 -> 0 | O39: 0 | P39: =+J39-N39 -> 0 | Q39: 0 | R39: =+J39*E$7 -> 0
B40: Irrigation
C41: Water Cost | D41: 2.8 | F41: Acre/Foot | G41: 20 | I41: 56 | J41: =E41*H41 -> 0 | K41: 0 | M41: 0 | N41: =J41*L41 -> 0 | O41: 56 | P41: =+J41-N41 -> 0 | Q41: 5600 | R41: =+J41*E$7 -> 0
C42: Irrigation Labor | D42: 7.5 | F42: Hour | G42: 12 | I42: 90 | J42: 0 | K42: 0 | M42: 0 | N42: 0 | O42: 90 | P42: 0 | Q42: 9000 | R42: 0
B43: Machinery Labor
C44: Tractors/Self-Propelled | D44: 2.38 | F44: Hour | G44: 12 | I44: 28.56 | J44: =E44*H44 -> 0 | K44: 0 | M44: 0 | N44: =J44*L44 -> 0 | O44: 28.56 | P44: =+J44-N44 -> 0 | Q44: 2856 | R44: =+J44*E$7 -> 0
C45: Other Labor | D45: 0 | F45: Hour | G45: 12 | I45: 0 | J45: =E45*H45 -> 0 | K45: 0 | M45: 0 | N45: =J45*L45 -> 0 | O45: 0 | P45: =+J45-N45 -> 0 | Q45: 0 | R45: =+J45*E$7 -> 0
B47: Diesel Fuel
C48: Pickup/General Use Equipment | D48: 1 | F48: Acre | G48: 0 | I48: 0 | J48: =E48*H48 -> 0 | K48: 0 | M48: 0 | N48: =J48*L48 -> 0 | O48: 0 | P48: =+J48-N48 -> 0 | Q48: 0 | R48: =+J48*E$7 -> 0
C49: Tractors/Self-Propelled | D49: 13.91 | F49: Gallon | G49: 2.3 | I49: 31.993 | J49: =E49*H49 -> 0 | K49: 0 | M49: 0 | N49: =J49*L49 -> 0 | O49: 31.993 | P49: =+J49-N49 -> 0 | Q49: 3199.3 | R49: =+J49*E$7 -> 0
B51: Gasoline
C52: Pickup/General Use Equipment | D52: 1 | F52: Acre | G52: 0 | I52: 0 | J52: =E52*H52 -> 0 | K52: 0 | M52: 0 | N52: =J52*L52 -> 0 | O52: 0 | P52: =+J52-N52 -> 0 | Q52: 0 | R52: =+J52*E$7 -> 0
C53: Tractors/Self-Propelled | D53: 0 | F53: Gallon | G53: 2.2 | I53: 0 | J53: =E53*H53 -> 0 | K53: 0 | M53: 0 | N53: =J53*L53 -> 0 | O53: 0 | P53: =+J53-N53 -> 0 | Q53: 0 | R53: =+J53*E$7 -> 0
B55: Repairs & Maintenance
C56: Pickup/General Use Equipment | D56: 1 | F56: Acre | G56: 0 | I56: 0 | J56: =E56*H56 -> 0 | K56: 0 | M56: 0 | N56: =J56*L56 -> 0 | O56: 0 | P56: =+J56-N56 -> 0 | Q56: 0 | R56: =+J56*E$7 -> 0
C57: Irrigation Equipment | D57: 1 | F57: Acre | G57: 0 | I57: 0 | J57: 0 | K57: 0 | M57: 0 | N57: 0 | O57: 0 | P57: 0 | Q57: 0 | R57: 0
C58: Tractors/Self-Propelled | D58: 1 | F58: Acre | G58: 30.89640751 | I58: 30.89640751 | J58: 0 | K58: 0 | M58: 0 | N58: 0 | O58: 30.89640751 | P58: 0 | Q58: 3089.640751 | R58: 0
C59: Implements | D59: 1 | F59: Acre | G59: 19.88867445 | I59: 19.88867445 | J59: 0 | K59: 0 | M59: 0 | N59: 0 | O59: 19.88867445 | P59: 0 | Q59: 1988.867445 | R59: 0
I60: 0 | J60: 0 | K60: 0 | M60: 0 | N60: 0 | O60: 0 | P60: 0 | Q60: 0 | R60: 0
I61: 0 | J61: 0 | K61: 0 | M61: 0 | N61: 0 | O61: 0 | P61: 0 | Q61: 0 | R61: 0
B62: Interest on Credit Line | G62: 0.05 | I62: 11.26351737 | J62: =+SUM(J17:J61)/2*H62 -> 0 | M62: 0 | N62: =+SUM(N17:N61)/2*L62 -> 0 | O62: 11.26351737 | P62: =+SUM(P17:P61)/2*L62 -> 0 | Q62: 1126.351737 | R62: =+J62*E$7 -> 0
A63: Total Variable Costs | I63: 4150.714633 | J63: =SUM(J18:J62) -> 0 | M63: 0 | N63: =SUM(N18:N62) -> 0 | O63: 4150.714633 | P63: =SUM(P18:P62) -> 0 | Q63: 415071.4633 | R63: =SUM(R18:R62) -> 0
A64: Planned Returns Above Variable Costs: | I64: 2599.285367 | J64: =+J13-J63 -> 0 | M64: 0 | N64: =+N13-N63 -> 0 | O64: 2599.285367 | P64: =+P13-P63 -> 0 | Q64: 259928.5367 | R64: =+R13-R63 -> 0
B65: Breakeven Price to Cover Variable Costs | G65: 5.534286178 | H65: =IF(E10=0,"n/a",(YVarExp-(YTotExp+YTotRet-J10))/E10) -> n/a | I65: Carton
Q66: Enterprise | R66: Enterprise
A67: FIXED COSTS | D67: Quantity | E67: Quantity | F67: Units | G67: $/Unit | H67: $/Unit | I67: Total | J67: Total | K67: Share | L67: Share | M67: Landlord | N67: Landlord | O67: Tenant | P67: Tenant | Q67: Total | R67: Total
B68: Machinery Depreciation
C69: Tractors/Self-Propelled | D69: 1 | F69: Acre | G69: 31.67169721 | I69: 31.67169721 | J69: =E69*H69 -> 0 | K69: 0 | M69: 0 | N69: =J69*L69 -> 0 | O69: 31.67169721 | P69: =+J69-N69 -> 0 | Q69: 3167.169721 | R69: =+J69*E$7 -> 0
C70: Implements | D70: 1 | F70: Acre | G70: 23.43953374 | I70: 23.43953374 | J70: 0 | K70: 0 | M70: 0 | N70: =J70*L70 -> 0 | O70: 23.43953374 | P70: 0 | Q70: 2343.953374 | R70: 0
B71: Equipment Investment
C72: Tractors/Self-Propelled | D72: 246.7327379 | F72: Dollars | G72: 0.07 | I72: 17.27129165 | J72: =E72*H72 -> 0 | K72: 0 | M72: 0 | N72: =J72*L72 -> 0 | O72: 17.27129165 | P72: =+J72-N72 -> 0 | Q72: 1727.129165 | R72: =+J72*E$7 -> 0
C73: Implements | D73: 107.9600506 | F73: Dollars | G73: 0.07 | I73: 7.557203542 | J73: 0 | K73: 0 | M73: 0 | N73: =J73*L73 -> 0 | O73: 7.557203542 | P73: 0 | Q73: 755.7203542 | R73: 0
B74: Salaried Labor | D74: 1 | F74: Acre | G74: 0 | I74: 0 | J74: 0 | K74: 0 | M74: 0 | N74: =J74*L74 -> 0 | O74: 0 | P74: =+J74-N74 -> 0 | Q74: 0 | R74: =+J74*E$7 -> 0
B75: Management Fee, Owner/Operator Labor | D75: 1 | F75: Acre | G75: 0 | I75: 0 | J75: 0 | K75: 0 | M75: 0 | N75: 0 | O75: 0 | P75: 0 | Q75: 0 | R75: 0
B76: Allocated Establishment Cost | D76: 1 | F76: Acre | G76: 0 | I76: 0 | J76: 0 | K76: 0 | M76: 0 | N76: 0 | O76: 0 | P76: 0 | Q76: 0 | R76: 0
B77: Cash Rent, Irrigated Vegetables | D77: 1 | F77: Acre | G77: 110 | I77: 110 | J77: 0 | K77: 0 | M77: 0 | N77: 0 | O77: 110 | P77: 0 | Q77: 11000 | R77: 0
B78: Property Taxes | D78: 1 | F78: Acre | G78: 0 | I78: 0 | J78: 0 | K78: 0 | M78: 0 | N78: 0 | O78: 0 | P78: 0 | Q78: 0 | R78: 0
B79: Whole Farm Insurance | D79: 1 | F79: Acre | G79: 0 | I79: 0 | J79: 0 | K79: 0 | M79: 0 | N79: 0 | O79: 0 | P79: 0 | Q79: 0 | R79: 0
D80: 1 | G80: 0 | I80: 0 | J80: 0 | K80: 0 | M80: 0 | N80: 0 | O80: 0 | P80: 0 | Q80: 0 | R80: 0
D81: 1 | G81: 0 | I81: 0 | J81: =E81*H81 -> 0 | K81: 0 | M81: 0 | N81: 0 | O81: 0 | P81: 0 | Q81: 0 | R81: 0
A82: Total Fixed Costs | I82: 189.9397261 | J82: =+SUM(J69:J81) -> 0 | M82: 0 | N82: =+SUM(N69:N81) -> 0 | O82: 189.9397261 | P82: =+SUM(P69:P81) -> 0 | Q82: 18993.97261 | R82: =+SUM(R69:R81) -> 0
A83: Total Specified Costs | I83: 4340.654359 | J83: =+J63+J82 -> 0 | M83: 0 | N83: =+N63+N82 -> 0 | O83: 4340.654359 | P83: =+P63+P82 -> 0 | Q83: 434065.4359 | R83: =+R63+R82 -> 0
A85: Returns Above Specified Costs | I85: 2409.345641 | J85: =+J13-J83 -> 0 | M85: 0 | N85: =+N13-N83 -> 0 | O85: 2409.345641 | P85: =+P13-P83 -> 0 | Q85: 240934.5641 | R85: =+R13-R83 -> 0
A87: Breakeven Price to Cover Total Costs | G87: 5.787539146 | H87: =IF(E10=0,"n/a",(YTotExp-(YTotExp+YTotRet-J10))/E10) -> n/a | I87: Carton
D89: Example Breakeven Prices
B90: Example | C90: Example | D90: To Cover | G90: To Cover
B91: Yield | C91: Yield | D91: Variable | G91: Total
B92: Percent | C92: Carton | D92: Costs | G92: Costs
B93: 0.75 | C93: 562.5 | D93: 7.379048237 | G93: 7.716718861
B94: 0.9 | C94: 675 | D94: 6.149206864 | G94: 6.430599051
B95: 1 | C95: 750 | D95: 5.534286178 | G95: 5.787539146
B96: 1.1 | C96: 825 | D96: 5.031169253 | G96: 5.261399224
B97: 1.25 | C97: 937.5 | D97: 4.427428942 | G97: 4.630031317
D99: Your Breakeven Prices
B100: Your | C100: Your | E100: To Cover | H100: To Cover
B101: Yield | C101: Yield | E101: Variable | H101: Total
B102: Percent | C102: Carton | E102: Costs | H102: Costs
B103: 0.75 | C103: =E10*YPER1 -> 0 | E103: =IF($E$10=0,0,(YVarExp-(YTotExp+YTotRet-J10))/($E$10*YPER1)) -> 0 | H103: =IF($E$10=0,0,(YTotExp-(YTotExp+YTotRet-J10))/($E$10*YPER1)) -> 0
B104: 0.9 | C104: =E10*YPER2 -> 0 | E104: =IF($E$10=0,0,(YVarExp-(YTotExp+YTotRet-J10))/($E$10*YPER2)) -> 0 | H104: =IF($E$10=0,0,(YTotExp-(YTotExp+YTotRet-J10))/($E$10*YPER2)) -> 0
